Workbook

Sheet Velkomst

Sheet Tabel 1 Sydj
A1: Tabel 1. Forsikrede medlemmer
A3: Sydjylland
C5: Mænd | E5: Kvinder | G5: I alt
A7: Civ. ing. | C7: 1590 | E7: 530 | G7: 2120
A8: Diplom ing. | C8: 3374 | E8: 874 | G8: 4248
A9: Cand. Scient. Tek. | C9: 586 | E9: 440 | G9: 1026
A10: MA. Hum. | C10: 758 | E10: 1628 | G10: 2386
A11: MA. Nat. | C11: 401 | E11: 370 | G11: 771
A12: MA. Ph.d. | C12: 38 | E12: 37 | G12: 75
A13: MA. Samf. | C13: 43 | E13: 143 | G13: 186
A14: Øvrige Mag. | C14: 66 | E14: 161 | G14: 227
A15: Agronom | C15: 104 | E15: 113 | G15: 217
A16: Landsk. Arkt. | C16: 10 | E16: 22 | G16: 32
A17: Hortonom | C17: 3 | E17: 13 | G17: 16
A18: Forstkand. | C18: 27 | E18: 11 | G18: 38
A19: Jordbrugsakad. | C19: 144 | E19: 230 | G19: 374
A20: Mejeriing. | C20: 23 | E20: 19 | G20: 42
A21: Levn.m.kand. | C21: 2 | E21: 11 | G21: 13
A22: Dyrlæge | C22: 66 | E22: 230 | G22: 296
A23: Farmaceut | C23: 36 | E23: 171 | G23: 207
A24: Læge | C24: 260 | E24: 598 | G24: 858
A25: Tandlæge | C25: 19 | E25: 167 | G25: 186
A26: Arkitekt | C26: 93 | E26: 123 | G26: 216
A27: Landinspek. | C27: 59 | E27: 31 | G27: 90
A28: Bibliotekar | C28: 57 | E28: 184 | G28: 241
A29: Musikudd. | C29: 40 | E29: 60 | G29: 100
A30: Teolog | C30: 77 | E30: 118 | G30: 195
A31: Psykolog | C31: 79 | E31: 417 | G31: 496
A32: Jurist | C32: 248 | E32: 561 | G32: 809
A33: Økonom | C33: 242 | E33: 173 | G33: 415
A34: Samf. Adm. | C34: 454 | E34: 740 | G34: 1194
A35: Cand. Merc. | C35: 1173 | E35: 1096 | G35: 2269
A36: HA | C36: 304 | E36: 314 | G36: 618
A37: HD | C37: 262 | E37: 207 | G37: 469
A38: Komm. og Sprog | C38: 56 | E38: 395 | G38: 451
A39: Bygningskonst. | C39: 692 | E39: 111 | G39: 803
A40: Cand. IT. | C40: 121 | E40: 140 | G40: 261
A41: Bac. Samf. | C41: 25 | E41: 57 | G41: 82
A42: Bac. Hum. | C42: 65 | E42: 128 | G42: 193
A43: Bac. Nat. | C43: 187 | E43: 87 | G43: 274
A44: Andre | C44: 852 | E44: 646 | G44: 1498
A46: Total | C46: 12492 | E46: 11126 | G46: 23618
A48: Ingeniører i alt | C48: 4964 | E48: 1404 | G48: 6368
A49: Magistre i alt | C49: 1306 | E49: 2339 | G49: 3645
A50: DJØF'ere i alt | C50: 2421 | E50: 2884 | G50: 5305
A57: Haderslev
C59: Mænd | E59: Kvinder | G59: I alt
A61: Civ. ing. | C61: 42 | E61: 12 | G61: 54
A62: Diplom ing. | C62: 134 | E62: 37 | G62: 171
A63: Cand. Scient. Tek. | C63: 17 | E63: 20 | G63: 37
A64: MA. Hum. | C64: 60 | E64: 112 | G64: 172
A65: MA. Nat. | C65: 23 | E65: 22 | G65: 45
A66: MA. Ph.d. | C66: 2 | E66: 0 | G66: 2
A67: MA. Samf. | C67: 2 | E67: 6 | G67: 8
A68: Øvrige Mag. | C68: 4 | E68: 12 | G68: 16
A69: Agronom | C69: 8 | E69: 15 | G69: 23
A70: Landsk. Arkt. | C70: 2 | E70: 1 | G70: 3
A71: Hortonom | C71: 1 | E71: 1 | G71: 2
A72: Forstkand. | C72: 0 | E72: 0 | G72: 0
A73: Jordbrugsakad. | C73: 11 | E73: 18 | G73: 29
A74: Mejeriing. | C74: 0 | E74: 4 | G74: 4
A75: Levn.m.kand. | C75: 0 | E75: 1 | G75: 1
A76: Dyrlæge | C76: 1 | E76: 18 | G76: 19
A77: Farmaceut | C77: 4 | E77: 12 | G77: 16
A78: Læge | C78: 9 | E78: 16 | G78: 25
A79: Tandlæge | C79: 1 | E79: 17 | G79: 18
A80: Arkitekt | C80: 9 | E80: 8 | G80: 17
A81: Landinspek. | C81: 2 | E81: 1 | G81: 3
A82: Bibliotekar | C82: 0 | E82: 9 | G82: 9
A83: Musikudd. | C83: 4 | E83: 10 | G83: 14
A84: Teolog | C84: 8 | E84: 9 | G84: 17
A85: Psykolog | C85: 5 | E85: 19 | G85: 24
A86: Jurist | C86: 11 | E86: 31 | G86: 42
A87: Økonom | C87: 12 | E87: 9 | G87: 21
A88: Samf. Adm. | C88: 23 | E88: 26 | G88: 49
A89: Cand. Merc. | C89: 55 | E89: 60 | G89: 115
A90: HA | C90: 16 | E90: 13 | G90: 29
A91: HD | C91: 17 | E91: 10 | G91: 27
A92: Komm. og Sprog | C92: 3 | E92: 24 | G92: 27
A93: Bygningskonst. | C93: 45 | E93: 8 | G93: 53
A94: Cand. IT. | C94: 4 | E94: 3 | G94: 7
A95: Bac. Samf. | C95: 0 | E95: 4 | G95: 4
A96: Bac. Hum. | C96: 6 | E96: 7 | G96: 13
A97: Bac. Nat. | C97: 8 | E97: 7 | G97: 15
A98: Andre | C98: 45 | E98: 28 | G98: 73
A100: Total | C100: 583 | E100: 592 | G100: 1175
A102: Ingeniører i alt | C102: 176 | E102: 49 | G102: 225
A103: Magistre i alt | C103: 91 | E103: 152 | G103: 243
A104: DJØF'ere i alt | C104: 117 | E104: 139 | G104: 256
A111: Billund
C113: Mænd | E113: Kvinder | G113: I alt
A115: Civ. ing. | C115: 34 | E115: 12 | G115: 46
A116: Diplom ing. | C116: 71 | E116: 23 | G116: 94
A117: Cand. Scient. Tek. | C117: 13 | E117: 10 | G117: 23
A118: MA. Hum. | C118: 17 | E118: 34 | G118: 51
A119: MA. Nat. | C119: 6 | E119: 13 | G119: 19
A120: MA. Ph.d. | C120: 1 | E120: 1 | G120: 2
A121: MA. Samf. | C121: 1 | E121: 3 | G121: 4
A122: Øvrige Mag. | C122: 1 | E122: 3 | G122: 4
A123: Agronom | C123: 2 | E123: 5 | G123: 7
A124: Landsk. Arkt. | C124: 0 | E124: 0 | G124: 0
A125: Hortonom | C125: 0 | E125: 0 | G125: 0
A126: Forstkand. | C126: 1 | E126: 0 | G126: 1
A127: Jordbrugsakad. | C127: 3 | E127: 4 | G127: 7
A128: Mejeriing. | C128: 0 | E128: 0 | G128: 0
A129: Levn.m.kand. | C129: 1 | E129: 0 | G129: 1
A130: Dyrlæge | C130: 3 | E130: 4 | G130: 7
A131: Farmaceut | C131: 0 | E131: 4 | G131: 4
A132: Læge | C132: 0 | E132: 3 | G132: 3
A133: Tandlæge | C133: 0 | E133: 7 | G133: 7
A134: Arkitekt | C134: 1 | E134: 5 | G134: 6
A135: Landinspek. | C135: 1 | E135: 0 | G135: 1
A136: Bibliotekar | C136: 0 | E136: 1 | G136: 1
A137: Musikudd. | C137: 1 | E137: 1 | G137: 2
A138: Teolog | C138: 1 | E138: 1 | G138: 2
A139: Psykolog | C139: 0 | E139: 10 | G139: 10
A140: Jurist | C140: 6 | E140: 10 | G140: 16
A141: Økonom | C141: 6 | E141: 2 | G141: 8
A142: Samf. Adm. | C142: 8 | E142: 18 | G142: 26
A143: Cand. Merc. | C143: 33 | E143: 33 | G143: 66
A144: HA | C144: 7 | E144: 7 | G144: 14
A145: HD | C145: 3 | E145: 8 | G145: 11
A146: Komm. og Sprog | C146: 2 | E146: 15 | G146: 17
A147: Bygningskonst. | C147: 15 | E147: 3 | G147: 18
A148: Cand. IT. | C148: 5 | E148: 4 | G148: 9
A149: Bac. Samf. | C149: 2 | E149: 3 | G149: 5
A150: Bac. Hum. | C150: 1 | E150: 1 | G150: 2
A151: Bac. Nat. | C151: 9 | E151: 5 | G151: 14
A152: Andre | C152: 23 | E152: 28 | G152: 51
A154: Total | C154: 275 | E154: 277 | G154: 552
A156: Ingeniører i alt | C156: 105 | E156: 35 | G156: 140
A157: Magistre i alt | C157: 26 | E157: 54 | G157: 80
A158: DJØF'ere i alt | C158: 60 | E158: 70 | G158: 130
A165: Sønderborg
C167: Mænd | E167: Kvinder | G167: I alt
A169: Civ. ing. | C169: 236 | E169: 52 | G169: 288
A170: Diplom ing. | C170: 651 | E170: 95 | G170: 746
A171: Cand. Scient. Tek. | C171: 107 | E171: 45 | G171: 152
A172: MA. Hum. | C172: 61 | E172: 145 | G172: 206
A173: MA. Nat. | C173: 41 | E173: 37 | G173: 78
A174: MA. Ph.d. | C174: 7 | E174: 6 | G174: 13
A175: MA. Samf. | C175: 2 | E175: 12 | G175: 14
A176: Øvrige Mag. | C176: 6 | E176: 16 | G176: 22
A177: Agronom | C177: 12 | E177: 17 | G177: 29
A178: Landsk. Arkt. | C178: 0 | E178: 5 | G178: 5
A179: Hortonom | C179: 0 | E179: 0 | G179: 0
A180: Forstkand. | C180: 3 | E180: 4 | G180: 7
A181: Jordbrugsakad. | C181: 15 | E181: 13 | G181: 28
A182: Mejeriing. | C182: 1 | E182: 0 | G182: 1
A183: Levn.m.kand. | C183: 0 | E183: 0 | G183: 0
A184: Dyrlæge | C184: 5 | E184: 13 | G184: 18
A185: Farmaceut | C185: 4 | E185: 16 | G185: 20
A186: Læge | C186: 24 | E186: 51 | G186: 75
A187: Tandlæge | C187: 0 | E187: 11 | G187: 11
A188: Arkitekt | C188: 3 | E188: 7 | G188: 10
A189: Landinspek. | C189: 5 | E189: 1 | G189: 6
A190: Bibliotekar | C190: 9 | E190: 23 | G190: 32
A191: Musikudd. | C191: 0 | E191: 4 | G191: 4
A192: Teolog | C192: 7 | E192: 17 | G192: 24
A193: Psykolog | C193: 9 | E193: 40 | G193: 49
A194: Jurist | C194: 25 | E194: 38 | G194: 63
A195: Økonom | C195: 22 | E195: 14 | G195: 36
A196: Samf. Adm. | C196: 42 | E196: 55 | G196: 97
A197: Cand. Merc. | C197: 106 | E197: 109 | G197: 215
A198: HA | C198: 46 | E198: 36 | G198: 82
A199: HD | C199: 28 | E199: 22 | G199: 50
A200: Komm. og Sprog | C200: 6 | E200: 55 | G200: 61
A201: Bygningskonst. | C201: 50 | E201: 4 | G201: 54
A202: Cand. IT. | C202: 16 | E202: 11 | G202: 27
A203: Bac. Samf. | C203: 1 | E203: 11 | G203: 12
A204: Bac. Hum. | C204: 9 | E204: 8 | G204: 17
A205: Bac. Nat. | C205: 33 | E205: 10 | G205: 43
A206: Andre | C206: 86 | E206: 62 | G206: 148
A208: Total | C208: 1663 | E208: 1052 | G208: 2715
A210: Ingeniører i alt | C210: 887 | E210: 147 | G210: 1034
A211: Magistre i alt | C211: 117 | E211: 216 | G211: 333
A212: DJØF'ere i alt | C212: 241 | E212: 252 | G212: 493
A219: Tønder
C221: Mænd | E221: Kvinder | G221: I alt
A223: Civ. ing. | C223: 22 | E223: 13 | G223: 35
A224: Diplom ing. | C224: 40 | E224: 14 | G224: 54
A225: Cand. Scient. Tek. | C225: 8 | E225: 7 | G225: 15
A226: MA. Hum. | C226: 28 | E226: 44 | G226: 72
A227: MA. Nat. | C227: 11 | E227: 12 | G227: 23
A228: MA. Ph.d. | C228: 0 | E228: 1 | G228: 1
A229: MA. Samf. | C229: 0 | E229: 2 | G229: 2
A230: Øvrige Mag. | C230: 1 | E230: 5 | G230: 6
A231: Agronom | C231: 4 | E231: 9 | G231: 13
A232: Landsk. Arkt. | C232: 0 | E232: 1 | G232: 1
A233: Hortonom | C233: 0 | E233: 0 | G233: 0
A234: Forstkand. | C234: 1 | E234: 1 | G234: 2
A235: Jordbrugsakad. | C235: 5 | E235: 16 | G235: 21
A236: Mejeriing. | C236: 0 | E236: 0 | G236: 0
A237: Levn.m.kand. | C237: 0 | E237: 0 | G237: 0
A238: Dyrlæge | C238: 5 | E238: 16 | G238: 21
A239: Farmaceut | C239: 1 | E239: 3 | G239: 4
A240: Læge | C240: 1 | E240: 7 | G240: 8
A241: Tandlæge | C241: 1 | E241: 2 | G241: 3
A242: Arkitekt | C242: 3 | E242: 3 | G242: 6
A243: Landinspek. | C243: 3 | E243: 0 | G243: 3
... 374 more rows

Sheet Tabel 2 Sydj
A1: Tabel 2. Antal bruttoledighedsberørte og gennemsnitlig antal ledige brutto
A3: Sydjylland
C5: Mænd | F5: Kvinder | I5: I alt
C6: Ledigheds- berørte | D6: Gns. brutto- ledighed | F6: Ledigheds- berørte | G6: Gns. brutto- ledighed | I6: Ledigheds- berørte | J6: Gns. brutto- ledighed
A9: Civ. ing. | C9: 24 | D9: 18.92409406 | F9: 9 | G9: 6.668745712 | I9: 33 | J9: 25.59283977
A10: Diplom ing. | C10: 53 | D10: 45.65146885 | F10: 17 | G10: 12.08008483 | I10: 70 | J10: 57.73155367
A11: Cand. Scient. Tek. | C11: 22 | D11: 19.90956153 | F11: 17 | G11: 13.81151375 | I11: 39 | J11: 33.72107528
A12: MA. Hum. | C12: 42 | D12: 35.6171646 | F12: 86 | G12: 66.96126739 | I12: 128 | J12: 102.578432
A13: MA. Nat. | C13: 9 | D13: 6.166656271 | F13: 7 | G13: 4.7177696 | I13: 16 | J13: 10.88442587
A14: MA. Ph.d. | C14: 2 | D14: 1.90731616 | F14: 0 | G14: 0 | I14: 2 | J14: 1.90731616
A15: MA. Samf. | C15: 6 | D15: 4.174515063 | F15: 13 | G15: 8.382086946 | I15: 19 | J15: 12.55660201
A16: Øvrige Mag. | C16: 2 | D16: 1.339113079 | F16: 5 | G16: 4.99906443 | I16: 7 | J16: 6.338177509
A17: Agronom | C17: 2 | D17: 1.768851743 | F17: 1 | G17: 0.697935508 | I17: 3 | J17: 2.466787251
A18: Landsk. Arkt. | C18: 0 | D18: 0 | F18: 1 | G18: 0.9998128859 | I18: 1 | J18: 0.9998128859
A19: Hortonom | C19: 0 | D19: 0 | F19: 0 | G19: 0 | I19: 0 | J19: 0
A20: Forstkand. | C20: 0 | D20: 0 | F20: 0 | G20: 0 | I20: 0 | J20: 0
A21: Jordbrugsakad. | C21: 2 | D21: 1.768851743 | F21: 2 | G21: 1.697748394 | I21: 4 | J21: 3.466600137
A22: Mejeriing. | C22: 0 | D22: 0 | F22: 0 | G22: 0 | I22: 0 | J22: 0
A23: Levn.m.kand. | C23: 0 | D23: 0 | F23: 0 | G23: 0 | I23: 0 | J23: 0
A24: Dyrlæge | C24: 1 | D24: 0.9998128859 | F24: 2 | G24: 0.4097798291 | I24: 3 | J24: 1.409592715
A25: Farmaceut | C25: 1 | D25: 0.594399052 | F25: 3 | G25: 2.584045406 | I25: 4 | J25: 3.178444458
A26: Læge | C26: 1 | D26: 0.9075032745 | F26: 2 | G26: 1.214994075 | I26: 3 | J26: 2.122497349
A27: Tandlæge | C27: 1 | D27: 0.9686272064 | F27: 1 | G27: 0.5844196345 | I27: 2 | J27: 1.553046841
A28: Arkitekt | C28: 1 | D28: 0.9075032745 | F28: 3 | G28: 2.999438658 | I28: 4 | J28: 3.906941932
A29: Landinspek. | C29: 0 | D29: 0 | F29: 0 | G29: 0 | I29: 0 | J29: 0
A30: Bibliotekar | C30: 1 | D30: 0.8151936631 | F30: 1 | G30: 0.5382648288 | I30: 2 | J30: 1.353458492
A31: Musikudd. | C31: 0 | D31: 0 | F31: 1 | G31: 0.7185180565 | I31: 1 | J31: 0.7185180565
A32: Teolog | C32: 0 | D32: 0 | F32: 2 | G32: 1.445768103 | I32: 2 | J32: 1.445768103
A33: Psykolog | C33: 1 | D33: 0.7228840516 | F33: 9 | G33: 6.653152872 | I33: 10 | J33: 7.376036924
A34: Jurist | C34: 4 | D34: 3.445393875 | F34: 4 | G34: 3.999251544 | I34: 8 | J34: 7.444645419
A35: Økonom | C35: 1 | D35: 0.9998128859 | F35: 3 | G35: 2.051394 | I35: 4 | J35: 3.051206886
A36: Samf. Adm. | C36: 16 | D36: 13.26077465 | F36: 26 | G36: 20.16715524 | I36: 42 | J36: 33.42792989
A37: Cand. Merc. | C37: 22 | D37: 18.17875632 | F37: 23 | G37: 17.57812013 | I37: 45 | J37: 35.75687644
A38: HA | C38: 10 | D38: 7.315536706 | F38: 9 | G38: 8.030936194 | I38: 19 | J38: 15.3464729
A39: HD | C39: 4 | D39: 3.999251544 | F39: 9 | G39: 8.49061311 | I39: 13 | J39: 12.48986465
A40: Komm. og Sprog | C40: 4 | D40: 2.896525915 | F40: 15 | G40: 13.74103412 | I40: 19 | J40: 16.63756003
A41: Bygningskonst. | C41: 8 | D41: 6.22303998 | F41: 1 | G41: 1 | I41: 9 | J41: 7.22303998
A42: Cand. IT. | C42: 5 | D42: 4.35289715 | F42: 11 | G42: 10.03742282 | I42: 16 | J42: 14.39031997
A43: Bac. Samf. | C43: 1 | D43: 0.2613359945 | F43: 4 | G43: 3.124181376 | I43: 5 | J43: 3.38551737
A44: Bac. Hum. | C44: 6 | D44: 5.137528847 | F44: 9 | G44: 7.689141146 | I44: 15 | J44: 12.82666999
A45: Bac. Nat. | C45: 14 | D45: 11.3952473 | F45: 11 | G45: 9.09499158 | I45: 25 | J45: 20.49023888
A46: Andre | C46: 25 | D46: 19.21848687 | F46: 20 | G46: 14.85810516 | I46: 45 | J46: 34.07659203
A48: Total | C48: 289 | D48: 238.0592528 | F48: 325 | G48: 256.3290089 | I48: 614 | J48: 494.3882617
A50: Ingeniører i alt | C50: 77 | D50: 64.5755629 | F50: 26 | G50: 18.74883054 | I50: 103 | J50: 83.32439344
A51: Magistre i alt | C51: 61 | D51: 49.20476517 | F51: 111 | G51: 85.06018836 | I51: 172 | J51: 134.2649535
A52: DJØF'ere i alt | C52: 53 | D52: 43.20027443 | F52: 65 | G52: 51.82685711 | I52: 118 | J52: 95.02713154
A57: Haderslev
C59: Mænd | F59: Kvinder | I59: I alt
C60: Ledigheds- berørte | D60: Gns. brutto- ledighed | F60: Ledigheds- berørte | G60: Gns. brutto- ledighed | I60: Ledigheds- berørte | J60: Gns. brutto- ledighed
A63: Civ. ing. | C63: 3 | D63: 2.676355018 | F63: 0 | G63: 0 | I63: 3 | J63: 2.676355018
A64: Diplom ing. | C64: 3 | D64: 2.999438658 | F64: 1 | G64: 0.9998128859 | I64: 4 | J64: 3.999251544
A65: Cand. Scient. Tek. | C65: 1 | D65: 0.9998128859 | F65: 2 | G65: 1.999625772 | I65: 3 | J65: 2.999438658
A66: MA. Hum. | C66: 5 | D66: 4.075968315 | F66: 2 | G66: 1.718330942 | I66: 7 | J66: 5.794299258
A67: MA. Nat. | C67: 1 | D67: 0.3760992952 | F67: 0 | G67: 0 | I67: 1 | J67: 0.3760992952
A68: MA. Ph.d. | C68: 0 | D68: 0 | F68: 0 | G68: 0 | I68: 0 | J68: 0
A69: MA. Samf. | C69: 1 | D69: 0.9998128859 | F69: 0 | G69: 0 | I69: 1 | J69: 0.9998128859
A70: Øvrige Mag. | C70: 0 | D70: 0 | F70: 0 | G70: 0 | I70: 0 | J70: 0
A71: Agronom | C71: 0 | D71: 0 | F71: 0 | G71: 0 | I71: 0 | J71: 0
A72: Landsk. Arkt. | C72: 0 | D72: 0 | F72: 0 | G72: 0 | I72: 0 | J72: 0
A73: Hortonom | C73: 0 | D73: 0 | F73: 0 | G73: 0 | I73: 0 | J73: 0
A74: Forstkand. | C74: 0 | D74: 0 | F74: 0 | G74: 0 | I74: 0 | J74: 0
A75: Jordbrugsakad. | C75: 0 | D75: 0 | F75: 0 | G75: 0 | I75: 0 | J75: 0
A76: Mejeriing. | C76: 0 | D76: 0 | F76: 0 | G76: 0 | I76: 0 | J76: 0
A77: Levn.m.kand. | C77: 0 | D77: 0 | F77: 0 | G77: 0 | I77: 0 | J77: 0
A78: Dyrlæge | C78: 0 | D78: 0 | F78: 0 | G78: 0 | I78: 0 | J78: 0
A79: Farmaceut | C79: 0 | D79: 0 | F79: 1 | G79: 0.9998128859 | I79: 1 | J79: 0.9998128859
A80: Læge | C80: 0 | D80: 0 | F80: 0 | G80: 0 | I80: 0 | J80: 0
A81: Tandlæge | C81: 0 | D81: 0 | F81: 0 | G81: 0 | I81: 0 | J81: 0
A82: Arkitekt | C82: 1 | D82: 0.9075032745 | F82: 1 | G82: 0.9998128859 | I82: 2 | J82: 1.90731616
A83: Landinspek. | C83: 0 | D83: 0 | F83: 0 | G83: 0 | I83: 0 | J83: 0
A84: Bibliotekar | C84: 0 | D84: 0 | F84: 0 | G84: 0 | I84: 0 | J84: 0
A85: Musikudd. | C85: 0 | D85: 0 | F85: 0 | G85: 0 | I85: 0 | J85: 0
A86: Teolog | C86: 0 | D86: 0 | F86: 0 | G86: 0 | I86: 0 | J86: 0
A87: Psykolog | C87: 0 | D87: 0 | F87: 0 | G87: 0 | I87: 0 | J87: 0
A88: Jurist | C88: 0 | D88: 0 | F88: 0 | G88: 0 | I88: 0 | J88: 0
A89: Økonom | C89: 1 | D89: 0.9998128859 | F89: 1 | G89: 0.8363999252 | I89: 2 | J89: 1.836212811
A90: Samf. Adm. | C90: 1 | D90: 0.9998128859 | F90: 1 | G90: 0.9998128859 | I90: 2 | J90: 1.999625772
A91: Cand. Merc. | C91: 1 | D91: 0.8108276679 | F91: 3 | G91: 2.333312543 | I91: 4 | J91: 3.144140211
A92: HA | C92: 0 | D92: 0 | F92: 0 | G92: 0 | I92: 0 | J92: 0
A93: HD | C93: 0 | D93: 0 | F93: 0 | G93: 0 | I93: 0 | J93: 0
A94: Komm. og Sprog | C94: 2 | D94: 1.953470966 | F94: 4 | G94: 3.974303 | I94: 6 | J94: 5.927773966
A95: Bygningskonst. | C95: 0 | D95: 0 | F95: 1 | G95: 1 | I95: 1 | J95: 1
A96: Cand. IT. | C96: 1 | D96: 0.9998128859 | F96: 0 | G96: 0 | I96: 1 | J96: 0.9998128859
A97: Bac. Samf. | C97: 0 | D97: 0 | F97: 0 | G97: 0 | I97: 0 | J97: 0
A98: Bac. Hum. | C98: 1 | D98: 0.9998128859 | F98: 1 | G98: 0.7228840516 | I98: 2 | J98: 1.722696938
A99: Bac. Nat. | C99: 0 | D99: 0 | F99: 0 | G99: 0 | I99: 0 | J99: 0
A100: Andre | C100: 1 | D100: 0.9998128859 | F100: 0 | G100: 0 | I100: 1 | J100: 0.9998128859
A102: Total | C102: 23 | D102: 20.7983534 | F102: 18 | G102: 16.58410778 | I102: 41 | J102: 37.38246117
A104: Ingeniører i alt | C104: 6 | D104: 5.675793676 | F104: 1 | G104: 0.9998128859 | I104: 7 | J104: 6.675606561
A105: Magistre i alt | C105: 7 | D105: 5.451880496 | F105: 2 | G105: 1.718330942 | I105: 9 | J105: 7.170211439
A106: DJØF'ere i alt | C106: 3 | D106: 2.81045344 | F106: 5 | G106: 4.169525354 | I106: 8 | J106: 6.979978794
A111: Billund
C113: Mænd | F113: Kvinder | I113: I alt
C114: Ledigheds- berørte | D114: Gns. brutto- ledighed | F114: Ledigheds- berørte | G114: Gns. brutto- ledighed | I114: Ledigheds- berørte | J114: Gns. brutto- ledighed
A117: Civ. ing. | C117: 0 | D117: 0 | F117: 1 | G117: 0.5844196345 | I117: 1 | J117: 0.5844196345
A118: Diplom ing. | C118: 0 | D118: 0 | F118: 0 | G118: 0 | I118: 0 | J118: 0
A119: Cand. Scient. Tek. | C119: 1 | D119: 0.7534460176 | F119: 0 | G119: 0 | I119: 1 | J119: 0.7534460176
A120: MA. Hum. | C120: 2 | D120: 1.450757812 | F120: 4 | G120: 3.906941932 | I120: 6 | J120: 5.357699744
A121: MA. Nat. | C121: 0 | D121: 0 | F121: 1 | G121: 0.9998128859 | I121: 1 | J121: 0.9998128859
A122: MA. Ph.d. | C122: 0 | D122: 0 | F122: 0 | G122: 0 | I122: 0 | J122: 0
A123: MA. Samf. | C123: 0 | D123: 0 | F123: 0 | G123: 0 | I123: 0 | J123: 0
A124: Øvrige Mag. | C124: 0 | D124: 0 | F124: 0 | G124: 0 | I124: 0 | J124: 0
A125: Agronom | C125: 0 | D125: 0 | F125: 0 | G125: 0 | I125: 0 | J125: 0
A126: Landsk. Arkt. | C126: 0 | D126: 0 | F126: 0 | G126: 0 | I126: 0 | J126: 0
A127: Hortonom | C127: 0 | D127: 0 | F127: 0 | G127: 0 | I127: 0 | J127: 0
A128: Forstkand. | C128: 0 | D128: 0 | F128: 0 | G128: 0 | I128: 0 | J128: 0
A129: Jordbrugsakad. | C129: 0 | D129: 0 | F129: 0 | G129: 0 | I129: 0 | J129: 0
A130: Mejeriing. | C130: 0 | D130: 0 | F130: 0 | G130: 0 | I130: 0 | J130: 0
A131: Levn.m.kand. | C131: 0 | D131: 0 | F131: 0 | G131: 0 | I131: 0 | J131: 0
A132: Dyrlæge | C132: 0 | D132: 0 | F132: 0 | G132: 0 | I132: 0 | J132: 0
A133: Farmaceut | C133: 0 | D133: 0 | F133: 0 | G133: 0 | I133: 0 | J133: 0
A134: Læge | C134: 0 | D134: 0 | F134: 0 | G134: 0 | I134: 0 | J134: 0
A135: Tandlæge | C135: 0 | D135: 0 | F135: 0 | G135: 0 | I135: 0 | J135: 0
A136: Arkitekt | C136: 0 | D136: 0 | F136: 0 | G136: 0 | I136: 0 | J136: 0
A137: Landinspek. | C137: 0 | D137: 0 | F137: 0 | G137: 0 | I137: 0 | J137: 0
A138: Bibliotekar | C138: 0 | D138: 0 | F138: 0 | G138: 0 | I138: 0 | J138: 0
A139: Musikudd. | C139: 0 | D139: 0 | F139: 0 | G139: 0 | I139: 0 | J139: 0
A140: Teolog | C140: 0 | D140: 0 | F140: 0 | G140: 0 | I140: 0 | J140: 0
A141: Psykolog | C141: 0 | D141: 0 | F141: 0 | G141: 0 | I141: 0 | J141: 0
A142: Jurist | C142: 0 | D142: 0 | F142: 0 | G142: 0 | I142: 0 | J142: 0
A143: Økonom | C143: 0 | D143: 0 | F143: 0 | G143: 0 | I143: 0 | J143: 0
A144: Samf. Adm. | C144: 0 | D144: 0 | F144: 0 | G144: 0 | I144: 0 | J144: 0
A145: Cand. Merc. | C145: 1 | D145: 0.3074908002 | F145: 2 | G145: 1.26114888 | I145: 3 | J145: 1.568639681
A146: HA | C146: 0 | D146: 0 | F146: 0 | G146: 0 | I146: 0 | J146: 0
A147: HD | C147: 0 | D147: 0 | F147: 0 | G147: 0 | I147: 0 | J147: 0
A148: Komm. og Sprog | C148: 0 | D148: 0 | F148: 1 | G148: 0.9075032745 | I148: 1 | J148: 0.9075032745
A149: Bygningskonst. | C149: 0 | D149: 0 | F149: 0 | G149: 0 | I149: 0 | J149: 0
A150: Cand. IT. | C150: 0 | D150: 0 | F150: 1 | G150: 0.9998128859 | I150: 1 | J150: 0.9998128859
A151: Bac. Samf. | C151: 0 | D151: 0 | F151: 0 | G151: 0 | I151: 0 | J151: 0
A152: Bac. Hum. | C152: 0 | D152: 0 | F152: 0 | G152: 0 | I152: 0 | J152: 0
A153: Bac. Nat. | C153: 0 | D153: 0 | F153: 3 | G153: 2.584045406 | I153: 3 | J153: 2.584045406
A154: Andre | C154: 0 | D154: 0 | F154: 0 | G154: 0 | I154: 0 | J154: 0
A156: Total | C156: 4 | D156: 2.51169463 | F156: 13 | G156: 11.2436849 | I156: 17 | J156: 13.75537953
A158: Ingeniører i alt | C158: 0 | D158: 0 | F158: 1 | G158: 0.5844196345 | I158: 1 | J158: 0.5844196345
A159: Magistre i alt | C159: 2 | D159: 1.450757812 | F159: 5 | G159: 4.906754818 | I159: 7 | J159: 6.35751263
A160: DJØF'ere i alt | C160: 1 | D160: 0.3074908002 | F160: 2 | G160: 1.26114888 | I160: 3 | J160: 1.568639681
A165: Sønderborg
C167: Mænd | F167: Kvinder | I167: I alt
C168: Ledigheds- berørte | D168: Gns. brutto- ledighed | F168: Ledigheds- berørte | G168: Gns. brutto- ledighed | I168: Ledigheds- berørte | J168: Gns. brutto- ledighed
A171: Civ. ing. | C171: 2 | D171: 1.90731616 | F171: 0 | G171: 0 | I171: 2 | J171: 1.90731616
A172: Diplom ing. | C172: 12 | D172: 9.544065365 | F172: 0 | G172: 0 | I172: 12 | J172: 9.544065365
A173: Cand. Scient. Tek. | C173: 3 | D173: 2.999438658 | F173: 1 | G173: 0.4459552174 | I173: 4 | J173: 3.445393875
A174: MA. Hum. | C174: 3 | D174: 2.999438658 | F174: 6 | G174: 3.927524481 | I174: 9 | J174: 6.926963139
A175: MA. Nat. | C175: 1 | D175: 0.9998128859 | F175: 0 | G175: 0 | I175: 1 | J175: 0.9998128859
A176: MA. Ph.d. | C176: 0 | D176: 0 | F176: 0 | G176: 0 | I176: 0 | J176: 0
A177: MA. Samf. | C177: 0 | D177: 0 | F177: 1 | G177: 0.9075032745 | I177: 1 | J177: 0.9075032745
A178: Øvrige Mag. | C178: 0 | D178: 0 | F178: 0 | G178: 0 | I178: 0 | J178: 0
A179: Agronom | C179: 0 | D179: 0 | F179: 0 | G179: 0 | I179: 0 | J179: 0
A180: Landsk. Arkt. | C180: 0 | D180: 0 | F180: 1 | G180: 0.9998128859 | I180: 1 | J180: 0.9998128859
A181: Hortonom | C181: 0 | D181: 0 | F181: 0 | G181: 0 | I181: 0 | J181: 0
A182: Forstkand. | C182: 0 | D182: 0 | F182: 0 | G182: 0 | I182: 0 | J182: 0
A183: Jordbrugsakad. | C183: 0 | D183: 0 | F183: 1 | G183: 0.9998128859 | I183: 1 | J183: 0.9998128859
A184: Mejeriing. | C184: 0 | D184: 0 | F184: 0 | G184: 0 | I184: 0 | J184: 0
A185: Levn.m.kand. | C185: 0 | D185: 0 | F185: 0 | G185: 0 | I185: 0 | J185: 0
A186: Dyrlæge | C186: 0 | D186: 0 | F186: 0 | G186: 0 | I186: 0 | J186: 0
A187: Farmaceut | C187: 0 | D187: 0 | F187: 1 | G187: 0.7228840516 | I187: 1 | J187: 0.7228840516
A188: Læge | C188: 0 | D188: 0 | F188: 0 | G188: 0 | I188: 0 | J188: 0
A189: Tandlæge | C189: 0 | D189: 0 | F189: 0 | G189: 0 | I189: 0 | J189: 0
A190: Arkitekt | C190: 0 | D190: 0 | F190: 0 | G190: 0 | I190: 0 | J190: 0
A191: Landinspek. | C191: 0 | D191: 0 | F191: 0 | G191: 0 | I191: 0 | J191: 0
A192: Bibliotekar | C192: 0 | D192: 0 | F192: 0 | G192: 0 | I192: 0 | J192: 0
A193: Musikudd. | C193: 0 | D193: 0 | F193: 0 | G193: 0 | I193: 0 | J193: 0
A194: Teolog | C194: 0 | D194: 0 | F194: 0 | G194: 0 | I194: 0 | J194: 0
A195: Psykolog | C195: 0 | D195: 0 | F195: 1 | G195: 0.2613359945 | I195: 1 | J195: 0.2613359945
A196: Jurist | C196: 0 | D196: 0 | F196: 0 | G196: 0 | I196: 0 | J196: 0
A197: Økonom | C197: 0 | D197: 0 | F197: 0 | G197: 0 | I197: 0 | J197: 0
A198: Samf. Adm. | C198: 1 | D198: 0.5382648288 | F198: 4 | G198: 3.306929458 | I198: 5 | J198: 3.845194287
A199: Cand. Merc. | C199: 3 | D199: 2.584045406 | F199: 1 | G199: 0.9998128859 | I199: 4 | J199: 3.583858292
A200: HA | C200: 2 | D200: 1.974677228 | F200: 0 | G200: 0 | I200: 2 | J200: 1.974677228
A201: HD | C201: 1 | D201: 0.9998128859 | F201: 2 | G201: 1.999625772 | I201: 3 | J201: 2.999438658
A202: Komm. og Sprog | C202: 0 | D202: 0 | F202: 2 | G202: 1.999625772 | I202: 2 | J202: 1.999625772
A203: Bygningskonst. | C203: 2 | D203: 1.953845194 | F203: 0 | G203: 0 | I203: 2 | J203: 1.953845194
A204: Cand. IT. | C204: 2 | D204: 1.90731616 | F204: 1 | G204: 0.6305744402 | I204: 3 | J204: 2.537890601
A205: Bac. Samf. | C205: 0 | D205: 0 | F205: 2 | G205: 1.775712593 | I205: 2 | J205: 1.775712593
A206: Bac. Hum. | C206: 0 | D206: 0 | F206: 0 | G206: 0 | I206: 0 | J206: 0
A207: Bac. Nat. | C207: 1 | D207: 0.9998128859 | F207: 2 | G207: 1.150127861 | I207: 3 | J207: 2.149940747
A208: Andre | C208: 1 | D208: 0.5320276929 | F208: 2 | G208: 1.999625772 | I208: 3 | J208: 2.531653465
A210: Total | C210: 34 | D210: 29.93987401 | F210: 27 | G210: 21.12705046 | I210: 61 | J210: 51.06692447
A212: Ingeniører i alt | C212: 14 | D212: 11.45138153 | F212: 0 | G212: 0 | I212: 14 | J212: 11.45138153
A213: Magistre i alt | C213: 4 | D213: 3.999251544 | F213: 7 | G213: 4.835027755 | I213: 11 | J213: 8.834279299
A214: DJØF'ere i alt | C214: 6 | D214: 5.096987463 | F214: 5 | G214: 4.306742344 | I214: 11 | J214: 9.403729807
A219: Tønder
C221: Mænd | F221: Kvinder | I221: I alt
C222: Ledigheds- berørte | D222: Gns. brutto- ledighed | F222: Ledigheds- berørte | G222: Gns. brutto- ledighed | I222: Ledigheds- berørte | J222: Gns. brutto- ledighed
A225: Civ. ing. | C225: 1 | D225: 0.1228715774 | F225: 0 | G225: 0 | I225: 1 | J225: 0.1228715774
A226: Diplom ing. | C226: 1 | D226: 0.9998128859 | F226: 0 | G226: 0 | I226: 1 | J226: 0.9998128859
A227: Cand. Scient. Tek. | C227: 0 | D227: 0 | F227: 0 | G227: 0 | I227: 0 | J227: 0
A228: MA. Hum. | C228: 1 | D228: 0.9998128859 | F228: 1 | G228: 0.3998004117 | I228: 2 | J228: 1.399613298
A229: MA. Nat. | C229: 0 | D229: 0 | F229: 0 | G229: 0 | I229: 0 | J229: 0
A230: MA. Ph.d. | C230: 0 | D230: 0 | F230: 0 | G230: 0 | I230: 0 | J230: 0
A231: MA. Samf. | C231: 0 | D231: 0 | F231: 0 | G231: 0 | I231: 0 | J231: 0
A232: Øvrige Mag. | C232: 0 | D232: 0 | F232: 0 | G232: 0 | I232: 0 | J232: 0
A233: Agronom | C233: 0 | D233: 0 | F233: 0 | G233: 0 | I233: 0 | J233: 0
A234: Landsk. Arkt. | C234: 0 | D234: 0 | F234: 0 | G234: 0 | I234: 0 | J234: 0
A235: Hortonom | C235: 0 | D235: 0 | F235: 0 | G235: 0 | I235: 0 | J235: 0
A236: Forstkand. | C236: 0 | D236: 0 | F236: 0 | G236: 0 | I236: 0 | J236: 0
A237: Jordbrugsakad. | C237: 0 | D237: 0 | F237: 0 | G237: 0 | I237: 0 | J237: 0
A238: Mejeriing. | C238: 0 | D238: 0 | F238: 0 | G238: 0 | I238: 0 | J238: 0
A239: Levn.m.kand. | C239: 0 | D239: 0 | F239: 0 | G239: 0 | I239: 0 | J239: 0
A240: Dyrlæge | C240: 0 | D240: 0 | F240: 1 | G240: 0.1503149754 | I240: 1 | J240: 0.1503149754
... 386 more rows

Sheet Tabel 3 Sydj
A1: Tabel 3. Ledige i procent af forsikrede
A3: Sydjylland
C5: Mænd | F5: Kvinder | I5: I alt
C6: Ledigheds- berørte | D6: Gns. brutto- ledighed | F6: Ledigheds- berørte | G6: Gns. brutto- ledighed | I6: Ledigheds- berørte | J6: Gns. brutto- ledighed
A9: Civ. ing. | C9: =IF(OR('Tabel 1 Sydj'!C7<5,'Tabel 2 Sydj'!C9<0.5),"-",IFERROR('Tabel 2 Sydj'!C9/'Tabel 1 Sydj'!C7*100,"-")) -> 1.509433962 | D9: =IF(OR('Tabel 1 Sydj'!C7<5,'Tabel 2 Sydj'!D9<0.5),"-",IFERROR('Tabel 2 Sydj'!D9/'Tabel 1 Sydj'!C7*100,"-")) -> 1.190194595 | F9: =IF(OR('Tabel 1 Sydj'!E7<5,'Tabel 2 Sydj'!F9<0.5),"-",IFERROR('Tabel 2 Sydj'!F9/'Tabel 1 Sydj'!E7*100,"-")) -> 1.698113208 | G9: =IF(OR('Tabel 1 Sydj'!E7<5,'Tabel 2 Sydj'!G9<0.5),"-",IFERROR('Tabel 2 Sydj'!G9/'Tabel 1 Sydj'!E7*100,"-")) -> 1.258253908 | I9: =IF(OR('Tabel 1 Sydj'!G7<5,'Tabel 2 Sydj'!I9<0.5),"-",IFERROR('Tabel 2 Sydj'!I9/'Tabel 1 Sydj'!G7*100,"-")) -> 1.556603774 | J9: =IF(OR('Tabel 1 Sydj'!G7<5,'Tabel 2 Sydj'!J9<0.5),"-",IFERROR('Tabel 2 Sydj'!J9/'Tabel 1 Sydj'!G7*100,"-")) -> 1.207209423
A10: Diplom ing. | C10: =IF(OR('Tabel 1 Sydj'!C8<5,'Tabel 2 Sydj'!C10<0.5),"-",IFERROR('Tabel 2 Sydj'!C10/'Tabel 1 Sydj'!C8*100,"-")) -> 1.570835803 | D10: =IF(OR('Tabel 1 Sydj'!C8<5,'Tabel 2 Sydj'!D10<0.5),"-",IFERROR('Tabel 2 Sydj'!D10/'Tabel 1 Sydj'!C8*100,"-")) -> 1.353037014 | F10: =IF(OR('Tabel 1 Sydj'!E8<5,'Tabel 2 Sydj'!F10<0.5),"-",IFERROR('Tabel 2 Sydj'!F10/'Tabel 1 Sydj'!E8*100,"-")) -> 1.945080092 | G10: =IF(OR('Tabel 1 Sydj'!E8<5,'Tabel 2 Sydj'!G10<0.5),"-",IFERROR('Tabel 2 Sydj'!G10/'Tabel 1 Sydj'!E8*100,"-")) -> 1.382160735 | I10: =IF(OR('Tabel 1 Sydj'!G8<5,'Tabel 2 Sydj'!I10<0.5),"-",IFERROR('Tabel 2 Sydj'!I10/'Tabel 1 Sydj'!G8*100,"-")) -> 1.647834275 | J10: =IF(OR('Tabel 1 Sydj'!G8<5,'Tabel 2 Sydj'!J10<0.5),"-",IFERROR('Tabel 2 Sydj'!J10/'Tabel 1 Sydj'!G8*100,"-")) -> 1.359029041
A11: Cand. Scient. Tek. | C11: =IF(OR('Tabel 1 Sydj'!C9<5,'Tabel 2 Sydj'!C11<0.5),"-",IFERROR('Tabel 2 Sydj'!C11/'Tabel 1 Sydj'!C9*100,"-")) -> 3.754266212 | D11: =IF(OR('Tabel 1 Sydj'!C9<5,'Tabel 2 Sydj'!D11<0.5),"-",IFERROR('Tabel 2 Sydj'!D11/'Tabel 1 Sydj'!C9*100,"-")) -> 3.397536097 | F11: =IF(OR('Tabel 1 Sydj'!E9<5,'Tabel 2 Sydj'!F11<0.5),"-",IFERROR('Tabel 2 Sydj'!F11/'Tabel 1 Sydj'!E9*100,"-")) -> 3.863636364 | G11: =IF(OR('Tabel 1 Sydj'!E9<5,'Tabel 2 Sydj'!G11<0.5),"-",IFERROR('Tabel 2 Sydj'!G11/'Tabel 1 Sydj'!E9*100,"-")) -> 3.138980398 | I11: =IF(OR('Tabel 1 Sydj'!G9<5,'Tabel 2 Sydj'!I11<0.5),"-",IFERROR('Tabel 2 Sydj'!I11/'Tabel 1 Sydj'!G9*100,"-")) -> 3.801169591 | J11: =IF(OR('Tabel 1 Sydj'!G9<5,'Tabel 2 Sydj'!J11<0.5),"-",IFERROR('Tabel 2 Sydj'!J11/'Tabel 1 Sydj'!G9*100,"-")) -> 3.286654511
A12: MA. Hum. | C12: =IF(OR('Tabel 1 Sydj'!C10<5,'Tabel 2 Sydj'!C12<0.5),"-",IFERROR('Tabel 2 Sydj'!C12/'Tabel 1 Sydj'!C10*100,"-")) -> 5.540897098 | D12: =IF(OR('Tabel 1 Sydj'!C10<5,'Tabel 2 Sydj'!D12<0.5),"-",IFERROR('Tabel 2 Sydj'!D12/'Tabel 1 Sydj'!C10*100,"-")) -> 4.69883438 | F12: =IF(OR('Tabel 1 Sydj'!E10<5,'Tabel 2 Sydj'!F12<0.5),"-",IFERROR('Tabel 2 Sydj'!F12/'Tabel 1 Sydj'!E10*100,"-")) -> 5.282555283 | G12: =IF(OR('Tabel 1 Sydj'!E10<5,'Tabel 2 Sydj'!G12<0.5),"-",IFERROR('Tabel 2 Sydj'!G12/'Tabel 1 Sydj'!E10*100,"-")) -> 4.113099962 | I12: =IF(OR('Tabel 1 Sydj'!G10<5,'Tabel 2 Sydj'!I12<0.5),"-",IFERROR('Tabel 2 Sydj'!I12/'Tabel 1 Sydj'!G10*100,"-")) -> 5.364626991 | J12: =IF(OR('Tabel 1 Sydj'!G10<5,'Tabel 2 Sydj'!J12<0.5),"-",IFERROR('Tabel 2 Sydj'!J12/'Tabel 1 Sydj'!G10*100,"-")) -> 4.299179882
A13: MA. Nat. | C13: =IF(OR('Tabel 1 Sydj'!C11<5,'Tabel 2 Sydj'!C13<0.5),"-",IFERROR('Tabel 2 Sydj'!C13/'Tabel 1 Sydj'!C11*100,"-")) -> 2.244389027 | D13: =IF(OR('Tabel 1 Sydj'!C11<5,'Tabel 2 Sydj'!D13<0.5),"-",IFERROR('Tabel 2 Sydj'!D13/'Tabel 1 Sydj'!C11*100,"-")) -> 1.537819519 | F13: =IF(OR('Tabel 1 Sydj'!E11<5,'Tabel 2 Sydj'!F13<0.5),"-",IFERROR('Tabel 2 Sydj'!F13/'Tabel 1 Sydj'!E11*100,"-")) -> 1.891891892 | G13: =IF(OR('Tabel 1 Sydj'!E11<5,'Tabel 2 Sydj'!G13<0.5),"-",IFERROR('Tabel 2 Sydj'!G13/'Tabel 1 Sydj'!E11*100,"-")) -> 1.275072865 | I13: =IF(OR('Tabel 1 Sydj'!G11<5,'Tabel 2 Sydj'!I13<0.5),"-",IFERROR('Tabel 2 Sydj'!I13/'Tabel 1 Sydj'!G11*100,"-")) -> 2.075226978 | J13: =IF(OR('Tabel 1 Sydj'!G11<5,'Tabel 2 Sydj'!J13<0.5),"-",IFERROR('Tabel 2 Sydj'!J13/'Tabel 1 Sydj'!G11*100,"-")) -> 1.411728388
A14: MA. Ph.d. | C14: =IF(OR('Tabel 1 Sydj'!C12<5,'Tabel 2 Sydj'!C14<0.5),"-",IFERROR('Tabel 2 Sydj'!C14/'Tabel 1 Sydj'!C12*100,"-")) -> 5.263157895 | D14: =IF(OR('Tabel 1 Sydj'!C12<5,'Tabel 2 Sydj'!D14<0.5),"-",IFERROR('Tabel 2 Sydj'!D14/'Tabel 1 Sydj'!C12*100,"-")) -> 5.019253054 | F14: =IF(OR('Tabel 1 Sydj'!E12<5,'Tabel 2 Sydj'!F14<0.5),"-",IFERROR('Tabel 2 Sydj'!F14/'Tabel 1 Sydj'!E12*100,"-")) -> - | G14: =IF(OR('Tabel 1 Sydj'!E12<5,'Tabel 2 Sydj'!G14<0.5),"-",IFERROR('Tabel 2 Sydj'!G14/'Tabel 1 Sydj'!E12*100,"-")) -> - | I14: =IF(OR('Tabel 1 Sydj'!G12<5,'Tabel 2 Sydj'!I14<0.5),"-",IFERROR('Tabel 2 Sydj'!I14/'Tabel 1 Sydj'!G12*100,"-")) -> 2.666666667 | J14: =IF(OR('Tabel 1 Sydj'!G12<5,'Tabel 2 Sydj'!J14<0.5),"-",IFERROR('Tabel 2 Sydj'!J14/'Tabel 1 Sydj'!G12*100,"-")) -> 2.543088214
A15: MA. Samf. | C15: =IF(OR('Tabel 1 Sydj'!C13<5,'Tabel 2 Sydj'!C15<0.5),"-",IFERROR('Tabel 2 Sydj'!C15/'Tabel 1 Sydj'!C13*100,"-")) -> 13.95348837 | D15: =IF(OR('Tabel 1 Sydj'!C13<5,'Tabel 2 Sydj'!D15<0.5),"-",IFERROR('Tabel 2 Sydj'!D15/'Tabel 1 Sydj'!C13*100,"-")) -> 9.708174564 | F15: =IF(OR('Tabel 1 Sydj'!E13<5,'Tabel 2 Sydj'!F15<0.5),"-",IFERROR('Tabel 2 Sydj'!F15/'Tabel 1 Sydj'!E13*100,"-")) -> 9.090909091 | G15: =IF(OR('Tabel 1 Sydj'!E13<5,'Tabel 2 Sydj'!G15<0.5),"-",IFERROR('Tabel 2 Sydj'!G15/'Tabel 1 Sydj'!E13*100,"-")) -> 5.861599263 | I15: =IF(OR('Tabel 1 Sydj'!G13<5,'Tabel 2 Sydj'!I15<0.5),"-",IFERROR('Tabel 2 Sydj'!I15/'Tabel 1 Sydj'!G13*100,"-")) -> 10.21505376 | J15: =IF(OR('Tabel 1 Sydj'!G13<5,'Tabel 2 Sydj'!J15<0.5),"-",IFERROR('Tabel 2 Sydj'!J15/'Tabel 1 Sydj'!G13*100,"-")) -> 6.750861295
A16: Øvrige Mag. | C16: =IF(OR('Tabel 1 Sydj'!C14<5,'Tabel 2 Sydj'!C16<0.5),"-",IFERROR('Tabel 2 Sydj'!C16/'Tabel 1 Sydj'!C14*100,"-")) -> 3.03030303 | D16: =IF(OR('Tabel 1 Sydj'!C14<5,'Tabel 2 Sydj'!D16<0.5),"-",IFERROR('Tabel 2 Sydj'!D16/'Tabel 1 Sydj'!C14*100,"-")) -> 2.028959211 | F16: =IF(OR('Tabel 1 Sydj'!E14<5,'Tabel 2 Sydj'!F16<0.5),"-",IFERROR('Tabel 2 Sydj'!F16/'Tabel 1 Sydj'!E14*100,"-")) -> 3.105590062 | G16: =IF(OR('Tabel 1 Sydj'!E14<5,'Tabel 2 Sydj'!G16<0.5),"-",IFERROR('Tabel 2 Sydj'!G16/'Tabel 1 Sydj'!E14*100,"-")) -> 3.105008962 | I16: =IF(OR('Tabel 1 Sydj'!G14<5,'Tabel 2 Sydj'!I16<0.5),"-",IFERROR('Tabel 2 Sydj'!I16/'Tabel 1 Sydj'!G14*100,"-")) -> 3.083700441 | J16: =IF(OR('Tabel 1 Sydj'!G14<5,'Tabel 2 Sydj'!J16<0.5),"-",IFERROR('Tabel 2 Sydj'!J16/'Tabel 1 Sydj'!G14*100,"-")) -> 2.792148682
A17: Agronom | C17: =IF(OR('Tabel 1 Sydj'!C15<5,'Tabel 2 Sydj'!C17<0.5),"-",IFERROR('Tabel 2 Sydj'!C17/'Tabel 1 Sydj'!C15*100,"-")) -> 1.923076923 | D17: =IF(OR('Tabel 1 Sydj'!C15<5,'Tabel 2 Sydj'!D17<0.5),"-",IFERROR('Tabel 2 Sydj'!D17/'Tabel 1 Sydj'!C15*100,"-")) -> 1.700818984 | F17: =IF(OR('Tabel 1 Sydj'!E15<5,'Tabel 2 Sydj'!F17<0.5),"-",IFERROR('Tabel 2 Sydj'!F17/'Tabel 1 Sydj'!E15*100,"-")) -> 0.8849557522 | G17: =IF(OR('Tabel 1 Sydj'!E15<5,'Tabel 2 Sydj'!G17<0.5),"-",IFERROR('Tabel 2 Sydj'!G17/'Tabel 1 Sydj'!E15*100,"-")) -> 0.6176420425 | I17: =IF(OR('Tabel 1 Sydj'!G15<5,'Tabel 2 Sydj'!I17<0.5),"-",IFERROR('Tabel 2 Sydj'!I17/'Tabel 1 Sydj'!G15*100,"-")) -> 1.382488479 | J17: =IF(OR('Tabel 1 Sydj'!G15<5,'Tabel 2 Sydj'!J17<0.5),"-",IFERROR('Tabel 2 Sydj'!J17/'Tabel 1 Sydj'!G15*100,"-")) -> 1.136768319
A18: Landsk. Arkt. | C18: =IF(OR('Tabel 1 Sydj'!C16<5,'Tabel 2 Sydj'!C18<0.5),"-",IFERROR('Tabel 2 Sydj'!C18/'Tabel 1 Sydj'!C16*100,"-")) -> - | D18: =IF(OR('Tabel 1 Sydj'!C16<5,'Tabel 2 Sydj'!D18<0.5),"-",IFERROR('Tabel 2 Sydj'!D18/'Tabel 1 Sydj'!C16*100,"-")) -> - | F18: =IF(OR('Tabel 1 Sydj'!E16<5,'Tabel 2 Sydj'!F18<0.5),"-",IFERROR('Tabel 2 Sydj'!F18/'Tabel 1 Sydj'!E16*100,"-")) -> 4.545454545 | G18: =IF(OR('Tabel 1 Sydj'!E16<5,'Tabel 2 Sydj'!G18<0.5),"-",IFERROR('Tabel 2 Sydj'!G18/'Tabel 1 Sydj'!E16*100,"-")) -> 4.544604027 | I18: =IF(OR('Tabel 1 Sydj'!G16<5,'Tabel 2 Sydj'!I18<0.5),"-",IFERROR('Tabel 2 Sydj'!I18/'Tabel 1 Sydj'!G16*100,"-")) -> 3.125 | J18: =IF(OR('Tabel 1 Sydj'!G16<5,'Tabel 2 Sydj'!J18<0.5),"-",IFERROR('Tabel 2 Sydj'!J18/'Tabel 1 Sydj'!G16*100,"-")) -> 3.124415269
A19: Hortonom | C19: =IF(OR('Tabel 1 Sydj'!C17<5,'Tabel 2 Sydj'!C19<0.5),"-",IFERROR('Tabel 2 Sydj'!C19/'Tabel 1 Sydj'!C17*100,"-")) -> - | D19: =IF(OR('Tabel 1 Sydj'!C17<5,'Tabel 2 Sydj'!D19<0.5),"-",IFERROR('Tabel 2 Sydj'!D19/'Tabel 1 Sydj'!C17*100,"-")) -> - | F19: =IF(OR('Tabel 1 Sydj'!E17<5,'Tabel 2 Sydj'!F19<0.5),"-",IFERROR('Tabel 2 Sydj'!F19/'Tabel 1 Sydj'!E17*100,"-")) -> - | G19: =IF(OR('Tabel 1 Sydj'!E17<5,'Tabel 2 Sydj'!G19<0.5),"-",IFERROR('Tabel 2 Sydj'!G19/'Tabel 1 Sydj'!E17*100,"-")) -> - | I19: =IF(OR('Tabel 1 Sydj'!G17<5,'Tabel 2 Sydj'!I19<0.5),"-",IFERROR('Tabel 2 Sydj'!I19/'Tabel 1 Sydj'!G17*100,"-")) -> - | J19: =IF(OR('Tabel 1 Sydj'!G17<5,'Tabel 2 Sydj'!J19<0.5),"-",IFERROR('Tabel 2 Sydj'!J19/'Tabel 1 Sydj'!G17*100,"-")) -> -
A20: Forstkand. | C20: =IF(OR('Tabel 1 Sydj'!C18<5,'Tabel 2 Sydj'!C20<0.5),"-",IFERROR('Tabel 2 Sydj'!C20/'Tabel 1 Sydj'!C18*100,"-")) -> - | D20: =IF(OR('Tabel 1 Sydj'!C18<5,'Tabel 2 Sydj'!D20<0.5),"-",IFERROR('Tabel 2 Sydj'!D20/'Tabel 1 Sydj'!C18*100,"-")) -> - | F20: =IF(OR('Tabel 1 Sydj'!E18<5,'Tabel 2 Sydj'!F20<0.5),"-",IFERROR('Tabel 2 Sydj'!F20/'Tabel 1 Sydj'!E18*100,"-")) -> - | G20: =IF(OR('Tabel 1 Sydj'!E18<5,'Tabel 2 Sydj'!G20<0.5),"-",IFERROR('Tabel 2 Sydj'!G20/'Tabel 1 Sydj'!E18*100,"-")) -> - | I20: =IF(OR('Tabel 1 Sydj'!G18<5,'Tabel 2 Sydj'!I20<0.5),"-",IFERROR('Tabel 2 Sydj'!I20/'Tabel 1 Sydj'!G18*100,"-")) -> - | J20: =IF(OR('Tabel 1 Sydj'!G18<5,'Tabel 2 Sydj'!J20<0.5),"-",IFERROR('Tabel 2 Sydj'!J20/'Tabel 1 Sydj'!G18*100,"-")) -> -
A21: Jordbrugsakad. | C21: =IF(OR('Tabel 1 Sydj'!C19<5,'Tabel 2 Sydj'!C21<0.5),"-",IFERROR('Tabel 2 Sydj'!C21/'Tabel 1 Sydj'!C19*100,"-")) -> 1.388888889 | D21: =IF(OR('Tabel 1 Sydj'!C19<5,'Tabel 2 Sydj'!D21<0.5),"-",IFERROR('Tabel 2 Sydj'!D21/'Tabel 1 Sydj'!C19*100,"-")) -> 1.228369266 | F21: =IF(OR('Tabel 1 Sydj'!E19<5,'Tabel 2 Sydj'!F21<0.5),"-",IFERROR('Tabel 2 Sydj'!F21/'Tabel 1 Sydj'!E19*100,"-")) -> 0.8695652174 | G21: =IF(OR('Tabel 1 Sydj'!E19<5,'Tabel 2 Sydj'!G21<0.5),"-",IFERROR('Tabel 2 Sydj'!G21/'Tabel 1 Sydj'!E19*100,"-")) -> 0.7381514756 | I21: =IF(OR('Tabel 1 Sydj'!G19<5,'Tabel 2 Sydj'!I21<0.5),"-",IFERROR('Tabel 2 Sydj'!I21/'Tabel 1 Sydj'!G19*100,"-")) -> 1.069518717 | J21: =IF(OR('Tabel 1 Sydj'!G19<5,'Tabel 2 Sydj'!J21<0.5),"-",IFERROR('Tabel 2 Sydj'!J21/'Tabel 1 Sydj'!G19*100,"-")) -> 0.9268984324
A22: Mejeriing. | C22: =IF(OR('Tabel 1 Sydj'!C20<5,'Tabel 2 Sydj'!C22<0.5),"-",IFERROR('Tabel 2 Sydj'!C22/'Tabel 1 Sydj'!C20*100,"-")) -> - | D22: =IF(OR('Tabel 1 Sydj'!C20<5,'Tabel 2 Sydj'!D22<0.5),"-",IFERROR('Tabel 2 Sydj'!D22/'Tabel 1 Sydj'!C20*100,"-")) -> - | F22: =IF(OR('Tabel 1 Sydj'!E20<5,'Tabel 2 Sydj'!F22<0.5),"-",IFERROR('Tabel 2 Sydj'!F22/'Tabel 1 Sydj'!E20*100,"-")) -> - | G22: =IF(OR('Tabel 1 Sydj'!E20<5,'Tabel 2 Sydj'!G22<0.5),"-",IFERROR('Tabel 2 Sydj'!G22/'Tabel 1 Sydj'!E20*100,"-")) -> - | I22: =IF(OR('Tabel 1 Sydj'!G20<5,'Tabel 2 Sydj'!I22<0.5),"-",IFERROR('Tabel 2 Sydj'!I22/'Tabel 1 Sydj'!G20*100,"-")) -> - | J22: =IF(OR('Tabel 1 Sydj'!G20<5,'Tabel 2 Sydj'!J22<0.5),"-",IFERROR('Tabel 2 Sydj'!J22/'Tabel 1 Sydj'!G20*100,"-")) -> -
A23: Levn.m.kand. | C23: =IF(OR('Tabel 1 Sydj'!C21<5,'Tabel 2 Sydj'!C23<0.5),"-",IFERROR('Tabel 2 Sydj'!C23/'Tabel 1 Sydj'!C21*100,"-")) -> - | D23: =IF(OR('Tabel 1 Sydj'!C21<5,'Tabel 2 Sydj'!D23<0.5),"-",IFERROR('Tabel 2 Sydj'!D23/'Tabel 1 Sydj'!C21*100,"-")) -> - | F23: =IF(OR('Tabel 1 Sydj'!E21<5,'Tabel 2 Sydj'!F23<0.5),"-",IFERROR('Tabel 2 Sydj'!F23/'Tabel 1 Sydj'!E21*100,"-")) -> - | G23: =IF(OR('Tabel 1 Sydj'!E21<5,'Tabel 2 Sydj'!G23<0.5),"-",IFERROR('Tabel 2 Sydj'!G23/'Tabel 1 Sydj'!E21*100,"-")) -> - | I23: =IF(OR('Tabel 1 Sydj'!G21<5,'Tabel 2 Sydj'!I23<0.5),"-",IFERROR('Tabel 2 Sydj'!I23/'Tabel 1 Sydj'!G21*100,"-")) -> - | J23: =IF(OR('Tabel 1 Sydj'!G21<5,'Tabel 2 Sydj'!J23<0.5),"-",IFERROR('Tabel 2 Sydj'!J23/'Tabel 1 Sydj'!G21*100,"-")) -> -
A24: Dyrlæge | C24: =IF(OR('Tabel 1 Sydj'!C22<5,'Tabel 2 Sydj'!C24<0.5),"-",IFERROR('Tabel 2 Sydj'!C24/'Tabel 1 Sydj'!C22*100,"-")) -> 1.515151515 | D24: =IF(OR('Tabel 1 Sydj'!C22<5,'Tabel 2 Sydj'!D24<0.5),"-",IFERROR('Tabel 2 Sydj'!D24/'Tabel 1 Sydj'!C22*100,"-")) -> 1.514868009 | F24: =IF(OR('Tabel 1 Sydj'!E22<5,'Tabel 2 Sydj'!F24<0.5),"-",IFERROR('Tabel 2 Sydj'!F24/'Tabel 1 Sydj'!E22*100,"-")) -> 0.8695652174 | G24: =IF(OR('Tabel 1 Sydj'!E22<5,'Tabel 2 Sydj'!G24<0.5),"-",IFERROR('Tabel 2 Sydj'!G24/'Tabel 1 Sydj'!E22*100,"-")) -> - | I24: =IF(OR('Tabel 1 Sydj'!G22<5,'Tabel 2 Sydj'!I24<0.5),"-",IFERROR('Tabel 2 Sydj'!I24/'Tabel 1 Sydj'!G22*100,"-")) -> 1.013513514 | J24: =IF(OR('Tabel 1 Sydj'!G22<5,'Tabel 2 Sydj'!J24<0.5),"-",IFERROR('Tabel 2 Sydj'!J24/'Tabel 1 Sydj'!G22*100,"-")) -> 0.4762137551
A25: Farmaceut | C25: =IF(OR('Tabel 1 Sydj'!C23<5,'Tabel 2 Sydj'!C25<0.5),"-",IFERROR('Tabel 2 Sydj'!C25/'Tabel 1 Sydj'!C23*100,"-")) -> 2.777777778 | D25: =IF(OR('Tabel 1 Sydj'!C23<5,'Tabel 2 Sydj'!D25<0.5),"-",IFERROR('Tabel 2 Sydj'!D25/'Tabel 1 Sydj'!C23*100,"-")) -> 1.651108478 | F25: =IF(OR('Tabel 1 Sydj'!E23<5,'Tabel 2 Sydj'!F25<0.5),"-",IFERROR('Tabel 2 Sydj'!F25/'Tabel 1 Sydj'!E23*100,"-")) -> 1.754385965 | G25: =IF(OR('Tabel 1 Sydj'!E23<5,'Tabel 2 Sydj'!G25<0.5),"-",IFERROR('Tabel 2 Sydj'!G25/'Tabel 1 Sydj'!E23*100,"-")) -> 1.511137665 | I25: =IF(OR('Tabel 1 Sydj'!G23<5,'Tabel 2 Sydj'!I25<0.5),"-",IFERROR('Tabel 2 Sydj'!I25/'Tabel 1 Sydj'!G23*100,"-")) -> 1.93236715 | J25: =IF(OR('Tabel 1 Sydj'!G23<5,'Tabel 2 Sydj'!J25<0.5),"-",IFERROR('Tabel 2 Sydj'!J25/'Tabel 1 Sydj'!G23*100,"-")) -> 1.535480415
A26: Læge | C26: =IF(OR('Tabel 1 Sydj'!C24<5,'Tabel 2 Sydj'!C26<0.5),"-",IFERROR('Tabel 2 Sydj'!C26/'Tabel 1 Sydj'!C24*100,"-")) -> 0.3846153846 | D26: =IF(OR('Tabel 1 Sydj'!C24<5,'Tabel 2 Sydj'!D26<0.5),"-",IFERROR('Tabel 2 Sydj'!D26/'Tabel 1 Sydj'!C24*100,"-")) -> 0.349039721 | F26: =IF(OR('Tabel 1 Sydj'!E24<5,'Tabel 2 Sydj'!F26<0.5),"-",IFERROR('Tabel 2 Sydj'!F26/'Tabel 1 Sydj'!E24*100,"-")) -> 0.3344481605 | G26: =IF(OR('Tabel 1 Sydj'!E24<5,'Tabel 2 Sydj'!G26<0.5),"-",IFERROR('Tabel 2 Sydj'!G26/'Tabel 1 Sydj'!E24*100,"-")) -> 0.2031762667 | I26: =IF(OR('Tabel 1 Sydj'!G24<5,'Tabel 2 Sydj'!I26<0.5),"-",IFERROR('Tabel 2 Sydj'!I26/'Tabel 1 Sydj'!G24*100,"-")) -> 0.3496503497 | J26: =IF(OR('Tabel 1 Sydj'!G24<5,'Tabel 2 Sydj'!J26<0.5),"-",IFERROR('Tabel 2 Sydj'!J26/'Tabel 1 Sydj'!G24*100,"-")) -> 0.2473773134
A27: Tandlæge | C27: =IF(OR('Tabel 1 Sydj'!C25<5,'Tabel 2 Sydj'!C27<0.5),"-",IFERROR('Tabel 2 Sydj'!C27/'Tabel 1 Sydj'!C25*100,"-")) -> 5.263157895 | D27: =IF(OR('Tabel 1 Sydj'!C25<5,'Tabel 2 Sydj'!D27<0.5),"-",IFERROR('Tabel 2 Sydj'!D27/'Tabel 1 Sydj'!C25*100,"-")) -> 5.098037928 | F27: =IF(OR('Tabel 1 Sydj'!E25<5,'Tabel 2 Sydj'!F27<0.5),"-",IFERROR('Tabel 2 Sydj'!F27/'Tabel 1 Sydj'!E25*100,"-")) -> 0.5988023952 | G27: =IF(OR('Tabel 1 Sydj'!E25<5,'Tabel 2 Sydj'!G27<0.5),"-",IFERROR('Tabel 2 Sydj'!G27/'Tabel 1 Sydj'!E25*100,"-")) -> 0.3499518769 | I27: =IF(OR('Tabel 1 Sydj'!G25<5,'Tabel 2 Sydj'!I27<0.5),"-",IFERROR('Tabel 2 Sydj'!I27/'Tabel 1 Sydj'!G25*100,"-")) -> 1.075268817 | J27: =IF(OR('Tabel 1 Sydj'!G25<5,'Tabel 2 Sydj'!J27<0.5),"-",IFERROR('Tabel 2 Sydj'!J27/'Tabel 1 Sydj'!G25*100,"-")) -> 0.8349714198
A28: Arkitekt | C28: =IF(OR('Tabel 1 Sydj'!C26<5,'Tabel 2 Sydj'!C28<0.5),"-",IFERROR('Tabel 2 Sydj'!C28/'Tabel 1 Sydj'!C26*100,"-")) -> 1.075268817 | D28: =IF(OR('Tabel 1 Sydj'!C26<5,'Tabel 2 Sydj'!D28<0.5),"-",IFERROR('Tabel 2 Sydj'!D28/'Tabel 1 Sydj'!C26*100,"-")) -> 0.9758099726 | F28: =IF(OR('Tabel 1 Sydj'!E26<5,'Tabel 2 Sydj'!F28<0.5),"-",IFERROR('Tabel 2 Sydj'!F28/'Tabel 1 Sydj'!E26*100,"-")) -> 2.43902439 | G28: =IF(OR('Tabel 1 Sydj'!E26<5,'Tabel 2 Sydj'!G28<0.5),"-",IFERROR('Tabel 2 Sydj'!G28/'Tabel 1 Sydj'!E26*100,"-")) -> 2.438568014 | I28: =IF(OR('Tabel 1 Sydj'!G26<5,'Tabel 2 Sydj'!I28<0.5),"-",IFERROR('Tabel 2 Sydj'!I28/'Tabel 1 Sydj'!G26*100,"-")) -> 1.851851852 | J28: =IF(OR('Tabel 1 Sydj'!G26<5,'Tabel 2 Sydj'!J28<0.5),"-",IFERROR('Tabel 2 Sydj'!J28/'Tabel 1 Sydj'!G26*100,"-")) -> 1.808769413
A29: Landinspek. | C29: =IF(OR('Tabel 1 Sydj'!C27<5,'Tabel 2 Sydj'!C29<0.5),"-",IFERROR('Tabel 2 Sydj'!C29/'Tabel 1 Sydj'!C27*100,"-")) -> - | D29: =IF(OR('Tabel 1 Sydj'!C27<5,'Tabel 2 Sydj'!D29<0.5),"-",IFERROR('Tabel 2 Sydj'!D29/'Tabel 1 Sydj'!C27*100,"-")) -> - | F29: =IF(OR('Tabel 1 Sydj'!E27<5,'Tabel 2 Sydj'!F29<0.5),"-",IFERROR('Tabel 2 Sydj'!F29/'Tabel 1 Sydj'!E27*100,"-")) -> - | G29: =IF(OR('Tabel 1 Sydj'!E27<5,'Tabel 2 Sydj'!G29<0.5),"-",IFERROR('Tabel 2 Sydj'!G29/'Tabel 1 Sydj'!E27*100,"-")) -> - | I29: =IF(OR('Tabel 1 Sydj'!G27<5,'Tabel 2 Sydj'!I29<0.5),"-",IFERROR('Tabel 2 Sydj'!I29/'Tabel 1 Sydj'!G27*100,"-")) -> - | J29: =IF(OR('Tabel 1 Sydj'!G27<5,'Tabel 2 Sydj'!J29<0.5),"-",IFERROR('Tabel 2 Sydj'!J29/'Tabel 1 Sydj'!G27*100,"-")) -> -
A30: Bibliotekar | C30: =IF(OR('Tabel 1 Sydj'!C28<5,'Tabel 2 Sydj'!C30<0.5),"-",IFERROR('Tabel 2 Sydj'!C30/'Tabel 1 Sydj'!C28*100,"-")) -> 1.754385965 | D30: =IF(OR('Tabel 1 Sydj'!C28<5,'Tabel 2 Sydj'!D30<0.5),"-",IFERROR('Tabel 2 Sydj'!D30/'Tabel 1 Sydj'!C28*100,"-")) -> 1.430164321 | F30: =IF(OR('Tabel 1 Sydj'!E28<5,'Tabel 2 Sydj'!F30<0.5),"-",IFERROR('Tabel 2 Sydj'!F30/'Tabel 1 Sydj'!E28*100,"-")) -> 0.5434782609 | G30: =IF(OR('Tabel 1 Sydj'!E28<5,'Tabel 2 Sydj'!G30<0.5),"-",IFERROR('Tabel 2 Sydj'!G30/'Tabel 1 Sydj'!E28*100,"-")) -> 0.292535233 | I30: =IF(OR('Tabel 1 Sydj'!G28<5,'Tabel 2 Sydj'!I30<0.5),"-",IFERROR('Tabel 2 Sydj'!I30/'Tabel 1 Sydj'!G28*100,"-")) -> 0.8298755187 | J30: =IF(OR('Tabel 1 Sydj'!G28<5,'Tabel 2 Sydj'!J30<0.5),"-",IFERROR('Tabel 2 Sydj'!J30/'Tabel 1 Sydj'!G28*100,"-")) -> 0.561601034
A31: Musikudd. | C31: =IF(OR('Tabel 1 Sydj'!C29<5,'Tabel 2 Sydj'!C31<0.5),"-",IFERROR('Tabel 2 Sydj'!C31/'Tabel 1 Sydj'!C29*100,"-")) -> - | D31: =IF(OR('Tabel 1 Sydj'!C29<5,'Tabel 2 Sydj'!D31<0.5),"-",IFERROR('Tabel 2 Sydj'!D31/'Tabel 1 Sydj'!C29*100,"-")) -> - | F31: =IF(OR('Tabel 1 Sydj'!E29<5,'Tabel 2 Sydj'!F31<0.5),"-",IFERROR('Tabel 2 Sydj'!F31/'Tabel 1 Sydj'!E29*100,"-")) -> 1.666666667 | G31: =IF(OR('Tabel 1 Sydj'!E29<5,'Tabel 2 Sydj'!G31<0.5),"-",IFERROR('Tabel 2 Sydj'!G31/'Tabel 1 Sydj'!E29*100,"-")) -> 1.197530094 | I31: =IF(OR('Tabel 1 Sydj'!G29<5,'Tabel 2 Sydj'!I31<0.5),"-",IFERROR('Tabel 2 Sydj'!I31/'Tabel 1 Sydj'!G29*100,"-")) -> 1 | J31: =IF(OR('Tabel 1 Sydj'!G29<5,'Tabel 2 Sydj'!J31<0.5),"-",IFERROR('Tabel 2 Sydj'!J31/'Tabel 1 Sydj'!G29*100,"-")) -> 0.7185180565
A32: Teolog | C32: =IF(OR('Tabel 1 Sydj'!C30<5,'Tabel 2 Sydj'!C32<0.5),"-",IFERROR('Tabel 2 Sydj'!C32/'Tabel 1 Sydj'!C30*100,"-")) -> - | D32: =IF(OR('Tabel 1 Sydj'!C30<5,'Tabel 2 Sydj'!D32<0.5),"-",IFERROR('Tabel 2 Sydj'!D32/'Tabel 1 Sydj'!C30*100,"-")) -> - | F32: =IF(OR('Tabel 1 Sydj'!E30<5,'Tabel 2 Sydj'!F32<0.5),"-",IFERROR('Tabel 2 Sydj'!F32/'Tabel 1 Sydj'!E30*100,"-")) -> 1.694915254 | G32: =IF(OR('Tabel 1 Sydj'!E30<5,'Tabel 2 Sydj'!G32<0.5),"-",IFERROR('Tabel 2 Sydj'!G32/'Tabel 1 Sydj'!E30*100,"-")) -> 1.225227206 | I32: =IF(OR('Tabel 1 Sydj'!G30<5,'Tabel 2 Sydj'!I32<0.5),"-",IFERROR('Tabel 2 Sydj'!I32/'Tabel 1 Sydj'!G30*100,"-")) -> 1.025641026 | J32: =IF(OR('Tabel 1 Sydj'!G30<5,'Tabel 2 Sydj'!J32<0.5),"-",IFERROR('Tabel 2 Sydj'!J32/'Tabel 1 Sydj'!G30*100,"-")) -> 0.7414195401
A33: Psykolog | C33: =IF(OR('Tabel 1 Sydj'!C31<5,'Tabel 2 Sydj'!C33<0.5),"-",IFERROR('Tabel 2 Sydj'!C33/'Tabel 1 Sydj'!C31*100,"-")) -> 1.265822785 | D33: =IF(OR('Tabel 1 Sydj'!C31<5,'Tabel 2 Sydj'!D33<0.5),"-",IFERROR('Tabel 2 Sydj'!D33/'Tabel 1 Sydj'!C31*100,"-")) -> 0.9150431033 | F33: =IF(OR('Tabel 1 Sydj'!E31<5,'Tabel 2 Sydj'!F33<0.5),"-",IFERROR('Tabel 2 Sydj'!F33/'Tabel 1 Sydj'!E31*100,"-")) -> 2.158273381 | G33: =IF(OR('Tabel 1 Sydj'!E31<5,'Tabel 2 Sydj'!G33<0.5),"-",IFERROR('Tabel 2 Sydj'!G33/'Tabel 1 Sydj'!E31*100,"-")) -> 1.595480305 | I33: =IF(OR('Tabel 1 Sydj'!G31<5,'Tabel 2 Sydj'!I33<0.5),"-",IFERROR('Tabel 2 Sydj'!I33/'Tabel 1 Sydj'!G31*100,"-")) -> 2.016129032 | J33: =IF(OR('Tabel 1 Sydj'!G31<5,'Tabel 2 Sydj'!J33<0.5),"-",IFERROR('Tabel 2 Sydj'!J33/'Tabel 1 Sydj'!G31*100,"-")) -> 1.487104219
A34: Jurist | C34: =IF(OR('Tabel 1 Sydj'!C32<5,'Tabel 2 Sydj'!C34<0.5),"-",IFERROR('Tabel 2 Sydj'!C34/'Tabel 1 Sydj'!C32*100,"-")) -> 1.612903226 | D34: =IF(OR('Tabel 1 Sydj'!C32<5,'Tabel 2 Sydj'!D34<0.5),"-",IFERROR('Tabel 2 Sydj'!D34/'Tabel 1 Sydj'!C32*100,"-")) -> 1.389271724 | F34: =IF(OR('Tabel 1 Sydj'!E32<5,'Tabel 2 Sydj'!F34<0.5),"-",IFERROR('Tabel 2 Sydj'!F34/'Tabel 1 Sydj'!E32*100,"-")) -> 0.7130124777 | G34: =IF(OR('Tabel 1 Sydj'!E32<5,'Tabel 2 Sydj'!G34<0.5),"-",IFERROR('Tabel 2 Sydj'!G34/'Tabel 1 Sydj'!E32*100,"-")) -> 0.712879063 | I34: =IF(OR('Tabel 1 Sydj'!G32<5,'Tabel 2 Sydj'!I34<0.5),"-",IFERROR('Tabel 2 Sydj'!I34/'Tabel 1 Sydj'!G32*100,"-")) -> 0.9888751545 | J34: =IF(OR('Tabel 1 Sydj'!G32<5,'Tabel 2 Sydj'!J34<0.5),"-",IFERROR('Tabel 2 Sydj'!J34/'Tabel 1 Sydj'!G32*100,"-")) -> 0.9202281111
A35: Økonom | C35: =IF(OR('Tabel 1 Sydj'!C33<5,'Tabel 2 Sydj'!C35<0.5),"-",IFERROR('Tabel 2 Sydj'!C35/'Tabel 1 Sydj'!C33*100,"-")) -> 0.4132231405 | D35: =IF(OR('Tabel 1 Sydj'!C33<5,'Tabel 2 Sydj'!D35<0.5),"-",IFERROR('Tabel 2 Sydj'!D35/'Tabel 1 Sydj'!C33*100,"-")) -> 0.4131458206 | F35: =IF(OR('Tabel 1 Sydj'!E33<5,'Tabel 2 Sydj'!F35<0.5),"-",IFERROR('Tabel 2 Sydj'!F35/'Tabel 1 Sydj'!E33*100,"-")) -> 1.734104046 | G35: =IF(OR('Tabel 1 Sydj'!E33<5,'Tabel 2 Sydj'!G35<0.5),"-",IFERROR('Tabel 2 Sydj'!G35/'Tabel 1 Sydj'!E33*100,"-")) -> 1.185776879 | I35: =IF(OR('Tabel 1 Sydj'!G33<5,'Tabel 2 Sydj'!I35<0.5),"-",IFERROR('Tabel 2 Sydj'!I35/'Tabel 1 Sydj'!G33*100,"-")) -> 0.9638554217 | J35: =IF(OR('Tabel 1 Sydj'!G33<5,'Tabel 2 Sydj'!J35<0.5),"-",IFERROR('Tabel 2 Sydj'!J35/'Tabel 1 Sydj'!G33*100,"-")) -> 0.7352305749
A36: Samf. Adm. | C36: =IF(OR('Tabel 1 Sydj'!C34<5,'Tabel 2 Sydj'!C36<0.5),"-",IFERROR('Tabel 2 Sydj'!C36/'Tabel 1 Sydj'!C34*100,"-")) -> 3.524229075 | D36: =IF(OR('Tabel 1 Sydj'!C34<5,'Tabel 2 Sydj'!D36<0.5),"-",IFERROR('Tabel 2 Sydj'!D36/'Tabel 1 Sydj'!C34*100,"-")) -> 2.920875474 | F36: =IF(OR('Tabel 1 Sydj'!E34<5,'Tabel 2 Sydj'!F36<0.5),"-",IFERROR('Tabel 2 Sydj'!F36/'Tabel 1 Sydj'!E34*100,"-")) -> 3.513513514 | G36: =IF(OR('Tabel 1 Sydj'!E34<5,'Tabel 2 Sydj'!G36<0.5),"-",IFERROR('Tabel 2 Sydj'!G36/'Tabel 1 Sydj'!E34*100,"-")) -> 2.725291249 | I36: =IF(OR('Tabel 1 Sydj'!G34<5,'Tabel 2 Sydj'!I36<0.5),"-",IFERROR('Tabel 2 Sydj'!I36/'Tabel 1 Sydj'!G34*100,"-")) -> 3.51758794 | J36: =IF(OR('Tabel 1 Sydj'!G34<5,'Tabel 2 Sydj'!J36<0.5),"-",IFERROR('Tabel 2 Sydj'!J36/'Tabel 1 Sydj'!G34*100,"-")) -> 2.79965912
A37: Cand. Merc. | C37: =IF(OR('Tabel 1 Sydj'!C35<5,'Tabel 2 Sydj'!C37<0.5),"-",IFERROR('Tabel 2 Sydj'!C37/'Tabel 1 Sydj'!C35*100,"-")) -> 1.875532822 | D37: =IF(OR('Tabel 1 Sydj'!C35<5,'Tabel 2 Sydj'!D37<0.5),"-",IFERROR('Tabel 2 Sydj'!D37/'Tabel 1 Sydj'!C35*100,"-")) -> 1.549766097 | F37: =IF(OR('Tabel 1 Sydj'!E35<5,'Tabel 2 Sydj'!F37<0.5),"-",IFERROR('Tabel 2 Sydj'!F37/'Tabel 1 Sydj'!E35*100,"-")) -> 2.098540146 | G37: =IF(OR('Tabel 1 Sydj'!E35<5,'Tabel 2 Sydj'!G37<0.5),"-",IFERROR('Tabel 2 Sydj'!G37/'Tabel 1 Sydj'!E35*100,"-")) -> 1.603843077 | I37: =IF(OR('Tabel 1 Sydj'!G35<5,'Tabel 2 Sydj'!I37<0.5),"-",IFERROR('Tabel 2 Sydj'!I37/'Tabel 1 Sydj'!G35*100,"-")) -> 1.983252534 | J37: =IF(OR('Tabel 1 Sydj'!G35<5,'Tabel 2 Sydj'!J37<0.5),"-",IFERROR('Tabel 2 Sydj'!J37/'Tabel 1 Sydj'!G35*100,"-")) -> 1.575887018
A38: HA | C38: =IF(OR('Tabel 1 Sydj'!C36<5,'Tabel 2 Sydj'!C38<0.5),"-",IFERROR('Tabel 2 Sydj'!C38/'Tabel 1 Sydj'!C36*100,"-")) -> 3.289473684 | D38: =IF(OR('Tabel 1 Sydj'!C36<5,'Tabel 2 Sydj'!D38<0.5),"-",IFERROR('Tabel 2 Sydj'!D38/'Tabel 1 Sydj'!C36*100,"-")) -> 2.406426548 | F38: =IF(OR('Tabel 1 Sydj'!E36<5,'Tabel 2 Sydj'!F38<0.5),"-",IFERROR('Tabel 2 Sydj'!F38/'Tabel 1 Sydj'!E36*100,"-")) -> 2.866242038 | G38: =IF(OR('Tabel 1 Sydj'!E36<5,'Tabel 2 Sydj'!G38<0.5),"-",IFERROR('Tabel 2 Sydj'!G38/'Tabel 1 Sydj'!E36*100,"-")) -> 2.557622992 | I38: =IF(OR('Tabel 1 Sydj'!G36<5,'Tabel 2 Sydj'!I38<0.5),"-",IFERROR('Tabel 2 Sydj'!I38/'Tabel 1 Sydj'!G36*100,"-")) -> 3.074433657 | J38: =IF(OR('Tabel 1 Sydj'!G36<5,'Tabel 2 Sydj'!J38<0.5),"-",IFERROR('Tabel 2 Sydj'!J38/'Tabel 1 Sydj'!G36*100,"-")) -> 2.483248042
A39: HD | C39: =IF(OR('Tabel 1 Sydj'!C37<5,'Tabel 2 Sydj'!C39<0.5),"-",IFERROR('Tabel 2 Sydj'!C39/'Tabel 1 Sydj'!C37*100,"-")) -> 1.526717557 | D39: =IF(OR('Tabel 1 Sydj'!C37<5,'Tabel 2 Sydj'!D39<0.5),"-",IFERROR('Tabel 2 Sydj'!D39/'Tabel 1 Sydj'!C37*100,"-")) -> 1.526431887 | F39: =IF(OR('Tabel 1 Sydj'!E37<5,'Tabel 2 Sydj'!F39<0.5),"-",IFERROR('Tabel 2 Sydj'!F39/'Tabel 1 Sydj'!E37*100,"-")) -> 4.347826087 | G39: =IF(OR('Tabel 1 Sydj'!E37<5,'Tabel 2 Sydj'!G39<0.5),"-",IFERROR('Tabel 2 Sydj'!G39/'Tabel 1 Sydj'!E37*100,"-")) -> 4.101745464 | I39: =IF(OR('Tabel 1 Sydj'!G37<5,'Tabel 2 Sydj'!I39<0.5),"-",IFERROR('Tabel 2 Sydj'!I39/'Tabel 1 Sydj'!G37*100,"-")) -> 2.771855011 | J39: =IF(OR('Tabel 1 Sydj'!G37<5,'Tabel 2 Sydj'!J39<0.5),"-",IFERROR('Tabel 2 Sydj'!J39/'Tabel 1 Sydj'!G37*100,"-")) -> 2.663084148
A40: Komm. og Sprog | C40: =IF(OR('Tabel 1 Sydj'!C38<5,'Tabel 2 Sydj'!C40<0.5),"-",IFERROR('Tabel 2 Sydj'!C40/'Tabel 1 Sydj'!C38*100,"-")) -> 7.142857143 | D40: =IF(OR('Tabel 1 Sydj'!C38<5,'Tabel 2 Sydj'!D40<0.5),"-",IFERROR('Tabel 2 Sydj'!D40/'Tabel 1 Sydj'!C38*100,"-")) -> 5.172367706 | F40: =IF(OR('Tabel 1 Sydj'!E38<5,'Tabel 2 Sydj'!F40<0.5),"-",IFERROR('Tabel 2 Sydj'!F40/'Tabel 1 Sydj'!E38*100,"-")) -> 3.797468354 | G40: =IF(OR('Tabel 1 Sydj'!E38<5,'Tabel 2 Sydj'!G40<0.5),"-",IFERROR('Tabel 2 Sydj'!G40/'Tabel 1 Sydj'!E38*100,"-")) -> 3.478742814 | I40: =IF(OR('Tabel 1 Sydj'!G38<5,'Tabel 2 Sydj'!I40<0.5),"-",IFERROR('Tabel 2 Sydj'!I40/'Tabel 1 Sydj'!G38*100,"-")) -> 4.21286031 | J40: =IF(OR('Tabel 1 Sydj'!G38<5,'Tabel 2 Sydj'!J40<0.5),"-",IFERROR('Tabel 2 Sydj'!J40/'Tabel 1 Sydj'!G38*100,"-")) -> 3.689037701
A41: Bygningskonst. | C41: =IF(OR('Tabel 1 Sydj'!C39<5,'Tabel 2 Sydj'!C41<0.5),"-",IFERROR('Tabel 2 Sydj'!C41/'Tabel 1 Sydj'!C39*100,"-")) -> 1.156069364 | D41: =IF(OR('Tabel 1 Sydj'!C39<5,'Tabel 2 Sydj'!D41<0.5),"-",IFERROR('Tabel 2 Sydj'!D41/'Tabel 1 Sydj'!C39*100,"-")) -> 0.8992832341 | F41: =IF(OR('Tabel 1 Sydj'!E39<5,'Tabel 2 Sydj'!F41<0.5),"-",IFERROR('Tabel 2 Sydj'!F41/'Tabel 1 Sydj'!E39*100,"-")) -> 0.9009009009 | G41: =IF(OR('Tabel 1 Sydj'!E39<5,'Tabel 2 Sydj'!G41<0.5),"-",IFERROR('Tabel 2 Sydj'!G41/'Tabel 1 Sydj'!E39*100,"-")) -> 0.9009009009 | I41: =IF(OR('Tabel 1 Sydj'!G39<5,'Tabel 2 Sydj'!I41<0.5),"-",IFERROR('Tabel 2 Sydj'!I41/'Tabel 1 Sydj'!G39*100,"-")) -> 1.120797011 | J41: =IF(OR('Tabel 1 Sydj'!G39<5,'Tabel 2 Sydj'!J41<0.5),"-",IFERROR('Tabel 2 Sydj'!J41/'Tabel 1 Sydj'!G39*100,"-")) -> 0.8995068468
A42: Cand. IT. | C42: =IF(OR('Tabel 1 Sydj'!C40<5,'Tabel 2 Sydj'!C42<0.5),"-",IFERROR('Tabel 2 Sydj'!C42/'Tabel 1 Sydj'!C40*100,"-")) -> 4.132231405 | D42: =IF(OR('Tabel 1 Sydj'!C40<5,'Tabel 2 Sydj'!D42<0.5),"-",IFERROR('Tabel 2 Sydj'!D42/'Tabel 1 Sydj'!C40*100,"-")) -> 3.597435661 | F42: =IF(OR('Tabel 1 Sydj'!E40<5,'Tabel 2 Sydj'!F42<0.5),"-",IFERROR('Tabel 2 Sydj'!F42/'Tabel 1 Sydj'!E40*100,"-")) -> 7.857142857 | G42: =IF(OR('Tabel 1 Sydj'!E40<5,'Tabel 2 Sydj'!G42<0.5),"-",IFERROR('Tabel 2 Sydj'!G42/'Tabel 1 Sydj'!E40*100,"-")) -> 7.169587725 | I42: =IF(OR('Tabel 1 Sydj'!G40<5,'Tabel 2 Sydj'!I42<0.5),"-",IFERROR('Tabel 2 Sydj'!I42/'Tabel 1 Sydj'!G40*100,"-")) -> 6.130268199 | J42: =IF(OR('Tabel 1 Sydj'!G40<5,'Tabel 2 Sydj'!J42<0.5),"-",IFERROR('Tabel 2 Sydj'!J42/'Tabel 1 Sydj'!G40*100,"-")) -> 5.513532554
A43: Bac. Samf. | C43: =IF(OR('Tabel 1 Sydj'!C41<5,'Tabel 2 Sydj'!C43<0.5),"-",IFERROR('Tabel 2 Sydj'!C43/'Tabel 1 Sydj'!C41*100,"-")) -> 4 | D43: =IF(OR('Tabel 1 Sydj'!C41<5,'Tabel 2 Sydj'!D43<0.5),"-",IFERROR('Tabel 2 Sydj'!D43/'Tabel 1 Sydj'!C41*100,"-")) -> - | F43: =IF(OR('Tabel 1 Sydj'!E41<5,'Tabel 2 Sydj'!F43<0.5),"-",IFERROR('Tabel 2 Sydj'!F43/'Tabel 1 Sydj'!E41*100,"-")) -> 7.01754386 | G43: =IF(OR('Tabel 1 Sydj'!E41<5,'Tabel 2 Sydj'!G43<0.5),"-",IFERROR('Tabel 2 Sydj'!G43/'Tabel 1 Sydj'!E41*100,"-")) -> 5.481019958 | I43: =IF(OR('Tabel 1 Sydj'!G41<5,'Tabel 2 Sydj'!I43<0.5),"-",IFERROR('Tabel 2 Sydj'!I43/'Tabel 1 Sydj'!G41*100,"-")) -> 6.097560976 | J43: =IF(OR('Tabel 1 Sydj'!G41<5,'Tabel 2 Sydj'!J43<0.5),"-",IFERROR('Tabel 2 Sydj'!J43/'Tabel 1 Sydj'!G41*100,"-")) -> 4.12867972
A44: Bac. Hum. | C44: =IF(OR('Tabel 1 Sydj'!C42<5,'Tabel 2 Sydj'!C44<0.5),"-",IFERROR('Tabel 2 Sydj'!C44/'Tabel 1 Sydj'!C42*100,"-")) -> 9.230769231 | D44: =IF(OR('Tabel 1 Sydj'!C42<5,'Tabel 2 Sydj'!D44<0.5),"-",IFERROR('Tabel 2 Sydj'!D44/'Tabel 1 Sydj'!C42*100,"-")) -> 7.903890533 | F44: =IF(OR('Tabel 1 Sydj'!E42<5,'Tabel 2 Sydj'!F44<0.5),"-",IFERROR('Tabel 2 Sydj'!F44/'Tabel 1 Sydj'!E42*100,"-")) -> 7.03125 | G44: =IF(OR('Tabel 1 Sydj'!E42<5,'Tabel 2 Sydj'!G44<0.5),"-",IFERROR('Tabel 2 Sydj'!G44/'Tabel 1 Sydj'!E42*100,"-")) -> 6.007141521 | I44: =IF(OR('Tabel 1 Sydj'!G42<5,'Tabel 2 Sydj'!I44<0.5),"-",IFERROR('Tabel 2 Sydj'!I44/'Tabel 1 Sydj'!G42*100,"-")) -> 7.772020725 | J44: =IF(OR('Tabel 1 Sydj'!G42<5,'Tabel 2 Sydj'!J44<0.5),"-",IFERROR('Tabel 2 Sydj'!J44/'Tabel 1 Sydj'!G42*100,"-")) -> 6.645943002
A45: Bac. Nat. | C45: =IF(OR('Tabel 1 Sydj'!C43<5,'Tabel 2 Sydj'!C45<0.5),"-",IFERROR('Tabel 2 Sydj'!C45/'Tabel 1 Sydj'!C43*100,"-")) -> 7.486631016 | D45: =IF(OR('Tabel 1 Sydj'!C43<5,'Tabel 2 Sydj'!D45<0.5),"-",IFERROR('Tabel 2 Sydj'!D45/'Tabel 1 Sydj'!C43*100,"-")) -> 6.093715135 | F45: =IF(OR('Tabel 1 Sydj'!E43<5,'Tabel 2 Sydj'!F45<0.5),"-",IFERROR('Tabel 2 Sydj'!F45/'Tabel 1 Sydj'!E43*100,"-")) -> 12.64367816 | G45: =IF(OR('Tabel 1 Sydj'!E43<5,'Tabel 2 Sydj'!G45<0.5),"-",IFERROR('Tabel 2 Sydj'!G45/'Tabel 1 Sydj'!E43*100,"-")) -> 10.45401331 | I45: =IF(OR('Tabel 1 Sydj'!G43<5,'Tabel 2 Sydj'!I45<0.5),"-",IFERROR('Tabel 2 Sydj'!I45/'Tabel 1 Sydj'!G43*100,"-")) -> 9.124087591 | J45: =IF(OR('Tabel 1 Sydj'!G43<5,'Tabel 2 Sydj'!J45<0.5),"-",IFERROR('Tabel 2 Sydj'!J45/'Tabel 1 Sydj'!G43*100,"-")) -> 7.478189373
A46: Andre | C46: =IF(OR('Tabel 1 Sydj'!C44<5,'Tabel 2 Sydj'!C46<0.5),"-",IFERROR('Tabel 2 Sydj'!C46/'Tabel 1 Sydj'!C44*100,"-")) -> 2.9342723 | D46: =IF(OR('Tabel 1 Sydj'!C44<5,'Tabel 2 Sydj'!D46<0.5),"-",IFERROR('Tabel 2 Sydj'!D46/'Tabel 1 Sydj'!C44*100,"-")) -> 2.255690947 | F46: =IF(OR('Tabel 1 Sydj'!E44<5,'Tabel 2 Sydj'!F46<0.5),"-",IFERROR('Tabel 2 Sydj'!F46/'Tabel 1 Sydj'!E44*100,"-")) -> 3.095975232 | G46: =IF(OR('Tabel 1 Sydj'!E44<5,'Tabel 2 Sydj'!G46<0.5),"-",IFERROR('Tabel 2 Sydj'!G46/'Tabel 1 Sydj'!E44*100,"-")) -> 2.300016278 | I46: =IF(OR('Tabel 1 Sydj'!G44<5,'Tabel 2 Sydj'!I46<0.5),"-",IFERROR('Tabel 2 Sydj'!I46/'Tabel 1 Sydj'!G44*100,"-")) -> 3.00400534 | J46: =IF(OR('Tabel 1 Sydj'!G44<5,'Tabel 2 Sydj'!J46<0.5),"-",IFERROR('Tabel 2 Sydj'!J46/'Tabel 1 Sydj'!G44*100,"-")) -> 2.274805876
A48: Total | C48: =IF(OR('Tabel 1 Sydj'!C46<5,'Tabel 2 Sydj'!C48<0.5),"-",IFERROR('Tabel 2 Sydj'!C48/'Tabel 1 Sydj'!C46*100,"-")) -> 2.313480628 | D48: =IF(OR('Tabel 1 Sydj'!C46<5,'Tabel 2 Sydj'!D48<0.5),"-",IFERROR('Tabel 2 Sydj'!D48/'Tabel 1 Sydj'!C46*100,"-")) -> 1.905693666 | F48: =IF(OR('Tabel 1 Sydj'!E46<5,'Tabel 2 Sydj'!F48<0.5),"-",IFERROR('Tabel 2 Sydj'!F48/'Tabel 1 Sydj'!E46*100,"-")) -> 2.921085745 | G48: =IF(OR('Tabel 1 Sydj'!E46<5,'Tabel 2 Sydj'!G48<0.5),"-",IFERROR('Tabel 2 Sydj'!G48/'Tabel 1 Sydj'!E46*100,"-")) -> 2.303873889 | I48: =IF(OR('Tabel 1 Sydj'!G46<5,'Tabel 2 Sydj'!I48<0.5),"-",IFERROR('Tabel 2 Sydj'!I48/'Tabel 1 Sydj'!G46*100,"-")) -> 2.599712084 | J48: =IF(OR('Tabel 1 Sydj'!G46<5,'Tabel 2 Sydj'!J48<0.5),"-",IFERROR('Tabel 2 Sydj'!J48/'Tabel 1 Sydj'!G46*100,"-")) -> 2.093268955
A50: Ingeniører i alt | C50: =IF(OR('Tabel 1 Sydj'!C48<5,'Tabel 2 Sydj'!C50<0.5),"-",IFERROR('Tabel 2 Sydj'!C50/'Tabel 1 Sydj'!C48*100,"-")) -> 1.551168413 | D50: =IF(OR('Tabel 1 Sydj'!C48<5,'Tabel 2 Sydj'!D50<0.5),"-",IFERROR('Tabel 2 Sydj'!D50/'Tabel 1 Sydj'!C48*100,"-")) -> 1.300877577 | F50: =IF(OR('Tabel 1 Sydj'!E48<5,'Tabel 2 Sydj'!F50<0.5),"-",IFERROR('Tabel 2 Sydj'!F50/'Tabel 1 Sydj'!E48*100,"-")) -> 1.851851852 | G50: =IF(OR('Tabel 1 Sydj'!E48<5,'Tabel 2 Sydj'!G50<0.5),"-",IFERROR('Tabel 2 Sydj'!G50/'Tabel 1 Sydj'!E48*100,"-")) -> 1.33538679 | I50: =IF(OR('Tabel 1 Sydj'!G48<5,'Tabel 2 Sydj'!I50<0.5),"-",IFERROR('Tabel 2 Sydj'!I50/'Tabel 1 Sydj'!G48*100,"-")) -> 1.617462312 | J50: =IF(OR('Tabel 1 Sydj'!G48<5,'Tabel 2 Sydj'!J50<0.5),"-",IFERROR('Tabel 2 Sydj'!J50/'Tabel 1 Sydj'!G48*100,"-")) -> 1.308486078
A51: Magistre i alt | C51: =IF(OR('Tabel 1 Sydj'!C49<5,'Tabel 2 Sydj'!C51<0.5),"-",IFERROR('Tabel 2 Sydj'!C51/'Tabel 1 Sydj'!C49*100,"-")) -> 4.670750383 | D51: =IF(OR('Tabel 1 Sydj'!C49<5,'Tabel 2 Sydj'!D51<0.5),"-",IFERROR('Tabel 2 Sydj'!D51/'Tabel 1 Sydj'!C49*100,"-")) -> 3.767593045 | F51: =IF(OR('Tabel 1 Sydj'!E49<5,'Tabel 2 Sydj'!F51<0.5),"-",IFERROR('Tabel 2 Sydj'!F51/'Tabel 1 Sydj'!E49*100,"-")) -> 4.745617785 | G51: =IF(OR('Tabel 1 Sydj'!E49<5,'Tabel 2 Sydj'!G51<0.5),"-",IFERROR('Tabel 2 Sydj'!G51/'Tabel 1 Sydj'!E49*100,"-")) -> 3.636604889 | I51: =IF(OR('Tabel 1 Sydj'!G49<5,'Tabel 2 Sydj'!I51<0.5),"-",IFERROR('Tabel 2 Sydj'!I51/'Tabel 1 Sydj'!G49*100,"-")) -> 4.718792867 | J51: =IF(OR('Tabel 1 Sydj'!G49<5,'Tabel 2 Sydj'!J51<0.5),"-",IFERROR('Tabel 2 Sydj'!J51/'Tabel 1 Sydj'!G49*100,"-")) -> 3.68353782
A52: DJØF'ere i alt | C52: =IF(OR('Tabel 1 Sydj'!C50<5,'Tabel 2 Sydj'!C52<0.5),"-",IFERROR('Tabel 2 Sydj'!C52/'Tabel 1 Sydj'!C50*100,"-")) -> 2.189178026 | D52: =IF(OR('Tabel 1 Sydj'!C50<5,'Tabel 2 Sydj'!D52<0.5),"-",IFERROR('Tabel 2 Sydj'!D52/'Tabel 1 Sydj'!C50*100,"-")) -> 1.784397953 | F52: =IF(OR('Tabel 1 Sydj'!E50<5,'Tabel 2 Sydj'!F52<0.5),"-",IFERROR('Tabel 2 Sydj'!F52/'Tabel 1 Sydj'!E50*100,"-")) -> 2.253814147 | G52: =IF(OR('Tabel 1 Sydj'!E50<5,'Tabel 2 Sydj'!G52<0.5),"-",IFERROR('Tabel 2 Sydj'!G52/'Tabel 1 Sydj'!E50*100,"-")) -> 1.79704775 | I52: =IF(OR('Tabel 1 Sydj'!G50<5,'Tabel 2 Sydj'!I52<0.5),"-",IFERROR('Tabel 2 Sydj'!I52/'Tabel 1 Sydj'!G50*100,"-")) -> 2.224316682 | J52: =IF(OR('Tabel 1 Sydj'!G50<5,'Tabel 2 Sydj'!J52<0.5),"-",IFERROR('Tabel 2 Sydj'!J52/'Tabel 1 Sydj'!G50*100,"-")) -> 1.791274864
A57: Haderslev
C59: Mænd | F59: Kvinder | I59: I alt
C60: Ledigheds- berørte | D60: Gns. brutto- ledighed | F60: Ledigheds- berørte | G60: Gns. brutto- ledighed | I60: Ledigheds- berørte | J60: Gns. brutto- ledighed
A63: Civ. ing. | C63: =IF(OR('Tabel 1 Sydj'!C61<5,'Tabel 2 Sydj'!C63<0.5),"-",IFERROR('Tabel 2 Sydj'!C63/'Tabel 1 Sydj'!C61*100,"-")) -> 7.142857143 | D63: =IF(OR('Tabel 1 Sydj'!C61<5,'Tabel 2 Sydj'!D63<0.5),"-",IFERROR('Tabel 2 Sydj'!D63/'Tabel 1 Sydj'!C61*100,"-")) -> 6.372273852 | F63: =IF(OR('Tabel 1 Sydj'!E61<5,'Tabel 2 Sydj'!F63<0.5),"-",IFERROR('Tabel 2 Sydj'!F63/'Tabel 1 Sydj'!E61*100,"-")) -> - | G63: =IF(OR('Tabel 1 Sydj'!E61<5,'Tabel 2 Sydj'!G63<0.5),"-",IFERROR('Tabel 2 Sydj'!G63/'Tabel 1 Sydj'!E61*100,"-")) -> - | I63: =IF(OR('Tabel 1 Sydj'!G61<5,'Tabel 2 Sydj'!I63<0.5),"-",IFERROR('Tabel 2 Sydj'!I63/'Tabel 1 Sydj'!G61*100,"-")) -> 5.555555556 | J63: =IF(OR('Tabel 1 Sydj'!G61<5,'Tabel 2 Sydj'!J63<0.5),"-",IFERROR('Tabel 2 Sydj'!J63/'Tabel 1 Sydj'!G61*100,"-")) -> 4.956212996
A64: Diplom ing. | C64: =IF(OR('Tabel 1 Sydj'!C62<5,'Tabel 2 Sydj'!C64<0.5),"-",IFERROR('Tabel 2 Sydj'!C64/'Tabel 1 Sydj'!C62*100,"-")) -> 2.23880597 | D64: =IF(OR('Tabel 1 Sydj'!C62<5,'Tabel 2 Sydj'!D64<0.5),"-",IFERROR('Tabel 2 Sydj'!D64/'Tabel 1 Sydj'!C62*100,"-")) -> 2.238387058 | F64: =IF(OR('Tabel 1 Sydj'!E62<5,'Tabel 2 Sydj'!F64<0.5),"-",IFERROR('Tabel 2 Sydj'!F64/'Tabel 1 Sydj'!E62*100,"-")) -> 2.702702703 | G64: =IF(OR('Tabel 1 Sydj'!E62<5,'Tabel 2 Sydj'!G64<0.5),"-",IFERROR('Tabel 2 Sydj'!G64/'Tabel 1 Sydj'!E62*100,"-")) -> 2.702196989 | I64: =IF(OR('Tabel 1 Sydj'!G62<5,'Tabel 2 Sydj'!I64<0.5),"-",IFERROR('Tabel 2 Sydj'!I64/'Tabel 1 Sydj'!G62*100,"-")) -> 2.339181287 | J64: =IF(OR('Tabel 1 Sydj'!G62<5,'Tabel 2 Sydj'!J64<0.5),"-",IFERROR('Tabel 2 Sydj'!J64/'Tabel 1 Sydj'!G62*100,"-")) -> 2.338743593
A65: Cand. Scient. Tek. | C65: =IF(OR('Tabel 1 Sydj'!C63<5,'Tabel 2 Sydj'!C65<0.5),"-",IFERROR('Tabel 2 Sydj'!C65/'Tabel 1 Sydj'!C63*100,"-")) -> 5.882352941 | D65: =IF(OR('Tabel 1 Sydj'!C63<5,'Tabel 2 Sydj'!D65<0.5),"-",IFERROR('Tabel 2 Sydj'!D65/'Tabel 1 Sydj'!C63*100,"-")) -> 5.88125227 | F65: =IF(OR('Tabel 1 Sydj'!E63<5,'Tabel 2 Sydj'!F65<0.5),"-",IFERROR('Tabel 2 Sydj'!F65/'Tabel 1 Sydj'!E63*100,"-")) -> 10 | G65: =IF(OR('Tabel 1 Sydj'!E63<5,'Tabel 2 Sydj'!G65<0.5),"-",IFERROR('Tabel 2 Sydj'!G65/'Tabel 1 Sydj'!E63*100,"-")) -> 9.998128859 | I65: =IF(OR('Tabel 1 Sydj'!G63<5,'Tabel 2 Sydj'!I65<0.5),"-",IFERROR('Tabel 2 Sydj'!I65/'Tabel 1 Sydj'!G63*100,"-")) -> 8.108108108 | J65: =IF(OR('Tabel 1 Sydj'!G63<5,'Tabel 2 Sydj'!J65<0.5),"-",IFERROR('Tabel 2 Sydj'!J65/'Tabel 1 Sydj'!G63*100,"-")) -> 8.106590967
A66: MA. Hum. | C66: =IF(OR('Tabel 1 Sydj'!C64<5,'Tabel 2 Sydj'!C66<0.5),"-",IFERROR('Tabel 2 Sydj'!C66/'Tabel 1 Sydj'!C64*100,"-")) -> 8.333333333 | D66: =IF(OR('Tabel 1 Sydj'!C64<5,'Tabel 2 Sydj'!D66<0.5),"-",IFERROR('Tabel 2 Sydj'!D66/'Tabel 1 Sydj'!C64*100,"-")) -> 6.793280526 | F66: =IF(OR('Tabel 1 Sydj'!E64<5,'Tabel 2 Sydj'!F66<0.5),"-",IFERROR('Tabel 2 Sydj'!F66/'Tabel 1 Sydj'!E64*100,"-")) -> 1.785714286 | G66: =IF(OR('Tabel 1 Sydj'!E64<5,'Tabel 2 Sydj'!G66<0.5),"-",IFERROR('Tabel 2 Sydj'!G66/'Tabel 1 Sydj'!E64*100,"-")) -> 1.534224056 | I66: =IF(OR('Tabel 1 Sydj'!G64<5,'Tabel 2 Sydj'!I66<0.5),"-",IFERROR('Tabel 2 Sydj'!I66/'Tabel 1 Sydj'!G64*100,"-")) -> 4.069767442 | J66: =IF(OR('Tabel 1 Sydj'!G64<5,'Tabel 2 Sydj'!J66<0.5),"-",IFERROR('Tabel 2 Sydj'!J66/'Tabel 1 Sydj'!G64*100,"-")) -> 3.368778638
A67: MA. Nat. | C67: =IF(OR('Tabel 1 Sydj'!C65<5,'Tabel 2 Sydj'!C67<0.5),"-",IFERROR('Tabel 2 Sydj'!C67/'Tabel 1 Sydj'!C65*100,"-")) -> 4.347826087 | D67: =IF(OR('Tabel 1 Sydj'!C65<5,'Tabel 2 Sydj'!D67<0.5),"-",IFERROR('Tabel 2 Sydj'!D67/'Tabel 1 Sydj'!C65*100,"-")) -> - | F67: =IF(OR('Tabel 1 Sydj'!E65<5,'Tabel 2 Sydj'!F67<0.5),"-",IFERROR('Tabel 2 Sydj'!F67/'Tabel 1 Sydj'!E65*100,"-")) -> - | G67: =IF(OR('Tabel 1 Sydj'!E65<5,'Tabel 2 Sydj'!G67<0.5),"-",IFERROR('Tabel 2 Sydj'!G67/'Tabel 1 Sydj'!E65*100,"-")) -> - | I67: =IF(OR('Tabel 1 Sydj'!G65<5,'Tabel 2 Sydj'!I67<0.5),"-",IFERROR('Tabel 2 Sydj'!I67/'Tabel 1 Sydj'!G65*100,"-")) -> 2.222222222 | J67: =IF(OR('Tabel 1 Sydj'!G65<5,'Tabel 2 Sydj'!J67<0.5),"-",IFERROR('Tabel 2 Sydj'!J67/'Tabel 1 Sydj'!G65*100,"-")) -> -
A68: MA. Ph.d. | C68: =IF(OR('Tabel 1 Sydj'!C66<5,'Tabel 2 Sydj'!C68<0.5),"-",IFERROR('Tabel 2 Sydj'!C68/'Tabel 1 Sydj'!C66*100,"-")) -> - | D68: =IF(OR('Tabel 1 Sydj'!C66<5,'Tabel 2 Sydj'!D68<0.5),"-",IFERROR('Tabel 2 Sydj'!D68/'Tabel 1 Sydj'!C66*100,"-")) -> - | F68: =IF(OR('Tabel 1 Sydj'!E66<5,'Tabel 2 Sydj'!F68<0.5),"-",IFERROR('Tabel 2 Sydj'!F68/'Tabel 1 Sydj'!E66*100,"-")) -> - | G68: =IF(OR('Tabel 1 Sydj'!E66<5,'Tabel 2 Sydj'!G68<0.5),"-",IFERROR('Tabel 2 Sydj'!G68/'Tabel 1 Sydj'!E66*100,"-")) -> - | I68: =IF(OR('Tabel 1 Sydj'!G66<5,'Tabel 2 Sydj'!I68<0.5),"-",IFERROR('Tabel 2 Sydj'!I68/'Tabel 1 Sydj'!G66*100,"-")) -> - | J68: =IF(OR('Tabel 1 Sydj'!G66<5,'Tabel 2 Sydj'!J68<0.5),"-",IFERROR('Tabel 2 Sydj'!J68/'Tabel 1 Sydj'!G66*100,"-")) -> -
A69: MA. Samf. | C69: =IF(OR('Tabel 1 Sydj'!C67<5,'Tabel 2 Sydj'!C69<0.5),"-",IFERROR('Tabel 2 Sydj'!C69/'Tabel 1 Sydj'!C67*100,"-")) -> - | D69: =IF(OR('Tabel 1 Sydj'!C67<5,'Tabel 2 Sydj'!D69<0.5),"-",IFERROR('Tabel 2 Sydj'!D69/'Tabel 1 Sydj'!C67*100,"-")) -> - | F69: =IF(OR('Tabel 1 Sydj'!E67<5,'Tabel 2 Sydj'!F69<0.5),"-",IFERROR('Tabel 2 Sydj'!F69/'Tabel 1 Sydj'!E67*100,"-")) -> - | G69: =IF(OR('Tabel 1 Sydj'!E67<5,'Tabel 2 Sydj'!G69<0.5),"-",IFERROR('Tabel 2 Sydj'!G69/'Tabel 1 Sydj'!E67*100,"-")) -> - | I69: =IF(OR('Tabel 1 Sydj'!G67<5,'Tabel 2 Sydj'!I69<0.5),"-",IFERROR('Tabel 2 Sydj'!I69/'Tabel 1 Sydj'!G67*100,"-")) -> 12.5 | J69: =IF(OR('Tabel 1 Sydj'!G67<5,'Tabel 2 Sydj'!J69<0.5),"-",IFERROR('Tabel 2 Sydj'!J69/'Tabel 1 Sydj'!G67*100,"-")) -> 12.49766107
A70: Øvrige Mag. | C70: =IF(OR('Tabel 1 Sydj'!C68<5,'Tabel 2 Sydj'!C70<0.5),"-",IFERROR('Tabel 2 Sydj'!C70/'Tabel 1 Sydj'!C68*100,"-")) -> - | D70: =IF(OR('Tabel 1 Sydj'!C68<5,'Tabel 2 Sydj'!D70<0.5),"-",IFERROR('Tabel 2 Sydj'!D70/'Tabel 1 Sydj'!C68*100,"-")) -> - | F70: =IF(OR('Tabel 1 Sydj'!E68<5,'Tabel 2 Sydj'!F70<0.5),"-",IFERROR('Tabel 2 Sydj'!F70/'Tabel 1 Sydj'!E68*100,"-")) -> - | G70: =IF(OR('Tabel 1 Sydj'!E68<5,'Tabel 2 Sydj'!G70<0.5),"-",IFERROR('Tabel 2 Sydj'!G70/'Tabel 1 Sydj'!E68*100,"-")) -> - | I70: =IF(OR('Tabel 1 Sydj'!G68<5,'Tabel 2 Sydj'!I70<0.5),"-",IFERROR('Tabel 2 Sydj'!I70/'Tabel 1 Sydj'!G68*100,"-")) -> - | J70: =IF(OR('Tabel 1 Sydj'!G68<5,'Tabel 2 Sydj'!J70<0.5),"-",IFERROR('Tabel 2 Sydj'!J70/'Tabel 1 Sydj'!G68*100,"-")) -> -
A71: Agronom | C71: =IF(OR('Tabel 1 Sydj'!C69<5,'Tabel 2 Sydj'!C71<0.5),"-",IFERROR('Tabel 2 Sydj'!C71/'Tabel 1 Sydj'!C69*100,"-")) -> - | D71: =IF(OR('Tabel 1 Sydj'!C69<5,'Tabel 2 Sydj'!D71<0.5),"-",IFERROR('Tabel 2 Sydj'!D71/'Tabel 1 Sydj'!C69*100,"-")) -> - | F71: =IF(OR('Tabel 1 Sydj'!E69<5,'Tabel 2 Sydj'!F71<0.5),"-",IFERROR('Tabel 2 Sydj'!F71/'Tabel 1 Sydj'!E69*100,"-")) -> - | G71: =IF(OR('Tabel 1 Sydj'!E69<5,'Tabel 2 Sydj'!G71<0.5),"-",IFERROR('Tabel 2 Sydj'!G71/'Tabel 1 Sydj'!E69*100,"-")) -> - | I71: =IF(OR('Tabel 1 Sydj'!G69<5,'Tabel 2 Sydj'!I71<0.5),"-",IFERROR('Tabel 2 Sydj'!I71/'Tabel 1 Sydj'!G69*100,"-")) -> - | J71: =IF(OR('Tabel 1 Sydj'!G69<5,'Tabel 2 Sydj'!J71<0.5),"-",IFERROR('Tabel 2 Sydj'!J71/'Tabel 1 Sydj'!G69*100,"-")) -> -
A72: Landsk. Arkt. | C72: =IF(OR('Tabel 1 Sydj'!C70<5,'Tabel 2 Sydj'!C72<0.5),"-",IFERROR('Tabel 2 Sydj'!C72/'Tabel 1 Sydj'!C70*100,"-")) -> - | D72: =IF(OR('Tabel 1 Sydj'!C70<5,'Tabel 2 Sydj'!D72<0.5),"-",IFERROR('Tabel 2 Sydj'!D72/'Tabel 1 Sydj'!C70*100,"-")) -> - | F72: =IF(OR('Tabel 1 Sydj'!E70<5,'Tabel 2 Sydj'!F72<0.5),"-",IFERROR('Tabel 2 Sydj'!F72/'Tabel 1 Sydj'!E70*100,"-")) -> - | G72: =IF(OR('Tabel 1 Sydj'!E70<5,'Tabel 2 Sydj'!G72<0.5),"-",IFERROR('Tabel 2 Sydj'!G72/'Tabel 1 Sydj'!E70*100,"-")) -> - | I72: =IF(OR('Tabel 1 Sydj'!G70<5,'Tabel 2 Sydj'!I72<0.5),"-",IFERROR('Tabel 2 Sydj'!I72/'Tabel 1 Sydj'!G70*100,"-")) -> - | J72: =IF(OR('Tabel 1 Sydj'!G70<5,'Tabel 2 Sydj'!J72<0.5),"-",IFERROR('Tabel 2 Sydj'!J72/'Tabel 1 Sydj'!G70*100,"-")) -> -
A73: Hortonom | C73: =IF(OR('Tabel 1 Sydj'!C71<5,'Tabel 2 Sydj'!C73<0.5),"-",IFERROR('Tabel 2 Sydj'!C73/'Tabel 1 Sydj'!C71*100,"-")) -> - | D73: =IF(OR('Tabel 1 Sydj'!C71<5,'Tabel 2 Sydj'!D73<0.5),"-",IFERROR('Tabel 2 Sydj'!D73/'Tabel 1 Sydj'!C71*100,"-")) -> - | F73: =IF(OR('Tabel 1 Sydj'!E71<5,'Tabel 2 Sydj'!F73<0.5),"-",IFERROR('Tabel 2 Sydj'!F73/'Tabel 1 Sydj'!E71*100,"-")) -> - | G73: =IF(OR('Tabel 1 Sydj'!E71<5,'Tabel 2 Sydj'!G73<0.5),"-",IFERROR('Tabel 2 Sydj'!G73/'Tabel 1 Sydj'!E71*100,"-")) -> - | I73: =IF(OR('Tabel 1 Sydj'!G71<5,'Tabel 2 Sydj'!I73<0.5),"-",IFERROR('Tabel 2 Sydj'!I73/'Tabel 1 Sydj'!G71*100,"-")) -> - | J73: =IF(OR('Tabel 1 Sydj'!G71<5,'Tabel 2 Sydj'!J73<0.5),"-",IFERROR('Tabel 2 Sydj'!J73/'Tabel 1 Sydj'!G71*100,"-")) -> -
A74: Forstkand. | C74: =IF(OR('Tabel 1 Sydj'!C72<5,'Tabel 2 Sydj'!C74<0.5),"-",IFERROR('Tabel 2 Sydj'!C74/'Tabel 1 Sydj'!C72*100,"-")) -> - | D74: =IF(OR('Tabel 1 Sydj'!C72<5,'Tabel 2 Sydj'!D74<0.5),"-",IFERROR('Tabel 2 Sydj'!D74/'Tabel 1 Sydj'!C72*100,"-")) -> - | F74: =IF(OR('Tabel 1 Sydj'!E72<5,'Tabel 2 Sydj'!F74<0.5),"-",IFERROR('Tabel 2 Sydj'!F74/'Tabel 1 Sydj'!E72*100,"-")) -> - | G74: =IF(OR('Tabel 1 Sydj'!E72<5,'Tabel 2 Sydj'!G74<0.5),"-",IFERROR('Tabel 2 Sydj'!G74/'Tabel 1 Sydj'!E72*100,"-")) -> - | I74: =IF(OR('Tabel 1 Sydj'!G72<5,'Tabel 2 Sydj'!I74<0.5),"-",IFERROR('Tabel 2 Sydj'!I74/'Tabel 1 Sydj'!G72*100,"-")) -> - | J74: =IF(OR('Tabel 1 Sydj'!G72<5,'Tabel 2 Sydj'!J74<0.5),"-",IFERROR('Tabel 2 Sydj'!J74/'Tabel 1 Sydj'!G72*100,"-")) -> -
A75: Jordbrugsakad. | C75: =IF(OR('Tabel 1 Sydj'!C73<5,'Tabel 2 Sydj'!C75<0.5),"-",IFERROR('Tabel 2 Sydj'!C75/'Tabel 1 Sydj'!C73*100,"-")) -> - | D75: =IF(OR('Tabel 1 Sydj'!C73<5,'Tabel 2 Sydj'!D75<0.5),"-",IFERROR('Tabel 2 Sydj'!D75/'Tabel 1 Sydj'!C73*100,"-")) -> - | F75: =IF(OR('Tabel 1 Sydj'!E73<5,'Tabel 2 Sydj'!F75<0.5),"-",IFERROR('Tabel 2 Sydj'!F75/'Tabel 1 Sydj'!E73*100,"-")) -> - | G75: =IF(OR('Tabel 1 Sydj'!E73<5,'Tabel 2 Sydj'!G75<0.5),"-",IFERROR('Tabel 2 Sydj'!G75/'Tabel 1 Sydj'!E73*100,"-")) -> - | I75: =IF(OR('Tabel 1 Sydj'!G73<5,'Tabel 2 Sydj'!I75<0.5),"-",IFERROR('Tabel 2 Sydj'!I75/'Tabel 1 Sydj'!G73*100,"-")) -> - | J75: =IF(OR('Tabel 1 Sydj'!G73<5,'Tabel 2 Sydj'!J75<0.5),"-",IFERROR('Tabel 2 Sydj'!J75/'Tabel 1 Sydj'!G73*100,"-")) -> -
A76: Mejeriing. | C76: =IF(OR('Tabel 1 Sydj'!C74<5,'Tabel 2 Sydj'!C76<0.5),"-",IFERROR('Tabel 2 Sydj'!C76/'Tabel 1 Sydj'!C74*100,"-")) -> - | D76: =IF(OR('Tabel 1 Sydj'!C74<5,'Tabel 2 Sydj'!D76<0.5),"-",IFERROR('Tabel 2 Sydj'!D76/'Tabel 1 Sydj'!C74*100,"-")) -> - | F76: =IF(OR('Tabel 1 Sydj'!E74<5,'Tabel 2 Sydj'!F76<0.5),"-",IFERROR('Tabel 2 Sydj'!F76/'Tabel 1 Sydj'!E74*100,"-")) -> - | G76: =IF(OR('Tabel 1 Sydj'!E74<5,'Tabel 2 Sydj'!G76<0.5),"-",IFERROR('Tabel 2 Sydj'!G76/'Tabel 1 Sydj'!E74*100,"-")) -> - | I76: =IF(OR('Tabel 1 Sydj'!G74<5,'Tabel 2 Sydj'!I76<0.5),"-",IFERROR('Tabel 2 Sydj'!I76/'Tabel 1 Sydj'!G74*100,"-")) -> - | J76: =IF(OR('Tabel 1 Sydj'!G74<5,'Tabel 2 Sydj'!J76<0.5),"-",IFERROR('Tabel 2 Sydj'!J76/'Tabel 1 Sydj'!G74*100,"-")) -> -
A77: Levn.m.kand. | C77: =IF(OR('Tabel 1 Sydj'!C75<5,'Tabel 2 Sydj'!C77<0.5),"-",IFERROR('Tabel 2 Sydj'!C77/'Tabel 1 Sydj'!C75*100,"-")) -> - | D77: =IF(OR('Tabel 1 Sydj'!C75<5,'Tabel 2 Sydj'!D77<0.5),"-",IFERROR('Tabel 2 Sydj'!D77/'Tabel 1 Sydj'!C75*100,"-")) -> - | F77: =IF(OR('Tabel 1 Sydj'!E75<5,'Tabel 2 Sydj'!F77<0.5),"-",IFERROR('Tabel 2 Sydj'!F77/'Tabel 1 Sydj'!E75*100,"-")) -> - | G77: =IF(OR('Tabel 1 Sydj'!E75<5,'Tabel 2 Sydj'!G77<0.5),"-",IFERROR('Tabel 2 Sydj'!G77/'Tabel 1 Sydj'!E75*100,"-")) -> - | I77: =IF(OR('Tabel 1 Sydj'!G75<5,'Tabel 2 Sydj'!I77<0.5),"-",IFERROR('Tabel 2 Sydj'!I77/'Tabel 1 Sydj'!G75*100,"-")) -> - | J77: =IF(OR('Tabel 1 Sydj'!G75<5,'Tabel 2 Sydj'!J77<0.5),"-",IFERROR('Tabel 2 Sydj'!J77/'Tabel 1 Sydj'!G75*100,"-")) -> -
A78: Dyrlæge | C78: =IF(OR('Tabel 1 Sydj'!C76<5,'Tabel 2 Sydj'!C78<0.5),"-",IFERROR('Tabel 2 Sydj'!C78/'Tabel 1 Sydj'!C76*100,"-")) -> - | D78: =IF(OR('Tabel 1 Sydj'!C76<5,'Tabel 2 Sydj'!D78<0.5),"-",IFERROR('Tabel 2 Sydj'!D78/'Tabel 1 Sydj'!C76*100,"-")) -> - | F78: =IF(OR('Tabel 1 Sydj'!E76<5,'Tabel 2 Sydj'!F78<0.5),"-",IFERROR('Tabel 2 Sydj'!F78/'Tabel 1 Sydj'!E76*100,"-")) -> - | G78: =IF(OR('Tabel 1 Sydj'!E76<5,'Tabel 2 Sydj'!G78<0.5),"-",IFERROR('Tabel 2 Sydj'!G78/'Tabel 1 Sydj'!E76*100,"-")) -> - | I78: =IF(OR('Tabel 1 Sydj'!G76<5,'Tabel 2 Sydj'!I78<0.5),"-",IFERROR('Tabel 2 Sydj'!I78/'Tabel 1 Sydj'!G76*100,"-")) -> - | J78: =IF(OR('Tabel 1 Sydj'!G76<5,'Tabel 2 Sydj'!J78<0.5),"-",IFERROR('Tabel 2 Sydj'!J78/'Tabel 1 Sydj'!G76*100,"-")) -> -
A79: Farmaceut | C79: =IF(OR('Tabel 1 Sydj'!C77<5,'Tabel 2 Sydj'!C79<0.5),"-",IFERROR('Tabel 2 Sydj'!C79/'Tabel 1 Sydj'!C77*100,"-")) -> - | D79: =IF(OR('Tabel 1 Sydj'!C77<5,'Tabel 2 Sydj'!D79<0.5),"-",IFERROR('Tabel 2 Sydj'!D79/'Tabel 1 Sydj'!C77*100,"-")) -> - | F79: =IF(OR('Tabel 1 Sydj'!E77<5,'Tabel 2 Sydj'!F79<0.5),"-",IFERROR('Tabel 2 Sydj'!F79/'Tabel 1 Sydj'!E77*100,"-")) -> 8.333333333 | G79: =IF(OR('Tabel 1 Sydj'!E77<5,'Tabel 2 Sydj'!G79<0.5),"-",IFERROR('Tabel 2 Sydj'!G79/'Tabel 1 Sydj'!E77*100,"-")) -> 8.331774049 | I79: =IF(OR('Tabel 1 Sydj'!G77<5,'Tabel 2 Sydj'!I79<0.5),"-",IFERROR('Tabel 2 Sydj'!I79/'Tabel 1 Sydj'!G77*100,"-")) -> 6.25 | J79: =IF(OR('Tabel 1 Sydj'!G77<5,'Tabel 2 Sydj'!J79<0.5),"-",IFERROR('Tabel 2 Sydj'!J79/'Tabel 1 Sydj'!G77*100,"-")) -> 6.248830537
A80: Læge | C80: =IF(OR('Tabel 1 Sydj'!C78<5,'Tabel 2 Sydj'!C80<0.5),"-",IFERROR('Tabel 2 Sydj'!C80/'Tabel 1 Sydj'!C78*100,"-")) -> - | D80: =IF(OR('Tabel 1 Sydj'!C78<5,'Tabel 2 Sydj'!D80<0.5),"-",IFERROR('Tabel 2 Sydj'!D80/'Tabel 1 Sydj'!C78*100,"-")) -> - | F80: =IF(OR('Tabel 1 Sydj'!E78<5,'Tabel 2 Sydj'!F80<0.5),"-",IFERROR('Tabel 2 Sydj'!F80/'Tabel 1 Sydj'!E78*100,"-")) -> - | G80: =IF(OR('Tabel 1 Sydj'!E78<5,'Tabel 2 Sydj'!G80<0.5),"-",IFERROR('Tabel 2 Sydj'!G80/'Tabel 1 Sydj'!E78*100,"-")) -> - | I80: =IF(OR('Tabel 1 Sydj'!G78<5,'Tabel 2 Sydj'!I80<0.5),"-",IFERROR('Tabel 2 Sydj'!I80/'Tabel 1 Sydj'!G78*100,"-")) -> - | J80: =IF(OR('Tabel 1 Sydj'!G78<5,'Tabel 2 Sydj'!J80<0.5),"-",IFERROR('Tabel 2 Sydj'!J80/'Tabel 1 Sydj'!G78*100,"-")) -> -
A81: Tandlæge | C81: =IF(OR('Tabel 1 Sydj'!C79<5,'Tabel 2 Sydj'!C81<0.5),"-",IFERROR('Tabel 2 Sydj'!C81/'Tabel 1 Sydj'!C79*100,"-")) -> - | D81: =IF(OR('Tabel 1 Sydj'!C79<5,'Tabel 2 Sydj'!D81<0.5),"-",IFERROR('Tabel 2 Sydj'!D81/'Tabel 1 Sydj'!C79*100,"-")) -> - | F81: =IF(OR('Tabel 1 Sydj'!E79<5,'Tabel 2 Sydj'!F81<0.5),"-",IFERROR('Tabel 2 Sydj'!F81/'Tabel 1 Sydj'!E79*100,"-")) -> - | G81: =IF(OR('Tabel 1 Sydj'!E79<5,'Tabel 2 Sydj'!G81<0.5),"-",IFERROR('Tabel 2 Sydj'!G81/'Tabel 1 Sydj'!E79*100,"-")) -> - | I81: =IF(OR('Tabel 1 Sydj'!G79<5,'Tabel 2 Sydj'!I81<0.5),"-",IFERROR('Tabel 2 Sydj'!I81/'Tabel 1 Sydj'!G79*100,"-")) -> - | J81: =IF(OR('Tabel 1 Sydj'!G79<5,'Tabel 2 Sydj'!J81<0.5),"-",IFERROR('Tabel 2 Sydj'!J81/'Tabel 1 Sydj'!G79*100,"-")) -> -
A82: Arkitekt | C82: =IF(OR('Tabel 1 Sydj'!C80<5,'Tabel 2 Sydj'!C82<0.5),"-",IFERROR('Tabel 2 Sydj'!C82/'Tabel 1 Sydj'!C80*100,"-")) -> 11.11111111 | D82: =IF(OR('Tabel 1 Sydj'!C80<5,'Tabel 2 Sydj'!D82<0.5),"-",IFERROR('Tabel 2 Sydj'!D82/'Tabel 1 Sydj'!C80*100,"-")) -> 10.08336972 | F82: =IF(OR('Tabel 1 Sydj'!E80<5,'Tabel 2 Sydj'!F82<0.5),"-",IFERROR('Tabel 2 Sydj'!F82/'Tabel 1 Sydj'!E80*100,"-")) -> 12.5 | G82: =IF(OR('Tabel 1 Sydj'!E80<5,'Tabel 2 Sydj'!G82<0.5),"-",IFERROR('Tabel 2 Sydj'!G82/'Tabel 1 Sydj'!E80*100,"-")) -> 12.49766107 | I82: =IF(OR('Tabel 1 Sydj'!G80<5,'Tabel 2 Sydj'!I82<0.5),"-",IFERROR('Tabel 2 Sydj'!I82/'Tabel 1 Sydj'!G80*100,"-")) -> 11.76470588 | J82: =IF(OR('Tabel 1 Sydj'!G80<5,'Tabel 2 Sydj'!J82<0.5),"-",IFERROR('Tabel 2 Sydj'!J82/'Tabel 1 Sydj'!G80*100,"-")) -> 11.21950683
A83: Landinspek. | C83: =IF(OR('Tabel 1 Sydj'!C81<5,'Tabel 2 Sydj'!C83<0.5),"-",IFERROR('Tabel 2 Sydj'!C83/'Tabel 1 Sydj'!C81*100,"-")) -> - | D83: =IF(OR('Tabel 1 Sydj'!C81<5,'Tabel 2 Sydj'!D83<0.5),"-",IFERROR('Tabel 2 Sydj'!D83/'Tabel 1 Sydj'!C81*100,"-")) -> - | F83: =IF(OR('Tabel 1 Sydj'!E81<5,'Tabel 2 Sydj'!F83<0.5),"-",IFERROR('Tabel 2 Sydj'!F83/'Tabel 1 Sydj'!E81*100,"-")) -> - | G83: =IF(OR('Tabel 1 Sydj'!E81<5,'Tabel 2 Sydj'!G83<0.5),"-",IFERROR('Tabel 2 Sydj'!G83/'Tabel 1 Sydj'!E81*100,"-")) -> - | I83: =IF(OR('Tabel 1 Sydj'!G81<5,'Tabel 2 Sydj'!I83<0.5),"-",IFERROR('Tabel 2 Sydj'!I83/'Tabel 1 Sydj'!G81*100,"-")) -> - | J83: =IF(OR('Tabel 1 Sydj'!G81<5,'Tabel 2 Sydj'!J83<0.5),"-",IFERROR('Tabel 2 Sydj'!J83/'Tabel 1 Sydj'!G81*100,"-")) -> -
A84: Bibliotekar | C84: =IF(OR('Tabel 1 Sydj'!C82<5,'Tabel 2 Sydj'!C84<0.5),"-",IFERROR('Tabel 2 Sydj'!C84/'Tabel 1 Sydj'!C82*100,"-")) -> - | D84: =IF(OR('Tabel 1 Sydj'!C82<5,'Tabel 2 Sydj'!D84<0.5),"-",IFERROR('Tabel 2 Sydj'!D84/'Tabel 1 Sydj'!C82*100,"-")) -> - | F84: =IF(OR('Tabel 1 Sydj'!E82<5,'Tabel 2 Sydj'!F84<0.5),"-",IFERROR('Tabel 2 Sydj'!F84/'Tabel 1 Sydj'!E82*100,"-")) -> - | G84: =IF(OR('Tabel 1 Sydj'!E82<5,'Tabel 2 Sydj'!G84<0.5),"-",IFERROR('Tabel 2 Sydj'!G84/'Tabel 1 Sydj'!E82*100,"-")) -> - | I84: =IF(OR('Tabel 1 Sydj'!G82<5,'Tabel 2 Sydj'!I84<0.5),"-",IFERROR('Tabel 2 Sydj'!I84/'Tabel 1 Sydj'!G82*100,"-")) -> - | J84: =IF(OR('Tabel 1 Sydj'!G82<5,'Tabel 2 Sydj'!J84<0.5),"-",IFERROR('Tabel 2 Sydj'!J84/'Tabel 1 Sydj'!G82*100,"-")) -> -
A85: Musikudd. | C85: =IF(OR('Tabel 1 Sydj'!C83<5,'Tabel 2 Sydj'!C85<0.5),"-",IFERROR('Tabel 2 Sydj'!C85/'Tabel 1 Sydj'!C83*100,"-")) -> - | D85: =IF(OR('Tabel 1 Sydj'!C83<5,'Tabel 2 Sydj'!D85<0.5),"-",IFERROR('Tabel 2 Sydj'!D85/'Tabel 1 Sydj'!C83*100,"-")) -> - | F85: =IF(OR('Tabel 1 Sydj'!E83<5,'Tabel 2 Sydj'!F85<0.5),"-",IFERROR('Tabel 2 Sydj'!F85/'Tabel 1 Sydj'!E83*100,"-")) -> - | G85: =IF(OR('Tabel 1 Sydj'!E83<5,'Tabel 2 Sydj'!G85<0.5),"-",IFERROR('Tabel 2 Sydj'!G85/'Tabel 1 Sydj'!E83*100,"-")) -> - | I85: =IF(OR('Tabel 1 Sydj'!G83<5,'Tabel 2 Sydj'!I85<0.5),"-",IFERROR('Tabel 2 Sydj'!I85/'Tabel 1 Sydj'!G83*100,"-")) -> - | J85: =IF(OR('Tabel 1 Sydj'!G83<5,'Tabel 2 Sydj'!J85<0.5),"-",IFERROR('Tabel 2 Sydj'!J85/'Tabel 1 Sydj'!G83*100,"-")) -> -
A86: Teolog | C86: =IF(OR('Tabel 1 Sydj'!C84<5,'Tabel 2 Sydj'!C86<0.5),"-",IFERROR('Tabel 2 Sydj'!C86/'Tabel 1 Sydj'!C84*100,"-")) -> - | D86: =IF(OR('Tabel 1 Sydj'!C84<5,'Tabel 2 Sydj'!D86<0.5),"-",IFERROR('Tabel 2 Sydj'!D86/'Tabel 1 Sydj'!C84*100,"-")) -> - | F86: =IF(OR('Tabel 1 Sydj'!E84<5,'Tabel 2 Sydj'!F86<0.5),"-",IFERROR('Tabel 2 Sydj'!F86/'Tabel 1 Sydj'!E84*100,"-")) -> - | G86: =IF(OR('Tabel 1 Sydj'!E84<5,'Tabel 2 Sydj'!G86<0.5),"-",IFERROR('Tabel 2 Sydj'!G86/'Tabel 1 Sydj'!E84*100,"-")) -> - | I86: =IF(OR('Tabel 1 Sydj'!G84<5,'Tabel 2 Sydj'!I86<0.5),"-",IFERROR('Tabel 2 Sydj'!I86/'Tabel 1 Sydj'!G84*100,"-")) -> - | J86: =IF(OR('Tabel 1 Sydj'!G84<5,'Tabel 2 Sydj'!J86<0.5),"-",IFERROR('Tabel 2 Sydj'!J86/'Tabel 1 Sydj'!G84*100,"-")) -> -
A87: Psykolog | C87: =IF(OR('Tabel 1 Sydj'!C85<5,'Tabel 2 Sydj'!C87<0.5),"-",IFERROR('Tabel 2 Sydj'!C87/'Tabel 1 Sydj'!C85*100,"-")) -> - | D87: =IF(OR('Tabel 1 Sydj'!C85<5,'Tabel 2 Sydj'!D87<0.5),"-",IFERROR('Tabel 2 Sydj'!D87/'Tabel 1 Sydj'!C85*100,"-")) -> - | F87: =IF(OR('Tabel 1 Sydj'!E85<5,'Tabel 2 Sydj'!F87<0.5),"-",IFERROR('Tabel 2 Sydj'!F87/'Tabel 1 Sydj'!E85*100,"-")) -> - | G87: =IF(OR('Tabel 1 Sydj'!E85<5,'Tabel 2 Sydj'!G87<0.5),"-",IFERROR('Tabel 2 Sydj'!G87/'Tabel 1 Sydj'!E85*100,"-")) -> - | I87: =IF(OR('Tabel 1 Sydj'!G85<5,'Tabel 2 Sydj'!I87<0.5),"-",IFERROR('Tabel 2 Sydj'!I87/'Tabel 1 Sydj'!G85*100,"-")) -> - | J87: =IF(OR('Tabel 1 Sydj'!G85<5,'Tabel 2 Sydj'!J87<0.5),"-",IFERROR('Tabel 2 Sydj'!J87/'Tabel 1 Sydj'!G85*100,"-")) -> -
A88: Jurist | C88: =IF(OR('Tabel 1 Sydj'!C86<5,'Tabel 2 Sydj'!C88<0.5),"-",IFERROR('Tabel 2 Sydj'!C88/'Tabel 1 Sydj'!C86*100,"-")) -> - | D88: =IF(OR('Tabel 1 Sydj'!C86<5,'Tabel 2 Sydj'!D88<0.5),"-",IFERROR('Tabel 2 Sydj'!D88/'Tabel 1 Sydj'!C86*100,"-")) -> - | F88: =IF(OR('Tabel 1 Sydj'!E86<5,'Tabel 2 Sydj'!F88<0.5),"-",IFERROR('Tabel 2 Sydj'!F88/'Tabel 1 Sydj'!E86*100,"-")) -> - | G88: =IF(OR('Tabel 1 Sydj'!E86<5,'Tabel 2 Sydj'!G88<0.5),"-",IFERROR('Tabel 2 Sydj'!G88/'Tabel 1 Sydj'!E86*100,"-")) -> - | I88: =IF(OR('Tabel 1 Sydj'!G86<5,'Tabel 2 Sydj'!I88<0.5),"-",IFERROR('Tabel 2 Sydj'!I88/'Tabel 1 Sydj'!G86*100,"-")) -> - | J88: =IF(OR('Tabel 1 Sydj'!G86<5,'Tabel 2 Sydj'!J88<0.5),"-",IFERROR('Tabel 2 Sydj'!J88/'Tabel 1 Sydj'!G86*100,"-")) -> -
A89: Økonom | C89: =IF(OR('Tabel 1 Sydj'!C87<5,'Tabel 2 Sydj'!C89<0.5),"-",IFERROR('Tabel 2 Sydj'!C89/'Tabel 1 Sydj'!C87*100,"-")) -> 8.333333333 | D89: =IF(OR('Tabel 1 Sydj'!C87<5,'Tabel 2 Sydj'!D89<0.5),"-",IFERROR('Tabel 2 Sydj'!D89/'Tabel 1 Sydj'!C87*100,"-")) -> 8.331774049 | F89: =IF(OR('Tabel 1 Sydj'!E87<5,'Tabel 2 Sydj'!F89<0.5),"-",IFERROR('Tabel 2 Sydj'!F89/'Tabel 1 Sydj'!E87*100,"-")) -> 11.11111111 | G89: =IF(OR('Tabel 1 Sydj'!E87<5,'Tabel 2 Sydj'!G89<0.5),"-",IFERROR('Tabel 2 Sydj'!G89/'Tabel 1 Sydj'!E87*100,"-")) -> 9.293332502 | I89: =IF(OR('Tabel 1 Sydj'!G87<5,'Tabel 2 Sydj'!I89<0.5),"-",IFERROR('Tabel 2 Sydj'!I89/'Tabel 1 Sydj'!G87*100,"-")) -> 9.523809524 | J89: =IF(OR('Tabel 1 Sydj'!G87<5,'Tabel 2 Sydj'!J89<0.5),"-",IFERROR('Tabel 2 Sydj'!J89/'Tabel 1 Sydj'!G87*100,"-")) -> 8.743870529
A90: Samf. Adm. | C90: =IF(OR('Tabel 1 Sydj'!C88<5,'Tabel 2 Sydj'!C90<0.5),"-",IFERROR('Tabel 2 Sydj'!C90/'Tabel 1 Sydj'!C88*100,"-")) -> 4.347826087 | D90: =IF(OR('Tabel 1 Sydj'!C88<5,'Tabel 2 Sydj'!D90<0.5),"-",IFERROR('Tabel 2 Sydj'!D90/'Tabel 1 Sydj'!C88*100,"-")) -> 4.347012547 | F90: =IF(OR('Tabel 1 Sydj'!E88<5,'Tabel 2 Sydj'!F90<0.5),"-",IFERROR('Tabel 2 Sydj'!F90/'Tabel 1 Sydj'!E88*100,"-")) -> 3.846153846 | G90: =IF(OR('Tabel 1 Sydj'!E88<5,'Tabel 2 Sydj'!G90<0.5),"-",IFERROR('Tabel 2 Sydj'!G90/'Tabel 1 Sydj'!E88*100,"-")) -> 3.845434177 | I90: =IF(OR('Tabel 1 Sydj'!G88<5,'Tabel 2 Sydj'!I90<0.5),"-",IFERROR('Tabel 2 Sydj'!I90/'Tabel 1 Sydj'!G88*100,"-")) -> 4.081632653 | J90: =IF(OR('Tabel 1 Sydj'!G88<5,'Tabel 2 Sydj'!J90<0.5),"-",IFERROR('Tabel 2 Sydj'!J90/'Tabel 1 Sydj'!G88*100,"-")) -> 4.080868922
A91: Cand. Merc. | C91: =IF(OR('Tabel 1 Sydj'!C89<5,'Tabel 2 Sydj'!C91<0.5),"-",IFERROR('Tabel 2 Sydj'!C91/'Tabel 1 Sydj'!C89*100,"-")) -> 1.818181818 | D91: =IF(OR('Tabel 1 Sydj'!C89<5,'Tabel 2 Sydj'!D91<0.5),"-",IFERROR('Tabel 2 Sydj'!D91/'Tabel 1 Sydj'!C89*100,"-")) -> 1.474232124 | F91: =IF(OR('Tabel 1 Sydj'!E89<5,'Tabel 2 Sydj'!F91<0.5),"-",IFERROR('Tabel 2 Sydj'!F91/'Tabel 1 Sydj'!E89*100,"-")) -> 5 | G91: =IF(OR('Tabel 1 Sydj'!E89<5,'Tabel 2 Sydj'!G91<0.5),"-",IFERROR('Tabel 2 Sydj'!G91/'Tabel 1 Sydj'!E89*100,"-")) -> 3.888854238 | I91: =IF(OR('Tabel 1 Sydj'!G89<5,'Tabel 2 Sydj'!I91<0.5),"-",IFERROR('Tabel 2 Sydj'!I91/'Tabel 1 Sydj'!G89*100,"-")) -> 3.47826087 | J91: =IF(OR('Tabel 1 Sydj'!G89<5,'Tabel 2 Sydj'!J91<0.5),"-",IFERROR('Tabel 2 Sydj'!J91/'Tabel 1 Sydj'!G89*100,"-")) -> 2.734034966
A92: HA | C92: =IF(OR('Tabel 1 Sydj'!C90<5,'Tabel 2 Sydj'!C92<0.5),"-",IFERROR('Tabel 2 Sydj'!C92/'Tabel 1 Sydj'!C90*100,"-")) -> - | D92: =IF(OR('Tabel 1 Sydj'!C90<5,'Tabel 2 Sydj'!D92<0.5),"-",IFERROR('Tabel 2 Sydj'!D92/'Tabel 1 Sydj'!C90*100,"-")) -> - | F92: =IF(OR('Tabel 1 Sydj'!E90<5,'Tabel 2 Sydj'!F92<0.5),"-",IFERROR('Tabel 2 Sydj'!F92/'Tabel 1 Sydj'!E90*100,"-")) -> - | G92: =IF(OR('Tabel 1 Sydj'!E90<5,'Tabel 2 Sydj'!G92<0.5),"-",IFERROR('Tabel 2 Sydj'!G92/'Tabel 1 Sydj'!E90*100,"-")) -> - | I92: =IF(OR('Tabel 1 Sydj'!G90<5,'Tabel 2 Sydj'!I92<0.5),"-",IFERROR('Tabel 2 Sydj'!I92/'Tabel 1 Sydj'!G90*100,"-")) -> - | J92: =IF(OR('Tabel 1 Sydj'!G90<5,'Tabel 2 Sydj'!J92<0.5),"-",IFERROR('Tabel 2 Sydj'!J92/'Tabel 1 Sydj'!G90*100,"-")) -> -
A93: HD | C93: =IF(OR('Tabel 1 Sydj'!C91<5,'Tabel 2 Sydj'!C93<0.5),"-",IFERROR('Tabel 2 Sydj'!C93/'Tabel 1 Sydj'!C91*100,"-")) -> - | D93: =IF(OR('Tabel 1 Sydj'!C91<5,'Tabel 2 Sydj'!D93<0.5),"-",IFERROR('Tabel 2 Sydj'!D93/'Tabel 1 Sydj'!C91*100,"-")) -> - | F93: =IF(OR('Tabel 1 Sydj'!E91<5,'Tabel 2 Sydj'!F93<0.5),"-",IFERROR('Tabel 2 Sydj'!F93/'Tabel 1 Sydj'!E91*100,"-")) -> - | G93: =IF(OR('Tabel 1 Sydj'!E91<5,'Tabel 2 Sydj'!G93<0.5),"-",IFERROR('Tabel 2 Sydj'!G93/'Tabel 1 Sydj'!E91*100,"-")) -> - | I93: =IF(OR('Tabel 1 Sydj'!G91<5,'Tabel 2 Sydj'!I93<0.5),"-",IFERROR('Tabel 2 Sydj'!I93/'Tabel 1 Sydj'!G91*100,"-")) -> - | J93: =IF(OR('Tabel 1 Sydj'!G91<5,'Tabel 2 Sydj'!J93<0.5),"-",IFERROR('Tabel 2 Sydj'!J93/'Tabel 1 Sydj'!G91*100,"-")) -> -
A94: Komm. og Sprog | C94: =IF(OR('Tabel 1 Sydj'!C92<5,'Tabel 2 Sydj'!C94<0.5),"-",IFERROR('Tabel 2 Sydj'!C94/'Tabel 1 Sydj'!C92*100,"-")) -> - | D94: =IF(OR('Tabel 1 Sydj'!C92<5,'Tabel 2 Sydj'!D94<0.5),"-",IFERROR('Tabel 2 Sydj'!D94/'Tabel 1 Sydj'!C92*100,"-")) -> - | F94: =IF(OR('Tabel 1 Sydj'!E92<5,'Tabel 2 Sydj'!F94<0.5),"-",IFERROR('Tabel 2 Sydj'!F94/'Tabel 1 Sydj'!E92*100,"-")) -> 16.66666667 | G94: =IF(OR('Tabel 1 Sydj'!E92<5,'Tabel 2 Sydj'!G94<0.5),"-",IFERROR('Tabel 2 Sydj'!G94/'Tabel 1 Sydj'!E92*100,"-")) -> 16.55959583 | I94: =IF(OR('Tabel 1 Sydj'!G92<5,'Tabel 2 Sydj'!I94<0.5),"-",IFERROR('Tabel 2 Sydj'!I94/'Tabel 1 Sydj'!G92*100,"-")) -> 22.22222222 | J94: =IF(OR('Tabel 1 Sydj'!G92<5,'Tabel 2 Sydj'!J94<0.5),"-",IFERROR('Tabel 2 Sydj'!J94/'Tabel 1 Sydj'!G92*100,"-")) -> 21.95471839
A95: Bygningskonst. | C95: =IF(OR('Tabel 1 Sydj'!C93<5,'Tabel 2 Sydj'!C95<0.5),"-",IFERROR('Tabel 2 Sydj'!C95/'Tabel 1 Sydj'!C93*100,"-")) -> - | D95: =IF(OR('Tabel 1 Sydj'!C93<5,'Tabel 2 Sydj'!D95<0.5),"-",IFERROR('Tabel 2 Sydj'!D95/'Tabel 1 Sydj'!C93*100,"-")) -> - | F95: =IF(OR('Tabel 1 Sydj'!E93<5,'Tabel 2 Sydj'!F95<0.5),"-",IFERROR('Tabel 2 Sydj'!F95/'Tabel 1 Sydj'!E93*100,"-")) -> 12.5 | G95: =IF(OR('Tabel 1 Sydj'!E93<5,'Tabel 2 Sydj'!G95<0.5),"-",IFERROR('Tabel 2 Sydj'!G95/'Tabel 1 Sydj'!E93*100,"-")) -> 12.5 | I95: =IF(OR('Tabel 1 Sydj'!G93<5,'Tabel 2 Sydj'!I95<0.5),"-",IFERROR('Tabel 2 Sydj'!I95/'Tabel 1 Sydj'!G93*100,"-")) -> 1.886792453 | J95: =IF(OR('Tabel 1 Sydj'!G93<5,'Tabel 2 Sydj'!J95<0.5),"-",IFERROR('Tabel 2 Sydj'!J95/'Tabel 1 Sydj'!G93*100,"-")) -> 1.886792453
A96: Cand. IT. | C96: =IF(OR('Tabel 1 Sydj'!C94<5,'Tabel 2 Sydj'!C96<0.5),"-",IFERROR('Tabel 2 Sydj'!C96/'Tabel 1 Sydj'!C94*100,"-")) -> - | D96: =IF(OR('Tabel 1 Sydj'!C94<5,'Tabel 2 Sydj'!D96<0.5),"-",IFERROR('Tabel 2 Sydj'!D96/'Tabel 1 Sydj'!C94*100,"-")) -> - | F96: =IF(OR('Tabel 1 Sydj'!E94<5,'Tabel 2 Sydj'!F96<0.5),"-",IFERROR('Tabel 2 Sydj'!F96/'Tabel 1 Sydj'!E94*100,"-")) -> - | G96: =IF(OR('Tabel 1 Sydj'!E94<5,'Tabel 2 Sydj'!G96<0.5),"-",IFERROR('Tabel 2 Sydj'!G96/'Tabel 1 Sydj'!E94*100,"-")) -> - | I96: =IF(OR('Tabel 1 Sydj'!G94<5,'Tabel 2 Sydj'!I96<0.5),"-",IFERROR('Tabel 2 Sydj'!I96/'Tabel 1 Sydj'!G94*100,"-")) -> 14.28571429 | J96: =IF(OR('Tabel 1 Sydj'!G94<5,'Tabel 2 Sydj'!J96<0.5),"-",IFERROR('Tabel 2 Sydj'!J96/'Tabel 1 Sydj'!G94*100,"-")) -> 14.28304123
A97: Bac. Samf. | C97: =IF(OR('Tabel 1 Sydj'!C95<5,'Tabel 2 Sydj'!C97<0.5),"-",IFERROR('Tabel 2 Sydj'!C97/'Tabel 1 Sydj'!C95*100,"-")) -> - | D97: =IF(OR('Tabel 1 Sydj'!C95<5,'Tabel 2 Sydj'!D97<0.5),"-",IFERROR('Tabel 2 Sydj'!D97/'Tabel 1 Sydj'!C95*100,"-")) -> - | F97: =IF(OR('Tabel 1 Sydj'!E95<5,'Tabel 2 Sydj'!F97<0.5),"-",IFERROR('Tabel 2 Sydj'!F97/'Tabel 1 Sydj'!E95*100,"-")) -> - | G97: =IF(OR('Tabel 1 Sydj'!E95<5,'Tabel 2 Sydj'!G97<0.5),"-",IFERROR('Tabel 2 Sydj'!G97/'Tabel 1 Sydj'!E95*100,"-")) -> - | I97: =IF(OR('Tabel 1 Sydj'!G95<5,'Tabel 2 Sydj'!I97<0.5),"-",IFERROR('Tabel 2 Sydj'!I97/'Tabel 1 Sydj'!G95*100,"-")) -> - | J97: =IF(OR('Tabel 1 Sydj'!G95<5,'Tabel 2 Sydj'!J97<0.5),"-",IFERROR('Tabel 2 Sydj'!J97/'Tabel 1 Sydj'!G95*100,"-")) -> -
A98: Bac. Hum. | C98: =IF(OR('Tabel 1 Sydj'!C96<5,'Tabel 2 Sydj'!C98<0.5),"-",IFERROR('Tabel 2 Sydj'!C98/'Tabel 1 Sydj'!C96*100,"-")) -> 16.66666667 | D98: =IF(OR('Tabel 1 Sydj'!C96<5,'Tabel 2 Sydj'!D98<0.5),"-",IFERROR('Tabel 2 Sydj'!D98/'Tabel 1 Sydj'!C96*100,"-")) -> 16.6635481 | F98: =IF(OR('Tabel 1 Sydj'!E96<5,'Tabel 2 Sydj'!F98<0.5),"-",IFERROR('Tabel 2 Sydj'!F98/'Tabel 1 Sydj'!E96*100,"-")) -> 14.28571429 | G98: =IF(OR('Tabel 1 Sydj'!E96<5,'Tabel 2 Sydj'!G98<0.5),"-",IFERROR('Tabel 2 Sydj'!G98/'Tabel 1 Sydj'!E96*100,"-")) -> 10.32691502 | I98: =IF(OR('Tabel 1 Sydj'!G96<5,'Tabel 2 Sydj'!I98<0.5),"-",IFERROR('Tabel 2 Sydj'!I98/'Tabel 1 Sydj'!G96*100,"-")) -> 15.38461538 | J98: =IF(OR('Tabel 1 Sydj'!G96<5,'Tabel 2 Sydj'!J98<0.5),"-",IFERROR('Tabel 2 Sydj'!J98/'Tabel 1 Sydj'!G96*100,"-")) -> 13.2515149
A99: Bac. Nat. | C99: =IF(OR('Tabel 1 Sydj'!C97<5,'Tabel 2 Sydj'!C99<0.5),"-",IFERROR('Tabel 2 Sydj'!C99/'Tabel 1 Sydj'!C97*100,"-")) -> - | D99: =IF(OR('Tabel 1 Sydj'!C97<5,'Tabel 2 Sydj'!D99<0.5),"-",IFERROR('Tabel 2 Sydj'!D99/'Tabel 1 Sydj'!C97*100,"-")) -> - | F99: =IF(OR('Tabel 1 Sydj'!E97<5,'Tabel 2 Sydj'!F99<0.5),"-",IFERROR('Tabel 2 Sydj'!F99/'Tabel 1 Sydj'!E97*100,"-")) -> - | G99: =IF(OR('Tabel 1 Sydj'!E97<5,'Tabel 2 Sydj'!G99<0.5),"-",IFERROR('Tabel 2 Sydj'!G99/'Tabel 1 Sydj'!E97*100,"-")) -> - | I99: =IF(OR('Tabel 1 Sydj'!G97<5,'Tabel 2 Sydj'!I99<0.5),"-",IFERROR('Tabel 2 Sydj'!I99/'Tabel 1 Sydj'!G97*100,"-")) -> - | J99: =IF(OR('Tabel 1 Sydj'!G97<5,'Tabel 2 Sydj'!J99<0.5),"-",IFERROR('Tabel 2 Sydj'!J99/'Tabel 1 Sydj'!G97*100,"-")) -> -
A100: Andre | C100: =IF(OR('Tabel 1 Sydj'!C98<5,'Tabel 2 Sydj'!C100<0.5),"-",IFERROR('Tabel 2 Sydj'!C100/'Tabel 1 Sydj'!C98*100,"-")) -> 2.222222222 | D100: =IF(OR('Tabel 1 Sydj'!C98<5,'Tabel 2 Sydj'!D100<0.5),"-",IFERROR('Tabel 2 Sydj'!D100/'Tabel 1 Sydj'!C98*100,"-")) -> 2.221806413 | F100: =IF(OR('Tabel 1 Sydj'!E98<5,'Tabel 2 Sydj'!F100<0.5),"-",IFERROR('Tabel 2 Sydj'!F100/'Tabel 1 Sydj'!E98*100,"-")) -> - | G100: =IF(OR('Tabel 1 Sydj'!E98<5,'Tabel 2 Sydj'!G100<0.5),"-",IFERROR('Tabel 2 Sydj'!G100/'Tabel 1 Sydj'!E98*100,"-")) -> - | I100: =IF(OR('Tabel 1 Sydj'!G98<5,'Tabel 2 Sydj'!I100<0.5),"-",IFERROR('Tabel 2 Sydj'!I100/'Tabel 1 Sydj'!G98*100,"-")) -> 1.369863014 | J100: =IF(OR('Tabel 1 Sydj'!G98<5,'Tabel 2 Sydj'!J100<0.5),"-",IFERROR('Tabel 2 Sydj'!J100/'Tabel 1 Sydj'!G98*100,"-")) -> 1.369606693
A102: Total | C102: =IF(OR('Tabel 1 Sydj'!C100<5,'Tabel 2 Sydj'!C102<0.5),"-",IFERROR('Tabel 2 Sydj'!C102/'Tabel 1 Sydj'!C100*100,"-")) -> 3.945111492 | D102: =IF(OR('Tabel 1 Sydj'!C100<5,'Tabel 2 Sydj'!D102<0.5),"-",IFERROR('Tabel 2 Sydj'!D102/'Tabel 1 Sydj'!C100*100,"-")) -> 3.567470565 | F102: =IF(OR('Tabel 1 Sydj'!E100<5,'Tabel 2 Sydj'!F102<0.5),"-",IFERROR('Tabel 2 Sydj'!F102/'Tabel 1 Sydj'!E100*100,"-")) -> 3.040540541 | G102: =IF(OR('Tabel 1 Sydj'!E100<5,'Tabel 2 Sydj'!G102<0.5),"-",IFERROR('Tabel 2 Sydj'!G102/'Tabel 1 Sydj'!E100*100,"-")) -> 2.801369557 | I102: =IF(OR('Tabel 1 Sydj'!G100<5,'Tabel 2 Sydj'!I102<0.5),"-",IFERROR('Tabel 2 Sydj'!I102/'Tabel 1 Sydj'!G100*100,"-")) -> 3.489361702 | J102: =IF(OR('Tabel 1 Sydj'!G100<5,'Tabel 2 Sydj'!J102<0.5),"-",IFERROR('Tabel 2 Sydj'!J102/'Tabel 1 Sydj'!G100*100,"-")) -> 3.181486057
A104: Ingeniører i alt | C104: =IF(OR('Tabel 1 Sydj'!C102<5,'Tabel 2 Sydj'!C104<0.5),"-",IFERROR('Tabel 2 Sydj'!C104/'Tabel 1 Sydj'!C102*100,"-")) -> 3.409090909 | D104: =IF(OR('Tabel 1 Sydj'!C102<5,'Tabel 2 Sydj'!D104<0.5),"-",IFERROR('Tabel 2 Sydj'!D104/'Tabel 1 Sydj'!C102*100,"-")) -> 3.22488277 | F104: =IF(OR('Tabel 1 Sydj'!E102<5,'Tabel 2 Sydj'!F104<0.5),"-",IFERROR('Tabel 2 Sydj'!F104/'Tabel 1 Sydj'!E102*100,"-")) -> 2.040816327 | G104: =IF(OR('Tabel 1 Sydj'!E102<5,'Tabel 2 Sydj'!G104<0.5),"-",IFERROR('Tabel 2 Sydj'!G104/'Tabel 1 Sydj'!E102*100,"-")) -> 2.040434461 | I104: =IF(OR('Tabel 1 Sydj'!G102<5,'Tabel 2 Sydj'!I104<0.5),"-",IFERROR('Tabel 2 Sydj'!I104/'Tabel 1 Sydj'!G102*100,"-")) -> 3.111111111 | J104: =IF(OR('Tabel 1 Sydj'!G102<5,'Tabel 2 Sydj'!J104<0.5),"-",IFERROR('Tabel 2 Sydj'!J104/'Tabel 1 Sydj'!G102*100,"-")) -> 2.96693625
A105: Magistre i alt | C105: =IF(OR('Tabel 1 Sydj'!C103<5,'Tabel 2 Sydj'!C105<0.5),"-",IFERROR('Tabel 2 Sydj'!C105/'Tabel 1 Sydj'!C103*100,"-")) -> 7.692307692 | D105: =IF(OR('Tabel 1 Sydj'!C103<5,'Tabel 2 Sydj'!D105<0.5),"-",IFERROR('Tabel 2 Sydj'!D105/'Tabel 1 Sydj'!C103*100,"-")) -> 5.991077469 | F105: =IF(OR('Tabel 1 Sydj'!E103<5,'Tabel 2 Sydj'!F105<0.5),"-",IFERROR('Tabel 2 Sydj'!F105/'Tabel 1 Sydj'!E103*100,"-")) -> 1.315789474 | G105: =IF(OR('Tabel 1 Sydj'!E103<5,'Tabel 2 Sydj'!G105<0.5),"-",IFERROR('Tabel 2 Sydj'!G105/'Tabel 1 Sydj'!E103*100,"-")) -> 1.130480883 | I105: =IF(OR('Tabel 1 Sydj'!G103<5,'Tabel 2 Sydj'!I105<0.5),"-",IFERROR('Tabel 2 Sydj'!I105/'Tabel 1 Sydj'!G103*100,"-")) -> 3.703703704 | J105: =IF(OR('Tabel 1 Sydj'!G103<5,'Tabel 2 Sydj'!J105<0.5),"-",IFERROR('Tabel 2 Sydj'!J105/'Tabel 1 Sydj'!G103*100,"-")) -> 2.950704296
A106: DJØF'ere i alt | C106: =IF(OR('Tabel 1 Sydj'!C104<5,'Tabel 2 Sydj'!C106<0.5),"-",IFERROR('Tabel 2 Sydj'!C106/'Tabel 1 Sydj'!C104*100,"-")) -> 2.564102564 | D106: =IF(OR('Tabel 1 Sydj'!C104<5,'Tabel 2 Sydj'!D106<0.5),"-",IFERROR('Tabel 2 Sydj'!D106/'Tabel 1 Sydj'!C104*100,"-")) -> 2.402096957 | F106: =IF(OR('Tabel 1 Sydj'!E104<5,'Tabel 2 Sydj'!F106<0.5),"-",IFERROR('Tabel 2 Sydj'!F106/'Tabel 1 Sydj'!E104*100,"-")) -> 3.597122302 | G106: =IF(OR('Tabel 1 Sydj'!E104<5,'Tabel 2 Sydj'!G106<0.5),"-",IFERROR('Tabel 2 Sydj'!G106/'Tabel 1 Sydj'!E104*100,"-")) -> 2.999658528 | I106: =IF(OR('Tabel 1 Sydj'!G104<5,'Tabel 2 Sydj'!I106<0.5),"-",IFERROR('Tabel 2 Sydj'!I106/'Tabel 1 Sydj'!G104*100,"-")) -> 3.125 | J106: =IF(OR('Tabel 1 Sydj'!G104<5,'Tabel 2 Sydj'!J106<0.5),"-",IFERROR('Tabel 2 Sydj'!J106/'Tabel 1 Sydj'!G104*100,"-")) -> 2.726554216
A111: Billund
C113: Mænd | F113: Kvinder | I113: I alt
C114: Ledigheds- berørte | D114: Gns. brutto- ledighed | F114: Ledigheds- berørte | G114: Gns. brutto- ledighed | I114: Ledigheds- berørte | J114: Gns. brutto- ledighed
A117: Civ. ing. | C117: =IF(OR('Tabel 1 Sydj'!C115<5,'Tabel 2 Sydj'!C117<0.5),"-",IFERROR('Tabel 2 Sydj'!C117/'Tabel 1 Sydj'!C115*100,"-")) -> - | D117: =IF(OR('Tabel 1 Sydj'!C115<5,'Tabel 2 Sydj'!D117<0.5),"-",IFERROR('Tabel 2 Sydj'!D117/'Tabel 1 Sydj'!C115*100,"-")) -> - | F117: =IF(OR('Tabel 1 Sydj'!E115<5,'Tabel 2 Sydj'!F117<0.5),"-",IFERROR('Tabel 2 Sydj'!F117/'Tabel 1 Sydj'!E115*100,"-")) -> 8.333333333 | G117: =IF(OR('Tabel 1 Sydj'!E115<5,'Tabel 2 Sydj'!G117<0.5),"-",IFERROR('Tabel 2 Sydj'!G117/'Tabel 1 Sydj'!E115*100,"-")) -> 4.870163621 | I117: =IF(OR('Tabel 1 Sydj'!G115<5,'Tabel 2 Sydj'!I117<0.5),"-",IFERROR('Tabel 2 Sydj'!I117/'Tabel 1 Sydj'!G115*100,"-")) -> 2.173913043 | J117: =IF(OR('Tabel 1 Sydj'!G115<5,'Tabel 2 Sydj'!J117<0.5),"-",IFERROR('Tabel 2 Sydj'!J117/'Tabel 1 Sydj'!G115*100,"-")) -> 1.270477466
A118: Diplom ing. | C118: =IF(OR('Tabel 1 Sydj'!C116<5,'Tabel 2 Sydj'!C118<0.5),"-",IFERROR('Tabel 2 Sydj'!C118/'Tabel 1 Sydj'!C116*100,"-")) -> - | D118: =IF(OR('Tabel 1 Sydj'!C116<5,'Tabel 2 Sydj'!D118<0.5),"-",IFERROR('Tabel 2 Sydj'!D118/'Tabel 1 Sydj'!C116*100,"-")) -> - | F118: =IF(OR('Tabel 1 Sydj'!E116<5,'Tabel 2 Sydj'!F118<0.5),"-",IFERROR('Tabel 2 Sydj'!F118/'Tabel 1 Sydj'!E116*100,"-")) -> - | G118: =IF(OR('Tabel 1 Sydj'!E116<5,'Tabel 2 Sydj'!G118<0.5),"-",IFERROR('Tabel 2 Sydj'!G118/'Tabel 1 Sydj'!E116*100,"-")) -> - | I118: =IF(OR('Tabel 1 Sydj'!G116<5,'Tabel 2 Sydj'!I118<0.5),"-",IFERROR('Tabel 2 Sydj'!I118/'Tabel 1 Sydj'!G116*100,"-")) -> - | J118: =IF(OR('Tabel 1 Sydj'!G116<5,'Tabel 2 Sydj'!J118<0.5),"-",IFERROR('Tabel 2 Sydj'!J118/'Tabel 1 Sydj'!G116*100,"-")) -> -
A119: Cand. Scient. Tek. | C119: =IF(OR('Tabel 1 Sydj'!C117<5,'Tabel 2 Sydj'!C119<0.5),"-",IFERROR('Tabel 2 Sydj'!C119/'Tabel 1 Sydj'!C117*100,"-")) -> 7.692307692 | D119: =IF(OR('Tabel 1 Sydj'!C117<5,'Tabel 2 Sydj'!D119<0.5),"-",IFERROR('Tabel 2 Sydj'!D119/'Tabel 1 Sydj'!C117*100,"-")) -> 5.795738597 | F119: =IF(OR('Tabel 1 Sydj'!E117<5,'Tabel 2 Sydj'!F119<0.5),"-",IFERROR('Tabel 2 Sydj'!F119/'Tabel 1 Sydj'!E117*100,"-")) -> - | G119: =IF(OR('Tabel 1 Sydj'!E117<5,'Tabel 2 Sydj'!G119<0.5),"-",IFERROR('Tabel 2 Sydj'!G119/'Tabel 1 Sydj'!E117*100,"-")) -> - | I119: =IF(OR('Tabel 1 Sydj'!G117<5,'Tabel 2 Sydj'!I119<0.5),"-",IFERROR('Tabel 2 Sydj'!I119/'Tabel 1 Sydj'!G117*100,"-")) -> 4.347826087 | J119: =IF(OR('Tabel 1 Sydj'!G117<5,'Tabel 2 Sydj'!J119<0.5),"-",IFERROR('Tabel 2 Sydj'!J119/'Tabel 1 Sydj'!G117*100,"-")) -> 3.27585225
A120: MA. Hum. | C120: =IF(OR('Tabel 1 Sydj'!C118<5,'Tabel 2 Sydj'!C120<0.5),"-",IFERROR('Tabel 2 Sydj'!C120/'Tabel 1 Sydj'!C118*100,"-")) -> 11.76470588 | D120: =IF(OR('Tabel 1 Sydj'!C118<5,'Tabel 2 Sydj'!D120<0.5),"-",IFERROR('Tabel 2 Sydj'!D120/'Tabel 1 Sydj'!C118*100,"-")) -> 8.533869482 | F120: =IF(OR('Tabel 1 Sydj'!E118<5,'Tabel 2 Sydj'!F120<0.5),"-",IFERROR('Tabel 2 Sydj'!F120/'Tabel 1 Sydj'!E118*100,"-")) -> 11.76470588 | G120: =IF(OR('Tabel 1 Sydj'!E118<5,'Tabel 2 Sydj'!G120<0.5),"-",IFERROR('Tabel 2 Sydj'!G120/'Tabel 1 Sydj'!E118*100,"-")) -> 11.49100568 | I120: =IF(OR('Tabel 1 Sydj'!G118<5,'Tabel 2 Sydj'!I120<0.5),"-",IFERROR('Tabel 2 Sydj'!I120/'Tabel 1 Sydj'!G118*100,"-")) -> 11.76470588 | J120: =IF(OR('Tabel 1 Sydj'!G118<5,'Tabel 2 Sydj'!J120<0.5),"-",IFERROR('Tabel 2 Sydj'!J120/'Tabel 1 Sydj'!G118*100,"-")) -> 10.50529362
A121: MA. Nat. | C121: =IF(OR('Tabel 1 Sydj'!C119<5,'Tabel 2 Sydj'!C121<0.5),"-",IFERROR('Tabel 2 Sydj'!C121/'Tabel 1 Sydj'!C119*100,"-")) -> - | D121: =IF(OR('Tabel 1 Sydj'!C119<5,'Tabel 2 Sydj'!D121<0.5),"-",IFERROR('Tabel 2 Sydj'!D121/'Tabel 1 Sydj'!C119*100,"-")) -> - | F121: =IF(OR('Tabel 1 Sydj'!E119<5,'Tabel 2 Sydj'!F121<0.5),"-",IFERROR('Tabel 2 Sydj'!F121/'Tabel 1 Sydj'!E119*100,"-")) -> 7.692307692 | G121: =IF(OR('Tabel 1 Sydj'!E119<5,'Tabel 2 Sydj'!G121<0.5),"-",IFERROR('Tabel 2 Sydj'!G121/'Tabel 1 Sydj'!E119*100,"-")) -> 7.690868353 | I121: =IF(OR('Tabel 1 Sydj'!G119<5,'Tabel 2 Sydj'!I121<0.5),"-",IFERROR('Tabel 2 Sydj'!I121/'Tabel 1 Sydj'!G119*100,"-")) -> 5.263157895 | J121: =IF(OR('Tabel 1 Sydj'!G119<5,'Tabel 2 Sydj'!J121<0.5),"-",IFERROR('Tabel 2 Sydj'!J121/'Tabel 1 Sydj'!G119*100,"-")) -> 5.262173084
A122: MA. Ph.d. | C122: =IF(OR('Tabel 1 Sydj'!C120<5,'Tabel 2 Sydj'!C122<0.5),"-",IFERROR('Tabel 2 Sydj'!C122/'Tabel 1 Sydj'!C120*100,"-")) -> - | D122: =IF(OR('Tabel 1 Sydj'!C120<5,'Tabel 2 Sydj'!D122<0.5),"-",IFERROR('Tabel 2 Sydj'!D122/'Tabel 1 Sydj'!C120*100,"-")) -> - | F122: =IF(OR('Tabel 1 Sydj'!E120<5,'Tabel 2 Sydj'!F122<0.5),"-",IFERROR('Tabel 2 Sydj'!F122/'Tabel 1 Sydj'!E120*100,"-")) -> - | G122: =IF(OR('Tabel 1 Sydj'!E120<5,'Tabel 2 Sydj'!G122<0.5),"-",IFERROR('Tabel 2 Sydj'!G122/'Tabel 1 Sydj'!E120*100,"-")) -> - | I122: =IF(OR('Tabel 1 Sydj'!G120<5,'Tabel 2 Sydj'!I122<0.5),"-",IFERROR('Tabel 2 Sydj'!I122/'Tabel 1 Sydj'!G120*100,"-")) -> - | J122: =IF(OR('Tabel 1 Sydj'!G120<5,'Tabel 2 Sydj'!J122<0.5),"-",IFERROR('Tabel 2 Sydj'!J122/'Tabel 1 Sydj'!G120*100,"-")) -> -
A123: MA. Samf. | C123: =IF(OR('Tabel 1 Sydj'!C121<5,'Tabel 2 Sydj'!C123<0.5),"-",IFERROR('Tabel 2 Sydj'!C123/'Tabel 1 Sydj'!C121*100,"-")) -> - | D123: =IF(OR('Tabel 1 Sydj'!C121<5,'Tabel 2 Sydj'!D123<0.5),"-",IFERROR('Tabel 2 Sydj'!D123/'Tabel 1 Sydj'!C121*100,"-")) -> - | F123: =IF(OR('Tabel 1 Sydj'!E121<5,'Tabel 2 Sydj'!F123<0.5),"-",IFERROR('Tabel 2 Sydj'!F123/'Tabel 1 Sydj'!E121*100,"-")) -> - | G123: =IF(OR('Tabel 1 Sydj'!E121<5,'Tabel 2 Sydj'!G123<0.5),"-",IFERROR('Tabel 2 Sydj'!G123/'Tabel 1 Sydj'!E121*100,"-")) -> - | I123: =IF(OR('Tabel 1 Sydj'!G121<5,'Tabel 2 Sydj'!I123<0.5),"-",IFERROR('Tabel 2 Sydj'!I123/'Tabel 1 Sydj'!G121*100,"-")) -> - | J123: =IF(OR('Tabel 1 Sydj'!G121<5,'Tabel 2 Sydj'!J123<0.5),"-",IFERROR('Tabel 2 Sydj'!J123/'Tabel 1 Sydj'!G121*100,"-")) -> -
A124: Øvrige Mag. | C124: =IF(OR('Tabel 1 Sydj'!C122<5,'Tabel 2 Sydj'!C124<0.5),"-",IFERROR('Tabel 2 Sydj'!C124/'Tabel 1 Sydj'!C122*100,"-")) -> - | D124: =IF(OR('Tabel 1 Sydj'!C122<5,'Tabel 2 Sydj'!D124<0.5),"-",IFERROR('Tabel 2 Sydj'!D124/'Tabel 1 Sydj'!C122*100,"-")) -> - | F124: =IF(OR('Tabel 1 Sydj'!E122<5,'Tabel 2 Sydj'!F124<0.5),"-",IFERROR('Tabel 2 Sydj'!F124/'Tabel 1 Sydj'!E122*100,"-")) -> - | G124: =IF(OR('Tabel 1 Sydj'!E122<5,'Tabel 2 Sydj'!G124<0.5),"-",IFERROR('Tabel 2 Sydj'!G124/'Tabel 1 Sydj'!E122*100,"-")) -> - | I124: =IF(OR('Tabel 1 Sydj'!G122<5,'Tabel 2 Sydj'!I124<0.5),"-",IFERROR('Tabel 2 Sydj'!I124/'Tabel 1 Sydj'!G122*100,"-")) -> - | J124: =IF(OR('Tabel 1 Sydj'!G122<5,'Tabel 2 Sydj'!J124<0.5),"-",IFERROR('Tabel 2 Sydj'!J124/'Tabel 1 Sydj'!G122*100,"-")) -> -
A125: Agronom | C125: =IF(OR('Tabel 1 Sydj'!C123<5,'Tabel 2 Sydj'!C125<0.5),"-",IFERROR('Tabel 2 Sydj'!C125/'Tabel 1 Sydj'!C123*100,"-")) -> - | D125: =IF(OR('Tabel 1 Sydj'!C123<5,'Tabel 2 Sydj'!D125<0.5),"-",IFERROR('Tabel 2 Sydj'!D125/'Tabel 1 Sydj'!C123*100,"-")) -> - | F125: =IF(OR('Tabel 1 Sydj'!E123<5,'Tabel 2 Sydj'!F125<0.5),"-",IFERROR('Tabel 2 Sydj'!F125/'Tabel 1 Sydj'!E123*100,"-")) -> - | G125: =IF(OR('Tabel 1 Sydj'!E123<5,'Tabel 2 Sydj'!G125<0.5),"-",IFERROR('Tabel 2 Sydj'!G125/'Tabel 1 Sydj'!E123*100,"-")) -> - | I125: =IF(OR('Tabel 1 Sydj'!G123<5,'Tabel 2 Sydj'!I125<0.5),"-",IFERROR('Tabel 2 Sydj'!I125/'Tabel 1 Sydj'!G123*100,"-")) -> - | J125: =IF(OR('Tabel 1 Sydj'!G123<5,'Tabel 2 Sydj'!J125<0.5),"-",IFERROR('Tabel 2 Sydj'!J125/'Tabel 1 Sydj'!G123*100,"-")) -> -
A126: Landsk. Arkt. | C126: =IF(OR('Tabel 1 Sydj'!C124<5,'Tabel 2 Sydj'!C126<0.5),"-",IFERROR('Tabel 2 Sydj'!C126/'Tabel 1 Sydj'!C124*100,"-")) -> - | D126: =IF(OR('Tabel 1 Sydj'!C124<5,'Tabel 2 Sydj'!D126<0.5),"-",IFERROR('Tabel 2 Sydj'!D126/'Tabel 1 Sydj'!C124*100,"-")) -> - | F126: =IF(OR('Tabel 1 Sydj'!E124<5,'Tabel 2 Sydj'!F126<0.5),"-",IFERROR('Tabel 2 Sydj'!F126/'Tabel 1 Sydj'!E124*100,"-")) -> - | G126: =IF(OR('Tabel 1 Sydj'!E124<5,'Tabel 2 Sydj'!G126<0.5),"-",IFERROR('Tabel 2 Sydj'!G126/'Tabel 1 Sydj'!E124*100,"-")) -> - | I126: =IF(OR('Tabel 1 Sydj'!G124<5,'Tabel 2 Sydj'!I126<0.5),"-",IFERROR('Tabel 2 Sydj'!I126/'Tabel 1 Sydj'!G124*100,"-")) -> - | J126: =IF(OR('Tabel 1 Sydj'!G124<5,'Tabel 2 Sydj'!J126<0.5),"-",IFERROR('Tabel 2 Sydj'!J126/'Tabel 1 Sydj'!G124*100,"-")) -> -
A127: Hortonom | C127: =IF(OR('Tabel 1 Sydj'!C125<5,'Tabel 2 Sydj'!C127<0.5),"-",IFERROR('Tabel 2 Sydj'!C127/'Tabel 1 Sydj'!C125*100,"-")) -> - | D127: =IF(OR('Tabel 1 Sydj'!C125<5,'Tabel 2 Sydj'!D127<0.5),"-",IFERROR('Tabel 2 Sydj'!D127/'Tabel 1 Sydj'!C125*100,"-")) -> - | F127: =IF(OR('Tabel 1 Sydj'!E125<5,'Tabel 2 Sydj'!F127<0.5),"-",IFERROR('Tabel 2 Sydj'!F127/'Tabel 1 Sydj'!E125*100,"-")) -> - | G127: =IF(OR('Tabel 1 Sydj'!E125<5,'Tabel 2 Sydj'!G127<0.5),"-",IFERROR('Tabel 2 Sydj'!G127/'Tabel 1 Sydj'!E125*100,"-")) -> - | I127: =IF(OR('Tabel 1 Sydj'!G125<5,'Tabel 2 Sydj'!I127<0.5),"-",IFERROR('Tabel 2 Sydj'!I127/'Tabel 1 Sydj'!G125*100,"-")) -> - | J127: =IF(OR('Tabel 1 Sydj'!G125<5,'Tabel 2 Sydj'!J127<0.5),"-",IFERROR('Tabel 2 Sydj'!J127/'Tabel 1 Sydj'!G125*100,"-")) -> -
A128: Forstkand. | C128: =IF(OR('Tabel 1 Sydj'!C126<5,'Tabel 2 Sydj'!C128<0.5),"-",IFERROR('Tabel 2 Sydj'!C128/'Tabel 1 Sydj'!C126*100,"-")) -> - | D128: =IF(OR('Tabel 1 Sydj'!C126<5,'Tabel 2 Sydj'!D128<0.5),"-",IFERROR('Tabel 2 Sydj'!D128/'Tabel 1 Sydj'!C126*100,"-")) -> - | F128: =IF(OR('Tabel 1 Sydj'!E126<5,'Tabel 2 Sydj'!F128<0.5),"-",IFERROR('Tabel 2 Sydj'!F128/'Tabel 1 Sydj'!E126*100,"-")) -> - | G128: =IF(OR('Tabel 1 Sydj'!E126<5,'Tabel 2 Sydj'!G128<0.5),"-",IFERROR('Tabel 2 Sydj'!G128/'Tabel 1 Sydj'!E126*100,"-")) -> - | I128: =IF(OR('Tabel 1 Sydj'!G126<5,'Tabel 2 Sydj'!I128<0.5),"-",IFERROR('Tabel 2 Sydj'!I128/'Tabel 1 Sydj'!G126*100,"-")) -> - | J128: =IF(OR('Tabel 1 Sydj'!G126<5,'Tabel 2 Sydj'!J128<0.5),"-",IFERROR('Tabel 2 Sydj'!J128/'Tabel 1 Sydj'!G126*100,"-")) -> -
A129: Jordbrugsakad. | C129: =IF(OR('Tabel 1 Sydj'!C127<5,'Tabel 2 Sydj'!C129<0.5),"-",IFERROR('Tabel 2 Sydj'!C129/'Tabel 1 Sydj'!C127*100,"-")) -> - | D129: =IF(OR('Tabel 1 Sydj'!C127<5,'Tabel 2 Sydj'!D129<0.5),"-",IFERROR('Tabel 2 Sydj'!D129/'Tabel 1 Sydj'!C127*100,"-")) -> - | F129: =IF(OR('Tabel 1 Sydj'!E127<5,'Tabel 2 Sydj'!F129<0.5),"-",IFERROR('Tabel 2 Sydj'!F129/'Tabel 1 Sydj'!E127*100,"-")) -> - | G129: =IF(OR('Tabel 1 Sydj'!E127<5,'Tabel 2 Sydj'!G129<0.5),"-",IFERROR('Tabel 2 Sydj'!G129/'Tabel 1 Sydj'!E127*100,"-")) -> - | I129: =IF(OR('Tabel 1 Sydj'!G127<5,'Tabel 2 Sydj'!I129<0.5),"-",IFERROR('Tabel 2 Sydj'!I129/'Tabel 1 Sydj'!G127*100,"-")) -> - | J129: =IF(OR('Tabel 1 Sydj'!G127<5,'Tabel 2 Sydj'!J129<0.5),"-",IFERROR('Tabel 2 Sydj'!J129/'Tabel 1 Sydj'!G127*100,"-")) -> -
A130: Mejeriing. | C130: =IF(OR('Tabel 1 Sydj'!C128<5,'Tabel 2 Sydj'!C130<0.5),"-",IFERROR('Tabel 2 Sydj'!C130/'Tabel 1 Sydj'!C128*100,"-")) -> - | D130: =IF(OR('Tabel 1 Sydj'!C128<5,'Tabel 2 Sydj'!D130<0.5),"-",IFERROR('Tabel 2 Sydj'!D130/'Tabel 1 Sydj'!C128*100,"-")) -> - | F130: =IF(OR('Tabel 1 Sydj'!E128<5,'Tabel 2 Sydj'!F130<0.5),"-",IFERROR('Tabel 2 Sydj'!F130/'Tabel 1 Sydj'!E128*100,"-")) -> - | G130: =IF(OR('Tabel 1 Sydj'!E128<5,'Tabel 2 Sydj'!G130<0.5),"-",IFERROR('Tabel 2 Sydj'!G130/'Tabel 1 Sydj'!E128*100,"-")) -> - | I130: =IF(OR('Tabel 1 Sydj'!G128<5,'Tabel 2 Sydj'!I130<0.5),"-",IFERROR('Tabel 2 Sydj'!I130/'Tabel 1 Sydj'!G128*100,"-")) -> - | J130: =IF(OR('Tabel 1 Sydj'!G128<5,'Tabel 2 Sydj'!J130<0.5),"-",IFERROR('Tabel 2 Sydj'!J130/'Tabel 1 Sydj'!G128*100,"-")) -> -
A131: Levn.m.kand. | C131: =IF(OR('Tabel 1 Sydj'!C129<5,'Tabel 2 Sydj'!C131<0.5),"-",IFERROR('Tabel 2 Sydj'!C131/'Tabel 1 Sydj'!C129*100,"-")) -> - | D131: =IF(OR('Tabel 1 Sydj'!C129<5,'Tabel 2 Sydj'!D131<0.5),"-",IFERROR('Tabel 2 Sydj'!D131/'Tabel 1 Sydj'!C129*100,"-")) -> - | F131: =IF(OR('Tabel 1 Sydj'!E129<5,'Tabel 2 Sydj'!F131<0.5),"-",IFERROR('Tabel 2 Sydj'!F131/'Tabel 1 Sydj'!E129*100,"-")) -> - | G131: =IF(OR('Tabel 1 Sydj'!E129<5,'Tabel 2 Sydj'!G131<0.5),"-",IFERROR('Tabel 2 Sydj'!G131/'Tabel 1 Sydj'!E129*100,"-")) -> - | I131: =IF(OR('Tabel 1 Sydj'!G129<5,'Tabel 2 Sydj'!I131<0.5),"-",IFERROR('Tabel 2 Sydj'!I131/'Tabel 1 Sydj'!G129*100,"-")) -> - | J131: =IF(OR('Tabel 1 Sydj'!G129<5,'Tabel 2 Sydj'!J131<0.5),"-",IFERROR('Tabel 2 Sydj'!J131/'Tabel 1 Sydj'!G129*100,"-")) -> -
A132: Dyrlæge | C132: =IF(OR('Tabel 1 Sydj'!C130<5,'Tabel 2 Sydj'!C132<0.5),"-",IFERROR('Tabel 2 Sydj'!C132/'Tabel 1 Sydj'!C130*100,"-")) -> - | D132: =IF(OR('Tabel 1 Sydj'!C130<5,'Tabel 2 Sydj'!D132<0.5),"-",IFERROR('Tabel 2 Sydj'!D132/'Tabel 1 Sydj'!C130*100,"-")) -> - | F132: =IF(OR('Tabel 1 Sydj'!E130<5,'Tabel 2 Sydj'!F132<0.5),"-",IFERROR('Tabel 2 Sydj'!F132/'Tabel 1 Sydj'!E130*100,"-")) -> - | G132: =IF(OR('Tabel 1 Sydj'!E130<5,'Tabel 2 Sydj'!G132<0.5),"-",IFERROR('Tabel 2 Sydj'!G132/'Tabel 1 Sydj'!E130*100,"-")) -> - | I132: =IF(OR('Tabel 1 Sydj'!G130<5,'Tabel 2 Sydj'!I132<0.5),"-",IFERROR('Tabel 2 Sydj'!I132/'Tabel 1 Sydj'!G130*100,"-")) -> - | J132: =IF(OR('Tabel 1 Sydj'!G130<5,'Tabel 2 Sydj'!J132<0.5),"-",IFERROR('Tabel 2 Sydj'!J132/'Tabel 1 Sydj'!G130*100,"-")) -> -
A133: Farmaceut | C133: =IF(OR('Tabel 1 Sydj'!C131<5,'Tabel 2 Sydj'!C133<0.5),"-",IFERROR('Tabel 2 Sydj'!C133/'Tabel 1 Sydj'!C131*100,"-")) -> - | D133: =IF(OR('Tabel 1 Sydj'!C131<5,'Tabel 2 Sydj'!D133<0.5),"-",IFERROR('Tabel 2 Sydj'!D133/'Tabel 1 Sydj'!C131*100,"-")) -> - | F133: =IF(OR('Tabel 1 Sydj'!E131<5,'Tabel 2 Sydj'!F133<0.5),"-",IFERROR('Tabel 2 Sydj'!F133/'Tabel 1 Sydj'!E131*100,"-")) -> - | G133: =IF(OR('Tabel 1 Sydj'!E131<5,'Tabel 2 Sydj'!G133<0.5),"-",IFERROR('Tabel 2 Sydj'!G133/'Tabel 1 Sydj'!E131*100,"-")) -> - | I133: =IF(OR('Tabel 1 Sydj'!G131<5,'Tabel 2 Sydj'!I133<0.5),"-",IFERROR('Tabel 2 Sydj'!I133/'Tabel 1 Sydj'!G131*100,"-")) -> - | J133: =IF(OR('Tabel 1 Sydj'!G131<5,'Tabel 2 Sydj'!J133<0.5),"-",IFERROR('Tabel 2 Sydj'!J133/'Tabel 1 Sydj'!G131*100,"-")) -> -
A134: Læge | C134: =IF(OR('Tabel 1 Sydj'!C132<5,'Tabel 2 Sydj'!C134<0.5),"-",IFERROR('Tabel 2 Sydj'!C134/'Tabel 1 Sydj'!C132*100,"-")) -> - | D134: =IF(OR('Tabel 1 Sydj'!C132<5,'Tabel 2 Sydj'!D134<0.5),"-",IFERROR('Tabel 2 Sydj'!D134/'Tabel 1 Sydj'!C132*100,"-")) -> - | F134: =IF(OR('Tabel 1 Sydj'!E132<5,'Tabel 2 Sydj'!F134<0.5),"-",IFERROR('Tabel 2 Sydj'!F134/'Tabel 1 Sydj'!E132*100,"-")) -> - | G134: =IF(OR('Tabel 1 Sydj'!E132<5,'Tabel 2 Sydj'!G134<0.5),"-",IFERROR('Tabel 2 Sydj'!G134/'Tabel 1 Sydj'!E132*100,"-")) -> - | I134: =IF(OR('Tabel 1 Sydj'!G132<5,'Tabel 2 Sydj'!I134<0.5),"-",IFERROR('Tabel 2 Sydj'!I134/'Tabel 1 Sydj'!G132*100,"-")) -> - | J134: =IF(OR('Tabel 1 Sydj'!G132<5,'Tabel 2 Sydj'!J134<0.5),"-",IFERROR('Tabel 2 Sydj'!J134/'Tabel 1 Sydj'!G132*100,"-")) -> -
A135: Tandlæge | C135: =IF(OR('Tabel 1 Sydj'!C133<5,'Tabel 2 Sydj'!C135<0.5),"-",IFERROR('Tabel 2 Sydj'!C135/'Tabel 1 Sydj'!C133*100,"-")) -> - | D135: =IF(OR('Tabel 1 Sydj'!C133<5,'Tabel 2 Sydj'!D135<0.5),"-",IFERROR('Tabel 2 Sydj'!D135/'Tabel 1 Sydj'!C133*100,"-")) -> - | F135: =IF(OR('Tabel 1 Sydj'!E133<5,'Tabel 2 Sydj'!F135<0.5),"-",IFERROR('Tabel 2 Sydj'!F135/'Tabel 1 Sydj'!E133*100,"-")) -> - | G135: =IF(OR('Tabel 1 Sydj'!E133<5,'Tabel 2 Sydj'!G135<0.5),"-",IFERROR('Tabel 2 Sydj'!G135/'Tabel 1 Sydj'!E133*100,"-")) -> - | I135: =IF(OR('Tabel 1 Sydj'!G133<5,'Tabel 2 Sydj'!I135<0.5),"-",IFERROR('Tabel 2 Sydj'!I135/'Tabel 1 Sydj'!G133*100,"-")) -> - | J135: =IF(OR('Tabel 1 Sydj'!G133<5,'Tabel 2 Sydj'!J135<0.5),"-",IFERROR('Tabel 2 Sydj'!J135/'Tabel 1 Sydj'!G133*100,"-")) -> -
A136: Arkitekt | C136: =IF(OR('Tabel 1 Sydj'!C134<5,'Tabel 2 Sydj'!C136<0.5),"-",IFERROR('Tabel 2 Sydj'!C136/'Tabel 1 Sydj'!C134*100,"-")) -> - | D136: =IF(OR('Tabel 1 Sydj'!C134<5,'Tabel 2 Sydj'!D136<0.5),"-",IFERROR('Tabel 2 Sydj'!D136/'Tabel 1 Sydj'!C134*100,"-")) -> - | F136: =IF(OR('Tabel 1 Sydj'!E134<5,'Tabel 2 Sydj'!F136<0.5),"-",IFERROR('Tabel 2 Sydj'!F136/'Tabel 1 Sydj'!E134*100,"-")) -> - | G136: =IF(OR('Tabel 1 Sydj'!E134<5,'Tabel 2 Sydj'!G136<0.5),"-",IFERROR('Tabel 2 Sydj'!G136/'Tabel 1 Sydj'!E134*100,"-")) -> - | I136: =IF(OR('Tabel 1 Sydj'!G134<5,'Tabel 2 Sydj'!I136<0.5),"-",IFERROR('Tabel 2 Sydj'!I136/'Tabel 1 Sydj'!G134*100,"-")) -> - | J136: =IF(OR('Tabel 1 Sydj'!G134<5,'Tabel 2 Sydj'!J136<0.5),"-",IFERROR('Tabel 2 Sydj'!J136/'Tabel 1 Sydj'!G134*100,"-")) -> -
A137: Landinspek. | C137: =IF(OR('Tabel 1 Sydj'!C135<5,'Tabel 2 Sydj'!C137<0.5),"-",IFERROR('Tabel 2 Sydj'!C137/'Tabel 1 Sydj'!C135*100,"-")) -> - | D137: =IF(OR('Tabel 1 Sydj'!C135<5,'Tabel 2 Sydj'!D137<0.5),"-",IFERROR('Tabel 2 Sydj'!D137/'Tabel 1 Sydj'!C135*100,"-")) -> - | F137: =IF(OR('Tabel 1 Sydj'!E135<5,'Tabel 2 Sydj'!F137<0.5),"-",IFERROR('Tabel 2 Sydj'!F137/'Tabel 1 Sydj'!E135*100,"-")) -> - | G137: =IF(OR('Tabel 1 Sydj'!E135<5,'Tabel 2 Sydj'!G137<0.5),"-",IFERROR('Tabel 2 Sydj'!G137/'Tabel 1 Sydj'!E135*100,"-")) -> - | I137: =IF(OR('Tabel 1 Sydj'!G135<5,'Tabel 2 Sydj'!I137<0.5),"-",IFERROR('Tabel 2 Sydj'!I137/'Tabel 1 Sydj'!G135*100,"-")) -> - | J137: =IF(OR('Tabel 1 Sydj'!G135<5,'Tabel 2 Sydj'!J137<0.5),"-",IFERROR('Tabel 2 Sydj'!J137/'Tabel 1 Sydj'!G135*100,"-")) -> -
A138: Bibliotekar | C138: =IF(OR('Tabel 1 Sydj'!C136<5,'Tabel 2 Sydj'!C138<0.5),"-",IFERROR('Tabel 2 Sydj'!C138/'Tabel 1 Sydj'!C136*100,"-")) -> - | D138: =IF(OR('Tabel 1 Sydj'!C136<5,'Tabel 2 Sydj'!D138<0.5),"-",IFERROR('Tabel 2 Sydj'!D138/'Tabel 1 Sydj'!C136*100,"-")) -> - | F138: =IF(OR('Tabel 1 Sydj'!E136<5,'Tabel 2 Sydj'!F138<0.5),"-",IFERROR('Tabel 2 Sydj'!F138/'Tabel 1 Sydj'!E136*100,"-")) -> - | G138: =IF(OR('Tabel 1 Sydj'!E136<5,'Tabel 2 Sydj'!G138<0.5),"-",IFERROR('Tabel 2 Sydj'!G138/'Tabel 1 Sydj'!E136*100,"-")) -> - | I138: =IF(OR('Tabel 1 Sydj'!G136<5,'Tabel 2 Sydj'!I138<0.5),"-",IFERROR('Tabel 2 Sydj'!I138/'Tabel 1 Sydj'!G136*100,"-")) -> - | J138: =IF(OR('Tabel 1 Sydj'!G136<5,'Tabel 2 Sydj'!J138<0.5),"-",IFERROR('Tabel 2 Sydj'!J138/'Tabel 1 Sydj'!G136*100,"-")) -> -
A139: Musikudd. | C139: =IF(OR('Tabel 1 Sydj'!C137<5,'Tabel 2 Sydj'!C139<0.5),"-",IFERROR('Tabel 2 Sydj'!C139/'Tabel 1 Sydj'!C137*100,"-")) -> - | D139: =IF(OR('Tabel 1 Sydj'!C137<5,'Tabel 2 Sydj'!D139<0.5),"-",IFERROR('Tabel 2 Sydj'!D139/'Tabel 1 Sydj'!C137*100,"-")) -> - | F139: =IF(OR('Tabel 1 Sydj'!E137<5,'Tabel 2 Sydj'!F139<0.5),"-",IFERROR('Tabel 2 Sydj'!F139/'Tabel 1 Sydj'!E137*100,"-")) -> - | G139: =IF(OR('Tabel 1 Sydj'!E137<5,'Tabel 2 Sydj'!G139<0.5),"-",IFERROR('Tabel 2 Sydj'!G139/'Tabel 1 Sydj'!E137*100,"-")) -> - | I139: =IF(OR('Tabel 1 Sydj'!G137<5,'Tabel 2 Sydj'!I139<0.5),"-",IFERROR('Tabel 2 Sydj'!I139/'Tabel 1 Sydj'!G137*100,"-")) -> - | J139: =IF(OR('Tabel 1 Sydj'!G137<5,'Tabel 2 Sydj'!J139<0.5),"-",IFERROR('Tabel 2 Sydj'!J139/'Tabel 1 Sydj'!G137*100,"-")) -> -
A140: Teolog | C140: =IF(OR('Tabel 1 Sydj'!C138<5,'Tabel 2 Sydj'!C140<0.5),"-",IFERROR('Tabel 2 Sydj'!C140/'Tabel 1 Sydj'!C138*100,"-")) -> - | D140: =IF(OR('Tabel 1 Sydj'!C138<5,'Tabel 2 Sydj'!D140<0.5),"-",IFERROR('Tabel 2 Sydj'!D140/'Tabel 1 Sydj'!C138*100,"-")) -> - | F140: =IF(OR('Tabel 1 Sydj'!E138<5,'Tabel 2 Sydj'!F140<0.5),"-",IFERROR('Tabel 2 Sydj'!F140/'Tabel 1 Sydj'!E138*100,"-")) -> - | G140: =IF(OR('Tabel 1 Sydj'!E138<5,'Tabel 2 Sydj'!G140<0.5),"-",IFERROR('Tabel 2 Sydj'!G140/'Tabel 1 Sydj'!E138*100,"-")) -> - | I140: =IF(OR('Tabel 1 Sydj'!G138<5,'Tabel 2 Sydj'!I140<0.5),"-",IFERROR('Tabel 2 Sydj'!I140/'Tabel 1 Sydj'!G138*100,"-")) -> - | J140: =IF(OR('Tabel 1 Sydj'!G138<5,'Tabel 2 Sydj'!J140<0.5),"-",IFERROR('Tabel 2 Sydj'!J140/'Tabel 1 Sydj'!G138*100,"-")) -> -
A141: Psykolog | C141: =IF(OR('Tabel 1 Sydj'!C139<5,'Tabel 2 Sydj'!C141<0.5),"-",IFERROR('Tabel 2 Sydj'!C141/'Tabel 1 Sydj'!C139*100,"-")) -> - | D141: =IF(OR('Tabel 1 Sydj'!C139<5,'Tabel 2 Sydj'!D141<0.5),"-",IFERROR('Tabel 2 Sydj'!D141/'Tabel 1 Sydj'!C139*100,"-")) -> - | F141: =IF(OR('Tabel 1 Sydj'!E139<5,'Tabel 2 Sydj'!F141<0.5),"-",IFERROR('Tabel 2 Sydj'!F141/'Tabel 1 Sydj'!E139*100,"-")) -> - | G141: =IF(OR('Tabel 1 Sydj'!E139<5,'Tabel 2 Sydj'!G141<0.5),"-",IFERROR('Tabel 2 Sydj'!G141/'Tabel 1 Sydj'!E139*100,"-")) -> - | I141: =IF(OR('Tabel 1 Sydj'!G139<5,'Tabel 2 Sydj'!I141<0.5),"-",IFERROR('Tabel 2 Sydj'!I141/'Tabel 1 Sydj'!G139*100,"-")) -> - | J141: =IF(OR('Tabel 1 Sydj'!G139<5,'Tabel 2 Sydj'!J141<0.5),"-",IFERROR('Tabel 2 Sydj'!J141/'Tabel 1 Sydj'!G139*100,"-")) -> -
A142: Jurist | C142: =IF(OR('Tabel 1 Sydj'!C140<5,'Tabel 2 Sydj'!C142<0.5),"-",IFERROR('Tabel 2 Sydj'!C142/'Tabel 1 Sydj'!C140*100,"-")) -> - | D142: =IF(OR('Tabel 1 Sydj'!C140<5,'Tabel 2 Sydj'!D142<0.5),"-",IFERROR('Tabel 2 Sydj'!D142/'Tabel 1 Sydj'!C140*100,"-")) -> - | F142: =IF(OR('Tabel 1 Sydj'!E140<5,'Tabel 2 Sydj'!F142<0.5),"-",IFERROR('Tabel 2 Sydj'!F142/'Tabel 1 Sydj'!E140*100,"-")) -> - | G142: =IF(OR('Tabel 1 Sydj'!E140<5,'Tabel 2 Sydj'!G142<0.5),"-",IFERROR('Tabel 2 Sydj'!G142/'Tabel 1 Sydj'!E140*100,"-")) -> - | I142: =IF(OR('Tabel 1 Sydj'!G140<5,'Tabel 2 Sydj'!I142<0.5),"-",IFERROR('Tabel 2 Sydj'!I142/'Tabel 1 Sydj'!G140*100,"-")) -> - | J142: =IF(OR('Tabel 1 Sydj'!G140<5,'Tabel 2 Sydj'!J142<0.5),"-",IFERROR('Tabel 2 Sydj'!J142/'Tabel 1 Sydj'!G140*100,"-")) -> -
A143: Økonom | C143: =IF(OR('Tabel 1 Sydj'!C141<5,'Tabel 2 Sydj'!C143<0.5),"-",IFERROR('Tabel 2 Sydj'!C143/'Tabel 1 Sydj'!C141*100,"-")) -> - | D143: =IF(OR('Tabel 1 Sydj'!C141<5,'Tabel 2 Sydj'!D143<0.5),"-",IFERROR('Tabel 2 Sydj'!D143/'Tabel 1 Sydj'!C141*100,"-")) -> - | F143: =IF(OR('Tabel 1 Sydj'!E141<5,'Tabel 2 Sydj'!F143<0.5),"-",IFERROR('Tabel 2 Sydj'!F143/'Tabel 1 Sydj'!E141*100,"-")) -> - | G143: =IF(OR('Tabel 1 Sydj'!E141<5,'Tabel 2 Sydj'!G143<0.5),"-",IFERROR('Tabel 2 Sydj'!G143/'Tabel 1 Sydj'!E141*100,"-")) -> - | I143: =IF(OR('Tabel 1 Sydj'!G141<5,'Tabel 2 Sydj'!I143<0.5),"-",IFERROR('Tabel 2 Sydj'!I143/'Tabel 1 Sydj'!G141*100,"-")) -> - | J143: =IF(OR('Tabel 1 Sydj'!G141<5,'Tabel 2 Sydj'!J143<0.5),"-",IFERROR('Tabel 2 Sydj'!J143/'Tabel 1 Sydj'!G141*100,"-")) -> -
A144: Samf. Adm. | C144: =IF(OR('Tabel 1 Sydj'!C142<5,'Tabel 2 Sydj'!C144<0.5),"-",IFERROR('Tabel 2 Sydj'!C144/'Tabel 1 Sydj'!C142*100,"-")) -> - | D144: =IF(OR('Tabel 1 Sydj'!C142<5,'Tabel 2 Sydj'!D144<0.5),"-",IFERROR('Tabel 2 Sydj'!D144/'Tabel 1 Sydj'!C142*100,"-")) -> - | F144: =IF(OR('Tabel 1 Sydj'!E142<5,'Tabel 2 Sydj'!F144<0.5),"-",IFERROR('Tabel 2 Sydj'!F144/'Tabel 1 Sydj'!E142*100,"-")) -> - | G144: =IF(OR('Tabel 1 Sydj'!E142<5,'Tabel 2 Sydj'!G144<0.5),"-",IFERROR('Tabel 2 Sydj'!G144/'Tabel 1 Sydj'!E142*100,"-")) -> - | I144: =IF(OR('Tabel 1 Sydj'!G142<5,'Tabel 2 Sydj'!I144<0.5),"-",IFERROR('Tabel 2 Sydj'!I144/'Tabel 1 Sydj'!G142*100,"-")) -> - | J144: =IF(OR('Tabel 1 Sydj'!G142<5,'Tabel 2 Sydj'!J144<0.5),"-",IFERROR('Tabel 2 Sydj'!J144/'Tabel 1 Sydj'!G142*100,"-")) -> -
A145: Cand. Merc. | C145: =IF(OR('Tabel 1 Sydj'!C143<5,'Tabel 2 Sydj'!C145<0.5),"-",IFERROR('Tabel 2 Sydj'!C145/'Tabel 1 Sydj'!C143*100,"-")) -> 3.03030303 | D145: =IF(OR('Tabel 1 Sydj'!C143<5,'Tabel 2 Sydj'!D145<0.5),"-",IFERROR('Tabel 2 Sydj'!D145/'Tabel 1 Sydj'!C143*100,"-")) -> - | F145: =IF(OR('Tabel 1 Sydj'!E143<5,'Tabel 2 Sydj'!F145<0.5),"-",IFERROR('Tabel 2 Sydj'!F145/'Tabel 1 Sydj'!E143*100,"-")) -> 6.060606061 | G145: =IF(OR('Tabel 1 Sydj'!E143<5,'Tabel 2 Sydj'!G145<0.5),"-",IFERROR('Tabel 2 Sydj'!G145/'Tabel 1 Sydj'!E143*100,"-")) -> 3.821663274 | I145: =IF(OR('Tabel 1 Sydj'!G143<5,'Tabel 2 Sydj'!I145<0.5),"-",IFERROR('Tabel 2 Sydj'!I145/'Tabel 1 Sydj'!G143*100,"-")) -> 4.545454545 | J145: =IF(OR('Tabel 1 Sydj'!G143<5,'Tabel 2 Sydj'!J145<0.5),"-",IFERROR('Tabel 2 Sydj'!J145/'Tabel 1 Sydj'!G143*100,"-")) -> 2.376726789
A146: HA | C146: =IF(OR('Tabel 1 Sydj'!C144<5,'Tabel 2 Sydj'!C146<0.5),"-",IFERROR('Tabel 2 Sydj'!C146/'Tabel 1 Sydj'!C144*100,"-")) -> - | D146: =IF(OR('Tabel 1 Sydj'!C144<5,'Tabel 2 Sydj'!D146<0.5),"-",IFERROR('Tabel 2 Sydj'!D146/'Tabel 1 Sydj'!C144*100,"-")) -> - | F146: =IF(OR('Tabel 1 Sydj'!E144<5,'Tabel 2 Sydj'!F146<0.5),"-",IFERROR('Tabel 2 Sydj'!F146/'Tabel 1 Sydj'!E144*100,"-")) -> - | G146: =IF(OR('Tabel 1 Sydj'!E144<5,'Tabel 2 Sydj'!G146<0.5),"-",IFERROR('Tabel 2 Sydj'!G146/'Tabel 1 Sydj'!E144*100,"-")) -> - | I146: =IF(OR('Tabel 1 Sydj'!G144<5,'Tabel 2 Sydj'!I146<0.5),"-",IFERROR('Tabel 2 Sydj'!I146/'Tabel 1 Sydj'!G144*100,"-")) -> - | J146: =IF(OR('Tabel 1 Sydj'!G144<5,'Tabel 2 Sydj'!J146<0.5),"-",IFERROR('Tabel 2 Sydj'!J146/'Tabel 1 Sydj'!G144*100,"-")) -> -
A147: HD | C147: =IF(OR('Tabel 1 Sydj'!C145<5,'Tabel 2 Sydj'!C147<0.5),"-",IFERROR('Tabel 2 Sydj'!C147/'Tabel 1 Sydj'!C145*100,"-")) -> - | D147: =IF(OR('Tabel 1 Sydj'!C145<5,'Tabel 2 Sydj'!D147<0.5),"-",IFERROR('Tabel 2 Sydj'!D147/'Tabel 1 Sydj'!C145*100,"-")) -> - | F147: =IF(OR('Tabel 1 Sydj'!E145<5,'Tabel 2 Sydj'!F147<0.5),"-",IFERROR('Tabel 2 Sydj'!F147/'Tabel 1 Sydj'!E145*100,"-")) -> - | G147: =IF(OR('Tabel 1 Sydj'!E145<5,'Tabel 2 Sydj'!G147<0.5),"-",IFERROR('Tabel 2 Sydj'!G147/'Tabel 1 Sydj'!E145*100,"-")) -> - | I147: =IF(OR('Tabel 1 Sydj'!G145<5,'Tabel 2 Sydj'!I147<0.5),"-",IFERROR('Tabel 2 Sydj'!I147/'Tabel 1 Sydj'!G145*100,"-")) -> - | J147: =IF(OR('Tabel 1 Sydj'!G145<5,'Tabel 2 Sydj'!J147<0.5),"-",IFERROR('Tabel 2 Sydj'!J147/'Tabel 1 Sydj'!G145*100,"-")) -> -
A148: Komm. og Sprog | C148: =IF(OR('Tabel 1 Sydj'!C146<5,'Tabel 2 Sydj'!C148<0.5),"-",IFERROR('Tabel 2 Sydj'!C148/'Tabel 1 Sydj'!C146*100,"-")) -> - | D148: =IF(OR('Tabel 1 Sydj'!C146<5,'Tabel 2 Sydj'!D148<0.5),"-",IFERROR('Tabel 2 Sydj'!D148/'Tabel 1 Sydj'!C146*100,"-")) -> - | F148: =IF(OR('Tabel 1 Sydj'!E146<5,'Tabel 2 Sydj'!F148<0.5),"-",IFERROR('Tabel 2 Sydj'!F148/'Tabel 1 Sydj'!E146*100,"-")) -> 6.666666667 | G148: =IF(OR('Tabel 1 Sydj'!E146<5,'Tabel 2 Sydj'!G148<0.5),"-",IFERROR('Tabel 2 Sydj'!G148/'Tabel 1 Sydj'!E146*100,"-")) -> 6.05002183 | I148: =IF(OR('Tabel 1 Sydj'!G146<5,'Tabel 2 Sydj'!I148<0.5),"-",IFERROR('Tabel 2 Sydj'!I148/'Tabel 1 Sydj'!G146*100,"-")) -> 5.882352941 | J148: =IF(OR('Tabel 1 Sydj'!G146<5,'Tabel 2 Sydj'!J148<0.5),"-",IFERROR('Tabel 2 Sydj'!J148/'Tabel 1 Sydj'!G146*100,"-")) -> 5.338254556
A149: Bygningskonst. | C149: =IF(OR('Tabel 1 Sydj'!C147<5,'Tabel 2 Sydj'!C149<0.5),"-",IFERROR('Tabel 2 Sydj'!C149/'Tabel 1 Sydj'!C147*100,"-")) -> - | D149: =IF(OR('Tabel 1 Sydj'!C147<5,'Tabel 2 Sydj'!D149<0.5),"-",IFERROR('Tabel 2 Sydj'!D149/'Tabel 1 Sydj'!C147*100,"-")) -> - | F149: =IF(OR('Tabel 1 Sydj'!E147<5,'Tabel 2 Sydj'!F149<0.5),"-",IFERROR('Tabel 2 Sydj'!F149/'Tabel 1 Sydj'!E147*100,"-")) -> - | G149: =IF(OR('Tabel 1 Sydj'!E147<5,'Tabel 2 Sydj'!G149<0.5),"-",IFERROR('Tabel 2 Sydj'!G149/'Tabel 1 Sydj'!E147*100,"-")) -> - | I149: =IF(OR('Tabel 1 Sydj'!G147<5,'Tabel 2 Sydj'!I149<0.5),"-",IFERROR('Tabel 2 Sydj'!I149/'Tabel 1 Sydj'!G147*100,"-")) -> - | J149: =IF(OR('Tabel 1 Sydj'!G147<5,'Tabel 2 Sydj'!J149<0.5),"-",IFERROR('Tabel 2 Sydj'!J149/'Tabel 1 Sydj'!G147*100,"-")) -> -
A150: Cand. IT. | C150: =IF(OR('Tabel 1 Sydj'!C148<5,'Tabel 2 Sydj'!C150<0.5),"-",IFERROR('Tabel 2 Sydj'!C150/'Tabel 1 Sydj'!C148*100,"-")) -> - | D150: =IF(OR('Tabel 1 Sydj'!C148<5,'Tabel 2 Sydj'!D150<0.5),"-",IFERROR('Tabel 2 Sydj'!D150/'Tabel 1 Sydj'!C148*100,"-")) -> - | F150: =IF(OR('Tabel 1 Sydj'!E148<5,'Tabel 2 Sydj'!F150<0.5),"-",IFERROR('Tabel 2 Sydj'!F150/'Tabel 1 Sydj'!E148*100,"-")) -> - | G150: =IF(OR('Tabel 1 Sydj'!E148<5,'Tabel 2 Sydj'!G150<0.5),"-",IFERROR('Tabel 2 Sydj'!G150/'Tabel 1 Sydj'!E148*100,"-")) -> - | I150: =IF(OR('Tabel 1 Sydj'!G148<5,'Tabel 2 Sydj'!I150<0.5),"-",IFERROR('Tabel 2 Sydj'!I150/'Tabel 1 Sydj'!G148*100,"-")) -> 11.11111111 | J150: =IF(OR('Tabel 1 Sydj'!G148<5,'Tabel 2 Sydj'!J150<0.5),"-",IFERROR('Tabel 2 Sydj'!J150/'Tabel 1 Sydj'!G148*100,"-")) -> 11.10903207
A151: Bac. Samf. | C151: =IF(OR('Tabel 1 Sydj'!C149<5,'Tabel 2 Sydj'!C151<0.5),"-",IFERROR('Tabel 2 Sydj'!C151/'Tabel 1 Sydj'!C149*100,"-")) -> - | D151: =IF(OR('Tabel 1 Sydj'!C149<5,'Tabel 2 Sydj'!D151<0.5),"-",IFERROR('Tabel 2 Sydj'!D151/'Tabel 1 Sydj'!C149*100,"-")) -> - | F151: =IF(OR('Tabel 1 Sydj'!E149<5,'Tabel 2 Sydj'!F151<0.5),"-",IFERROR('Tabel 2 Sydj'!F151/'Tabel 1 Sydj'!E149*100,"-")) -> - | G151: =IF(OR('Tabel 1 Sydj'!E149<5,'Tabel 2 Sydj'!G151<0.5),"-",IFERROR('Tabel 2 Sydj'!G151/'Tabel 1 Sydj'!E149*100,"-")) -> - | I151: =IF(OR('Tabel 1 Sydj'!G149<5,'Tabel 2 Sydj'!I151<0.5),"-",IFERROR('Tabel 2 Sydj'!I151/'Tabel 1 Sydj'!G149*100,"-")) -> - | J151: =IF(OR('Tabel 1 Sydj'!G149<5,'Tabel 2 Sydj'!J151<0.5),"-",IFERROR('Tabel 2 Sydj'!J151/'Tabel 1 Sydj'!G149*100,"-")) -> -
A152: Bac. Hum. | C152: =IF(OR('Tabel 1 Sydj'!C150<5,'Tabel 2 Sydj'!C152<0.5),"-",IFERROR('Tabel 2 Sydj'!C152/'Tabel 1 Sydj'!C150*100,"-")) -> - | D152: =IF(OR('Tabel 1 Sydj'!C150<5,'Tabel 2 Sydj'!D152<0.5),"-",IFERROR('Tabel 2 Sydj'!D152/'Tabel 1 Sydj'!C150*100,"-")) -> - | F152: =IF(OR('Tabel 1 Sydj'!E150<5,'Tabel 2 Sydj'!F152<0.5),"-",IFERROR('Tabel 2 Sydj'!F152/'Tabel 1 Sydj'!E150*100,"-")) -> - | G152: =IF(OR('Tabel 1 Sydj'!E150<5,'Tabel 2 Sydj'!G152<0.5),"-",IFERROR('Tabel 2 Sydj'!G152/'Tabel 1 Sydj'!E150*100,"-")) -> - | I152: =IF(OR('Tabel 1 Sydj'!G150<5,'Tabel 2 Sydj'!I152<0.5),"-",IFERROR('Tabel 2 Sydj'!I152/'Tabel 1 Sydj'!G150*100,"-")) -> - | J152: =IF(OR('Tabel 1 Sydj'!G150<5,'Tabel 2 Sydj'!J152<0.5),"-",IFERROR('Tabel 2 Sydj'!J152/'Tabel 1 Sydj'!G150*100,"-")) -> -
A153: Bac. Nat. | C153: =IF(OR('Tabel 1 Sydj'!C151<5,'Tabel 2 Sydj'!C153<0.5),"-",IFERROR('Tabel 2 Sydj'!C153/'Tabel 1 Sydj'!C151*100,"-")) -> - | D153: =IF(OR('Tabel 1 Sydj'!C151<5,'Tabel 2 Sydj'!D153<0.5),"-",IFERROR('Tabel 2 Sydj'!D153/'Tabel 1 Sydj'!C151*100,"-")) -> - | F153: =IF(OR('Tabel 1 Sydj'!E151<5,'Tabel 2 Sydj'!F153<0.5),"-",IFERROR('Tabel 2 Sydj'!F153/'Tabel 1 Sydj'!E151*100,"-")) -> 60 | G153: =IF(OR('Tabel 1 Sydj'!E151<5,'Tabel 2 Sydj'!G153<0.5),"-",IFERROR('Tabel 2 Sydj'!G153/'Tabel 1 Sydj'!E151*100,"-")) -> 51.68090813 | I153: =IF(OR('Tabel 1 Sydj'!G151<5,'Tabel 2 Sydj'!I153<0.5),"-",IFERROR('Tabel 2 Sydj'!I153/'Tabel 1 Sydj'!G151*100,"-")) -> 21.42857143 | J153: =IF(OR('Tabel 1 Sydj'!G151<5,'Tabel 2 Sydj'!J153<0.5),"-",IFERROR('Tabel 2 Sydj'!J153/'Tabel 1 Sydj'!G151*100,"-")) -> 18.45746719
A154: Andre | C154: =IF(OR('Tabel 1 Sydj'!C152<5,'Tabel 2 Sydj'!C154<0.5),"-",IFERROR('Tabel 2 Sydj'!C154/'Tabel 1 Sydj'!C152*100,"-")) -> - | D154: =IF(OR('Tabel 1 Sydj'!C152<5,'Tabel 2 Sydj'!D154<0.5),"-",IFERROR('Tabel 2 Sydj'!D154/'Tabel 1 Sydj'!C152*100,"-")) -> - | F154: =IF(OR('Tabel 1 Sydj'!E152<5,'Tabel 2 Sydj'!F154<0.5),"-",IFERROR('Tabel 2 Sydj'!F154/'Tabel 1 Sydj'!E152*100,"-")) -> - | G154: =IF(OR('Tabel 1 Sydj'!E152<5,'Tabel 2 Sydj'!G154<0.5),"-",IFERROR('Tabel 2 Sydj'!G154/'Tabel 1 Sydj'!E152*100,"-")) -> - | I154: =IF(OR('Tabel 1 Sydj'!G152<5,'Tabel 2 Sydj'!I154<0.5),"-",IFERROR('Tabel 2 Sydj'!I154/'Tabel 1 Sydj'!G152*100,"-")) -> - | J154: =IF(OR('Tabel 1 Sydj'!G152<5,'Tabel 2 Sydj'!J154<0.5),"-",IFERROR('Tabel 2 Sydj'!J154/'Tabel 1 Sydj'!G152*100,"-")) -> -
A156: Total | C156: =IF(OR('Tabel 1 Sydj'!C154<5,'Tabel 2 Sydj'!C156<0.5),"-",IFERROR('Tabel 2 Sydj'!C156/'Tabel 1 Sydj'!C154*100,"-")) -> 1.454545455 | D156: =IF(OR('Tabel 1 Sydj'!C154<5,'Tabel 2 Sydj'!D156<0.5),"-",IFERROR('Tabel 2 Sydj'!D156/'Tabel 1 Sydj'!C154*100,"-")) -> 0.9133435018 | F156: =IF(OR('Tabel 1 Sydj'!E154<5,'Tabel 2 Sydj'!F156<0.5),"-",IFERROR('Tabel 2 Sydj'!F156/'Tabel 1 Sydj'!E154*100,"-")) -> 4.693140794 | G156: =IF(OR('Tabel 1 Sydj'!E154<5,'Tabel 2 Sydj'!G156<0.5),"-",IFERROR('Tabel 2 Sydj'!G156/'Tabel 1 Sydj'!E154*100,"-")) -> 4.059092022 | I156: =IF(OR('Tabel 1 Sydj'!G154<5,'Tabel 2 Sydj'!I156<0.5),"-",IFERROR('Tabel 2 Sydj'!I156/'Tabel 1 Sydj'!G154*100,"-")) -> 3.079710145 | J156: =IF(OR('Tabel 1 Sydj'!G154<5,'Tabel 2 Sydj'!J156<0.5),"-",IFERROR('Tabel 2 Sydj'!J156/'Tabel 1 Sydj'!G154*100,"-")) -> 2.491916581
A158: Ingeniører i alt | C158: =IF(OR('Tabel 1 Sydj'!C156<5,'Tabel 2 Sydj'!C158<0.5),"-",IFERROR('Tabel 2 Sydj'!C158/'Tabel 1 Sydj'!C156*100,"-")) -> - | D158: =IF(OR('Tabel 1 Sydj'!C156<5,'Tabel 2 Sydj'!D158<0.5),"-",IFERROR('Tabel 2 Sydj'!D158/'Tabel 1 Sydj'!C156*100,"-")) -> - | F158: =IF(OR('Tabel 1 Sydj'!E156<5,'Tabel 2 Sydj'!F158<0.5),"-",IFERROR('Tabel 2 Sydj'!F158/'Tabel 1 Sydj'!E156*100,"-")) -> 2.857142857 | G158: =IF(OR('Tabel 1 Sydj'!E156<5,'Tabel 2 Sydj'!G158<0.5),"-",IFERROR('Tabel 2 Sydj'!G158/'Tabel 1 Sydj'!E156*100,"-")) -> 1.669770384 | I158: =IF(OR('Tabel 1 Sydj'!G156<5,'Tabel 2 Sydj'!I158<0.5),"-",IFERROR('Tabel 2 Sydj'!I158/'Tabel 1 Sydj'!G156*100,"-")) -> 0.7142857143 | J158: =IF(OR('Tabel 1 Sydj'!G156<5,'Tabel 2 Sydj'!J158<0.5),"-",IFERROR('Tabel 2 Sydj'!J158/'Tabel 1 Sydj'!G156*100,"-")) -> 0.4174425961
A159: Magistre i alt | C159: =IF(OR('Tabel 1 Sydj'!C157<5,'Tabel 2 Sydj'!C159<0.5),"-",IFERROR('Tabel 2 Sydj'!C159/'Tabel 1 Sydj'!C157*100,"-")) -> 7.692307692 | D159: =IF(OR('Tabel 1 Sydj'!C157<5,'Tabel 2 Sydj'!D159<0.5),"-",IFERROR('Tabel 2 Sydj'!D159/'Tabel 1 Sydj'!C157*100,"-")) -> 5.579837739 | F159: =IF(OR('Tabel 1 Sydj'!E157<5,'Tabel 2 Sydj'!F159<0.5),"-",IFERROR('Tabel 2 Sydj'!F159/'Tabel 1 Sydj'!E157*100,"-")) -> 9.259259259 | G159: =IF(OR('Tabel 1 Sydj'!E157<5,'Tabel 2 Sydj'!G159<0.5),"-",IFERROR('Tabel 2 Sydj'!G159/'Tabel 1 Sydj'!E157*100,"-")) -> 9.086582997 | I159: =IF(OR('Tabel 1 Sydj'!G157<5,'Tabel 2 Sydj'!I159<0.5),"-",IFERROR('Tabel 2 Sydj'!I159/'Tabel 1 Sydj'!G157*100,"-")) -> 8.75 | J159: =IF(OR('Tabel 1 Sydj'!G157<5,'Tabel 2 Sydj'!J159<0.5),"-",IFERROR('Tabel 2 Sydj'!J159/'Tabel 1 Sydj'!G157*100,"-")) -> 7.946890788
A160: DJØF'ere i alt | C160: =IF(OR('Tabel 1 Sydj'!C158<5,'Tabel 2 Sydj'!C160<0.5),"-",IFERROR('Tabel 2 Sydj'!C160/'Tabel 1 Sydj'!C158*100,"-")) -> 1.666666667 | D160: =IF(OR('Tabel 1 Sydj'!C158<5,'Tabel 2 Sydj'!D160<0.5),"-",IFERROR('Tabel 2 Sydj'!D160/'Tabel 1 Sydj'!C158*100,"-")) -> - | F160: =IF(OR('Tabel 1 Sydj'!E158<5,'Tabel 2 Sydj'!F160<0.5),"-",IFERROR('Tabel 2 Sydj'!F160/'Tabel 1 Sydj'!E158*100,"-")) -> 2.857142857 | G160: =IF(OR('Tabel 1 Sydj'!E158<5,'Tabel 2 Sydj'!G160<0.5),"-",IFERROR('Tabel 2 Sydj'!G160/'Tabel 1 Sydj'!E158*100,"-")) -> 1.801641258 | I160: =IF(OR('Tabel 1 Sydj'!G158<5,'Tabel 2 Sydj'!I160<0.5),"-",IFERROR('Tabel 2 Sydj'!I160/'Tabel 1 Sydj'!G158*100,"-")) -> 2.307692308 | J160: =IF(OR('Tabel 1 Sydj'!G158<5,'Tabel 2 Sydj'!J160<0.5),"-",IFERROR('Tabel 2 Sydj'!J160/'Tabel 1 Sydj'!G158*100,"-")) -> 1.206645908
A165: Sønderborg
C167: Mænd | F167: Kvinder | I167: I alt
C168: Ledigheds- berørte | D168: Gns. brutto- ledighed | F168: Ledigheds- berørte | G168: Gns. brutto- ledighed | I168: Ledigheds- berørte | J168: Gns. brutto- ledighed
A171: Civ. ing. | C171: =IF(OR('Tabel 1 Sydj'!C169<5,'Tabel 2 Sydj'!C171<0.5),"-",IFERROR('Tabel 2 Sydj'!C171/'Tabel 1 Sydj'!C169*100,"-")) -> 0.8474576271 | D171: =IF(OR('Tabel 1 Sydj'!C169<5,'Tabel 2 Sydj'!D171<0.5),"-",IFERROR('Tabel 2 Sydj'!D171/'Tabel 1 Sydj'!C169*100,"-")) -> 0.8081848137 | F171: =IF(OR('Tabel 1 Sydj'!E169<5,'Tabel 2 Sydj'!F171<0.5),"-",IFERROR('Tabel 2 Sydj'!F171/'Tabel 1 Sydj'!E169*100,"-")) -> - | G171: =IF(OR('Tabel 1 Sydj'!E169<5,'Tabel 2 Sydj'!G171<0.5),"-",IFERROR('Tabel 2 Sydj'!G171/'Tabel 1 Sydj'!E169*100,"-")) -> - | I171: =IF(OR('Tabel 1 Sydj'!G169<5,'Tabel 2 Sydj'!I171<0.5),"-",IFERROR('Tabel 2 Sydj'!I171/'Tabel 1 Sydj'!G169*100,"-")) -> 0.6944444444 | J171: =IF(OR('Tabel 1 Sydj'!G169<5,'Tabel 2 Sydj'!J171<0.5),"-",IFERROR('Tabel 2 Sydj'!J171/'Tabel 1 Sydj'!G169*100,"-")) -> 0.6622625557
A172: Diplom ing. | C172: =IF(OR('Tabel 1 Sydj'!C170<5,'Tabel 2 Sydj'!C172<0.5),"-",IFERROR('Tabel 2 Sydj'!C172/'Tabel 1 Sydj'!C170*100,"-")) -> 1.843317972 | D172: =IF(OR('Tabel 1 Sydj'!C170<5,'Tabel 2 Sydj'!D172<0.5),"-",IFERROR('Tabel 2 Sydj'!D172/'Tabel 1 Sydj'!C170*100,"-")) -> 1.466062268 | F172: =IF(OR('Tabel 1 Sydj'!E170<5,'Tabel 2 Sydj'!F172<0.5),"-",IFERROR('Tabel 2 Sydj'!F172/'Tabel 1 Sydj'!E170*100,"-")) -> - | G172: =IF(OR('Tabel 1 Sydj'!E170<5,'Tabel 2 Sydj'!G172<0.5),"-",IFERROR('Tabel 2 Sydj'!G172/'Tabel 1 Sydj'!E170*100,"-")) -> - | I172: =IF(OR('Tabel 1 Sydj'!G170<5,'Tabel 2 Sydj'!I172<0.5),"-",IFERROR('Tabel 2 Sydj'!I172/'Tabel 1 Sydj'!G170*100,"-")) -> 1.608579088 | J172: =IF(OR('Tabel 1 Sydj'!G170<5,'Tabel 2 Sydj'!J172<0.5),"-",IFERROR('Tabel 2 Sydj'!J172/'Tabel 1 Sydj'!G170*100,"-")) -> 1.27936533
A173: Cand. Scient. Tek. | C173: =IF(OR('Tabel 1 Sydj'!C171<5,'Tabel 2 Sydj'!C173<0.5),"-",IFERROR('Tabel 2 Sydj'!C173/'Tabel 1 Sydj'!C171*100,"-")) -> 2.803738318 | D173: =IF(OR('Tabel 1 Sydj'!C171<5,'Tabel 2 Sydj'!D173<0.5),"-",IFERROR('Tabel 2 Sydj'!D173/'Tabel 1 Sydj'!C171*100,"-")) -> 2.803213699 | F173: =IF(OR('Tabel 1 Sydj'!E171<5,'Tabel 2 Sydj'!F173<0.5),"-",IFERROR('Tabel 2 Sydj'!F173/'Tabel 1 Sydj'!E171*100,"-")) -> 2.222222222 | G173: =IF(OR('Tabel 1 Sydj'!E171<5,'Tabel 2 Sydj'!G173<0.5),"-",IFERROR('Tabel 2 Sydj'!G173/'Tabel 1 Sydj'!E171*100,"-")) -> - | I173: =IF(OR('Tabel 1 Sydj'!G171<5,'Tabel 2 Sydj'!I173<0.5),"-",IFERROR('Tabel 2 Sydj'!I173/'Tabel 1 Sydj'!G171*100,"-")) -> 2.631578947 | J173: =IF(OR('Tabel 1 Sydj'!G171<5,'Tabel 2 Sydj'!J173<0.5),"-",IFERROR('Tabel 2 Sydj'!J173/'Tabel 1 Sydj'!G171*100,"-")) -> 2.266706497
A174: MA. Hum. | C174: =IF(OR('Tabel 1 Sydj'!C172<5,'Tabel 2 Sydj'!C174<0.5),"-",IFERROR('Tabel 2 Sydj'!C174/'Tabel 1 Sydj'!C172*100,"-")) -> 4.918032787 | D174: =IF(OR('Tabel 1 Sydj'!C172<5,'Tabel 2 Sydj'!D174<0.5),"-",IFERROR('Tabel 2 Sydj'!D174/'Tabel 1 Sydj'!C172*100,"-")) -> 4.917112554 | F174: =IF(OR('Tabel 1 Sydj'!E172<5,'Tabel 2 Sydj'!F174<0.5),"-",IFERROR('Tabel 2 Sydj'!F174/'Tabel 1 Sydj'!E172*100,"-")) -> 4.137931034 | G174: =IF(OR('Tabel 1 Sydj'!E172<5,'Tabel 2 Sydj'!G174<0.5),"-",IFERROR('Tabel 2 Sydj'!G174/'Tabel 1 Sydj'!E172*100,"-")) -> 2.708637573 | I174: =IF(OR('Tabel 1 Sydj'!G172<5,'Tabel 2 Sydj'!I174<0.5),"-",IFERROR('Tabel 2 Sydj'!I174/'Tabel 1 Sydj'!G172*100,"-")) -> 4.368932039 | J174: =IF(OR('Tabel 1 Sydj'!G172<5,'Tabel 2 Sydj'!J174<0.5),"-",IFERROR('Tabel 2 Sydj'!J174/'Tabel 1 Sydj'!G172*100,"-")) -> 3.362603465
A175: MA. Nat. | C175: =IF(OR('Tabel 1 Sydj'!C173<5,'Tabel 2 Sydj'!C175<0.5),"-",IFERROR('Tabel 2 Sydj'!C175/'Tabel 1 Sydj'!C173*100,"-")) -> 2.43902439 | D175: =IF(OR('Tabel 1 Sydj'!C173<5,'Tabel 2 Sydj'!D175<0.5),"-",IFERROR('Tabel 2 Sydj'!D175/'Tabel 1 Sydj'!C173*100,"-")) -> 2.438568014 | F175: =IF(OR('Tabel 1 Sydj'!E173<5,'Tabel 2 Sydj'!F175<0.5),"-",IFERROR('Tabel 2 Sydj'!F175/'Tabel 1 Sydj'!E173*100,"-")) -> - | G175: =IF(OR('Tabel 1 Sydj'!E173<5,'Tabel 2 Sydj'!G175<0.5),"-",IFERROR('Tabel 2 Sydj'!G175/'Tabel 1 Sydj'!E173*100,"-")) -> - | I175: =IF(OR('Tabel 1 Sydj'!G173<5,'Tabel 2 Sydj'!I175<0.5),"-",IFERROR('Tabel 2 Sydj'!I175/'Tabel 1 Sydj'!G173*100,"-")) -> 1.282051282 | J175: =IF(OR('Tabel 1 Sydj'!G173<5,'Tabel 2 Sydj'!J175<0.5),"-",IFERROR('Tabel 2 Sydj'!J175/'Tabel 1 Sydj'!G173*100,"-")) -> 1.281811392
A176: MA. Ph.d. | C176: =IF(OR('Tabel 1 Sydj'!C174<5,'Tabel 2 Sydj'!C176<0.5),"-",IFERROR('Tabel 2 Sydj'!C176/'Tabel 1 Sydj'!C174*100,"-")) -> - | D176: =IF(OR('Tabel 1 Sydj'!C174<5,'Tabel 2 Sydj'!D176<0.5),"-",IFERROR('Tabel 2 Sydj'!D176/'Tabel 1 Sydj'!C174*100,"-")) -> - | F176: =IF(OR('Tabel 1 Sydj'!E174<5,'Tabel 2 Sydj'!F176<0.5),"-",IFERROR('Tabel 2 Sydj'!F176/'Tabel 1 Sydj'!E174*100,"-")) -> - | G176: =IF(OR('Tabel 1 Sydj'!E174<5,'Tabel 2 Sydj'!G176<0.5),"-",IFERROR('Tabel 2 Sydj'!G176/'Tabel 1 Sydj'!E174*100,"-")) -> - | I176: =IF(OR('Tabel 1 Sydj'!G174<5,'Tabel 2 Sydj'!I176<0.5),"-",IFERROR('Tabel 2 Sydj'!I176/'Tabel 1 Sydj'!G174*100,"-")) -> - | J176: =IF(OR('Tabel 1 Sydj'!G174<5,'Tabel 2 Sydj'!J176<0.5),"-",IFERROR('Tabel 2 Sydj'!J176/'Tabel 1 Sydj'!G174*100,"-")) -> -
A177: MA. Samf. | C177: =IF(OR('Tabel 1 Sydj'!C175<5,'Tabel 2 Sydj'!C177<0.5),"-",IFERROR('Tabel 2 Sydj'!C177/'Tabel 1 Sydj'!C175*100,"-")) -> - | D177: =IF(OR('Tabel 1 Sydj'!C175<5,'Tabel 2 Sydj'!D177<0.5),"-",IFERROR('Tabel 2 Sydj'!D177/'Tabel 1 Sydj'!C175*100,"-")) -> - | F177: =IF(OR('Tabel 1 Sydj'!E175<5,'Tabel 2 Sydj'!F177<0.5),"-",IFERROR('Tabel 2 Sydj'!F177/'Tabel 1 Sydj'!E175*100,"-")) -> 8.333333333 | G177: =IF(OR('Tabel 1 Sydj'!E175<5,'Tabel 2 Sydj'!G177<0.5),"-",IFERROR('Tabel 2 Sydj'!G177/'Tabel 1 Sydj'!E175*100,"-")) -> 7.562527287 | I177: =IF(OR('Tabel 1 Sydj'!G175<5,'Tabel 2 Sydj'!I177<0.5),"-",IFERROR('Tabel 2 Sydj'!I177/'Tabel 1 Sydj'!G175*100,"-")) -> 7.142857143 | J177: =IF(OR('Tabel 1 Sydj'!G175<5,'Tabel 2 Sydj'!J177<0.5),"-",IFERROR('Tabel 2 Sydj'!J177/'Tabel 1 Sydj'!G175*100,"-")) -> 6.482166246
A178: Øvrige Mag. | C178: =IF(OR('Tabel 1 Sydj'!C176<5,'Tabel 2 Sydj'!C178<0.5),"-",IFERROR('Tabel 2 Sydj'!C178/'Tabel 1 Sydj'!C176*100,"-")) -> - | D178: =IF(OR('Tabel 1 Sydj'!C176<5,'Tabel 2 Sydj'!D178<0.5),"-",IFERROR('Tabel 2 Sydj'!D178/'Tabel 1 Sydj'!C176*100,"-")) -> - | F178: =IF(OR('Tabel 1 Sydj'!E176<5,'Tabel 2 Sydj'!F178<0.5),"-",IFERROR('Tabel 2 Sydj'!F178/'Tabel 1 Sydj'!E176*100,"-")) -> - | G178: =IF(OR('Tabel 1 Sydj'!E176<5,'Tabel 2 Sydj'!G178<0.5),"-",IFERROR('Tabel 2 Sydj'!G178/'Tabel 1 Sydj'!E176*100,"-")) -> - | I178: =IF(OR('Tabel 1 Sydj'!G176<5,'Tabel 2 Sydj'!I178<0.5),"-",IFERROR('Tabel 2 Sydj'!I178/'Tabel 1 Sydj'!G176*100,"-")) -> - | J178: =IF(OR('Tabel 1 Sydj'!G176<5,'Tabel 2 Sydj'!J178<0.5),"-",IFERROR('Tabel 2 Sydj'!J178/'Tabel 1 Sydj'!G176*100,"-")) -> -
A179: Agronom | C179: =IF(OR('Tabel 1 Sydj'!C177<5,'Tabel 2 Sydj'!C179<0.5),"-",IFERROR('Tabel 2 Sydj'!C179/'Tabel 1 Sydj'!C177*100,"-")) -> - | D179: =IF(OR('Tabel 1 Sydj'!C177<5,'Tabel 2 Sydj'!D179<0.5),"-",IFERROR('Tabel 2 Sydj'!D179/'Tabel 1 Sydj'!C177*100,"-")) -> - | F179: =IF(OR('Tabel 1 Sydj'!E177<5,'Tabel 2 Sydj'!F179<0.5),"-",IFERROR('Tabel 2 Sydj'!F179/'Tabel 1 Sydj'!E177*100,"-")) -> - | G179: =IF(OR('Tabel 1 Sydj'!E177<5,'Tabel 2 Sydj'!G179<0.5),"-",IFERROR('Tabel 2 Sydj'!G179/'Tabel 1 Sydj'!E177*100,"-")) -> - | I179: =IF(OR('Tabel 1 Sydj'!G177<5,'Tabel 2 Sydj'!I179<0.5),"-",IFERROR('Tabel 2 Sydj'!I179/'Tabel 1 Sydj'!G177*100,"-")) -> - | J179: =IF(OR('Tabel 1 Sydj'!G177<5,'Tabel 2 Sydj'!J179<0.5),"-",IFERROR('Tabel 2 Sydj'!J179/'Tabel 1 Sydj'!G177*100,"-")) -> -
A180: Landsk. Arkt. | C180: =IF(OR('Tabel 1 Sydj'!C178<5,'Tabel 2 Sydj'!C180<0.5),"-",IFERROR('Tabel 2 Sydj'!C180/'Tabel 1 Sydj'!C178*100,"-")) -> - | D180: =IF(OR('Tabel 1 Sydj'!C178<5,'Tabel 2 Sydj'!D180<0.5),"-",IFERROR('Tabel 2 Sydj'!D180/'Tabel 1 Sydj'!C178*100,"-")) -> - | F180: =IF(OR('Tabel 1 Sydj'!E178<5,'Tabel 2 Sydj'!F180<0.5),"-",IFERROR('Tabel 2 Sydj'!F180/'Tabel 1 Sydj'!E178*100,"-")) -> 20 | G180: =IF(OR('Tabel 1 Sydj'!E178<5,'Tabel 2 Sydj'!G180<0.5),"-",IFERROR('Tabel 2 Sydj'!G180/'Tabel 1 Sydj'!E178*100,"-")) -> 19.99625772 | I180: =IF(OR('Tabel 1 Sydj'!G178<5,'Tabel 2 Sydj'!I180<0.5),"-",IFERROR('Tabel 2 Sydj'!I180/'Tabel 1 Sydj'!G178*100,"-")) -> 20 | J180: =IF(OR('Tabel 1 Sydj'!G178<5,'Tabel 2 Sydj'!J180<0.5),"-",IFERROR('Tabel 2 Sydj'!J180/'Tabel 1 Sydj'!G178*100,"-")) -> 19.99625772
A181: Hortonom | C181: =IF(OR('Tabel 1 Sydj'!C179<5,'Tabel 2 Sydj'!C181<0.5),"-",IFERROR('Tabel 2 Sydj'!C181/'Tabel 1 Sydj'!C179*100,"-")) -> - | D181: =IF(OR('Tabel 1 Sydj'!C179<5,'Tabel 2 Sydj'!D181<0.5),"-",IFERROR('Tabel 2 Sydj'!D181/'Tabel 1 Sydj'!C179*100,"-")) -> - | F181: =IF(OR('Tabel 1 Sydj'!E179<5,'Tabel 2 Sydj'!F181<0.5),"-",IFERROR('Tabel 2 Sydj'!F181/'Tabel 1 Sydj'!E179*100,"-")) -> - | G181: =IF(OR('Tabel 1 Sydj'!E179<5,'Tabel 2 Sydj'!G181<0.5),"-",IFERROR('Tabel 2 Sydj'!G181/'Tabel 1 Sydj'!E179*100,"-")) -> - | I181: =IF(OR('Tabel 1 Sydj'!G179<5,'Tabel 2 Sydj'!I181<0.5),"-",IFERROR('Tabel 2 Sydj'!I181/'Tabel 1 Sydj'!G179*100,"-")) -> - | J181: =IF(OR('Tabel 1 Sydj'!G179<5,'Tabel 2 Sydj'!J181<0.5),"-",IFERROR('Tabel 2 Sydj'!J181/'Tabel 1 Sydj'!G179*100,"-")) -> -
A182: Forstkand. | C182: =IF(OR('Tabel 1 Sydj'!C180<5,'Tabel 2 Sydj'!C182<0.5),"-",IFERROR('Tabel 2 Sydj'!C182/'Tabel 1 Sydj'!C180*100,"-")) -> - | D182: =IF(OR('Tabel 1 Sydj'!C180<5,'Tabel 2 Sydj'!D182<0.5),"-",IFERROR('Tabel 2 Sydj'!D182/'Tabel 1 Sydj'!C180*100,"-")) -> - | F182: =IF(OR('Tabel 1 Sydj'!E180<5,'Tabel 2 Sydj'!F182<0.5),"-",IFERROR('Tabel 2 Sydj'!F182/'Tabel 1 Sydj'!E180*100,"-")) -> - | G182: =IF(OR('Tabel 1 Sydj'!E180<5,'Tabel 2 Sydj'!G182<0.5),"-",IFERROR('Tabel 2 Sydj'!G182/'Tabel 1 Sydj'!E180*100,"-")) -> - | I182: =IF(OR('Tabel 1 Sydj'!G180<5,'Tabel 2 Sydj'!I182<0.5),"-",IFERROR('Tabel 2 Sydj'!I182/'Tabel 1 Sydj'!G180*100,"-")) -> - | J182: =IF(OR('Tabel 1 Sydj'!G180<5,'Tabel 2 Sydj'!J182<0.5),"-",IFERROR('Tabel 2 Sydj'!J182/'Tabel 1 Sydj'!G180*100,"-")) -> -
A183: Jordbrugsakad. | C183: =IF(OR('Tabel 1 Sydj'!C181<5,'Tabel 2 Sydj'!C183<0.5),"-",IFERROR('Tabel 2 Sydj'!C183/'Tabel 1 Sydj'!C181*100,"-")) -> - | D183: =IF(OR('Tabel 1 Sydj'!C181<5,'Tabel 2 Sydj'!D183<0.5),"-",IFERROR('Tabel 2 Sydj'!D183/'Tabel 1 Sydj'!C181*100,"-")) -> - | F183: =IF(OR('Tabel 1 Sydj'!E181<5,'Tabel 2 Sydj'!F183<0.5),"-",IFERROR('Tabel 2 Sydj'!F183/'Tabel 1 Sydj'!E181*100,"-")) -> 7.692307692 | G183: =IF(OR('Tabel 1 Sydj'!E181<5,'Tabel 2 Sydj'!G183<0.5),"-",IFERROR('Tabel 2 Sydj'!G183/'Tabel 1 Sydj'!E181*100,"-")) -> 7.690868353 | I183: =IF(OR('Tabel 1 Sydj'!G181<5,'Tabel 2 Sydj'!I183<0.5),"-",IFERROR('Tabel 2 Sydj'!I183/'Tabel 1 Sydj'!G181*100,"-")) -> 3.571428571 | J183: =IF(OR('Tabel 1 Sydj'!G181<5,'Tabel 2 Sydj'!J183<0.5),"-",IFERROR('Tabel 2 Sydj'!J183/'Tabel 1 Sydj'!G181*100,"-")) -> 3.570760307
A184: Mejeriing. | C184: =IF(OR('Tabel 1 Sydj'!C182<5,'Tabel 2 Sydj'!C184<0.5),"-",IFERROR('Tabel 2 Sydj'!C184/'Tabel 1 Sydj'!C182*100,"-")) -> - | D184: =IF(OR('Tabel 1 Sydj'!C182<5,'Tabel 2 Sydj'!D184<0.5),"-",IFERROR('Tabel 2 Sydj'!D184/'Tabel 1 Sydj'!C182*100,"-")) -> - | F184: =IF(OR('Tabel 1 Sydj'!E182<5,'Tabel 2 Sydj'!F184<0.5),"-",IFERROR('Tabel 2 Sydj'!F184/'Tabel 1 Sydj'!E182*100,"-")) -> - | G184: =IF(OR('Tabel 1 Sydj'!E182<5,'Tabel 2 Sydj'!G184<0.5),"-",IFERROR('Tabel 2 Sydj'!G184/'Tabel 1 Sydj'!E182*100,"-")) -> - | I184: =IF(OR('Tabel 1 Sydj'!G182<5,'Tabel 2 Sydj'!I184<0.5),"-",IFERROR('Tabel 2 Sydj'!I184/'Tabel 1 Sydj'!G182*100,"-")) -> - | J184: =IF(OR('Tabel 1 Sydj'!G182<5,'Tabel 2 Sydj'!J184<0.5),"-",IFERROR('Tabel 2 Sydj'!J184/'Tabel 1 Sydj'!G182*100,"-")) -> -
A185: Levn.m.kand. | C185: =IF(OR('Tabel 1 Sydj'!C183<5,'Tabel 2 Sydj'!C185<0.5),"-",IFERROR('Tabel 2 Sydj'!C185/'Tabel 1 Sydj'!C183*100,"-")) -> - | D185: =IF(OR('Tabel 1 Sydj'!C183<5,'Tabel 2 Sydj'!D185<0.5),"-",IFERROR('Tabel 2 Sydj'!D185/'Tabel 1 Sydj'!C183*100,"-")) -> - | F185: =IF(OR('Tabel 1 Sydj'!E183<5,'Tabel 2 Sydj'!F185<0.5),"-",IFERROR('Tabel 2 Sydj'!F185/'Tabel 1 Sydj'!E183*100,"-")) -> - | G185: =IF(OR('Tabel 1 Sydj'!E183<5,'Tabel 2 Sydj'!G185<0.5),"-",IFERROR('Tabel 2 Sydj'!G185/'Tabel 1 Sydj'!E183*100,"-")) -> - | I185: =IF(OR('Tabel 1 Sydj'!G183<5,'Tabel 2 Sydj'!I185<0.5),"-",IFERROR('Tabel 2 Sydj'!I185/'Tabel 1 Sydj'!G183*100,"-")) -> - | J185: =IF(OR('Tabel 1 Sydj'!G183<5,'Tabel 2 Sydj'!J185<0.5),"-",IFERROR('Tabel 2 Sydj'!J185/'Tabel 1 Sydj'!G183*100,"-")) -> -
A186: Dyrlæge | C186: =IF(OR('Tabel 1 Sydj'!C184<5,'Tabel 2 Sydj'!C186<0.5),"-",IFERROR('Tabel 2 Sydj'!C186/'Tabel 1 Sydj'!C184*100,"-")) -> - | D186: =IF(OR('Tabel 1 Sydj'!C184<5,'Tabel 2 Sydj'!D186<0.5),"-",IFERROR('Tabel 2 Sydj'!D186/'Tabel 1 Sydj'!C184*100,"-")) -> - | F186: =IF(OR('Tabel 1 Sydj'!E184<5,'Tabel 2 Sydj'!F186<0.5),"-",IFERROR('Tabel 2 Sydj'!F186/'Tabel 1 Sydj'!E184*100,"-")) -> - | G186: =IF(OR('Tabel 1 Sydj'!E184<5,'Tabel 2 Sydj'!G186<0.5),"-",IFERROR('Tabel 2 Sydj'!G186/'Tabel 1 Sydj'!E184*100,"-")) -> - | I186: =IF(OR('Tabel 1 Sydj'!G184<5,'Tabel 2 Sydj'!I186<0.5),"-",IFERROR('Tabel 2 Sydj'!I186/'Tabel 1 Sydj'!G184*100,"-")) -> - | J186: =IF(OR('Tabel 1 Sydj'!G184<5,'Tabel 2 Sydj'!J186<0.5),"-",IFERROR('Tabel 2 Sydj'!J186/'Tabel 1 Sydj'!G184*100,"-")) -> -
A187: Farmaceut | C187: =IF(OR('Tabel 1 Sydj'!C185<5,'Tabel 2 Sydj'!C187<0.5),"-",IFERROR('Tabel 2 Sydj'!C187/'Tabel 1 Sydj'!C185*100,"-")) -> - | D187: =IF(OR('Tabel 1 Sydj'!C185<5,'Tabel 2 Sydj'!D187<0.5),"-",IFERROR('Tabel 2 Sydj'!D187/'Tabel 1 Sydj'!C185*100,"-")) -> - | F187: =IF(OR('Tabel 1 Sydj'!E185<5,'Tabel 2 Sydj'!F187<0.5),"-",IFERROR('Tabel 2 Sydj'!F187/'Tabel 1 Sydj'!E185*100,"-")) -> 6.25 | G187: =IF(OR('Tabel 1 Sydj'!E185<5,'Tabel 2 Sydj'!G187<0.5),"-",IFERROR('Tabel 2 Sydj'!G187/'Tabel 1 Sydj'!E185*100,"-")) -> 4.518025323 | I187: =IF(OR('Tabel 1 Sydj'!G185<5,'Tabel 2 Sydj'!I187<0.5),"-",IFERROR('Tabel 2 Sydj'!I187/'Tabel 1 Sydj'!G185*100,"-")) -> 5 | J187: =IF(OR('Tabel 1 Sydj'!G185<5,'Tabel 2 Sydj'!J187<0.5),"-",IFERROR('Tabel 2 Sydj'!J187/'Tabel 1 Sydj'!G185*100,"-")) -> 3.614420258
A188: Læge | C188: =IF(OR('Tabel 1 Sydj'!C186<5,'Tabel 2 Sydj'!C188<0.5),"-",IFERROR('Tabel 2 Sydj'!C188/'Tabel 1 Sydj'!C186*100,"-")) -> - | D188: =IF(OR('Tabel 1 Sydj'!C186<5,'Tabel 2 Sydj'!D188<0.5),"-",IFERROR('Tabel 2 Sydj'!D188/'Tabel 1 Sydj'!C186*100,"-")) -> - | F188: =IF(OR('Tabel 1 Sydj'!E186<5,'Tabel 2 Sydj'!F188<0.5),"-",IFERROR('Tabel 2 Sydj'!F188/'Tabel 1 Sydj'!E186*100,"-")) -> - | G188: =IF(OR('Tabel 1 Sydj'!E186<5,'Tabel 2 Sydj'!G188<0.5),"-",IFERROR('Tabel 2 Sydj'!G188/'Tabel 1 Sydj'!E186*100,"-")) -> - | I188: =IF(OR('Tabel 1 Sydj'!G186<5,'Tabel 2 Sydj'!I188<0.5),"-",IFERROR('Tabel 2 Sydj'!I188/'Tabel 1 Sydj'!G186*100,"-")) -> - | J188: =IF(OR('Tabel 1 Sydj'!G186<5,'Tabel 2 Sydj'!J188<0.5),"-",IFERROR('Tabel 2 Sydj'!J188/'Tabel 1 Sydj'!G186*100,"-")) -> -
A189: Tandlæge | C189: =IF(OR('Tabel 1 Sydj'!C187<5,'Tabel 2 Sydj'!C189<0.5),"-",IFERROR('Tabel 2 Sydj'!C189/'Tabel 1 Sydj'!C187*100,"-")) -> - | D189: =IF(OR('Tabel 1 Sydj'!C187<5,'Tabel 2 Sydj'!D189<0.5),"-",IFERROR('Tabel 2 Sydj'!D189/'Tabel 1 Sydj'!C187*100,"-")) -> - | F189: =IF(OR('Tabel 1 Sydj'!E187<5,'Tabel 2 Sydj'!F189<0.5),"-",IFERROR('Tabel 2 Sydj'!F189/'Tabel 1 Sydj'!E187*100,"-")) -> - | G189: =IF(OR('Tabel 1 Sydj'!E187<5,'Tabel 2 Sydj'!G189<0.5),"-",IFERROR('Tabel 2 Sydj'!G189/'Tabel 1 Sydj'!E187*100,"-")) -> - | I189: =IF(OR('Tabel 1 Sydj'!G187<5,'Tabel 2 Sydj'!I189<0.5),"-",IFERROR('Tabel 2 Sydj'!I189/'Tabel 1 Sydj'!G187*100,"-")) -> - | J189: =IF(OR('Tabel 1 Sydj'!G187<5,'Tabel 2 Sydj'!J189<0.5),"-",IFERROR('Tabel 2 Sydj'!J189/'Tabel 1 Sydj'!G187*100,"-")) -> -
A190: Arkitekt | C190: =IF(OR('Tabel 1 Sydj'!C188<5,'Tabel 2 Sydj'!C190<0.5),"-",IFERROR('Tabel 2 Sydj'!C190/'Tabel 1 Sydj'!C188*100,"-")) -> - | D190: =IF(OR('Tabel 1 Sydj'!C188<5,'Tabel 2 Sydj'!D190<0.5),"-",IFERROR('Tabel 2 Sydj'!D190/'Tabel 1 Sydj'!C188*100,"-")) -> - | F190: =IF(OR('Tabel 1 Sydj'!E188<5,'Tabel 2 Sydj'!F190<0.5),"-",IFERROR('Tabel 2 Sydj'!F190/'Tabel 1 Sydj'!E188*100,"-")) -> - | G190: =IF(OR('Tabel 1 Sydj'!E188<5,'Tabel 2 Sydj'!G190<0.5),"-",IFERROR('Tabel 2 Sydj'!G190/'Tabel 1 Sydj'!E188*100,"-")) -> - | I190: =IF(OR('Tabel 1 Sydj'!G188<5,'Tabel 2 Sydj'!I190<0.5),"-",IFERROR('Tabel 2 Sydj'!I190/'Tabel 1 Sydj'!G188*100,"-")) -> - | J190: =IF(OR('Tabel 1 Sydj'!G188<5,'Tabel 2 Sydj'!J190<0.5),"-",IFERROR('Tabel 2 Sydj'!J190/'Tabel 1 Sydj'!G188*100,"-")) -> -
A191: Landinspek. | C191: =IF(OR('Tabel 1 Sydj'!C189<5,'Tabel 2 Sydj'!C191<0.5),"-",IFERROR('Tabel 2 Sydj'!C191/'Tabel 1 Sydj'!C189*100,"-")) -> - | D191: =IF(OR('Tabel 1 Sydj'!C189<5,'Tabel 2 Sydj'!D191<0.5),"-",IFERROR('Tabel 2 Sydj'!D191/'Tabel 1 Sydj'!C189*100,"-")) -> - | F191: =IF(OR('Tabel 1 Sydj'!E189<5,'Tabel 2 Sydj'!F191<0.5),"-",IFERROR('Tabel 2 Sydj'!F191/'Tabel 1 Sydj'!E189*100,"-")) -> - | G191: =IF(OR('Tabel 1 Sydj'!E189<5,'Tabel 2 Sydj'!G191<0.5),"-",IFERROR('Tabel 2 Sydj'!G191/'Tabel 1 Sydj'!E189*100,"-")) -> - | I191: =IF(OR('Tabel 1 Sydj'!G189<5,'Tabel 2 Sydj'!I191<0.5),"-",IFERROR('Tabel 2 Sydj'!I191/'Tabel 1 Sydj'!G189*100,"-")) -> - | J191: =IF(OR('Tabel 1 Sydj'!G189<5,'Tabel 2 Sydj'!J191<0.5),"-",IFERROR('Tabel 2 Sydj'!J191/'Tabel 1 Sydj'!G189*100,"-")) -> -
A192: Bibliotekar | C192: =IF(OR('Tabel 1 Sydj'!C190<5,'Tabel 2 Sydj'!C192<0.5),"-",IFERROR('Tabel 2 Sydj'!C192/'Tabel 1 Sydj'!C190*100,"-")) -> - | D192: =IF(OR('Tabel 1 Sydj'!C190<5,'Tabel 2 Sydj'!D192<0.5),"-",IFERROR('Tabel 2 Sydj'!D192/'Tabel 1 Sydj'!C190*100,"-")) -> - | F192: =IF(OR('Tabel 1 Sydj'!E190<5,'Tabel 2 Sydj'!F192<0.5),"-",IFERROR('Tabel 2 Sydj'!F192/'Tabel 1 Sydj'!E190*100,"-")) -> - | G192: =IF(OR('Tabel 1 Sydj'!E190<5,'Tabel 2 Sydj'!G192<0.5),"-",IFERROR('Tabel 2 Sydj'!G192/'Tabel 1 Sydj'!E190*100,"-")) -> - | I192: =IF(OR('Tabel 1 Sydj'!G190<5,'Tabel 2 Sydj'!I192<0.5),"-",IFERROR('Tabel 2 Sydj'!I192/'Tabel 1 Sydj'!G190*100,"-")) -> - | J192: =IF(OR('Tabel 1 Sydj'!G190<5,'Tabel 2 Sydj'!J192<0.5),"-",IFERROR('Tabel 2 Sydj'!J192/'Tabel 1 Sydj'!G190*100,"-")) -> -
A193: Musikudd. | C193: =IF(OR('Tabel 1 Sydj'!C191<5,'Tabel 2 Sydj'!C193<0.5),"-",IFERROR('Tabel 2 Sydj'!C193/'Tabel 1 Sydj'!C191*100,"-")) -> - | D193: =IF(OR('Tabel 1 Sydj'!C191<5,'Tabel 2 Sydj'!D193<0.5),"-",IFERROR('Tabel 2 Sydj'!D193/'Tabel 1 Sydj'!C191*100,"-")) -> - | F193: =IF(OR('Tabel 1 Sydj'!E191<5,'Tabel 2 Sydj'!F193<0.5),"-",IFERROR('Tabel 2 Sydj'!F193/'Tabel 1 Sydj'!E191*100,"-")) -> - | G193: =IF(OR('Tabel 1 Sydj'!E191<5,'Tabel 2 Sydj'!G193<0.5),"-",IFERROR('Tabel 2 Sydj'!G193/'Tabel 1 Sydj'!E191*100,"-")) -> - | I193: =IF(OR('Tabel 1 Sydj'!G191<5,'Tabel 2 Sydj'!I193<0.5),"-",IFERROR('Tabel 2 Sydj'!I193/'Tabel 1 Sydj'!G191*100,"-")) -> - | J193: =IF(OR('Tabel 1 Sydj'!G191<5,'Tabel 2 Sydj'!J193<0.5),"-",IFERROR('Tabel 2 Sydj'!J193/'Tabel 1 Sydj'!G191*100,"-")) -> -
A194: Teolog | C194: =IF(OR('Tabel 1 Sydj'!C192<5,'Tabel 2 Sydj'!C194<0.5),"-",IFERROR('Tabel 2 Sydj'!C194/'Tabel 1 Sydj'!C192*100,"-")) -> - | D194: =IF(OR('Tabel 1 Sydj'!C192<5,'Tabel 2 Sydj'!D194<0.5),"-",IFERROR('Tabel 2 Sydj'!D194/'Tabel 1 Sydj'!C192*100,"-")) -> - | F194: =IF(OR('Tabel 1 Sydj'!E192<5,'Tabel 2 Sydj'!F194<0.5),"-",IFERROR('Tabel 2 Sydj'!F194/'Tabel 1 Sydj'!E192*100,"-")) -> - | G194: =IF(OR('Tabel 1 Sydj'!E192<5,'Tabel 2 Sydj'!G194<0.5),"-",IFERROR('Tabel 2 Sydj'!G194/'Tabel 1 Sydj'!E192*100,"-")) -> - | I194: =IF(OR('Tabel 1 Sydj'!G192<5,'Tabel 2 Sydj'!I194<0.5),"-",IFERROR('Tabel 2 Sydj'!I194/'Tabel 1 Sydj'!G192*100,"-")) -> - | J194: =IF(OR('Tabel 1 Sydj'!G192<5,'Tabel 2 Sydj'!J194<0.5),"-",IFERROR('Tabel 2 Sydj'!J194/'Tabel 1 Sydj'!G192*100,"-")) -> -
A195: Psykolog | C195: =IF(OR('Tabel 1 Sydj'!C193<5,'Tabel 2 Sydj'!C195<0.5),"-",IFERROR('Tabel 2 Sydj'!C195/'Tabel 1 Sydj'!C193*100,"-")) -> - | D195: =IF(OR('Tabel 1 Sydj'!C193<5,'Tabel 2 Sydj'!D195<0.5),"-",IFERROR('Tabel 2 Sydj'!D195/'Tabel 1 Sydj'!C193*100,"-")) -> - | F195: =IF(OR('Tabel 1 Sydj'!E193<5,'Tabel 2 Sydj'!F195<0.5),"-",IFERROR('Tabel 2 Sydj'!F195/'Tabel 1 Sydj'!E193*100,"-")) -> 2.5 | G195: =IF(OR('Tabel 1 Sydj'!E193<5,'Tabel 2 Sydj'!G195<0.5),"-",IFERROR('Tabel 2 Sydj'!G195/'Tabel 1 Sydj'!E193*100,"-")) -> - | I195: =IF(OR('Tabel 1 Sydj'!G193<5,'Tabel 2 Sydj'!I195<0.5),"-",IFERROR('Tabel 2 Sydj'!I195/'Tabel 1 Sydj'!G193*100,"-")) -> 2.040816327 | J195: =IF(OR('Tabel 1 Sydj'!G193<5,'Tabel 2 Sydj'!J195<0.5),"-",IFERROR('Tabel 2 Sydj'!J195/'Tabel 1 Sydj'!G193*100,"-")) -> -
A196: Jurist | C196: =IF(OR('Tabel 1 Sydj'!C194<5,'Tabel 2 Sydj'!C196<0.5),"-",IFERROR('Tabel 2 Sydj'!C196/'Tabel 1 Sydj'!C194*100,"-")) -> - | D196: =IF(OR('Tabel 1 Sydj'!C194<5,'Tabel 2 Sydj'!D196<0.5),"-",IFERROR('Tabel 2 Sydj'!D196/'Tabel 1 Sydj'!C194*100,"-")) -> - | F196: =IF(OR('Tabel 1 Sydj'!E194<5,'Tabel 2 Sydj'!F196<0.5),"-",IFERROR('Tabel 2 Sydj'!F196/'Tabel 1 Sydj'!E194*100,"-")) -> - | G196: =IF(OR('Tabel 1 Sydj'!E194<5,'Tabel 2 Sydj'!G196<0.5),"-",IFERROR('Tabel 2 Sydj'!G196/'Tabel 1 Sydj'!E194*100,"-")) -> - | I196: =IF(OR('Tabel 1 Sydj'!G194<5,'Tabel 2 Sydj'!I196<0.5),"-",IFERROR('Tabel 2 Sydj'!I196/'Tabel 1 Sydj'!G194*100,"-")) -> - | J196: =IF(OR('Tabel 1 Sydj'!G194<5,'Tabel 2 Sydj'!J196<0.5),"-",IFERROR('Tabel 2 Sydj'!J196/'Tabel 1 Sydj'!G194*100,"-")) -> -
A197: Økonom | C197: =IF(OR('Tabel 1 Sydj'!C195<5,'Tabel 2 Sydj'!C197<0.5),"-",IFERROR('Tabel 2 Sydj'!C197/'Tabel 1 Sydj'!C195*100,"-")) -> - | D197: =IF(OR('Tabel 1 Sydj'!C195<5,'Tabel 2 Sydj'!D197<0.5),"-",IFERROR('Tabel 2 Sydj'!D197/'Tabel 1 Sydj'!C195*100,"-")) -> - | F197: =IF(OR('Tabel 1 Sydj'!E195<5,'Tabel 2 Sydj'!F197<0.5),"-",IFERROR('Tabel 2 Sydj'!F197/'Tabel 1 Sydj'!E195*100,"-")) -> - | G197: =IF(OR('Tabel 1 Sydj'!E195<5,'Tabel 2 Sydj'!G197<0.5),"-",IFERROR('Tabel 2 Sydj'!G197/'Tabel 1 Sydj'!E195*100,"-")) -> - | I197: =IF(OR('Tabel 1 Sydj'!G195<5,'Tabel 2 Sydj'!I197<0.5),"-",IFERROR('Tabel 2 Sydj'!I197/'Tabel 1 Sydj'!G195*100,"-")) -> - | J197: =IF(OR('Tabel 1 Sydj'!G195<5,'Tabel 2 Sydj'!J197<0.5),"-",IFERROR('Tabel 2 Sydj'!J197/'Tabel 1 Sydj'!G195*100,"-")) -> -
A198: Samf. Adm. | C198: =IF(OR('Tabel 1 Sydj'!C196<5,'Tabel 2 Sydj'!C198<0.5),"-",IFERROR('Tabel 2 Sydj'!C198/'Tabel 1 Sydj'!C196*100,"-")) -> 2.380952381 | D198: =IF(OR('Tabel 1 Sydj'!C196<5,'Tabel 2 Sydj'!D198<0.5),"-",IFERROR('Tabel 2 Sydj'!D198/'Tabel 1 Sydj'!C196*100,"-")) -> 1.281582926 | F198: =IF(OR('Tabel 1 Sydj'!E196<5,'Tabel 2 Sydj'!F198<0.5),"-",IFERROR('Tabel 2 Sydj'!F198/'Tabel 1 Sydj'!E196*100,"-")) -> 7.272727273 | G198: =IF(OR('Tabel 1 Sydj'!E196<5,'Tabel 2 Sydj'!G198<0.5),"-",IFERROR('Tabel 2 Sydj'!G198/'Tabel 1 Sydj'!E196*100,"-")) -> 6.012599015 | I198: =IF(OR('Tabel 1 Sydj'!G196<5,'Tabel 2 Sydj'!I198<0.5),"-",IFERROR('Tabel 2 Sydj'!I198/'Tabel 1 Sydj'!G196*100,"-")) -> 5.154639175 | J198: =IF(OR('Tabel 1 Sydj'!G196<5,'Tabel 2 Sydj'!J198<0.5),"-",IFERROR('Tabel 2 Sydj'!J198/'Tabel 1 Sydj'!G196*100,"-")) -> 3.964117821
A199: Cand. Merc. | C199: =IF(OR('Tabel 1 Sydj'!C197<5,'Tabel 2 Sydj'!C199<0.5),"-",IFERROR('Tabel 2 Sydj'!C199/'Tabel 1 Sydj'!C197*100,"-")) -> 2.830188679 | D199: =IF(OR('Tabel 1 Sydj'!C197<5,'Tabel 2 Sydj'!D199<0.5),"-",IFERROR('Tabel 2 Sydj'!D199/'Tabel 1 Sydj'!C197*100,"-")) -> 2.437778685 | F199: =IF(OR('Tabel 1 Sydj'!E197<5,'Tabel 2 Sydj'!F199<0.5),"-",IFERROR('Tabel 2 Sydj'!F199/'Tabel 1 Sydj'!E197*100,"-")) -> 0.9174311927 | G199: =IF(OR('Tabel 1 Sydj'!E197<5,'Tabel 2 Sydj'!G199<0.5),"-",IFERROR('Tabel 2 Sydj'!G199/'Tabel 1 Sydj'!E197*100,"-")) -> 0.9172595284 | I199: =IF(OR('Tabel 1 Sydj'!G197<5,'Tabel 2 Sydj'!I199<0.5),"-",IFERROR('Tabel 2 Sydj'!I199/'Tabel 1 Sydj'!G197*100,"-")) -> 1.860465116 | J199: =IF(OR('Tabel 1 Sydj'!G197<5,'Tabel 2 Sydj'!J199<0.5),"-",IFERROR('Tabel 2 Sydj'!J199/'Tabel 1 Sydj'!G197*100,"-")) -> 1.666910834
A200: HA | C200: =IF(OR('Tabel 1 Sydj'!C198<5,'Tabel 2 Sydj'!C200<0.5),"-",IFERROR('Tabel 2 Sydj'!C200/'Tabel 1 Sydj'!C198*100,"-")) -> 4.347826087 | D200: =IF(OR('Tabel 1 Sydj'!C198<5,'Tabel 2 Sydj'!D200<0.5),"-",IFERROR('Tabel 2 Sydj'!D200/'Tabel 1 Sydj'!C198*100,"-")) -> 4.292776583 | F200: =IF(OR('Tabel 1 Sydj'!E198<5,'Tabel 2 Sydj'!F200<0.5),"-",IFERROR('Tabel 2 Sydj'!F200/'Tabel 1 Sydj'!E198*100,"-")) -> - | G200: =IF(OR('Tabel 1 Sydj'!E198<5,'Tabel 2 Sydj'!G200<0.5),"-",IFERROR('Tabel 2 Sydj'!G200/'Tabel 1 Sydj'!E198*100,"-")) -> - | I200: =IF(OR('Tabel 1 Sydj'!G198<5,'Tabel 2 Sydj'!I200<0.5),"-",IFERROR('Tabel 2 Sydj'!I200/'Tabel 1 Sydj'!G198*100,"-")) -> 2.43902439 | J200: =IF(OR('Tabel 1 Sydj'!G198<5,'Tabel 2 Sydj'!J200<0.5),"-",IFERROR('Tabel 2 Sydj'!J200/'Tabel 1 Sydj'!G198*100,"-")) -> 2.408142961
A201: HD | C201: =IF(OR('Tabel 1 Sydj'!C199<5,'Tabel 2 Sydj'!C201<0.5),"-",IFERROR('Tabel 2 Sydj'!C201/'Tabel 1 Sydj'!C199*100,"-")) -> 3.571428571 | D201: =IF(OR('Tabel 1 Sydj'!C199<5,'Tabel 2 Sydj'!D201<0.5),"-",IFERROR('Tabel 2 Sydj'!D201/'Tabel 1 Sydj'!C199*100,"-")) -> 3.570760307 | F201: =IF(OR('Tabel 1 Sydj'!E199<5,'Tabel 2 Sydj'!F201<0.5),"-",IFERROR('Tabel 2 Sydj'!F201/'Tabel 1 Sydj'!E199*100,"-")) -> 9.090909091 | G201: =IF(OR('Tabel 1 Sydj'!E199<5,'Tabel 2 Sydj'!G201<0.5),"-",IFERROR('Tabel 2 Sydj'!G201/'Tabel 1 Sydj'!E199*100,"-")) -> 9.089208054 | I201: =IF(OR('Tabel 1 Sydj'!G199<5,'Tabel 2 Sydj'!I201<0.5),"-",IFERROR('Tabel 2 Sydj'!I201/'Tabel 1 Sydj'!G199*100,"-")) -> 6 | J201: =IF(OR('Tabel 1 Sydj'!G199<5,'Tabel 2 Sydj'!J201<0.5),"-",IFERROR('Tabel 2 Sydj'!J201/'Tabel 1 Sydj'!G199*100,"-")) -> 5.998877316
A202: Komm. og Sprog | C202: =IF(OR('Tabel 1 Sydj'!C200<5,'Tabel 2 Sydj'!C202<0.5),"-",IFERROR('Tabel 2 Sydj'!C202/'Tabel 1 Sydj'!C200*100,"-")) -> - | D202: =IF(OR('Tabel 1 Sydj'!C200<5,'Tabel 2 Sydj'!D202<0.5),"-",IFERROR('Tabel 2 Sydj'!D202/'Tabel 1 Sydj'!C200*100,"-")) -> - | F202: =IF(OR('Tabel 1 Sydj'!E200<5,'Tabel 2 Sydj'!F202<0.5),"-",IFERROR('Tabel 2 Sydj'!F202/'Tabel 1 Sydj'!E200*100,"-")) -> 3.636363636 | G202: =IF(OR('Tabel 1 Sydj'!E200<5,'Tabel 2 Sydj'!G202<0.5),"-",IFERROR('Tabel 2 Sydj'!G202/'Tabel 1 Sydj'!E200*100,"-")) -> 3.635683222 | I202: =IF(OR('Tabel 1 Sydj'!G200<5,'Tabel 2 Sydj'!I202<0.5),"-",IFERROR('Tabel 2 Sydj'!I202/'Tabel 1 Sydj'!G200*100,"-")) -> 3.278688525 | J202: =IF(OR('Tabel 1 Sydj'!G200<5,'Tabel 2 Sydj'!J202<0.5),"-",IFERROR('Tabel 2 Sydj'!J202/'Tabel 1 Sydj'!G200*100,"-")) -> 3.278075036
A203: Bygningskonst. | C203: =IF(OR('Tabel 1 Sydj'!C201<5,'Tabel 2 Sydj'!C203<0.5),"-",IFERROR('Tabel 2 Sydj'!C203/'Tabel 1 Sydj'!C201*100,"-")) -> 4 | D203: =IF(OR('Tabel 1 Sydj'!C201<5,'Tabel 2 Sydj'!D203<0.5),"-",IFERROR('Tabel 2 Sydj'!D203/'Tabel 1 Sydj'!C201*100,"-")) -> 3.907690389 | F203: =IF(OR('Tabel 1 Sydj'!E201<5,'Tabel 2 Sydj'!F203<0.5),"-",IFERROR('Tabel 2 Sydj'!F203/'Tabel 1 Sydj'!E201*100,"-")) -> - | G203: =IF(OR('Tabel 1 Sydj'!E201<5,'Tabel 2 Sydj'!G203<0.5),"-",IFERROR('Tabel 2 Sydj'!G203/'Tabel 1 Sydj'!E201*100,"-")) -> - | I203: =IF(OR('Tabel 1 Sydj'!G201<5,'Tabel 2 Sydj'!I203<0.5),"-",IFERROR('Tabel 2 Sydj'!I203/'Tabel 1 Sydj'!G201*100,"-")) -> 3.703703704 | J203: =IF(OR('Tabel 1 Sydj'!G201<5,'Tabel 2 Sydj'!J203<0.5),"-",IFERROR('Tabel 2 Sydj'!J203/'Tabel 1 Sydj'!G201*100,"-")) -> 3.618231841
A204: Cand. IT. | C204: =IF(OR('Tabel 1 Sydj'!C202<5,'Tabel 2 Sydj'!C204<0.5),"-",IFERROR('Tabel 2 Sydj'!C204/'Tabel 1 Sydj'!C202*100,"-")) -> 12.5 | D204: =IF(OR('Tabel 1 Sydj'!C202<5,'Tabel 2 Sydj'!D204<0.5),"-",IFERROR('Tabel 2 Sydj'!D204/'Tabel 1 Sydj'!C202*100,"-")) -> 11.920726 | F204: =IF(OR('Tabel 1 Sydj'!E202<5,'Tabel 2 Sydj'!F204<0.5),"-",IFERROR('Tabel 2 Sydj'!F204/'Tabel 1 Sydj'!E202*100,"-")) -> 9.090909091 | G204: =IF(OR('Tabel 1 Sydj'!E202<5,'Tabel 2 Sydj'!G204<0.5),"-",IFERROR('Tabel 2 Sydj'!G204/'Tabel 1 Sydj'!E202*100,"-")) -> 5.732494911 | I204: =IF(OR('Tabel 1 Sydj'!G202<5,'Tabel 2 Sydj'!I204<0.5),"-",IFERROR('Tabel 2 Sydj'!I204/'Tabel 1 Sydj'!G202*100,"-")) -> 11.11111111 | J204: =IF(OR('Tabel 1 Sydj'!G202<5,'Tabel 2 Sydj'!J204<0.5),"-",IFERROR('Tabel 2 Sydj'!J204/'Tabel 1 Sydj'!G202*100,"-")) -> 9.399594817
A205: Bac. Samf. | C205: =IF(OR('Tabel 1 Sydj'!C203<5,'Tabel 2 Sydj'!C205<0.5),"-",IFERROR('Tabel 2 Sydj'!C205/'Tabel 1 Sydj'!C203*100,"-")) -> - | D205: =IF(OR('Tabel 1 Sydj'!C203<5,'Tabel 2 Sydj'!D205<0.5),"-",IFERROR('Tabel 2 Sydj'!D205/'Tabel 1 Sydj'!C203*100,"-")) -> - | F205: =IF(OR('Tabel 1 Sydj'!E203<5,'Tabel 2 Sydj'!F205<0.5),"-",IFERROR('Tabel 2 Sydj'!F205/'Tabel 1 Sydj'!E203*100,"-")) -> 18.18181818 | G205: =IF(OR('Tabel 1 Sydj'!E203<5,'Tabel 2 Sydj'!G205<0.5),"-",IFERROR('Tabel 2 Sydj'!G205/'Tabel 1 Sydj'!E203*100,"-")) -> 16.14284175 | I205: =IF(OR('Tabel 1 Sydj'!G203<5,'Tabel 2 Sydj'!I205<0.5),"-",IFERROR('Tabel 2 Sydj'!I205/'Tabel 1 Sydj'!G203*100,"-")) -> 16.66666667 | J205: =IF(OR('Tabel 1 Sydj'!G203<5,'Tabel 2 Sydj'!J205<0.5),"-",IFERROR('Tabel 2 Sydj'!J205/'Tabel 1 Sydj'!G203*100,"-")) -> 14.79760494
A206: Bac. Hum. | C206: =IF(OR('Tabel 1 Sydj'!C204<5,'Tabel 2 Sydj'!C206<0.5),"-",IFERROR('Tabel 2 Sydj'!C206/'Tabel 1 Sydj'!C204*100,"-")) -> - | D206: =IF(OR('Tabel 1 Sydj'!C204<5,'Tabel 2 Sydj'!D206<0.5),"-",IFERROR('Tabel 2 Sydj'!D206/'Tabel 1 Sydj'!C204*100,"-")) -> - | F206: =IF(OR('Tabel 1 Sydj'!E204<5,'Tabel 2 Sydj'!F206<0.5),"-",IFERROR('Tabel 2 Sydj'!F206/'Tabel 1 Sydj'!E204*100,"-")) -> - | G206: =IF(OR('Tabel 1 Sydj'!E204<5,'Tabel 2 Sydj'!G206<0.5),"-",IFERROR('Tabel 2 Sydj'!G206/'Tabel 1 Sydj'!E204*100,"-")) -> - | I206: =IF(OR('Tabel 1 Sydj'!G204<5,'Tabel 2 Sydj'!I206<0.5),"-",IFERROR('Tabel 2 Sydj'!I206/'Tabel 1 Sydj'!G204*100,"-")) -> - | J206: =IF(OR('Tabel 1 Sydj'!G204<5,'Tabel 2 Sydj'!J206<0.5),"-",IFERROR('Tabel 2 Sydj'!J206/'Tabel 1 Sydj'!G204*100,"-")) -> -
A207: Bac. Nat. | C207: =IF(OR('Tabel 1 Sydj'!C205<5,'Tabel 2 Sydj'!C207<0.5),"-",IFERROR('Tabel 2 Sydj'!C207/'Tabel 1 Sydj'!C205*100,"-")) -> 3.03030303 | D207: =IF(OR('Tabel 1 Sydj'!C205<5,'Tabel 2 Sydj'!D207<0.5),"-",IFERROR('Tabel 2 Sydj'!D207/'Tabel 1 Sydj'!C205*100,"-")) -> 3.029736018 | F207: =IF(OR('Tabel 1 Sydj'!E205<5,'Tabel 2 Sydj'!F207<0.5),"-",IFERROR('Tabel 2 Sydj'!F207/'Tabel 1 Sydj'!E205*100,"-")) -> 20 | G207: =IF(OR('Tabel 1 Sydj'!E205<5,'Tabel 2 Sydj'!G207<0.5),"-",IFERROR('Tabel 2 Sydj'!G207/'Tabel 1 Sydj'!E205*100,"-")) -> 11.50127861 | I207: =IF(OR('Tabel 1 Sydj'!G205<5,'Tabel 2 Sydj'!I207<0.5),"-",IFERROR('Tabel 2 Sydj'!I207/'Tabel 1 Sydj'!G205*100,"-")) -> 6.976744186 | J207: =IF(OR('Tabel 1 Sydj'!G205<5,'Tabel 2 Sydj'!J207<0.5),"-",IFERROR('Tabel 2 Sydj'!J207/'Tabel 1 Sydj'!G205*100,"-")) -> 4.999862203
A208: Andre | C208: =IF(OR('Tabel 1 Sydj'!C206<5,'Tabel 2 Sydj'!C208<0.5),"-",IFERROR('Tabel 2 Sydj'!C208/'Tabel 1 Sydj'!C206*100,"-")) -> 1.162790698 | D208: =IF(OR('Tabel 1 Sydj'!C206<5,'Tabel 2 Sydj'!D208<0.5),"-",IFERROR('Tabel 2 Sydj'!D208/'Tabel 1 Sydj'!C206*100,"-")) -> 0.6186368522 | F208: =IF(OR('Tabel 1 Sydj'!E206<5,'Tabel 2 Sydj'!F208<0.5),"-",IFERROR('Tabel 2 Sydj'!F208/'Tabel 1 Sydj'!E206*100,"-")) -> 3.225806452 | G208: =IF(OR('Tabel 1 Sydj'!E206<5,'Tabel 2 Sydj'!G208<0.5),"-",IFERROR('Tabel 2 Sydj'!G208/'Tabel 1 Sydj'!E206*100,"-")) -> 3.225202858 | I208: =IF(OR('Tabel 1 Sydj'!G206<5,'Tabel 2 Sydj'!I208<0.5),"-",IFERROR('Tabel 2 Sydj'!I208/'Tabel 1 Sydj'!G206*100,"-")) -> 2.027027027 | J208: =IF(OR('Tabel 1 Sydj'!G206<5,'Tabel 2 Sydj'!J208<0.5),"-",IFERROR('Tabel 2 Sydj'!J208/'Tabel 1 Sydj'!G206*100,"-")) -> 1.710576665
A210: Total | C210: =IF(OR('Tabel 1 Sydj'!C208<5,'Tabel 2 Sydj'!C210<0.5),"-",IFERROR('Tabel 2 Sydj'!C210/'Tabel 1 Sydj'!C208*100,"-")) -> 2.044497895 | D210: =IF(OR('Tabel 1 Sydj'!C208<5,'Tabel 2 Sydj'!D210<0.5),"-",IFERROR('Tabel 2 Sydj'!D210/'Tabel 1 Sydj'!C208*100,"-")) -> 1.800353218 | F210: =IF(OR('Tabel 1 Sydj'!E208<5,'Tabel 2 Sydj'!F210<0.5),"-",IFERROR('Tabel 2 Sydj'!F210/'Tabel 1 Sydj'!E208*100,"-")) -> 2.566539924 | G210: =IF(OR('Tabel 1 Sydj'!E208<5,'Tabel 2 Sydj'!G210<0.5),"-",IFERROR('Tabel 2 Sydj'!G210/'Tabel 1 Sydj'!E208*100,"-")) -> 2.008274758 | I210: =IF(OR('Tabel 1 Sydj'!G208<5,'Tabel 2 Sydj'!I210<0.5),"-",IFERROR('Tabel 2 Sydj'!I210/'Tabel 1 Sydj'!G208*100,"-")) -> 2.246777164 | J210: =IF(OR('Tabel 1 Sydj'!G208<5,'Tabel 2 Sydj'!J210<0.5),"-",IFERROR('Tabel 2 Sydj'!J210/'Tabel 1 Sydj'!G208*100,"-")) -> 1.880918028
A212: Ingeniører i alt | C212: =IF(OR('Tabel 1 Sydj'!C210<5,'Tabel 2 Sydj'!C212<0.5),"-",IFERROR('Tabel 2 Sydj'!C212/'Tabel 1 Sydj'!C210*100,"-")) -> 1.578354002 | D212: =IF(OR('Tabel 1 Sydj'!C210<5,'Tabel 2 Sydj'!D212<0.5),"-",IFERROR('Tabel 2 Sydj'!D212/'Tabel 1 Sydj'!C210*100,"-")) -> 1.291023847 | F212: =IF(OR('Tabel 1 Sydj'!E210<5,'Tabel 2 Sydj'!F212<0.5),"-",IFERROR('Tabel 2 Sydj'!F212/'Tabel 1 Sydj'!E210*100,"-")) -> - | G212: =IF(OR('Tabel 1 Sydj'!E210<5,'Tabel 2 Sydj'!G212<0.5),"-",IFERROR('Tabel 2 Sydj'!G212/'Tabel 1 Sydj'!E210*100,"-")) -> - | I212: =IF(OR('Tabel 1 Sydj'!G210<5,'Tabel 2 Sydj'!I212<0.5),"-",IFERROR('Tabel 2 Sydj'!I212/'Tabel 1 Sydj'!G210*100,"-")) -> 1.353965184 | J212: =IF(OR('Tabel 1 Sydj'!G210<5,'Tabel 2 Sydj'!J212<0.5),"-",IFERROR('Tabel 2 Sydj'!J212/'Tabel 1 Sydj'!G210*100,"-")) -> 1.107483707
A213: Magistre i alt | C213: =IF(OR('Tabel 1 Sydj'!C211<5,'Tabel 2 Sydj'!C213<0.5),"-",IFERROR('Tabel 2 Sydj'!C213/'Tabel 1 Sydj'!C211*100,"-")) -> 3.418803419 | D213: =IF(OR('Tabel 1 Sydj'!C211<5,'Tabel 2 Sydj'!D213<0.5),"-",IFERROR('Tabel 2 Sydj'!D213/'Tabel 1 Sydj'!C211*100,"-")) -> 3.418163713 | F213: =IF(OR('Tabel 1 Sydj'!E211<5,'Tabel 2 Sydj'!F213<0.5),"-",IFERROR('Tabel 2 Sydj'!F213/'Tabel 1 Sydj'!E211*100,"-")) -> 3.240740741 | G213: =IF(OR('Tabel 1 Sydj'!E211<5,'Tabel 2 Sydj'!G213<0.5),"-",IFERROR('Tabel 2 Sydj'!G213/'Tabel 1 Sydj'!E211*100,"-")) -> 2.238438776 | I213: =IF(OR('Tabel 1 Sydj'!G211<5,'Tabel 2 Sydj'!I213<0.5),"-",IFERROR('Tabel 2 Sydj'!I213/'Tabel 1 Sydj'!G211*100,"-")) -> 3.303303303 | J213: =IF(OR('Tabel 1 Sydj'!G211<5,'Tabel 2 Sydj'!J213<0.5),"-",IFERROR('Tabel 2 Sydj'!J213/'Tabel 1 Sydj'!G211*100,"-")) -> 2.652936726
A214: DJØF'ere i alt | C214: =IF(OR('Tabel 1 Sydj'!C212<5,'Tabel 2 Sydj'!C214<0.5),"-",IFERROR('Tabel 2 Sydj'!C214/'Tabel 1 Sydj'!C212*100,"-")) -> 2.489626556 | D214: =IF(OR('Tabel 1 Sydj'!C212<5,'Tabel 2 Sydj'!D214<0.5),"-",IFERROR('Tabel 2 Sydj'!D214/'Tabel 1 Sydj'!C212*100,"-")) -> 2.114932557 | F214: =IF(OR('Tabel 1 Sydj'!E212<5,'Tabel 2 Sydj'!F214<0.5),"-",IFERROR('Tabel 2 Sydj'!F214/'Tabel 1 Sydj'!E212*100,"-")) -> 1.984126984 | G214: =IF(OR('Tabel 1 Sydj'!E212<5,'Tabel 2 Sydj'!G214<0.5),"-",IFERROR('Tabel 2 Sydj'!G214/'Tabel 1 Sydj'!E212*100,"-")) -> 1.70902474 | I214: =IF(OR('Tabel 1 Sydj'!G212<5,'Tabel 2 Sydj'!I214<0.5),"-",IFERROR('Tabel 2 Sydj'!I214/'Tabel 1 Sydj'!G212*100,"-")) -> 2.231237323 | J214: =IF(OR('Tabel 1 Sydj'!G212<5,'Tabel 2 Sydj'!J214<0.5),"-",IFERROR('Tabel 2 Sydj'!J214/'Tabel 1 Sydj'!G212*100,"-")) -> 1.907450265
A219: Tønder
C221: Mænd | F221: Kvinder | I221: I alt
C222: Ledigheds- berørte | D222: Gns. brutto- ledighed | F222: Ledigheds- berørte | G222: Gns. brutto- ledighed | I222: Ledigheds- berørte | J222: Gns. brutto- ledighed
A225: Civ. ing. | C225: =IF(OR('Tabel 1 Sydj'!C223<5,'Tabel 2 Sydj'!C225<0.5),"-",IFERROR('Tabel 2 Sydj'!C225/'Tabel 1 Sydj'!C223*100,"-")) -> 4.545454545 | D225: =IF(OR('Tabel 1 Sydj'!C223<5,'Tabel 2 Sydj'!D225<0.5),"-",IFERROR('Tabel 2 Sydj'!D225/'Tabel 1 Sydj'!C223*100,"-")) -> - | F225: =IF(OR('Tabel 1 Sydj'!E223<5,'Tabel 2 Sydj'!F225<0.5),"-",IFERROR('Tabel 2 Sydj'!F225/'Tabel 1 Sydj'!E223*100,"-")) -> - | G225: =IF(OR('Tabel 1 Sydj'!E223<5,'Tabel 2 Sydj'!G225<0.5),"-",IFERROR('Tabel 2 Sydj'!G225/'Tabel 1 Sydj'!E223*100,"-")) -> - | I225: =IF(OR('Tabel 1 Sydj'!G223<5,'Tabel 2 Sydj'!I225<0.5),"-",IFERROR('Tabel 2 Sydj'!I225/'Tabel 1 Sydj'!G223*100,"-")) -> 2.857142857 | J225: =IF(OR('Tabel 1 Sydj'!G223<5,'Tabel 2 Sydj'!J225<0.5),"-",IFERROR('Tabel 2 Sydj'!J225/'Tabel 1 Sydj'!G223*100,"-")) -> -
A226: Diplom ing. | C226: =IF(OR('Tabel 1 Sydj'!C224<5,'Tabel 2 Sydj'!C226<0.5),"-",IFERROR('Tabel 2 Sydj'!C226/'Tabel 1 Sydj'!C224*100,"-")) -> 2.5 | D226: =IF(OR('Tabel 1 Sydj'!C224<5,'Tabel 2 Sydj'!D226<0.5),"-",IFERROR('Tabel 2 Sydj'!D226/'Tabel 1 Sydj'!C224*100,"-")) -> 2.499532215 | F226: =IF(OR('Tabel 1 Sydj'!E224<5,'Tabel 2 Sydj'!F226<0.5),"-",IFERROR('Tabel 2 Sydj'!F226/'Tabel 1 Sydj'!E224*100,"-")) -> - | G226: =IF(OR('Tabel 1 Sydj'!E224<5,'Tabel 2 Sydj'!G226<0.5),"-",IFERROR('Tabel 2 Sydj'!G226/'Tabel 1 Sydj'!E224*100,"-")) -> - | I226: =IF(OR('Tabel 1 Sydj'!G224<5,'Tabel 2 Sydj'!I226<0.5),"-",IFERROR('Tabel 2 Sydj'!I226/'Tabel 1 Sydj'!G224*100,"-")) -> 1.851851852 | J226: =IF(OR('Tabel 1 Sydj'!G224<5,'Tabel 2 Sydj'!J226<0.5),"-",IFERROR('Tabel 2 Sydj'!J226/'Tabel 1 Sydj'!G224*100,"-")) -> 1.851505344
A227: Cand. Scient. Tek. | C227: =IF(OR('Tabel 1 Sydj'!C225<5,'Tabel 2 Sydj'!C227<0.5),"-",IFERROR('Tabel 2 Sydj'!C227/'Tabel 1 Sydj'!C225*100,"-")) -> - | D227: =IF(OR('Tabel 1 Sydj'!C225<5,'Tabel 2 Sydj'!D227<0.5),"-",IFERROR('Tabel 2 Sydj'!D227/'Tabel 1 Sydj'!C225*100,"-")) -> - | F227: =IF(OR('Tabel 1 Sydj'!E225<5,'Tabel 2 Sydj'!F227<0.5),"-",IFERROR('Tabel 2 Sydj'!F227/'Tabel 1 Sydj'!E225*100,"-")) -> - | G227: =IF(OR('Tabel 1 Sydj'!E225<5,'Tabel 2 Sydj'!G227<0.5),"-",IFERROR('Tabel 2 Sydj'!G227/'Tabel 1 Sydj'!E225*100,"-")) -> - | I227: =IF(OR('Tabel 1 Sydj'!G225<5,'Tabel 2 Sydj'!I227<0.5),"-",IFERROR('Tabel 2 Sydj'!I227/'Tabel 1 Sydj'!G225*100,"-")) -> - | J227: =IF(OR('Tabel 1 Sydj'!G225<5,'Tabel 2 Sydj'!J227<0.5),"-",IFERROR('Tabel 2 Sydj'!J227/'Tabel 1 Sydj'!G225*100,"-")) -> -
A228: MA. Hum. | C228: =IF(OR('Tabel 1 Sydj'!C226<5,'Tabel 2 Sydj'!C228<0.5),"-",IFERROR('Tabel 2 Sydj'!C228/'Tabel 1 Sydj'!C226*100,"-")) -> 3.571428571 | D228: =IF(OR('Tabel 1 Sydj'!C226<5,'Tabel 2 Sydj'!D228<0.5),"-",IFERROR('Tabel 2 Sydj'!D228/'Tabel 1 Sydj'!C226*100,"-")) -> 3.570760307 | F228: =IF(OR('Tabel 1 Sydj'!E226<5,'Tabel 2 Sydj'!F228<0.5),"-",IFERROR('Tabel 2 Sydj'!F228/'Tabel 1 Sydj'!E226*100,"-")) -> 2.272727273 | G228: =IF(OR('Tabel 1 Sydj'!E226<5,'Tabel 2 Sydj'!G228<0.5),"-",IFERROR('Tabel 2 Sydj'!G228/'Tabel 1 Sydj'!E226*100,"-")) -> - | I228: =IF(OR('Tabel 1 Sydj'!G226<5,'Tabel 2 Sydj'!I228<0.5),"-",IFERROR('Tabel 2 Sydj'!I228/'Tabel 1 Sydj'!G226*100,"-")) -> 2.777777778 | J228: =IF(OR('Tabel 1 Sydj'!G226<5,'Tabel 2 Sydj'!J228<0.5),"-",IFERROR('Tabel 2 Sydj'!J228/'Tabel 1 Sydj'!G226*100,"-")) -> 1.943907358
A229: MA. Nat. | C229: =IF(OR('Tabel 1 Sydj'!C227<5,'Tabel 2 Sydj'!C229<0.5),"-",IFERROR('Tabel 2 Sydj'!C229/'Tabel 1 Sydj'!C227*100,"-")) -> - | D229: =IF(OR('Tabel 1 Sydj'!C227<5,'Tabel 2 Sydj'!D229<0.5),"-",IFERROR('Tabel 2 Sydj'!D229/'Tabel 1 Sydj'!C227*100,"-")) -> - | F229: =IF(OR('Tabel 1 Sydj'!E227<5,'Tabel 2 Sydj'!F229<0.5),"-",IFERROR('Tabel 2 Sydj'!F229/'Tabel 1 Sydj'!E227*100,"-")) -> - | G229: =IF(OR('Tabel 1 Sydj'!E227<5,'Tabel 2 Sydj'!G229<0.5),"-",IFERROR('Tabel 2 Sydj'!G229/'Tabel 1 Sydj'!E227*100,"-")) -> - | I229: =IF(OR('Tabel 1 Sydj'!G227<5,'Tabel 2 Sydj'!I229<0.5),"-",IFERROR('Tabel 2 Sydj'!I229/'Tabel 1 Sydj'!G227*100,"-")) -> - | J229: =IF(OR('Tabel 1 Sydj'!G227<5,'Tabel 2 Sydj'!J229<0.5),"-",IFERROR('Tabel 2 Sydj'!J229/'Tabel 1 Sydj'!G227*100,"-")) -> -
A230: MA. Ph.d. | C230: =IF(OR('Tabel 1 Sydj'!C228<5,'Tabel 2 Sydj'!C230<0.5),"-",IFERROR('Tabel 2 Sydj'!C230/'Tabel 1 Sydj'!C228*100,"-")) -> - | D230: =IF(OR('Tabel 1 Sydj'!C228<5,'Tabel 2 Sydj'!D230<0.5),"-",IFERROR('Tabel 2 Sydj'!D230/'Tabel 1 Sydj'!C228*100,"-")) -> - | F230: =IF(OR('Tabel 1 Sydj'!E228<5,'Tabel 2 Sydj'!F230<0.5),"-",IFERROR('Tabel 2 Sydj'!F230/'Tabel 1 Sydj'!E228*100,"-")) -> - | G230: =IF(OR('Tabel 1 Sydj'!E228<5,'Tabel 2 Sydj'!G230<0.5),"-",IFERROR('Tabel 2 Sydj'!G230/'Tabel 1 Sydj'!E228*100,"-")) -> - | I230: =IF(OR('Tabel 1 Sydj'!G228<5,'Tabel 2 Sydj'!I230<0.5),"-",IFERROR('Tabel 2 Sydj'!I230/'Tabel 1 Sydj'!G228*100,"-")) -> - | J230: =IF(OR('Tabel 1 Sydj'!G228<5,'Tabel 2 Sydj'!J230<0.5),"-",IFERROR('Tabel 2 Sydj'!J230/'Tabel 1 Sydj'!G228*100,"-")) -> -
A231: MA. Samf. | C231: =IF(OR('Tabel 1 Sydj'!C229<5,'Tabel 2 Sydj'!C231<0.5),"-",IFERROR('Tabel 2 Sydj'!C231/'Tabel 1 Sydj'!C229*100,"-")) -> - | D231: =IF(OR('Tabel 1 Sydj'!C229<5,'Tabel 2 Sydj'!D231<0.5),"-",IFERROR('Tabel 2 Sydj'!D231/'Tabel 1 Sydj'!C229*100,"-")) -> - | F231: =IF(OR('Tabel 1 Sydj'!E229<5,'Tabel 2 Sydj'!F231<0.5),"-",IFERROR('Tabel 2 Sydj'!F231/'Tabel 1 Sydj'!E229*100,"-")) -> - | G231: =IF(OR('Tabel 1 Sydj'!E229<5,'Tabel 2 Sydj'!G231<0.5),"-",IFERROR('Tabel 2 Sydj'!G231/'Tabel 1 Sydj'!E229*100,"-")) -> - | I231: =IF(OR('Tabel 1 Sydj'!G229<5,'Tabel 2 Sydj'!I231<0.5),"-",IFERROR('Tabel 2 Sydj'!I231/'Tabel 1 Sydj'!G229*100,"-")) -> - | J231: =IF(OR('Tabel 1 Sydj'!G229<5,'Tabel 2 Sydj'!J231<0.5),"-",IFERROR('Tabel 2 Sydj'!J231/'Tabel 1 Sydj'!G229*100,"-")) -> -
A232: Øvrige Mag. | C232: =IF(OR('Tabel 1 Sydj'!C230<5,'Tabel 2 Sydj'!C232<0.5),"-",IFERROR('Tabel 2 Sydj'!C232/'Tabel 1 Sydj'!C230*100,"-")) -> - | D232: =IF(OR('Tabel 1 Sydj'!C230<5,'Tabel 2 Sydj'!D232<0.5),"-",IFERROR('Tabel 2 Sydj'!D232/'Tabel 1 Sydj'!C230*100,"-")) -> - | F232: =IF(OR('Tabel 1 Sydj'!E230<5,'Tabel 2 Sydj'!F232<0.5),"-",IFERROR('Tabel 2 Sydj'!F232/'Tabel 1 Sydj'!E230*100,"-")) -> - | G232: =IF(OR('Tabel 1 Sydj'!E230<5,'Tabel 2 Sydj'!G232<0.5),"-",IFERROR('Tabel 2 Sydj'!G232/'Tabel 1 Sydj'!E230*100,"-")) -> - | I232: =IF(OR('Tabel 1 Sydj'!G230<5,'Tabel 2 Sydj'!I232<0.5),"-",IFERROR('Tabel 2 Sydj'!I232/'Tabel 1 Sydj'!G230*100,"-")) -> - | J232: =IF(OR('Tabel 1 Sydj'!G230<5,'Tabel 2 Sydj'!J232<0.5),"-",IFERROR('Tabel 2 Sydj'!J232/'Tabel 1 Sydj'!G230*100,"-")) -> -
A233: Agronom | C233: =IF(OR('Tabel 1 Sydj'!C231<5,'Tabel 2 Sydj'!C233<0.5),"-",IFERROR('Tabel 2 Sydj'!C233/'Tabel 1 Sydj'!C231*100,"-")) -> - | D233: =IF(OR('Tabel 1 Sydj'!C231<5,'Tabel 2 Sydj'!D233<0.5),"-",IFERROR('Tabel 2 Sydj'!D233/'Tabel 1 Sydj'!C231*100,"-")) -> - | F233: =IF(OR('Tabel 1 Sydj'!E231<5,'Tabel 2 Sydj'!F233<0.5),"-",IFERROR('Tabel 2 Sydj'!F233/'Tabel 1 Sydj'!E231*100,"-")) -> - | G233: =IF(OR('Tabel 1 Sydj'!E231<5,'Tabel 2 Sydj'!G233<0.5),"-",IFERROR('Tabel 2 Sydj'!G233/'Tabel 1 Sydj'!E231*100,"-")) -> - | I233: =IF(OR('Tabel 1 Sydj'!G231<5,'Tabel 2 Sydj'!I233<0.5),"-",IFERROR('Tabel 2 Sydj'!I233/'Tabel 1 Sydj'!G231*100,"-")) -> - | J233: =IF(OR('Tabel 1 Sydj'!G231<5,'Tabel 2 Sydj'!J233<0.5),"-",IFERROR('Tabel 2 Sydj'!J233/'Tabel 1 Sydj'!G231*100,"-")) -> -
A234: Landsk. Arkt. | C234: =IF(OR('Tabel 1 Sydj'!C232<5,'Tabel 2 Sydj'!C234<0.5),"-",IFERROR('Tabel 2 Sydj'!C234/'Tabel 1 Sydj'!C232*100,"-")) -> - | D234: =IF(OR('Tabel 1 Sydj'!C232<5,'Tabel 2 Sydj'!D234<0.5),"-",IFERROR('Tabel 2 Sydj'!D234/'Tabel 1 Sydj'!C232*100,"-")) -> - | F234: =IF(OR('Tabel 1 Sydj'!E232<5,'Tabel 2 Sydj'!F234<0.5),"-",IFERROR('Tabel 2 Sydj'!F234/'Tabel 1 Sydj'!E232*100,"-")) -> - | G234: =IF(OR('Tabel 1 Sydj'!E232<5,'Tabel 2 Sydj'!G234<0.5),"-",IFERROR('Tabel 2 Sydj'!G234/'Tabel 1 Sydj'!E232*100,"-")) -> - | I234: =IF(OR('Tabel 1 Sydj'!G232<5,'Tabel 2 Sydj'!I234<0.5),"-",IFERROR('Tabel 2 Sydj'!I234/'Tabel 1 Sydj'!G232*100,"-")) -> - | J234: =IF(OR('Tabel 1 Sydj'!G232<5,'Tabel 2 Sydj'!J234<0.5),"-",IFERROR('Tabel 2 Sydj'!J234/'Tabel 1 Sydj'!G232*100,"-")) -> -
A235: Hortonom | C235: =IF(OR('Tabel 1 Sydj'!C233<5,'Tabel 2 Sydj'!C235<0.5),"-",IFERROR('Tabel 2 Sydj'!C235/'Tabel 1 Sydj'!C233*100,"-")) -> - | D235: =IF(OR('Tabel 1 Sydj'!C233<5,'Tabel 2 Sydj'!D235<0.5),"-",IFERROR('Tabel 2 Sydj'!D235/'Tabel 1 Sydj'!C233*100,"-")) -> - | F235: =IF(OR('Tabel 1 Sydj'!E233<5,'Tabel 2 Sydj'!F235<0.5),"-",IFERROR('Tabel 2 Sydj'!F235/'Tabel 1 Sydj'!E233*100,"-")) -> - | G235: =IF(OR('Tabel 1 Sydj'!E233<5,'Tabel 2 Sydj'!G235<0.5),"-",IFERROR('Tabel 2 Sydj'!G235/'Tabel 1 Sydj'!E233*100,"-")) -> - | I235: =IF(OR('Tabel 1 Sydj'!G233<5,'Tabel 2 Sydj'!I235<0.5),"-",IFERROR('Tabel 2 Sydj'!I235/'Tabel 1 Sydj'!G233*100,"-")) -> - | J235: =IF(OR('Tabel 1 Sydj'!G233<5,'Tabel 2 Sydj'!J235<0.5),"-",IFERROR('Tabel 2 Sydj'!J235/'Tabel 1 Sydj'!G233*100,"-")) -> -
A236: Forstkand. | C236: =IF(OR('Tabel 1 Sydj'!C234<5,'Tabel 2 Sydj'!C236<0.5),"-",IFERROR('Tabel 2 Sydj'!C236/'Tabel 1 Sydj'!C234*100,"-")) -> - | D236: =IF(OR('Tabel 1 Sydj'!C234<5,'Tabel 2 Sydj'!D236<0.5),"-",IFERROR('Tabel 2 Sydj'!D236/'Tabel 1 Sydj'!C234*100,"-")) -> - | F236: =IF(OR('Tabel 1 Sydj'!E234<5,'Tabel 2 Sydj'!F236<0.5),"-",IFERROR('Tabel 2 Sydj'!F236/'Tabel 1 Sydj'!E234*100,"-")) -> - | G236: =IF(OR('Tabel 1 Sydj'!E234<5,'Tabel 2 Sydj'!G236<0.5),"-",IFERROR('Tabel 2 Sydj'!G236/'Tabel 1 Sydj'!E234*100,"-")) -> - | I236: =IF(OR('Tabel 1 Sydj'!G234<5,'Tabel 2 Sydj'!I236<0.5),"-",IFERROR('Tabel 2 Sydj'!I236/'Tabel 1 Sydj'!G234*100,"-")) -> - | J236: =IF(OR('Tabel 1 Sydj'!G234<5,'Tabel 2 Sydj'!J236<0.5),"-",IFERROR('Tabel 2 Sydj'!J236/'Tabel 1 Sydj'!G234*100,"-")) -> -
A237: Jordbrugsakad. | C237: =IF(OR('Tabel 1 Sydj'!C235<5,'Tabel 2 Sydj'!C237<0.5),"-",IFERROR('Tabel 2 Sydj'!C237/'Tabel 1 Sydj'!C235*100,"-")) -> - | D237: =IF(OR('Tabel 1 Sydj'!C235<5,'Tabel 2 Sydj'!D237<0.5),"-",IFERROR('Tabel 2 Sydj'!D237/'Tabel 1 Sydj'!C235*100,"-")) -> - | F237: =IF(OR('Tabel 1 Sydj'!E235<5,'Tabel 2 Sydj'!F237<0.5),"-",IFERROR('Tabel 2 Sydj'!F237/'Tabel 1 Sydj'!E235*100,"-")) -> - | G237: =IF(OR('Tabel 1 Sydj'!E235<5,'Tabel 2 Sydj'!G237<0.5),"-",IFERROR('Tabel 2 Sydj'!G237/'Tabel 1 Sydj'!E235*100,"-")) -> - | I237: =IF(OR('Tabel 1 Sydj'!G235<5,'Tabel 2 Sydj'!I237<0.5),"-",IFERROR('Tabel 2 Sydj'!I237/'Tabel 1 Sydj'!G235*100,"-")) -> - | J237: =IF(OR('Tabel 1 Sydj'!G235<5,'Tabel 2 Sydj'!J237<0.5),"-",IFERROR('Tabel 2 Sydj'!J237/'Tabel 1 Sydj'!G235*100,"-")) -> -
A238: Mejeriing. | C238: =IF(OR('Tabel 1 Sydj'!C236<5,'Tabel 2 Sydj'!C238<0.5),"-",IFERROR('Tabel 2 Sydj'!C238/'Tabel 1 Sydj'!C236*100,"-")) -> - | D238: =IF(OR('Tabel 1 Sydj'!C236<5,'Tabel 2 Sydj'!D238<0.5),"-",IFERROR('Tabel 2 Sydj'!D238/'Tabel 1 Sydj'!C236*100,"-")) -> - | F238: =IF(OR('Tabel 1 Sydj'!E236<5,'Tabel 2 Sydj'!F238<0.5),"-",IFERROR('Tabel 2 Sydj'!F238/'Tabel 1 Sydj'!E236*100,"-")) -> - | G238: =IF(OR('Tabel 1 Sydj'!E236<5,'Tabel 2 Sydj'!G238<0.5),"-",IFERROR('Tabel 2 Sydj'!G238/'Tabel 1 Sydj'!E236*100,"-")) -> - | I238: =IF(OR('Tabel 1 Sydj'!G236<5,'Tabel 2 Sydj'!I238<0.5),"-",IFERROR('Tabel 2 Sydj'!I238/'Tabel 1 Sydj'!G236*100,"-")) -> - | J238: =IF(OR('Tabel 1 Sydj'!G236<5,'Tabel 2 Sydj'!J238<0.5),"-",IFERROR('Tabel 2 Sydj'!J238/'Tabel 1 Sydj'!G236*100,"-")) -> -
A239: Levn.m.kand. | C239: =IF(OR('Tabel 1 Sydj'!C237<5,'Tabel 2 Sydj'!C239<0.5),"-",IFERROR('Tabel 2 Sydj'!C239/'Tabel 1 Sydj'!C237*100,"-")) -> - | D239: =IF(OR('Tabel 1 Sydj'!C237<5,'Tabel 2 Sydj'!D239<0.5),"-",IFERROR('Tabel 2 Sydj'!D239/'Tabel 1 Sydj'!C237*100,"-")) -> - | F239: =IF(OR('Tabel 1 Sydj'!E237<5,'Tabel 2 Sydj'!F239<0.5),"-",IFERROR('Tabel 2 Sydj'!F239/'Tabel 1 Sydj'!E237*100,"-")) -> - | G239: =IF(OR('Tabel 1 Sydj'!E237<5,'Tabel 2 Sydj'!G239<0.5),"-",IFERROR('Tabel 2 Sydj'!G239/'Tabel 1 Sydj'!E237*100,"-")) -> - | I239: =IF(OR('Tabel 1 Sydj'!G237<5,'Tabel 2 Sydj'!I239<0.5),"-",IFERROR('Tabel 2 Sydj'!I239/'Tabel 1 Sydj'!G237*100,"-")) -> - | J239: =IF(OR('Tabel 1 Sydj'!G237<5,'Tabel 2 Sydj'!J239<0.5),"-",IFERROR('Tabel 2 Sydj'!J239/'Tabel 1 Sydj'!G237*100,"-")) -> -
A240: Dyrlæge | C240: =IF(OR('Tabel 1 Sydj'!C238<5,'Tabel 2 Sydj'!C240<0.5),"-",IFERROR('Tabel 2 Sydj'!C240/'Tabel 1 Sydj'!C238*100,"-")) -> - | D240: =IF(OR('Tabel 1 Sydj'!C238<5,'Tabel 2 Sydj'!D240<0.5),"-",IFERROR('Tabel 2 Sydj'!D240/'Tabel 1 Sydj'!C238*100,"-")) -> - | F240: =IF(OR('Tabel 1 Sydj'!E238<5,'Tabel 2 Sydj'!F240<0.5),"-",IFERROR('Tabel 2 Sydj'!F240/'Tabel 1 Sydj'!E238*100,"-")) -> 6.25 | G240: =IF(OR('Tabel 1 Sydj'!E238<5,'Tabel 2 Sydj'!G240<0.5),"-",IFERROR('Tabel 2 Sydj'!G240/'Tabel 1 Sydj'!E238*100,"-")) -> - | I240: =IF(OR('Tabel 1 Sydj'!G238<5,'Tabel 2 Sydj'!I240<0.5),"-",IFERROR('Tabel 2 Sydj'!I240/'Tabel 1 Sydj'!G238*100,"-")) -> 4.761904762 | J240: =IF(OR('Tabel 1 Sydj'!G238<5,'Tabel 2 Sydj'!J240<0.5),"-",IFERROR('Tabel 2 Sydj'!J240/'Tabel 1 Sydj'!G238*100,"-")) -> -
... 386 more rows

Sheet Tabel 4F Sydj
A1: Tabel 4. Antal forsikrede - aldersfordelt
A3: Sydjylland
C5: Under 30 år | D5: 30 - 39 år | E5: 40 - 49 år | F5: 50 - 59 år | G5: Over 60 år | I5: I alt
A7: Civ. ing. | C7: 288 | D7: 725 | E7: 590 | F7: 411 | G7: 106 | I7: 2120
A8: Diplom ing. | C8: 295 | D8: 714 | E8: 1020 | F8: 1632 | G8: 587 | I8: 4248
A9: Cand. Scient. Tek. | C9: 233 | D9: 540 | E9: 173 | F9: 60 | G9: 20 | I9: 1026
A10: MA. Hum. | C10: 218 | D10: 786 | E10: 805 | F10: 421 | G10: 156 | I10: 2386
A11: MA. Nat. | C11: 47 | D11: 176 | E11: 243 | F11: 226 | G11: 79 | I11: 771
A12: MA. Ph.d. | C12: 0 | D12: 17 | E12: 29 | F12: 21 | G12: 8 | I12: 75
A13: MA. Samf. | C13: 44 | D13: 112 | E13: 20 | F13: 9 | G13: 1 | I13: 186
A14: Øvrige Mag. | C14: 16 | D14: 50 | E14: 59 | F14: 72 | G14: 30 | I14: 227
A15: Agronom | C15: 10 | D15: 23 | E15: 55 | F15: 86 | G15: 43 | I15: 217
A16: Landsk. Arkt. | C16: 1 | D16: 7 | E16: 8 | F16: 12 | G16: 4 | I16: 32
A17: Hortonom | C17: 0 | D17: 3 | E17: 1 | F17: 5 | G17: 7 | I17: 16
A18: Forstkand. | C18: 0 | D18: 8 | E18: 14 | F18: 12 | G18: 4 | I18: 38
A19: Jordbrugsakad. | C19: 11 | D19: 41 | E19: 78 | F19: 115 | G19: 58 | I19: 303
A20: Mejeriing. | C20: 3 | D20: 5 | E20: 4 | F20: 23 | G20: 7 | I20: 42
A21: Levn.m.kand. | C21: 2 | D21: 7 | E21: 3 | F21: 1 | G21: 0 | I21: 13
A22: Dyrlæge | C22: 22 | D22: 105 | E22: 85 | F22: 62 | G22: 22 | I22: 296
A23: Farmaceut | C23: 45 | D23: 62 | E23: 48 | F23: 35 | G23: 17 | I23: 207
A24: Læge | C24: 156 | D24: 354 | E24: 180 | F24: 107 | G24: 61 | I24: 858
A25: Tandlæge | C25: 25 | D25: 73 | E25: 38 | F25: 34 | G25: 16 | I25: 186
A26: Arkitekt | C26: 12 | D26: 59 | E26: 78 | F26: 36 | G26: 31 | I26: 216
A27: Landinspek. | C27: 5 | D27: 16 | E27: 37 | F27: 24 | G27: 8 | I27: 90
A28: Bibliotekar | C28: 3 | D28: 39 | E28: 72 | F28: 82 | G28: 45 | I28: 241
A29: Musikudd. | C29: 2 | D29: 14 | E29: 15 | F29: 42 | G29: 27 | I29: 100
A30: Teolog | C30: 1 | D30: 20 | E30: 58 | F30: 81 | G30: 35 | I30: 195
A31: Psykolog | C31: 64 | D31: 226 | E31: 116 | F31: 62 | G31: 28 | I31: 496
A32: Jurist | C32: 100 | D32: 297 | E32: 225 | F32: 146 | G32: 41 | I32: 809
A33: Økonom | C33: 49 | D33: 134 | E33: 98 | F33: 97 | G33: 37 | I33: 415
A34: Samf. Adm. | C34: 123 | D34: 480 | E34: 338 | F34: 213 | G34: 40 | I34: 1194
A35: Cand. Merc. | C35: 330 | D35: 928 | E35: 525 | F35: 423 | G35: 63 | I35: 2269
A36: HA | C36: 72 | D36: 81 | E36: 111 | F36: 279 | G36: 75 | I36: 618
A37: HD | C37: 28 | D37: 86 | E37: 85 | F37: 189 | G37: 81 | I37: 469
A38: Komm. og Sprog | C38: 41 | D38: 68 | E38: 127 | F38: 139 | G38: 76 | I38: 451
A39: Bygningskonst. | C39: 102 | D39: 336 | E39: 217 | F39: 110 | G39: 38 | I39: 803
A40: Cand. IT. | C40: 72 | D40: 121 | E40: 60 | F40: 8 | G40: 0 | I40: 261
A41: Bac. Samf. | C41: 17 | D41: 23 | E41: 22 | F41: 16 | G41: 4 | I41: 82
A42: Bac. Hum. | C42: 67 | D42: 49 | E42: 43 | F42: 23 | G42: 11 | I42: 193
A43: Bac. Nat. | C43: 97 | D43: 94 | E43: 57 | F43: 22 | G43: 4 | I43: 274
A44: Andre | C44: 190 | D44: 527 | E44: 393 | F44: 255 | G44: 133 | I44: 1498
A46: Total | C46: 2780 | D46: 7365 | E46: 6052 | F46: 5476 | G46: 1945 | I46: 23618
A48: Ingeniører i alt | C48: 583 | D48: 1439 | E48: 1610 | F48: 2043 | G48: 693 | I48: 6368
A49: Magistre i alt | C49: 325 | D49: 1141 | E49: 1156 | F49: 749 | G49: 274 | I49: 3645
A50: DJØF'ere i alt | C50: 674 | D50: 1920 | E50: 1297 | F50: 1158 | G50: 256 | I50: 5305
A57: Haderslev
C59: Under 30 år | D59: 30 - 39 år | E59: 40 - 49 år | F59: 50 - 59 år | G59: Over 60 år | I59: I alt
A61: Civ. ing. | C61: 8 | D61: 16 | E61: 15 | F61: 11 | G61: 4 | I61: 54
A62: Diplom ing. | C62: 6 | D62: 26 | E62: 41 | F62: 67 | G62: 31 | I62: 171
A63: Cand. Scient. Tek. | C63: 9 | D63: 18 | E63: 8 | F63: 2 | G63: 0 | I63: 37
A64: MA. Hum. | C64: 11 | D64: 49 | E64: 50 | F64: 47 | G64: 15 | I64: 172
A65: MA. Nat. | C65: 3 | D65: 11 | E65: 14 | F65: 13 | G65: 4 | I65: 45
A66: MA. Ph.d. | C66: 0 | D66: 1 | E66: 1 | F66: 0 | G66: 0 | I66: 2
A67: MA. Samf. | C67: 2 | D67: 3 | E67: 1 | F67: 2 | G67: 0 | I67: 8
A68: Øvrige Mag. | C68: 1 | D68: 1 | E68: 4 | F68: 8 | G68: 2 | I68: 16
A69: Agronom | C69: 0 | D69: 2 | E69: 4 | F69: 13 | G69: 4 | I69: 23
A70: Landsk. Arkt. | C70: 0 | D70: 0 | E70: 0 | F70: 2 | G70: 1 | I70: 3
A71: Hortonom | C71: 0 | D71: 0 | E71: 0 | F71: 1 | G71: 1 | I71: 2
A72: Forstkand. | C72: 0 | D72: 0 | E72: 0 | F72: 0 | G72: 0 | I72: 0
A73: Jordbrugsakad. | C73: 0 | D73: 2 | E73: 4 | F73: 16 | G73: 6 | I73: 28
A74: Mejeriing. | C74: 1 | D74: 0 | E74: 1 | F74: 2 | G74: 0 | I74: 4
A75: Levn.m.kand. | C75: 1 | D75: 0 | E75: 0 | F75: 0 | G75: 0 | I75: 1
A76: Dyrlæge | C76: 1 | D76: 9 | E76: 4 | F76: 5 | G76: 0 | I76: 19
A77: Farmaceut | C77: 4 | D77: 6 | E77: 4 | F77: 2 | G77: 0 | I77: 16
A78: Læge | C78: 2 | D78: 5 | E78: 10 | F78: 5 | G78: 3 | I78: 25
A79: Tandlæge | C79: 1 | D79: 5 | E79: 5 | F79: 4 | G79: 3 | I79: 18
A80: Arkitekt | C80: 1 | D80: 3 | E80: 1 | F80: 4 | G80: 8 | I80: 17
A81: Landinspek. | C81: 1 | D81: 0 | E81: 1 | F81: 1 | G81: 0 | I81: 3
A82: Bibliotekar | C82: 0 | D82: 0 | E82: 2 | F82: 6 | G82: 1 | I82: 9
A83: Musikudd. | C83: 1 | D83: 2 | E83: 4 | F83: 5 | G83: 2 | I83: 14
A84: Teolog | C84: 0 | D84: 1 | E84: 4 | F84: 9 | G84: 3 | I84: 17
A85: Psykolog | C85: 5 | D85: 7 | E85: 7 | F85: 2 | G85: 3 | I85: 24
A86: Jurist | C86: 1 | D86: 18 | E86: 10 | F86: 10 | G86: 3 | I86: 42
A87: Økonom | C87: 4 | D87: 5 | E87: 3 | F87: 4 | G87: 5 | I87: 21
A88: Samf. Adm. | C88: 10 | D88: 15 | E88: 7 | F88: 14 | G88: 3 | I88: 49
A89: Cand. Merc. | C89: 20 | D89: 44 | E89: 24 | F89: 25 | G89: 2 | I89: 115
A90: HA | C90: 1 | D90: 4 | E90: 4 | F90: 14 | G90: 6 | I90: 29
A91: HD | C91: 1 | D91: 5 | E91: 6 | F91: 13 | G91: 2 | I91: 27
A92: Komm. og Sprog | C92: 3 | D92: 6 | E92: 6 | F92: 9 | G92: 3 | I92: 27
A93: Bygningskonst. | C93: 10 | D93: 18 | E93: 10 | F93: 10 | G93: 5 | I93: 53
A94: Cand. IT. | C94: 3 | D94: 3 | E94: 1 | F94: 0 | G94: 0 | I94: 7
A95: Bac. Samf. | C95: 1 | D95: 0 | E95: 1 | F95: 2 | G95: 0 | I95: 4
A96: Bac. Hum. | C96: 5 | D96: 6 | E96: 2 | F96: 0 | G96: 0 | I96: 13
A97: Bac. Nat. | C97: 6 | D97: 2 | E97: 3 | F97: 4 | G97: 0 | I97: 15
A98: Andre | C98: 13 | D98: 13 | E98: 20 | F98: 16 | G98: 11 | I98: 73
A100: Total | C100: 136 | D100: 304 | E100: 278 | F100: 332 | G100: 125 | I100: 1175
A102: Ingeniører i alt | C102: 14 | D102: 42 | E102: 56 | F102: 78 | G102: 35 | I102: 225
A103: Magistre i alt | C103: 17 | D103: 65 | E103: 70 | F103: 70 | G103: 21 | I103: 243
A104: DJØF'ere i alt | C104: 36 | D104: 86 | E104: 48 | F104: 67 | G104: 19 | I104: 256
A111: Billund
C113: Under 30 år | D113: 30 - 39 år | E113: 40 - 49 år | F113: 50 - 59 år | G113: Over 60 år | I113: I alt
A115: Civ. ing. | C115: 6 | D115: 23 | E115: 8 | F115: 9 | G115: 0 | I115: 46
A116: Diplom ing. | C116: 10 | D116: 16 | E116: 19 | F116: 35 | G116: 14 | I116: 94
A117: Cand. Scient. Tek. | C117: 8 | D117: 10 | E117: 3 | F117: 2 | G117: 0 | I117: 23
A118: MA. Hum. | C118: 3 | D118: 20 | E118: 14 | F118: 9 | G118: 5 | I118: 51
A119: MA. Nat. | C119: 1 | D119: 2 | E119: 8 | F119: 7 | G119: 1 | I119: 19
A120: MA. Ph.d. | C120: 0 | D120: 0 | E120: 2 | F120: 0 | G120: 0 | I120: 2
A121: MA. Samf. | C121: 1 | D121: 2 | E121: 1 | F121: 0 | G121: 0 | I121: 4
A122: Øvrige Mag. | C122: 0 | D122: 2 | E122: 1 | F122: 1 | G122: 0 | I122: 4
A123: Agronom | C123: 2 | D123: 0 | E123: 1 | F123: 2 | G123: 2 | I123: 7
A124: Landsk. Arkt. | C124: 0 | D124: 0 | E124: 0 | F124: 0 | G124: 0 | I124: 0
A125: Hortonom | C125: 0 | D125: 0 | E125: 0 | F125: 0 | G125: 0 | I125: 0
A126: Forstkand. | C126: 0 | D126: 0 | E126: 1 | F126: 0 | G126: 0 | I126: 1
A127: Jordbrugsakad. | C127: 2 | D127: 0 | E127: 2 | F127: 2 | G127: 2 | I127: 8
A128: Mejeriing. | C128: 0 | D128: 0 | E128: 0 | F128: 0 | G128: 0 | I128: 0
A129: Levn.m.kand. | C129: 0 | D129: 0 | E129: 0 | F129: 1 | G129: 0 | I129: 1
A130: Dyrlæge | C130: 0 | D130: 3 | E130: 1 | F130: 2 | G130: 1 | I130: 7
A131: Farmaceut | C131: 0 | D131: 2 | E131: 0 | F131: 2 | G131: 0 | I131: 4
A132: Læge | C132: 0 | D132: 2 | E132: 0 | F132: 1 | G132: 0 | I132: 3
A133: Tandlæge | C133: 0 | D133: 3 | E133: 2 | F133: 1 | G133: 1 | I133: 7
A134: Arkitekt | C134: 0 | D134: 1 | E134: 4 | F134: 0 | G134: 1 | I134: 6
A135: Landinspek. | C135: 0 | D135: 0 | E135: 1 | F135: 0 | G135: 0 | I135: 1
A136: Bibliotekar | C136: 0 | D136: 0 | E136: 1 | F136: 0 | G136: 0 | I136: 1
A137: Musikudd. | C137: 0 | D137: 0 | E137: 0 | F137: 2 | G137: 0 | I137: 2
A138: Teolog | C138: 0 | D138: 1 | E138: 0 | F138: 1 | G138: 0 | I138: 2
A139: Psykolog | C139: 1 | D139: 7 | E139: 1 | F139: 0 | G139: 1 | I139: 10
A140: Jurist | C140: 3 | D140: 1 | E140: 8 | F140: 4 | G140: 0 | I140: 16
A141: Økonom | C141: 1 | D141: 2 | E141: 1 | F141: 1 | G141: 3 | I141: 8
A142: Samf. Adm. | C142: 3 | D142: 12 | E142: 7 | F142: 3 | G142: 1 | I142: 26
A143: Cand. Merc. | C143: 8 | D143: 22 | E143: 20 | F143: 11 | G143: 5 | I143: 66
A144: HA | C144: 2 | D144: 5 | E144: 1 | F144: 6 | G144: 0 | I144: 14
A145: HD | C145: 0 | D145: 2 | E145: 1 | F145: 4 | G145: 4 | I145: 11
A146: Komm. og Sprog | C146: 1 | D146: 2 | E146: 2 | F146: 7 | G146: 5 | I146: 17
A147: Bygningskonst. | C147: 4 | D147: 10 | E147: 4 | F147: 0 | G147: 0 | I147: 18
A148: Cand. IT. | C148: 1 | D148: 6 | E148: 2 | F148: 0 | G148: 0 | I148: 9
A149: Bac. Samf. | C149: 0 | D149: 1 | E149: 3 | F149: 1 | G149: 0 | I149: 5
A150: Bac. Hum. | C150: 0 | D150: 1 | E150: 0 | F150: 1 | G150: 0 | I150: 2
A151: Bac. Nat. | C151: 4 | D151: 4 | E151: 5 | F151: 1 | G151: 0 | I151: 14
A152: Andre | C152: 6 | D152: 14 | E152: 20 | F152: 6 | G152: 5 | I152: 51
A154: Total | C154: 65 | D154: 176 | E154: 142 | F154: 120 | G154: 49 | I154: 552
A156: Ingeniører i alt | C156: 16 | D156: 39 | E156: 27 | F156: 44 | G156: 14 | I156: 140
A157: Magistre i alt | C157: 5 | D157: 26 | E157: 26 | F157: 17 | G157: 6 | I157: 80
A158: DJØF'ere i alt | C158: 17 | D158: 42 | E158: 37 | F158: 25 | G158: 9 | I158: 130
A165: Sønderborg
C167: Under 30 år | D167: 30 - 39 år | E167: 40 - 49 år | F167: 50 - 59 år | G167: Over 60 år | I167: I alt
A169: Civ. ing. | C169: 41 | D169: 70 | E169: 82 | F169: 76 | G169: 19 | I169: 288
A170: Diplom ing. | C170: 35 | D170: 104 | E170: 199 | F170: 291 | G170: 117 | I170: 746
A171: Cand. Scient. Tek. | C171: 35 | D171: 66 | E171: 32 | F171: 13 | G171: 6 | I171: 152
A172: MA. Hum. | C172: 16 | D172: 71 | E172: 68 | F172: 31 | G172: 20 | I172: 206
A173: MA. Nat. | C173: 5 | D173: 25 | E173: 20 | F173: 20 | G173: 8 | I173: 78
A174: MA. Ph.d. | C174: 0 | D174: 1 | E174: 8 | F174: 3 | G174: 1 | I174: 13
A175: MA. Samf. | C175: 1 | D175: 11 | E175: 1 | F175: 1 | G175: 0 | I175: 14
A176: Øvrige Mag. | C176: 1 | D176: 6 | E176: 7 | F176: 5 | G176: 3 | I176: 22
A177: Agronom | C177: 1 | D177: 4 | E177: 11 | F177: 11 | G177: 2 | I177: 29
A178: Landsk. Arkt. | C178: 0 | D178: 2 | E178: 0 | F178: 3 | G178: 0 | I178: 5
A179: Hortonom | C179: 0 | D179: 0 | E179: 0 | F179: 0 | G179: 0 | I179: 0
A180: Forstkand. | C180: 0 | D180: 2 | E180: 3 | F180: 2 | G180: 0 | I180: 7
A181: Jordbrugsakad. | C181: 1 | D181: 8 | E181: 14 | F181: 16 | G181: 2 | I181: 41
A182: Mejeriing. | C182: 0 | D182: 0 | E182: 0 | F182: 1 | G182: 0 | I182: 1
A183: Levn.m.kand. | C183: 0 | D183: 0 | E183: 0 | F183: 0 | G183: 0 | I183: 0
A184: Dyrlæge | C184: 0 | D184: 9 | E184: 5 | F184: 4 | G184: 0 | I184: 18
A185: Farmaceut | C185: 2 | D185: 6 | E185: 5 | F185: 4 | G185: 3 | I185: 20
A186: Læge | C186: 20 | D186: 30 | E186: 11 | F186: 8 | G186: 6 | I186: 75
A187: Tandlæge | C187: 4 | D187: 4 | E187: 1 | F187: 2 | G187: 0 | I187: 11
A188: Arkitekt | C188: 1 | D188: 6 | E188: 1 | F188: 1 | G188: 1 | I188: 10
A189: Landinspek. | C189: 0 | D189: 1 | E189: 2 | F189: 3 | G189: 0 | I189: 6
A190: Bibliotekar | C190: 0 | D190: 4 | E190: 8 | F190: 16 | G190: 4 | I190: 32
A191: Musikudd. | C191: 0 | D191: 0 | E191: 1 | F191: 3 | G191: 0 | I191: 4
A192: Teolog | C192: 1 | D192: 1 | E192: 7 | F192: 9 | G192: 6 | I192: 24
A193: Psykolog | C193: 7 | D193: 18 | E193: 10 | F193: 10 | G193: 4 | I193: 49
A194: Jurist | C194: 9 | D194: 24 | E194: 16 | F194: 10 | G194: 4 | I194: 63
A195: Økonom | C195: 0 | D195: 12 | E195: 12 | F195: 9 | G195: 3 | I195: 36
A196: Samf. Adm. | C196: 12 | D196: 27 | E196: 33 | F196: 22 | G196: 3 | I196: 97
A197: Cand. Merc. | C197: 25 | D197: 68 | E197: 54 | F197: 61 | G197: 7 | I197: 215
A198: HA | C198: 3 | D198: 9 | E198: 12 | F198: 40 | G198: 18 | I198: 82
A199: HD | C199: 4 | D199: 10 | E199: 7 | F199: 17 | G199: 12 | I199: 50
A200: Komm. og Sprog | C200: 2 | D200: 12 | E200: 18 | F200: 21 | G200: 8 | I200: 61
A201: Bygningskonst. | C201: 3 | D201: 16 | E201: 20 | F201: 12 | G201: 3 | I201: 54
A202: Cand. IT. | C202: 5 | D202: 12 | E202: 8 | F202: 2 | G202: 0 | I202: 27
A203: Bac. Samf. | C203: 3 | D203: 3 | E203: 5 | F203: 0 | G203: 1 | I203: 12
A204: Bac. Hum. | C204: 4 | D204: 5 | E204: 5 | F204: 2 | G204: 1 | I204: 17
A205: Bac. Nat. | C205: 14 | D205: 17 | E205: 7 | F205: 4 | G205: 1 | I205: 43
A206: Andre | C206: 9 | D206: 60 | E206: 38 | F206: 29 | G206: 12 | I206: 148
A208: Total | C208: 263 | D208: 716 | E208: 717 | F208: 746 | G208: 273 | I208: 2715
A210: Ingeniører i alt | C210: 76 | D210: 174 | E210: 281 | F210: 367 | G210: 136 | I210: 1034
A211: Magistre i alt | C211: 23 | D211: 114 | E211: 104 | F211: 60 | G211: 32 | I211: 333
A212: DJØF'ere i alt | C212: 49 | D212: 140 | E212: 127 | F212: 142 | G212: 35 | I212: 493
A219: Tønder
C221: Under 30 år | D221: 30 - 39 år | E221: 40 - 49 år | F221: 50 - 59 år | G221: Over 60 år | I221: I alt
A223: Civ. ing. | C223: 6 | D223: 9 | E223: 12 | F223: 5 | G223: 3 | I223: 35
A224: Diplom ing. | C224: 1 | D224: 7 | E224: 8 | F224: 26 | G224: 12 | I224: 54
A225: Cand. Scient. Tek. | C225: 2 | D225: 7 | E225: 4 | F225: 1 | G225: 1 | I225: 15
A226: MA. Hum. | C226: 7 | D226: 19 | E226: 24 | F226: 19 | G226: 3 | I226: 72
A227: MA. Nat. | C227: 0 | D227: 5 | E227: 4 | F227: 12 | G227: 2 | I227: 23
A228: MA. Ph.d. | C228: 0 | D228: 0 | E228: 1 | F228: 0 | G228: 0 | I228: 1
A229: MA. Samf. | C229: 0 | D229: 0 | E229: 1 | F229: 1 | G229: 0 | I229: 2
A230: Øvrige Mag. | C230: 0 | D230: 2 | E230: 0 | F230: 4 | G230: 0 | I230: 6
A231: Agronom | C231: 1 | D231: 2 | E231: 5 | F231: 3 | G231: 2 | I231: 13
A232: Landsk. Arkt. | C232: 0 | D232: 0 | E232: 1 | F232: 0 | G232: 0 | I232: 1
A233: Hortonom | C233: 0 | D233: 0 | E233: 0 | F233: 0 | G233: 0 | I233: 0
A234: Forstkand. | C234: 0 | D234: 1 | E234: 0 | F234: 1 | G234: 0 | I234: 2
A235: Jordbrugsakad. | C235: 1 | D235: 3 | E235: 6 | F235: 4 | G235: 2 | I235: 16
A236: Mejeriing. | C236: 0 | D236: 0 | E236: 0 | F236: 0 | G236: 0 | I236: 0
A237: Levn.m.kand. | C237: 0 | D237: 0 | E237: 0 | F237: 0 | G237: 0 | I237: 0
A238: Dyrlæge | C238: 0 | D238: 6 | E238: 9 | F238: 5 | G238: 1 | I238: 21
A239: Farmaceut | C239: 0 | D239: 1 | E239: 0 | F239: 1 | G239: 2 | I239: 4
A240: Læge | C240: 0 | D240: 2 | E240: 0 | F240: 3 | G240: 3 | I240: 8
A241: Tandlæge | C241: 1 | D241: 0 | E241: 0 | F241: 2 | G241: 0 | I241: 3
A242: Arkitekt | C242: 0 | D242: 1 | E242: 1 | F242: 3 | G242: 1 | I242: 6
A243: Landinspek. | C243: 0 | D243: 0 | E243: 1 | F243: 0 | G243: 2 | I243: 3
... 373 more rows

Sheet Tabel 4 Sydj
A1: Tabel 4. Ledighedsberørte - aldersfordelt
A3: Sydjylland
C5: Under 30 år | D5: 30 - 39 år | E5: 40 - 49 år | F5: 50 - 59 år | G5: Over 60 år | I5: I alt
A7: Civ. ing. | C7: 10 | D7: 9 | E7: 6 | F7: 4 | G7: 4 | I7: 33
A8: Diplom ing. | C8: 21 | D8: 9 | E8: 5 | F8: 19 | G8: 16 | I8: 70
A9: Cand. Scient. Tek | C9: 10 | D9: 21 | E9: 1 | F9: 3 | G9: 4 | I9: 39
A10: MA. Hum. | C10: 33 | D10: 54 | E10: 20 | F10: 15 | G10: 6 | I10: 128
A11: MA. Nat. | C11: 5 | D11: 7 | E11: 0 | F11: 3 | G11: 1 | I11: 16
A12: MA. Ph.d. | C12: 0 | D12: 1 | E12: 0 | F12: 1 | G12: 0 | I12: 2
A13: MA. Samf. | C13: 6 | D13: 9 | E13: 2 | F13: 1 | G13: 1 | I13: 19
A14: Øvrige Mag. | C14: 3 | D14: 1 | E14: 2 | F14: 1 | G14: 0 | I14: 7
A15: Agronom | C15: 0 | D15: 0 | E15: 0 | F15: 0 | G15: 3 | I15: 3
A16: Landsk. Arkt. | C16: 0 | D16: 1 | E16: 0 | F16: 0 | G16: 0 | I16: 1
A17: Hortonom | C17: 0 | D17: 0 | E17: 0 | F17: 0 | G17: 0 | I17: 0
A18: Forstkand. | C18: 0 | D18: 0 | E18: 0 | F18: 0 | G18: 0 | I18: 0
A19: Jordbrugsakad. | C19: 0 | D19: 1 | E19: 0 | F19: 0 | G19: 3 | I19: 4
A20: Mejeriing. | C20: 0 | D20: 0 | E20: 0 | F20: 0 | G20: 0 | I20: 0
A21: Levn.m.kand. | C21: 0 | D21: 0 | E21: 0 | F21: 0 | G21: 0 | I21: 0
A22: Dyrlæge | C22: 0 | D22: 1 | E22: 0 | F22: 0 | G22: 2 | I22: 3
A23: Farmaceut | C23: 2 | D23: 2 | E23: 0 | F23: 0 | G23: 0 | I23: 4
A24: Læge | C24: 1 | D24: 2 | E24: 0 | F24: 0 | G24: 0 | I24: 3
A25: Tandlæge | C25: 0 | D25: 0 | E25: 0 | F25: 2 | G25: 0 | I25: 2
A26: Arkitekt | C26: 0 | D26: 3 | E26: 0 | F26: 0 | G26: 1 | I26: 4
A27: Landinspek. | C27: 0 | D27: 0 | E27: 0 | F27: 0 | G27: 0 | I27: 0
A28: Bibliotekar | C28: 0 | D28: 1 | E28: 0 | F28: 0 | G28: 1 | I28: 2
A29: Musikudd. | C29: 0 | D29: 1 | E29: 0 | F29: 0 | G29: 0 | I29: 1
A30: Teolog | C30: 0 | D30: 0 | E30: 1 | F30: 0 | G30: 1 | I30: 2
A31: Psykolog | C31: 1 | D31: 6 | E31: 3 | F31: 0 | G31: 0 | I31: 10
A32: Jurist | C32: 0 | D32: 2 | E32: 5 | F32: 0 | G32: 1 | I32: 8
A33: Økonom | C33: 1 | D33: 0 | E33: 0 | F33: 1 | G33: 2 | I33: 4
A34: Samf. Adm. | C34: 13 | D34: 14 | E34: 10 | F34: 3 | G34: 2 | I34: 42
A35: Cand. Merc. | C35: 12 | D35: 16 | E35: 5 | F35: 10 | G35: 2 | I35: 45
A36: HA | C36: 6 | D36: 2 | E36: 3 | F36: 7 | G36: 1 | I36: 19
A37: HD | C37: 2 | D37: 5 | E37: 0 | F37: 5 | G37: 1 | I37: 13
A38: Komm. og Sprog | C38: 5 | D38: 3 | E38: 4 | F38: 4 | G38: 3 | I38: 19
A39: Bygningskonst. | C39: 5 | D39: 1 | E39: 1 | F39: 0 | G39: 2 | I39: 9
A40: Cand. IT. | C40: 10 | D40: 3 | E40: 3 | F40: 0 | G40: 0 | I40: 16
A41: Bac. Samf. | C41: 2 | D41: 1 | E41: 1 | F41: 1 | G41: 0 | I41: 5
A42: Bac. Hum. | C42: 8 | D42: 5 | E42: 2 | F42: 0 | G42: 0 | I42: 15
A43: Bac. Nat. | C43: 16 | D43: 3 | E43: 5 | F43: 0 | G43: 1 | I43: 25
A44: Andre | C44: 7 | D44: 16 | E44: 9 | F44: 6 | G44: 7 | I44: 45
A46: Total | C46: 179 | D46: 199 | E46: 88 | F46: 86 | G46: 62 | I46: 614
A48: Ingeniører i alt | C48: 31 | D48: 18 | E48: 11 | F48: 23 | G48: 20 | I48: 103
A49: Magistre i alt | C49: 47 | D49: 72 | E49: 24 | F49: 21 | G49: 8 | I49: 172
A50: DJØF'ere i alt | C50: 32 | D50: 34 | E50: 23 | F50: 21 | G50: 8 | I50: 118
A57: Haderslev
C59: Under 30 år | D59: 30 - 39 år | E59: 40 - 49 år | F59: 50 - 59 år | G59: Over 60 år | I59: I alt
A61: Civ. ing. | C61: 3 | D61: 0 | E61: 0 | F61: 0 | G61: 0 | I61: 3
A62: Diplom ing. | C62: 0 | D62: 2 | E62: 0 | F62: 1 | G62: 1 | I62: 4
A63: Cand. Scient. Tek | C63: 0 | D63: 3 | E63: 0 | F63: 0 | G63: 0 | I63: 3
A64: MA. Hum. | C64: 2 | D64: 1 | E64: 3 | F64: 1 | G64: 0 | I64: 7
A65: MA. Nat. | C65: 0 | D65: 1 | E65: 0 | F65: 0 | G65: 0 | I65: 1
A66: MA. Ph.d. | C66: 0 | D66: 0 | E66: 0 | F66: 0 | G66: 0 | I66: 0
A67: MA. Samf. | C67: 0 | D67: 0 | E67: 0 | F67: 1 | G67: 0 | I67: 1
A68: Øvrige Mag. | C68: 0 | D68: 0 | E68: 0 | F68: 0 | G68: 0 | I68: 0
A69: Agronom | C69: 0 | D69: 0 | E69: 0 | F69: 0 | G69: 0 | I69: 0
A70: Landsk. Arkt. | C70: 0 | D70: 0 | E70: 0 | F70: 0 | G70: 0 | I70: 0
A71: Hortonom | C71: 0 | D71: 0 | E71: 0 | F71: 0 | G71: 0 | I71: 0
A72: Forstkand. | C72: 0 | D72: 0 | E72: 0 | F72: 0 | G72: 0 | I72: 0
A73: Jordbrugsakad. | C73: 0 | D73: 0 | E73: 0 | F73: 0 | G73: 0 | I73: 0
A74: Mejeriing. | C74: 0 | D74: 0 | E74: 0 | F74: 0 | G74: 0 | I74: 0
A75: Levn.m.kand. | C75: 0 | D75: 0 | E75: 0 | F75: 0 | G75: 0 | I75: 0
A76: Dyrlæge | C76: 0 | D76: 0 | E76: 0 | F76: 0 | G76: 0 | I76: 0
A77: Farmaceut | C77: 1 | D77: 0 | E77: 0 | F77: 0 | G77: 0 | I77: 1
A78: Læge | C78: 0 | D78: 0 | E78: 0 | F78: 0 | G78: 0 | I78: 0
A79: Tandlæge | C79: 0 | D79: 0 | E79: 0 | F79: 0 | G79: 0 | I79: 0
A80: Arkitekt | C80: 0 | D80: 1 | E80: 0 | F80: 0 | G80: 1 | I80: 2
A81: Landinspek. | C81: 0 | D81: 0 | E81: 0 | F81: 0 | G81: 0 | I81: 0
A82: Bibliotekar | C82: 0 | D82: 0 | E82: 0 | F82: 0 | G82: 0 | I82: 0
A83: Musikudd. | C83: 0 | D83: 0 | E83: 0 | F83: 0 | G83: 0 | I83: 0
A84: Teolog | C84: 0 | D84: 0 | E84: 0 | F84: 0 | G84: 0 | I84: 0
A85: Psykolog | C85: 0 | D85: 0 | E85: 0 | F85: 0 | G85: 0 | I85: 0
A86: Jurist | C86: 0 | D86: 0 | E86: 0 | F86: 0 | G86: 0 | I86: 0
A87: Økonom | C87: 0 | D87: 0 | E87: 0 | F87: 0 | G87: 2 | I87: 2
A88: Samf. Adm. | C88: 1 | D88: 0 | E88: 1 | F88: 0 | G88: 0 | I88: 2
A89: Cand. Merc. | C89: 1 | D89: 2 | E89: 0 | F89: 1 | G89: 0 | I89: 4
A90: HA | C90: 0 | D90: 0 | E90: 0 | F90: 0 | G90: 0 | I90: 0
A91: HD | C91: 0 | D91: 0 | E91: 0 | F91: 0 | G91: 0 | I91: 0
A92: Komm. og Sprog | C92: 3 | D92: 1 | E92: 1 | F92: 1 | G92: 0 | I92: 6
A93: Bygningskonst. | C93: 1 | D93: 0 | E93: 0 | F93: 0 | G93: 0 | I93: 1
A94: Cand. IT. | C94: 1 | D94: 0 | E94: 0 | F94: 0 | G94: 0 | I94: 1
A95: Bac. Samf. | C95: 0 | D95: 0 | E95: 0 | F95: 0 | G95: 0 | I95: 0
A96: Bac. Hum. | C96: 2 | D96: 0 | E96: 0 | F96: 0 | G96: 0 | I96: 2
A97: Bac. Nat. | C97: 0 | D97: 0 | E97: 0 | F97: 0 | G97: 0 | I97: 0
A98: Andre | C98: 1 | D98: 0 | E98: 0 | F98: 0 | G98: 0 | I98: 1
A100: Total | C100: 16 | D100: 11 | E100: 5 | F100: 5 | G100: 4 | I100: 41
A102: Ingeniører i alt | C102: 3 | D102: 2 | E102: 0 | F102: 1 | G102: 1 | I102: 7
A103: Magistre i alt | C103: 2 | D103: 2 | E103: 3 | F103: 2 | G103: 0 | I103: 9
A104: DJØF'ere i alt | C104: 2 | D104: 2 | E104: 1 | F104: 1 | G104: 2 | I104: 8
A111: Billund
C113: Under 30 år | D113: 30 - 39 år | E113: 40 - 49 år | F113: 50 - 59 år | G113: Over 60 år | I113: I alt
A115: Civ. ing. | C115: 0 | D115: 1 | E115: 0 | F115: 0 | G115: 0 | I115: 1
A116: Diplom ing. | C116: 0 | D116: 0 | E116: 0 | F116: 0 | G116: 0 | I116: 0
A117: Cand. Scient. Tek | C117: 0 | D117: 0 | E117: 0 | F117: 1 | G117: 0 | I117: 1
A118: MA. Hum. | C118: 1 | D118: 3 | E118: 0 | F118: 2 | G118: 0 | I118: 6
A119: MA. Nat. | C119: 0 | D119: 0 | E119: 0 | F119: 1 | G119: 0 | I119: 1
A120: MA. Ph.d. | C120: 0 | D120: 0 | E120: 0 | F120: 0 | G120: 0 | I120: 0
A121: MA. Samf. | C121: 0 | D121: 0 | E121: 0 | F121: 0 | G121: 0 | I121: 0
A122: Øvrige Mag. | C122: 0 | D122: 0 | E122: 0 | F122: 0 | G122: 0 | I122: 0
A123: Agronom | C123: 0 | D123: 0 | E123: 0 | F123: 0 | G123: 0 | I123: 0
A124: Landsk. Arkt. | C124: 0 | D124: 0 | E124: 0 | F124: 0 | G124: 0 | I124: 0
A125: Hortonom | C125: 0 | D125: 0 | E125: 0 | F125: 0 | G125: 0 | I125: 0
A126: Forstkand. | C126: 0 | D126: 0 | E126: 0 | F126: 0 | G126: 0 | I126: 0
A127: Jordbrugsakad. | C127: 0 | D127: 0 | E127: 0 | F127: 0 | G127: 0 | I127: 0
A128: Mejeriing. | C128: 0 | D128: 0 | E128: 0 | F128: 0 | G128: 0 | I128: 0
A129: Levn.m.kand. | C129: 0 | D129: 0 | E129: 0 | F129: 0 | G129: 0 | I129: 0
A130: Dyrlæge | C130: 0 | D130: 0 | E130: 0 | F130: 0 | G130: 0 | I130: 0
A131: Farmaceut | C131: 0 | D131: 0 | E131: 0 | F131: 0 | G131: 0 | I131: 0
A132: Læge | C132: 0 | D132: 0 | E132: 0 | F132: 0 | G132: 0 | I132: 0
A133: Tandlæge | C133: 0 | D133: 0 | E133: 0 | F133: 0 | G133: 0 | I133: 0
A134: Arkitekt | C134: 0 | D134: 0 | E134: 0 | F134: 0 | G134: 0 | I134: 0
A135: Landinspek. | C135: 0 | D135: 0 | E135: 0 | F135: 0 | G135: 0 | I135: 0
A136: Bibliotekar | C136: 0 | D136: 0 | E136: 0 | F136: 0 | G136: 0 | I136: 0
A137: Musikudd. | C137: 0 | D137: 0 | E137: 0 | F137: 0 | G137: 0 | I137: 0
A138: Teolog | C138: 0 | D138: 0 | E138: 0 | F138: 0 | G138: 0 | I138: 0
A139: Psykolog | C139: 0 | D139: 0 | E139: 0 | F139: 0 | G139: 0 | I139: 0
A140: Jurist | C140: 0 | D140: 0 | E140: 0 | F140: 0 | G140: 0 | I140: 0
A141: Økonom | C141: 0 | D141: 0 | E141: 0 | F141: 0 | G141: 0 | I141: 0
A142: Samf. Adm. | C142: 0 | D142: 0 | E142: 0 | F142: 0 | G142: 0 | I142: 0
A143: Cand. Merc. | C143: 2 | D143: 1 | E143: 0 | F143: 0 | G143: 0 | I143: 3
A144: HA | C144: 0 | D144: 0 | E144: 0 | F144: 0 | G144: 0 | I144: 0
A145: HD | C145: 0 | D145: 0 | E145: 0 | F145: 0 | G145: 0 | I145: 0
A146: Komm. og Sprog | C146: 0 | D146: 0 | E146: 0 | F146: 0 | G146: 1 | I146: 1
A147: Bygningskonst. | C147: 0 | D147: 0 | E147: 0 | F147: 0 | G147: 0 | I147: 0
A148: Cand. IT. | C148: 0 | D148: 1 | E148: 0 | F148: 0 | G148: 0 | I148: 1
A149: Bac. Samf. | C149: 0 | D149: 0 | E149: 0 | F149: 0 | G149: 0 | I149: 0
A150: Bac. Hum. | C150: 0 | D150: 0 | E150: 0 | F150: 0 | G150: 0 | I150: 0
A151: Bac. Nat. | C151: 2 | D151: 0 | E151: 1 | F151: 0 | G151: 0 | I151: 3
A152: Andre | C152: 0 | D152: 0 | E152: 0 | F152: 0 | G152: 0 | I152: 0
A154: Total | C154: 5 | D154: 6 | E154: 1 | F154: 4 | G154: 1 | I154: 17
A156: Ingeniører i alt | C156: 0 | D156: 1 | E156: 0 | F156: 0 | G156: 0 | I156: 1
A157: Magistre i alt | C157: 1 | D157: 3 | E157: 0 | F157: 3 | G157: 0 | I157: 7
A158: DJØF'ere i alt | C158: 2 | D158: 1 | E158: 0 | F158: 0 | G158: 0 | I158: 3
A165: Sønderborg
C167: Under 30 år | D167: 30 - 39 år | E167: 40 - 49 år | F167: 50 - 59 år | G167: Over 60 år | I167: I alt
A169: Civ. ing. | C169: 0 | D169: 0 | E169: 0 | F169: 0 | G169: 2 | I169: 2
A170: Diplom ing. | C170: 1 | D170: 1 | E170: 1 | F170: 4 | G170: 5 | I170: 12
A171: Cand. Scient. Tek | C171: 1 | D171: 2 | E171: 0 | F171: 0 | G171: 1 | I171: 4
A172: MA. Hum. | C172: 2 | D172: 5 | E172: 1 | F172: 1 | G172: 0 | I172: 9
A173: MA. Nat. | C173: 0 | D173: 0 | E173: 0 | F173: 0 | G173: 1 | I173: 1
A174: MA. Ph.d. | C174: 0 | D174: 0 | E174: 0 | F174: 0 | G174: 0 | I174: 0
A175: MA. Samf. | C175: 0 | D175: 1 | E175: 0 | F175: 0 | G175: 0 | I175: 1
A176: Øvrige Mag. | C176: 0 | D176: 0 | E176: 0 | F176: 0 | G176: 0 | I176: 0
A177: Agronom | C177: 0 | D177: 0 | E177: 0 | F177: 0 | G177: 0 | I177: 0
A178: Landsk. Arkt. | C178: 0 | D178: 1 | E178: 0 | F178: 0 | G178: 0 | I178: 1
A179: Hortonom | C179: 0 | D179: 0 | E179: 0 | F179: 0 | G179: 0 | I179: 0
A180: Forstkand. | C180: 0 | D180: 0 | E180: 0 | F180: 0 | G180: 0 | I180: 0
A181: Jordbrugsakad. | C181: 0 | D181: 1 | E181: 0 | F181: 0 | G181: 0 | I181: 1
A182: Mejeriing. | C182: 0 | D182: 0 | E182: 0 | F182: 0 | G182: 0 | I182: 0
A183: Levn.m.kand. | C183: 0 | D183: 0 | E183: 0 | F183: 0 | G183: 0 | I183: 0
A184: Dyrlæge | C184: 0 | D184: 0 | E184: 0 | F184: 0 | G184: 0 | I184: 0
A185: Farmaceut | C185: 0 | D185: 1 | E185: 0 | F185: 0 | G185: 0 | I185: 1
A186: Læge | C186: 0 | D186: 0 | E186: 0 | F186: 0 | G186: 0 | I186: 0
A187: Tandlæge | C187: 0 | D187: 0 | E187: 0 | F187: 0 | G187: 0 | I187: 0
A188: Arkitekt | C188: 0 | D188: 0 | E188: 0 | F188: 0 | G188: 0 | I188: 0
A189: Landinspek. | C189: 0 | D189: 0 | E189: 0 | F189: 0 | G189: 0 | I189: 0
A190: Bibliotekar | C190: 0 | D190: 0 | E190: 0 | F190: 0 | G190: 0 | I190: 0
A191: Musikudd. | C191: 0 | D191: 0 | E191: 0 | F191: 0 | G191: 0 | I191: 0
A192: Teolog | C192: 0 | D192: 0 | E192: 0 | F192: 0 | G192: 0 | I192: 0
A193: Psykolog | C193: 0 | D193: 1 | E193: 0 | F193: 0 | G193: 0 | I193: 1
A194: Jurist | C194: 0 | D194: 0 | E194: 0 | F194: 0 | G194: 0 | I194: 0
A195: Økonom | C195: 0 | D195: 0 | E195: 0 | F195: 0 | G195: 0 | I195: 0
A196: Samf. Adm. | C196: 2 | D196: 1 | E196: 1 | F196: 0 | G196: 1 | I196: 5
A197: Cand. Merc. | C197: 0 | D197: 2 | E197: 0 | F197: 2 | G197: 0 | I197: 4
A198: HA | C198: 0 | D198: 0 | E198: 0 | F198: 1 | G198: 1 | I198: 2
A199: HD | C199: 0 | D199: 2 | E199: 0 | F199: 1 | G199: 0 | I199: 3
A200: Komm. og Sprog | C200: 0 | D200: 0 | E200: 0 | F200: 1 | G200: 1 | I200: 2
A201: Bygningskonst. | C201: 1 | D201: 1 | E201: 0 | F201: 0 | G201: 0 | I201: 2
A202: Cand. IT. | C202: 2 | D202: 1 | E202: 0 | F202: 0 | G202: 0 | I202: 3
A203: Bac. Samf. | C203: 1 | D203: 1 | E203: 0 | F203: 0 | G203: 0 | I203: 2
A204: Bac. Hum. | C204: 0 | D204: 0 | E204: 0 | F204: 0 | G204: 0 | I204: 0
A205: Bac. Nat. | C205: 1 | D205: 1 | E205: 0 | F205: 0 | G205: 1 | I205: 3
A206: Andre | C206: 0 | D206: 0 | E206: 1 | F206: 1 | G206: 1 | I206: 3
A208: Total | C208: 11 | D208: 21 | E208: 4 | F208: 11 | G208: 14 | I208: 61
A210: Ingeniører i alt | C210: 1 | D210: 1 | E210: 1 | F210: 4 | G210: 7 | I210: 14
A211: Magistre i alt | C211: 2 | D211: 6 | E211: 1 | F211: 1 | G211: 1 | I211: 11
A212: DJØF'ere i alt | C212: 2 | D212: 3 | E212: 1 | F212: 3 | G212: 2 | I212: 11
A219: Tønder
C221: Under 30 år | D221: 30 - 39 år | E221: 40 - 49 år | F221: 50 - 59 år | G221: Over 60 år | I221: I alt
A223: Civ. ing. | C223: 0 | D223: 0 | E223: 0 | F223: 0 | G223: 1 | I223: 1
A224: Diplom ing. | C224: 0 | D224: 0 | E224: 0 | F224: 1 | G224: 0 | I224: 1
A225: Cand. Scient. Tek | C225: 0 | D225: 0 | E225: 0 | F225: 0 | G225: 0 | I225: 0
A226: MA. Hum. | C226: 0 | D226: 1 | E226: 0 | F226: 1 | G226: 0 | I226: 2
A227: MA. Nat. | C227: 0 | D227: 0 | E227: 0 | F227: 0 | G227: 0 | I227: 0
A228: MA. Ph.d. | C228: 0 | D228: 0 | E228: 0 | F228: 0 | G228: 0 | I228: 0
A229: MA. Samf. | C229: 0 | D229: 0 | E229: 0 | F229: 0 | G229: 0 | I229: 0
A230: Øvrige Mag. | C230: 0 | D230: 0 | E230: 0 | F230: 0 | G230: 0 | I230: 0
A231: Agronom | C231: 0 | D231: 0 | E231: 0 | F231: 0 | G231: 0 | I231: 0
A232: Landsk. Arkt. | C232: 0 | D232: 0 | E232: 0 | F232: 0 | G232: 0 | I232: 0
A233: Hortonom | C233: 0 | D233: 0 | E233: 0 | F233: 0 | G233: 0 | I233: 0
A234: Forstkand. | C234: 0 | D234: 0 | E234: 0 | F234: 0 | G234: 0 | I234: 0
A235: Jordbrugsakad. | C235: 0 | D235: 0 | E235: 0 | F235: 0 | G235: 0 | I235: 0
A236: Mejeriing. | C236: 0 | D236: 0 | E236: 0 | F236: 0 | G236: 0 | I236: 0
A237: Levn.m.kand. | C237: 0 | D237: 0 | E237: 0 | F237: 0 | G237: 0 | I237: 0
A238: Dyrlæge | C238: 0 | D238: 0 | E238: 0 | F238: 0 | G238: 1 | I238: 1
A239: Farmaceut | C239: 0 | D239: 0 | E239: 0 | F239: 0 | G239: 0 | I239: 0
A240: Læge | C240: 0 | D240: 0 | E240: 0 | F240: 0 | G240: 0 | I240: 0
A241: Tandlæge | C241: 0 | D241: 0 | E241: 0 | F241: 0 | G241: 0 | I241: 0
A242: Arkitekt | C242: 0 | D242: 0 | E242: 0 | F242: 0 | G242: 0 | I242: 0
A243: Landinspek. | C243: 0 | D243: 0 | E243: 0 | F243: 0 | G243: 0 | I243: 0
... 373 more rows

Sheet Tabel 4(Br) Sydj
A1: Tabel 4. Ledighedsberørte - aldersfordelt
A3: Sydjylland
C5: Under 30 år | D5: 30 - 39 år | E5: 40 - 49 år | F5: 50 - 59 år | G5: Over 60 år | I5: I alt
A7: Civ. ing. | C7: 7.151500031 | D7: 7.23819622 | E7: 4.681594212 | F7: 3.491548681 | G7: 3.030000624 | I7: 25.59283977
A8: Diplom ing. | C8: 16.95191168 | D8: 8.438221169 | E8: 4.399051955 | F8: 15.0296264 | G8: 12.91274247 | I8: 57.73155367
A9: Cand. Scient. Tek | C9: 7.458990831 | D9: 19.29457993 | E9: 0.9998128859 | F9: 2.753071789 | G9: 3.214619847 | I9: 33.72107528
A10: MA. Hum. | C10: 26.27455872 | D10: 44.00424125 | E10: 16.6269569 | F10: 11.6752947 | G10: 3.997380403 | I10: 102.578432
A11: MA. Nat. | C11: 2.635189921 | D11: 5.139399988 | E11: 0 | F11: 2.110023077 | G11: 0.9998128859 | I11: 10.88442587
A12: MA. Ph.d. | C12: 0 | D12: 0.9075032745 | E12: 0 | F12: 0.9998128859 | G12: 0 | I12: 1.90731616
A13: MA. Samf. | C13: 3.139150502 | D13: 7.316784133 | E13: 0.755940872 | F13: 0.9998128859 | G13: 0.3449136157 | I13: 12.55660201
A14: Øvrige Mag. | C14: 2.338925965 | D14: 0.9998128859 | E14: 1.999625772 | F14: 0.9998128859 | G14: 0 | I14: 6.338177509
A15: Agronom | C15: 0 | D15: 0 | E15: 0 | F15: 0 | G15: 2.466787251 | I15: 2.466787251
A16: Landsk. Arkt. | C16: 0 | D16: 0.9998128859 | E16: 0 | F16: 0 | G16: 0 | I16: 0.9998128859
A17: Hortonom | C17: 0 | D17: 0 | E17: 0 | F17: 0 | G17: 0 | I17: 0
A18: Forstkand. | C18: 0 | D18: 0 | E18: 0 | F18: 0 | G18: 0 | I18: 0
A19: Jordbrugsakad. | C19: 0 | D19: 0.9998128859 | E19: 0 | F19: 0 | G19: 2.466787251 | I19: 3.466600137
A20: Mejeriing. | C20: 0 | D20: 0 | E20: 0 | F20: 0 | G20: 0 | I20: 0
A21: Levn.m.kand. | C21: 0 | D21: 0 | E21: 0 | F21: 0 | G21: 0 | I21: 0
A22: Dyrlæge | C22: 0 | D22: 0.2594648537 | E22: 0 | F22: 0 | G22: 1.150127861 | I22: 1.409592715
A23: Farmaceut | C23: 1.861161355 | D23: 1.317283104 | E23: 0 | F23: 0 | G23: 0 | I23: 3.178444458
A24: Læge | C24: 0.9075032745 | D24: 1.214994075 | E24: 0 | F24: 0 | G24: 0 | I24: 2.122497349
A25: Tandlæge | C25: 0 | D25: 0 | E25: 0 | F25: 1.553046841 | G25: 0 | I25: 1.553046841
A26: Arkitekt | C26: 0 | D26: 2.907129046 | E26: 0 | F26: 0 | G26: 0.9998128859 | I26: 3.906941932
A27: Landinspek. | C27: 0 | D27: 0 | E27: 0 | F27: 0 | G27: 0 | I27: 0
A28: Bibliotekar | C28: 0 | D28: 0.8151936631 | E28: 0 | F28: 0 | G28: 0.5382648288 | I28: 1.353458492
A29: Musikudd. | C29: 0 | D29: 0.7185180565 | E29: 0 | F29: 0 | G29: 0 | I29: 0.7185180565
A30: Teolog | C30: 0 | D30: 0 | E30: 0.9998128859 | F30: 0 | G30: 0.4459552174 | I30: 1.445768103
A31: Psykolog | C31: 0.9998128859 | D31: 4.576810329 | E31: 1.799413709 | F31: 0 | G31: 0 | I31: 7.376036924
A32: Jurist | C32: 0 | D32: 1.445768103 | E32: 4.99906443 | F32: 0 | G32: 0.9998128859 | I32: 7.444645419
A33: Økonom | C33: 0.2151811888 | D33: 0 | E33: 0 | F33: 0.9998128859 | G33: 1.836212811 | I33: 3.051206886
A34: Samf. Adm. | C34: 10.68483752 | D34: 11.45200524 | E34: 7.75400736 | F34: 2.491735795 | G34: 1.045343978 | I34: 33.42792989
A35: Cand. Merc. | C35: 9.314538764 | D35: 12.55410715 | E35: 3.937503898 | F35: 8.135720077 | G35: 1.815006549 | I35: 35.75687644
A36: HA | C36: 4.780140959 | D36: 1.999625772 | E36: 2.792989459 | F36: 4.773903823 | G36: 0.9998128859 | I36: 15.3464729
A37: HD | C37: 1.999625772 | D37: 4.99906443 | E37: 0 | F37: 4.491361567 | G37: 0.9998128859 | I37: 12.48986465
A38: Komm. og Sprog | C38: 3.896338801 | D38: 2.81045344 | E38: 3.649348219 | F38: 3.466600137 | G38: 2.814819435 | I38: 16.63756003
A39: Bygningskonst. | C39: 4.608307865 | D39: 0.9538451943 | E39: 0.5384519429 | F39: 0 | G39: 1.122434978 | I39: 7.22303998
A40: Cand. IT. | C40: 9.351961579 | D40: 2.630200212 | E40: 2.408158174 | F40: 0 | G40: 0 | I40: 14.39031997
A41: Bac. Samf. | C41: 1.359695628 | D41: 0.8108276679 | E41: 0.9536580802 | F41: 0.2613359945 | G41: 0 | I41: 3.38551737
A42: Bac. Hum. | C42: 6.860225784 | D42: 4.122123121 | E42: 1.844321088 | F42: 0 | G42: 0 | I42: 12.82666999
A43: Bac. Nat. | C43: 13.27075407 | D43: 2.993201522 | E43: 4.075968315 | F43: 0 | G43: 0.1503149754 | I43: 20.49023888
A44: Andre | C44: 4.40341795 | D44: 12.48924094 | E44: 6.82467411 | F44: 4.380340548 | G44: 5.978918481 | I44: 34.07659203
A46: Total | C46: 140.4637311 | D46: 165.4084077 | E46: 72.04035427 | F46: 68.61286097 | G46: 47.86290775 | I46: 494.3882617
A48: Ingeniører i alt | C48: 24.10341171 | D48: 15.67641739 | E48: 9.080646167 | F48: 18.52117508 | G48: 15.94274309 | I48: 83.32439344
A49: Magistre i alt | C49: 34.38782511 | D49: 58.36774153 | E49: 19.38252355 | F49: 16.78475644 | G49: 5.342106905 | I49: 134.2649535
A50: DJØF'ere i alt | C50: 24.99469843 | D50: 27.45150627 | E50: 19.48356515 | F50: 16.40117258 | G50: 6.69618911 | I50: 95.02713154
A57: Haderslev
C59: Under 30 år | D59: 30 - 39 år | E59: 40 - 49 år | F59: 50 - 59 år | G59: Over 60 år | I59: I alt
A61: Civ. ing. | C61: 2.676355018 | D61: 0 | E61: 0 | F61: 0 | G61: 0 | I61: 2.676355018
A62: Diplom ing. | C62: 0 | D62: 1.999625772 | E62: 0 | F62: 0.9998128859 | G62: 0.9998128859 | I62: 3.999251544
A63: Cand. Scient. Tek | C63: 0 | D63: 2.999438658 | E63: 0 | F63: 0 | G63: 0 | I63: 2.999438658
A64: MA. Hum. | C64: 1.718330942 | D64: 0.7228840516 | E64: 2.353271378 | F64: 0.9998128859 | G64: 0 | I64: 5.794299258
A65: MA. Nat. | C65: 0 | D65: 0.3760992952 | E65: 0 | F65: 0 | G65: 0 | I65: 0.3760992952
A66: MA. Ph.d. | C66: 0 | D66: 0 | E66: 0 | F66: 0 | G66: 0 | I66: 0
A67: MA. Samf. | C67: 0 | D67: 0 | E67: 0 | F67: 0.9998128859 | G67: 0 | I67: 0.9998128859
A68: Øvrige Mag. | C68: 0 | D68: 0 | E68: 0 | F68: 0 | G68: 0 | I68: 0
A69: Agronom | C69: 0 | D69: 0 | E69: 0 | F69: 0 | G69: 0 | I69: 0
A70: Landsk. Arkt. | C70: 0 | D70: 0 | E70: 0 | F70: 0 | G70: 0 | I70: 0
A71: Hortonom | C71: 0 | D71: 0 | E71: 0 | F71: 0 | G71: 0 | I71: 0
A72: Forstkand. | C72: 0 | D72: 0 | E72: 0 | F72: 0 | G72: 0 | I72: 0
A73: Jordbrugsakad. | C73: 0 | D73: 0 | E73: 0 | F73: 0 | G73: 0 | I73: 0
A74: Mejeriing. | C74: 0 | D74: 0 | E74: 0 | F74: 0 | G74: 0 | I74: 0
A75: Levn.m.kand. | C75: 0 | D75: 0 | E75: 0 | F75: 0 | G75: 0 | I75: 0
A76: Dyrlæge | C76: 0 | D76: 0 | E76: 0 | F76: 0 | G76: 0 | I76: 0
A77: Farmaceut | C77: 0.9998128859 | D77: 0 | E77: 0 | F77: 0 | G77: 0 | I77: 0.9998128859
A78: Læge | C78: 0 | D78: 0 | E78: 0 | F78: 0 | G78: 0 | I78: 0
A79: Tandlæge | C79: 0 | D79: 0 | E79: 0 | F79: 0 | G79: 0 | I79: 0
A80: Arkitekt | C80: 0 | D80: 0.9075032745 | E80: 0 | F80: 0 | G80: 0.9998128859 | I80: 1.90731616
A81: Landinspek. | C81: 0 | D81: 0 | E81: 0 | F81: 0 | G81: 0 | I81: 0
A82: Bibliotekar | C82: 0 | D82: 0 | E82: 0 | F82: 0 | G82: 0 | I82: 0
A83: Musikudd. | C83: 0 | D83: 0 | E83: 0 | F83: 0 | G83: 0 | I83: 0
A84: Teolog | C84: 0 | D84: 0 | E84: 0 | F84: 0 | G84: 0 | I84: 0
A85: Psykolog | C85: 0 | D85: 0 | E85: 0 | F85: 0 | G85: 0 | I85: 0
A86: Jurist | C86: 0 | D86: 0 | E86: 0 | F86: 0 | G86: 0 | I86: 0
A87: Økonom | C87: 0 | D87: 0 | E87: 0 | F87: 0 | G87: 1.836212811 | I87: 1.836212811
A88: Samf. Adm. | C88: 0.9998128859 | D88: 0 | E88: 0.9998128859 | F88: 0 | G88: 0 | I88: 1.999625772
A89: Cand. Merc. | C89: 0.9998128859 | D89: 1.333499657 | E89: 0 | F89: 0.8108276679 | G89: 0 | I89: 3.144140211
A90: HA | C90: 0 | D90: 0 | E90: 0 | F90: 0 | G90: 0 | I90: 0
A91: HD | C91: 0 | D91: 0 | E91: 0 | F91: 0 | G91: 0 | I91: 0
A92: Komm. og Sprog | C92: 2.953283852 | D92: 0.9998128859 | E92: 0.9998128859 | F92: 0.9748643423 | G92: 0 | I92: 5.927773966
A93: Bygningskonst. | C93: 1 | D93: 0 | E93: 0 | F93: 0 | G93: 0 | I93: 1
A94: Cand. IT. | C94: 0.9998128859 | D94: 0 | E94: 0 | F94: 0 | G94: 0 | I94: 0.9998128859
A95: Bac. Samf. | C95: 0 | D95: 0 | E95: 0 | F95: 0 | G95: 0 | I95: 0
A96: Bac. Hum. | C96: 1.722696938 | D96: 0 | E96: 0 | F96: 0 | G96: 0 | I96: 1.722696938
A97: Bac. Nat. | C97: 0 | D97: 0 | E97: 0 | F97: 0 | G97: 0 | I97: 0
A98: Andre | C98: 0.9998128859 | D98: 0 | E98: 0 | F98: 0 | G98: 0 | I98: 0.9998128859
A100: Total | C100: 15.06973118 | D100: 9.338863594 | E100: 4.35289715 | F100: 4.785130668 | G100: 3.835838583 | I100: 37.38246117
A102: Ingeniører i alt | C102: 2.676355018 | D102: 1.999625772 | E102: 0 | F102: 0.9998128859 | G102: 0.9998128859 | I102: 6.675606561
A103: Magistre i alt | C103: 1.718330942 | D103: 1.098983347 | E103: 2.353271378 | F103: 1.999625772 | G103: 0 | I103: 7.170211439
A104: DJØF'ere i alt | C104: 1.999625772 | D104: 1.333499657 | E104: 0.9998128859 | F104: 0.8108276679 | G104: 1.836212811 | I104: 6.979978794
A111: Billund
C113: Under 30 år | D113: 30 - 39 år | E113: 40 - 49 år | F113: 50 - 59 år | G113: Over 60 år | I113: I alt
A115: Civ. ing. | C115: 0 | D115: 0.5844196345 | E115: 0 | F115: 0 | G115: 0 | I115: 0.5844196345
A116: Diplom ing. | C116: 0 | D116: 0 | E116: 0 | F116: 0 | G116: 0 | I116: 0
A117: Cand. Scient. Tek | C117: 0 | D117: 0 | E117: 0 | F117: 0.7534460176 | G117: 0 | I117: 0.7534460176
A118: MA. Hum. | C118: 0.9075032745 | D118: 2.497349217 | E118: 0 | F118: 1.952847253 | G118: 0 | I118: 5.357699744
A119: MA. Nat. | C119: 0 | D119: 0 | E119: 0 | F119: 0.9998128859 | G119: 0 | I119: 0.9998128859
A120: MA. Ph.d. | C120: 0 | D120: 0 | E120: 0 | F120: 0 | G120: 0 | I120: 0
A121: MA. Samf. | C121: 0 | D121: 0 | E121: 0 | F121: 0 | G121: 0 | I121: 0
A122: Øvrige Mag. | C122: 0 | D122: 0 | E122: 0 | F122: 0 | G122: 0 | I122: 0
A123: Agronom | C123: 0 | D123: 0 | E123: 0 | F123: 0 | G123: 0 | I123: 0
A124: Landsk. Arkt. | C124: 0 | D124: 0 | E124: 0 | F124: 0 | G124: 0 | I124: 0
A125: Hortonom | C125: 0 | D125: 0 | E125: 0 | F125: 0 | G125: 0 | I125: 0
A126: Forstkand. | C126: 0 | D126: 0 | E126: 0 | F126: 0 | G126: 0 | I126: 0
A127: Jordbrugsakad. | C127: 0 | D127: 0 | E127: 0 | F127: 0 | G127: 0 | I127: 0
A128: Mejeriing. | C128: 0 | D128: 0 | E128: 0 | F128: 0 | G128: 0 | I128: 0
A129: Levn.m.kand. | C129: 0 | D129: 0 | E129: 0 | F129: 0 | G129: 0 | I129: 0
A130: Dyrlæge | C130: 0 | D130: 0 | E130: 0 | F130: 0 | G130: 0 | I130: 0
A131: Farmaceut | C131: 0 | D131: 0 | E131: 0 | F131: 0 | G131: 0 | I131: 0
A132: Læge | C132: 0 | D132: 0 | E132: 0 | F132: 0 | G132: 0 | I132: 0
A133: Tandlæge | C133: 0 | D133: 0 | E133: 0 | F133: 0 | G133: 0 | I133: 0
A134: Arkitekt | C134: 0 | D134: 0 | E134: 0 | F134: 0 | G134: 0 | I134: 0
A135: Landinspek. | C135: 0 | D135: 0 | E135: 0 | F135: 0 | G135: 0 | I135: 0
A136: Bibliotekar | C136: 0 | D136: 0 | E136: 0 | F136: 0 | G136: 0 | I136: 0
A137: Musikudd. | C137: 0 | D137: 0 | E137: 0 | F137: 0 | G137: 0 | I137: 0
A138: Teolog | C138: 0 | D138: 0 | E138: 0 | F138: 0 | G138: 0 | I138: 0
A139: Psykolog | C139: 0 | D139: 0 | E139: 0 | F139: 0 | G139: 0 | I139: 0
A140: Jurist | C140: 0 | D140: 0 | E140: 0 | F140: 0 | G140: 0 | I140: 0
A141: Økonom | C141: 0 | D141: 0 | E141: 0 | F141: 0 | G141: 0 | I141: 0
A142: Samf. Adm. | C142: 0 | D142: 0 | E142: 0 | F142: 0 | G142: 0 | I142: 0
A143: Cand. Merc. | C143: 1.26114888 | D143: 0.3074908002 | E143: 0 | F143: 0 | G143: 0 | I143: 1.568639681
A144: HA | C144: 0 | D144: 0 | E144: 0 | F144: 0 | G144: 0 | I144: 0
A145: HD | C145: 0 | D145: 0 | E145: 0 | F145: 0 | G145: 0 | I145: 0
A146: Komm. og Sprog | C146: 0 | D146: 0 | E146: 0 | F146: 0 | G146: 0.9075032745 | I146: 0.9075032745
A147: Bygningskonst. | C147: 0 | D147: 0 | E147: 0 | F147: 0 | G147: 0 | I147: 0
A148: Cand. IT. | C148: 0 | D148: 0.9998128859 | E148: 0 | F148: 0 | G148: 0 | I148: 0.9998128859
A149: Bac. Samf. | C149: 0 | D149: 0 | E149: 0 | F149: 0 | G149: 0 | I149: 0
A150: Bac. Hum. | C150: 0 | D150: 0 | E150: 0 | F150: 0 | G150: 0 | I150: 0
A151: Bac. Nat. | C151: 1.953470966 | D151: 0 | E151: 0.6305744402 | F151: 0 | G151: 0 | I151: 2.584045406
A152: Andre | C152: 0 | D152: 0 | E152: 0 | F152: 0 | G152: 0 | I152: 0
A154: Total | C154: 4.122123121 | D154: 4.389072538 | E154: 0.6305744402 | F154: 3.706106156 | G154: 0.9075032745 | I154: 13.75537953
A156: Ingeniører i alt | C156: 0 | D156: 0.5844196345 | E156: 0 | F156: 0 | G156: 0 | I156: 0.5844196345
A157: Magistre i alt | C157: 0.9075032745 | D157: 2.497349217 | E157: 0 | F157: 2.952660138 | G157: 0 | I157: 6.35751263
A158: DJØF'ere i alt | C158: 1.26114888 | D158: 0.3074908002 | E158: 0 | F158: 0 | G158: 0 | I158: 1.568639681
A165: Sønderborg
C167: Under 30 år | D167: 30 - 39 år | E167: 40 - 49 år | F167: 50 - 59 år | G167: Over 60 år | I167: I alt
A169: Civ. ing. | C169: 0 | D169: 0 | E169: 0 | F169: 0 | G169: 1.90731616 | I169: 1.90731616
A170: Diplom ing. | C170: 0.5382648288 | D170: 0.9998128859 | E170: 0.9998128859 | F170: 2.891536207 | G170: 4.114638558 | I170: 9.544065365
A171: Cand. Scient. Tek | C171: 0.4459552174 | D171: 1.999625772 | E171: 0 | F171: 0 | G171: 0.9998128859 | I171: 3.445393875
A172: MA. Hum. | C172: 1.999625772 | D172: 3.814008607 | E172: 0.8376473523 | F172: 0.2756814071 | G172: 0 | I172: 6.926963139
A173: MA. Nat. | C173: 0 | D173: 0 | E173: 0 | F173: 0 | G173: 0.9998128859 | I173: 0.9998128859
A174: MA. Ph.d. | C174: 0 | D174: 0 | E174: 0 | F174: 0 | G174: 0 | I174: 0
A175: MA. Samf. | C175: 0 | D175: 0.9075032745 | E175: 0 | F175: 0 | G175: 0 | I175: 0.9075032745
A176: Øvrige Mag. | C176: 0 | D176: 0 | E176: 0 | F176: 0 | G176: 0 | I176: 0
A177: Agronom | C177: 0 | D177: 0 | E177: 0 | F177: 0 | G177: 0 | I177: 0
A178: Landsk. Arkt. | C178: 0 | D178: 0.9998128859 | E178: 0 | F178: 0 | G178: 0 | I178: 0.9998128859
A179: Hortonom | C179: 0 | D179: 0 | E179: 0 | F179: 0 | G179: 0 | I179: 0
A180: Forstkand. | C180: 0 | D180: 0 | E180: 0 | F180: 0 | G180: 0 | I180: 0
A181: Jordbrugsakad. | C181: 0 | D181: 0.9998128859 | E181: 0 | F181: 0 | G181: 0 | I181: 0.9998128859
A182: Mejeriing. | C182: 0 | D182: 0 | E182: 0 | F182: 0 | G182: 0 | I182: 0
A183: Levn.m.kand. | C183: 0 | D183: 0 | E183: 0 | F183: 0 | G183: 0 | I183: 0
A184: Dyrlæge | C184: 0 | D184: 0 | E184: 0 | F184: 0 | G184: 0 | I184: 0
A185: Farmaceut | C185: 0 | D185: 0.7228840516 | E185: 0 | F185: 0 | G185: 0 | I185: 0.7228840516
A186: Læge | C186: 0 | D186: 0 | E186: 0 | F186: 0 | G186: 0 | I186: 0
A187: Tandlæge | C187: 0 | D187: 0 | E187: 0 | F187: 0 | G187: 0 | I187: 0
A188: Arkitekt | C188: 0 | D188: 0 | E188: 0 | F188: 0 | G188: 0 | I188: 0
A189: Landinspek. | C189: 0 | D189: 0 | E189: 0 | F189: 0 | G189: 0 | I189: 0
A190: Bibliotekar | C190: 0 | D190: 0 | E190: 0 | F190: 0 | G190: 0 | I190: 0
A191: Musikudd. | C191: 0 | D191: 0 | E191: 0 | F191: 0 | G191: 0 | I191: 0
A192: Teolog | C192: 0 | D192: 0 | E192: 0 | F192: 0 | G192: 0 | I192: 0
A193: Psykolog | C193: 0 | D193: 0.2613359945 | E193: 0 | F193: 0 | G193: 0 | I193: 0.2613359945
A194: Jurist | C194: 0 | D194: 0 | E194: 0 | F194: 0 | G194: 0 | I194: 0
A195: Økonom | C195: 0 | D195: 0 | E195: 0 | F195: 0 | G195: 0 | I195: 0
A196: Samf. Adm. | C196: 1.999625772 | D196: 0.3074908002 | E196: 0.9998128859 | F196: 0 | G196: 0.5382648288 | I196: 3.845194287
A197: Cand. Merc. | C197: 0 | D197: 1.999625772 | E197: 0 | F197: 1.58423252 | G197: 0 | I197: 3.583858292
A198: HA | C198: 0 | D198: 0 | E198: 0 | F198: 0.9748643423 | G198: 0.9998128859 | I198: 1.974677228
A199: HD | C199: 0 | D199: 1.999625772 | E199: 0 | F199: 0.9998128859 | G199: 0 | I199: 2.999438658
A200: Komm. og Sprog | C200: 0 | D200: 0 | E200: 0 | F200: 0.9998128859 | G200: 0.9998128859 | I200: 1.999625772
A201: Bygningskonst. | C201: 1 | D201: 0.9538451943 | E201: 0 | F201: 0 | G201: 0 | I201: 1.953845194
A202: Cand. IT. | C202: 1.90731616 | D202: 0.6305744402 | E202: 0 | F202: 0 | G202: 0 | I202: 2.537890601
A203: Bac. Samf. | C203: 0.9648849248 | D203: 0.8108276679 | E203: 0 | F203: 0 | G203: 0 | I203: 1.775712593
A204: Bac. Hum. | C204: 0 | D204: 0 | E204: 0 | F204: 0 | G204: 0 | I204: 0
A205: Bac. Nat. | C205: 0.9998128859 | D205: 0.9998128859 | E205: 0 | F205: 0 | G205: 0.1503149754 | I205: 2.149940747
A206: Andre | C206: 0 | D206: 0 | E206: 0.9998128859 | F206: 0.5320276929 | G206: 0.9998128859 | I206: 2.531653465
A208: Total | C208: 9.855485561 | D208: 17.406786 | E208: 3.83708601 | F208: 8.257967941 | G208: 11.70959895 | I208: 51.06692447
A210: Ingeniører i alt | C210: 0.5382648288 | D210: 0.9998128859 | E210: 0.9998128859 | F210: 2.891536207 | G210: 6.021954718 | I210: 11.45138153
A211: Magistre i alt | C211: 1.999625772 | D211: 4.721511882 | E211: 0.8376473523 | F211: 0.2756814071 | G211: 0.9998128859 | I211: 8.834279299
A212: DJØF'ere i alt | C212: 1.999625772 | D212: 2.307116572 | E212: 0.9998128859 | F212: 2.559096863 | G212: 1.538077715 | I212: 9.403729807
A219: Tønder
C221: Under 30 år | D221: 30 - 39 år | E221: 40 - 49 år | F221: 50 - 59 år | G221: Over 60 år | I221: I alt
A223: Civ. ing. | C223: 0 | D223: 0 | E223: 0 | F223: 0 | G223: 0.1228715774 | I223: 0.1228715774
A224: Diplom ing. | C224: 0 | D224: 0 | E224: 0 | F224: 0.9998128859 | G224: 0 | I224: 0.9998128859
A225: Cand. Scient. Tek | C225: 0 | D225: 0 | E225: 0 | F225: 0 | G225: 0 | I225: 0
A226: MA. Hum. | C226: 0 | D226: 0.3998004117 | E226: 0 | F226: 0.9998128859 | G226: 0 | I226: 1.399613298
A227: MA. Nat. | C227: 0 | D227: 0 | E227: 0 | F227: 0 | G227: 0 | I227: 0
A228: MA. Ph.d. | C228: 0 | D228: 0 | E228: 0 | F228: 0 | G228: 0 | I228: 0
A229: MA. Samf. | C229: 0 | D229: 0 | E229: 0 | F229: 0 | G229: 0 | I229: 0
A230: Øvrige Mag. | C230: 0 | D230: 0 | E230: 0 | F230: 0 | G230: 0 | I230: 0
A231: Agronom | C231: 0 | D231: 0 | E231: 0 | F231: 0 | G231: 0 | I231: 0
A232: Landsk. Arkt. | C232: 0 | D232: 0 | E232: 0 | F232: 0 | G232: 0 | I232: 0
A233: Hortonom | C233: 0 | D233: 0 | E233: 0 | F233: 0 | G233: 0 | I233: 0
A234: Forstkand. | C234: 0 | D234: 0 | E234: 0 | F234: 0 | G234: 0 | I234: 0
A235: Jordbrugsakad. | C235: 0 | D235: 0 | E235: 0 | F235: 0 | G235: 0 | I235: 0
A236: Mejeriing. | C236: 0 | D236: 0 | E236: 0 | F236: 0 | G236: 0 | I236: 0
A237: Levn.m.kand. | C237: 0 | D237: 0 | E237: 0 | F237: 0 | G237: 0 | I237: 0
A238: Dyrlæge | C238: 0 | D238: 0 | E238: 0 | F238: 0 | G238: 0.1503149754 | I238: 0.1503149754
A239: Farmaceut | C239: 0 | D239: 0 | E239: 0 | F239: 0 | G239: 0 | I239: 0
A240: Læge | C240: 0 | D240: 0 | E240: 0 | F240: 0 | G240: 0 | I240: 0
A241: Tandlæge | C241: 0 | D241: 0 | E241: 0 | F241: 0 | G241: 0 | I241: 0
A242: Arkitekt | C242: 0 | D242: 0 | E242: 0 | F242: 0 | G242: 0 | I242: 0
A243: Landinspek. | C243: 0 | D243: 0 | E243: 0 | F243: 0 | G243: 0 | I243: 0
... 373 more rows

Sheet Tabel 4P Sydj
A1: Tabel 4. Ledighedsberørte - aldersfordelt
A3: Sydjylland
C5: Under 30 år | D5: 30 - 39 år | E5: 40 - 49 år | F5: 50 - 59 år | G5: Over 60 år | I5: I alt
A7: Civ. ing. | C7: =IF(OR('Tabel 4F Sydj'!C7<5,'Tabel 4 Sydj'!C7<0.5),"-",IFERROR('Tabel 4 Sydj'!C7/'Tabel 4F Sydj'!C7*100,"-")) -> 3.472222222 | D7: =IF(OR('Tabel 4F Sydj'!D7<5,'Tabel 4 Sydj'!D7<0.5),"-",IFERROR('Tabel 4 Sydj'!D7/'Tabel 4F Sydj'!D7*100,"-")) -> 1.24137931 | E7: =IF(OR('Tabel 4F Sydj'!E7<5,'Tabel 4 Sydj'!E7<0.5),"-",IFERROR('Tabel 4 Sydj'!E7/'Tabel 4F Sydj'!E7*100,"-")) -> 1.016949153 | F7: =IF(OR('Tabel 4F Sydj'!F7<5,'Tabel 4 Sydj'!F7<0.5),"-",IFERROR('Tabel 4 Sydj'!F7/'Tabel 4F Sydj'!F7*100,"-")) -> 0.9732360097 | G7: =IF(OR('Tabel 4F Sydj'!G7<5,'Tabel 4 Sydj'!G7<0.5),"-",IFERROR('Tabel 4 Sydj'!G7/'Tabel 4F Sydj'!G7*100,"-")) -> 3.773584906 | I7: =IF(OR('Tabel 4F Sydj'!I7<5,'Tabel 4 Sydj'!I7<0.5),"-",IFERROR('Tabel 4 Sydj'!I7/'Tabel 4F Sydj'!I7*100,"-")) -> 1.556603774
A8: Diplom ing. | C8: =IF(OR('Tabel 4F Sydj'!C8<5,'Tabel 4 Sydj'!C8<0.5),"-",IFERROR('Tabel 4 Sydj'!C8/'Tabel 4F Sydj'!C8*100,"-")) -> 7.118644068 | D8: =IF(OR('Tabel 4F Sydj'!D8<5,'Tabel 4 Sydj'!D8<0.5),"-",IFERROR('Tabel 4 Sydj'!D8/'Tabel 4F Sydj'!D8*100,"-")) -> 1.260504202 | E8: =IF(OR('Tabel 4F Sydj'!E8<5,'Tabel 4 Sydj'!E8<0.5),"-",IFERROR('Tabel 4 Sydj'!E8/'Tabel 4F Sydj'!E8*100,"-")) -> 0.4901960784 | F8: =IF(OR('Tabel 4F Sydj'!F8<5,'Tabel 4 Sydj'!F8<0.5),"-",IFERROR('Tabel 4 Sydj'!F8/'Tabel 4F Sydj'!F8*100,"-")) -> 1.164215686 | G8: =IF(OR('Tabel 4F Sydj'!G8<5,'Tabel 4 Sydj'!G8<0.5),"-",IFERROR('Tabel 4 Sydj'!G8/'Tabel 4F Sydj'!G8*100,"-")) -> 2.72572402 | I8: =IF(OR('Tabel 4F Sydj'!I8<5,'Tabel 4 Sydj'!I8<0.5),"-",IFERROR('Tabel 4 Sydj'!I8/'Tabel 4F Sydj'!I8*100,"-")) -> 1.647834275
A9: Cand. Scient. Tek | C9: =IF(OR('Tabel 4F Sydj'!C9<5,'Tabel 4 Sydj'!C9<0.5),"-",IFERROR('Tabel 4 Sydj'!C9/'Tabel 4F Sydj'!C9*100,"-")) -> 4.291845494 | D9: =IF(OR('Tabel 4F Sydj'!D9<5,'Tabel 4 Sydj'!D9<0.5),"-",IFERROR('Tabel 4 Sydj'!D9/'Tabel 4F Sydj'!D9*100,"-")) -> 3.888888889 | E9: =IF(OR('Tabel 4F Sydj'!E9<5,'Tabel 4 Sydj'!E9<0.5),"-",IFERROR('Tabel 4 Sydj'!E9/'Tabel 4F Sydj'!E9*100,"-")) -> 0.5780346821 | F9: =IF(OR('Tabel 4F Sydj'!F9<5,'Tabel 4 Sydj'!F9<0.5),"-",IFERROR('Tabel 4 Sydj'!F9/'Tabel 4F Sydj'!F9*100,"-")) -> 5 | G9: =IF(OR('Tabel 4F Sydj'!G9<5,'Tabel 4 Sydj'!G9<0.5),"-",IFERROR('Tabel 4 Sydj'!G9/'Tabel 4F Sydj'!G9*100,"-")) -> 20 | I9: =IF(OR('Tabel 4F Sydj'!I9<5,'Tabel 4 Sydj'!I9<0.5),"-",IFERROR('Tabel 4 Sydj'!I9/'Tabel 4F Sydj'!I9*100,"-")) -> 3.801169591
A10: MA. Hum. | C10: =IF(OR('Tabel 4F Sydj'!C10<5,'Tabel 4 Sydj'!C10<0.5),"-",IFERROR('Tabel 4 Sydj'!C10/'Tabel 4F Sydj'!C10*100,"-")) -> 15.13761468 | D10: =IF(OR('Tabel 4F Sydj'!D10<5,'Tabel 4 Sydj'!D10<0.5),"-",IFERROR('Tabel 4 Sydj'!D10/'Tabel 4F Sydj'!D10*100,"-")) -> 6.870229008 | E10: =IF(OR('Tabel 4F Sydj'!E10<5,'Tabel 4 Sydj'!E10<0.5),"-",IFERROR('Tabel 4 Sydj'!E10/'Tabel 4F Sydj'!E10*100,"-")) -> 2.48447205 | F10: =IF(OR('Tabel 4F Sydj'!F10<5,'Tabel 4 Sydj'!F10<0.5),"-",IFERROR('Tabel 4 Sydj'!F10/'Tabel 4F Sydj'!F10*100,"-")) -> 3.562945368 | G10: =IF(OR('Tabel 4F Sydj'!G10<5,'Tabel 4 Sydj'!G10<0.5),"-",IFERROR('Tabel 4 Sydj'!G10/'Tabel 4F Sydj'!G10*100,"-")) -> 3.846153846 | I10: =IF(OR('Tabel 4F Sydj'!I10<5,'Tabel 4 Sydj'!I10<0.5),"-",IFERROR('Tabel 4 Sydj'!I10/'Tabel 4F Sydj'!I10*100,"-")) -> 5.364626991
A11: MA. Nat. | C11: =IF(OR('Tabel 4F Sydj'!C11<5,'Tabel 4 Sydj'!C11<0.5),"-",IFERROR('Tabel 4 Sydj'!C11/'Tabel 4F Sydj'!C11*100,"-")) -> 10.63829787 | D11: =IF(OR('Tabel 4F Sydj'!D11<5,'Tabel 4 Sydj'!D11<0.5),"-",IFERROR('Tabel 4 Sydj'!D11/'Tabel 4F Sydj'!D11*100,"-")) -> 3.977272727 | E11: =IF(OR('Tabel 4F Sydj'!E11<5,'Tabel 4 Sydj'!E11<0.5),"-",IFERROR('Tabel 4 Sydj'!E11/'Tabel 4F Sydj'!E11*100,"-")) -> - | F11: =IF(OR('Tabel 4F Sydj'!F11<5,'Tabel 4 Sydj'!F11<0.5),"-",IFERROR('Tabel 4 Sydj'!F11/'Tabel 4F Sydj'!F11*100,"-")) -> 1.327433628 | G11: =IF(OR('Tabel 4F Sydj'!G11<5,'Tabel 4 Sydj'!G11<0.5),"-",IFERROR('Tabel 4 Sydj'!G11/'Tabel 4F Sydj'!G11*100,"-")) -> 1.265822785 | I11: =IF(OR('Tabel 4F Sydj'!I11<5,'Tabel 4 Sydj'!I11<0.5),"-",IFERROR('Tabel 4 Sydj'!I11/'Tabel 4F Sydj'!I11*100,"-")) -> 2.075226978
A12: MA. Ph.d. | C12: =IF(OR('Tabel 4F Sydj'!C12<5,'Tabel 4 Sydj'!C12<0.5),"-",IFERROR('Tabel 4 Sydj'!C12/'Tabel 4F Sydj'!C12*100,"-")) -> - | D12: =IF(OR('Tabel 4F Sydj'!D12<5,'Tabel 4 Sydj'!D12<0.5),"-",IFERROR('Tabel 4 Sydj'!D12/'Tabel 4F Sydj'!D12*100,"-")) -> 5.882352941 | E12: =IF(OR('Tabel 4F Sydj'!E12<5,'Tabel 4 Sydj'!E12<0.5),"-",IFERROR('Tabel 4 Sydj'!E12/'Tabel 4F Sydj'!E12*100,"-")) -> - | F12: =IF(OR('Tabel 4F Sydj'!F12<5,'Tabel 4 Sydj'!F12<0.5),"-",IFERROR('Tabel 4 Sydj'!F12/'Tabel 4F Sydj'!F12*100,"-")) -> 4.761904762 | G12: =IF(OR('Tabel 4F Sydj'!G12<5,'Tabel 4 Sydj'!G12<0.5),"-",IFERROR('Tabel 4 Sydj'!G12/'Tabel 4F Sydj'!G12*100,"-")) -> - | I12: =IF(OR('Tabel 4F Sydj'!I12<5,'Tabel 4 Sydj'!I12<0.5),"-",IFERROR('Tabel 4 Sydj'!I12/'Tabel 4F Sydj'!I12*100,"-")) -> 2.666666667
A13: MA. Samf. | C13: =IF(OR('Tabel 4F Sydj'!C13<5,'Tabel 4 Sydj'!C13<0.5),"-",IFERROR('Tabel 4 Sydj'!C13/'Tabel 4F Sydj'!C13*100,"-")) -> 13.63636364 | D13: =IF(OR('Tabel 4F Sydj'!D13<5,'Tabel 4 Sydj'!D13<0.5),"-",IFERROR('Tabel 4 Sydj'!D13/'Tabel 4F Sydj'!D13*100,"-")) -> 8.035714286 | E13: =IF(OR('Tabel 4F Sydj'!E13<5,'Tabel 4 Sydj'!E13<0.5),"-",IFERROR('Tabel 4 Sydj'!E13/'Tabel 4F Sydj'!E13*100,"-")) -> 10 | F13: =IF(OR('Tabel 4F Sydj'!F13<5,'Tabel 4 Sydj'!F13<0.5),"-",IFERROR('Tabel 4 Sydj'!F13/'Tabel 4F Sydj'!F13*100,"-")) -> 11.11111111 | G13: =IF(OR('Tabel 4F Sydj'!G13<5,'Tabel 4 Sydj'!G13<0.5),"-",IFERROR('Tabel 4 Sydj'!G13/'Tabel 4F Sydj'!G13*100,"-")) -> - | I13: =IF(OR('Tabel 4F Sydj'!I13<5,'Tabel 4 Sydj'!I13<0.5),"-",IFERROR('Tabel 4 Sydj'!I13/'Tabel 4F Sydj'!I13*100,"-")) -> 10.21505376
A14: Øvrige Mag. | C14: =IF(OR('Tabel 4F Sydj'!C14<5,'Tabel 4 Sydj'!C14<0.5),"-",IFERROR('Tabel 4 Sydj'!C14/'Tabel 4F Sydj'!C14*100,"-")) -> 18.75 | D14: =IF(OR('Tabel 4F Sydj'!D14<5,'Tabel 4 Sydj'!D14<0.5),"-",IFERROR('Tabel 4 Sydj'!D14/'Tabel 4F Sydj'!D14*100,"-")) -> 2 | E14: =IF(OR('Tabel 4F Sydj'!E14<5,'Tabel 4 Sydj'!E14<0.5),"-",IFERROR('Tabel 4 Sydj'!E14/'Tabel 4F Sydj'!E14*100,"-")) -> 3.389830508 | F14: =IF(OR('Tabel 4F Sydj'!F14<5,'Tabel 4 Sydj'!F14<0.5),"-",IFERROR('Tabel 4 Sydj'!F14/'Tabel 4F Sydj'!F14*100,"-")) -> 1.388888889 | G14: =IF(OR('Tabel 4F Sydj'!G14<5,'Tabel 4 Sydj'!G14<0.5),"-",IFERROR('Tabel 4 Sydj'!G14/'Tabel 4F Sydj'!G14*100,"-")) -> - | I14: =IF(OR('Tabel 4F Sydj'!I14<5,'Tabel 4 Sydj'!I14<0.5),"-",IFERROR('Tabel 4 Sydj'!I14/'Tabel 4F Sydj'!I14*100,"-")) -> 3.083700441
A15: Agronom | C15: =IF(OR('Tabel 4F Sydj'!C15<5,'Tabel 4 Sydj'!C15<0.5),"-",IFERROR('Tabel 4 Sydj'!C15/'Tabel 4F Sydj'!C15*100,"-")) -> - | D15: =IF(OR('Tabel 4F Sydj'!D15<5,'Tabel 4 Sydj'!D15<0.5),"-",IFERROR('Tabel 4 Sydj'!D15/'Tabel 4F Sydj'!D15*100,"-")) -> - | E15: =IF(OR('Tabel 4F Sydj'!E15<5,'Tabel 4 Sydj'!E15<0.5),"-",IFERROR('Tabel 4 Sydj'!E15/'Tabel 4F Sydj'!E15*100,"-")) -> - | F15: =IF(OR('Tabel 4F Sydj'!F15<5,'Tabel 4 Sydj'!F15<0.5),"-",IFERROR('Tabel 4 Sydj'!F15/'Tabel 4F Sydj'!F15*100,"-")) -> - | G15: =IF(OR('Tabel 4F Sydj'!G15<5,'Tabel 4 Sydj'!G15<0.5),"-",IFERROR('Tabel 4 Sydj'!G15/'Tabel 4F Sydj'!G15*100,"-")) -> 6.976744186 | I15: =IF(OR('Tabel 4F Sydj'!I15<5,'Tabel 4 Sydj'!I15<0.5),"-",IFERROR('Tabel 4 Sydj'!I15/'Tabel 4F Sydj'!I15*100,"-")) -> 1.382488479
A16: Landsk. Arkt. | C16: =IF(OR('Tabel 4F Sydj'!C16<5,'Tabel 4 Sydj'!C16<0.5),"-",IFERROR('Tabel 4 Sydj'!C16/'Tabel 4F Sydj'!C16*100,"-")) -> - | D16: =IF(OR('Tabel 4F Sydj'!D16<5,'Tabel 4 Sydj'!D16<0.5),"-",IFERROR('Tabel 4 Sydj'!D16/'Tabel 4F Sydj'!D16*100,"-")) -> 14.28571429 | E16: =IF(OR('Tabel 4F Sydj'!E16<5,'Tabel 4 Sydj'!E16<0.5),"-",IFERROR('Tabel 4 Sydj'!E16/'Tabel 4F Sydj'!E16*100,"-")) -> - | F16: =IF(OR('Tabel 4F Sydj'!F16<5,'Tabel 4 Sydj'!F16<0.5),"-",IFERROR('Tabel 4 Sydj'!F16/'Tabel 4F Sydj'!F16*100,"-")) -> - | G16: =IF(OR('Tabel 4F Sydj'!G16<5,'Tabel 4 Sydj'!G16<0.5),"-",IFERROR('Tabel 4 Sydj'!G16/'Tabel 4F Sydj'!G16*100,"-")) -> - | I16: =IF(OR('Tabel 4F Sydj'!I16<5,'Tabel 4 Sydj'!I16<0.5),"-",IFERROR('Tabel 4 Sydj'!I16/'Tabel 4F Sydj'!I16*100,"-")) -> 3.125
A17: Hortonom | C17: =IF(OR('Tabel 4F Sydj'!C17<5,'Tabel 4 Sydj'!C17<0.5),"-",IFERROR('Tabel 4 Sydj'!C17/'Tabel 4F Sydj'!C17*100,"-")) -> - | D17: =IF(OR('Tabel 4F Sydj'!D17<5,'Tabel 4 Sydj'!D17<0.5),"-",IFERROR('Tabel 4 Sydj'!D17/'Tabel 4F Sydj'!D17*100,"-")) -> - | E17: =IF(OR('Tabel 4F Sydj'!E17<5,'Tabel 4 Sydj'!E17<0.5),"-",IFERROR('Tabel 4 Sydj'!E17/'Tabel 4F Sydj'!E17*100,"-")) -> - | F17: =IF(OR('Tabel 4F Sydj'!F17<5,'Tabel 4 Sydj'!F17<0.5),"-",IFERROR('Tabel 4 Sydj'!F17/'Tabel 4F Sydj'!F17*100,"-")) -> - | G17: =IF(OR('Tabel 4F Sydj'!G17<5,'Tabel 4 Sydj'!G17<0.5),"-",IFERROR('Tabel 4 Sydj'!G17/'Tabel 4F Sydj'!G17*100,"-")) -> - | I17: =IF(OR('Tabel 4F Sydj'!I17<5,'Tabel 4 Sydj'!I17<0.5),"-",IFERROR('Tabel 4 Sydj'!I17/'Tabel 4F Sydj'!I17*100,"-")) -> -
A18: Forstkand. | C18: =IF(OR('Tabel 4F Sydj'!C18<5,'Tabel 4 Sydj'!C18<0.5),"-",IFERROR('Tabel 4 Sydj'!C18/'Tabel 4F Sydj'!C18*100,"-")) -> - | D18: =IF(OR('Tabel 4F Sydj'!D18<5,'Tabel 4 Sydj'!D18<0.5),"-",IFERROR('Tabel 4 Sydj'!D18/'Tabel 4F Sydj'!D18*100,"-")) -> - | E18: =IF(OR('Tabel 4F Sydj'!E18<5,'Tabel 4 Sydj'!E18<0.5),"-",IFERROR('Tabel 4 Sydj'!E18/'Tabel 4F Sydj'!E18*100,"-")) -> - | F18: =IF(OR('Tabel 4F Sydj'!F18<5,'Tabel 4 Sydj'!F18<0.5),"-",IFERROR('Tabel 4 Sydj'!F18/'Tabel 4F Sydj'!F18*100,"-")) -> - | G18: =IF(OR('Tabel 4F Sydj'!G18<5,'Tabel 4 Sydj'!G18<0.5),"-",IFERROR('Tabel 4 Sydj'!G18/'Tabel 4F Sydj'!G18*100,"-")) -> - | I18: =IF(OR('Tabel 4F Sydj'!I18<5,'Tabel 4 Sydj'!I18<0.5),"-",IFERROR('Tabel 4 Sydj'!I18/'Tabel 4F Sydj'!I18*100,"-")) -> -
A19: Jordbrugsakad. | C19: =IF(OR('Tabel 4F Sydj'!C19<5,'Tabel 4 Sydj'!C19<0.5),"-",IFERROR('Tabel 4 Sydj'!C19/'Tabel 4F Sydj'!C19*100,"-")) -> - | D19: =IF(OR('Tabel 4F Sydj'!D19<5,'Tabel 4 Sydj'!D19<0.5),"-",IFERROR('Tabel 4 Sydj'!D19/'Tabel 4F Sydj'!D19*100,"-")) -> 2.43902439 | E19: =IF(OR('Tabel 4F Sydj'!E19<5,'Tabel 4 Sydj'!E19<0.5),"-",IFERROR('Tabel 4 Sydj'!E19/'Tabel 4F Sydj'!E19*100,"-")) -> - | F19: =IF(OR('Tabel 4F Sydj'!F19<5,'Tabel 4 Sydj'!F19<0.5),"-",IFERROR('Tabel 4 Sydj'!F19/'Tabel 4F Sydj'!F19*100,"-")) -> - | G19: =IF(OR('Tabel 4F Sydj'!G19<5,'Tabel 4 Sydj'!G19<0.5),"-",IFERROR('Tabel 4 Sydj'!G19/'Tabel 4F Sydj'!G19*100,"-")) -> 5.172413793 | I19: =IF(OR('Tabel 4F Sydj'!I19<5,'Tabel 4 Sydj'!I19<0.5),"-",IFERROR('Tabel 4 Sydj'!I19/'Tabel 4F Sydj'!I19*100,"-")) -> 1.320132013
A20: Mejeriing. | C20: =IF(OR('Tabel 4F Sydj'!C20<5,'Tabel 4 Sydj'!C20<0.5),"-",IFERROR('Tabel 4 Sydj'!C20/'Tabel 4F Sydj'!C20*100,"-")) -> - | D20: =IF(OR('Tabel 4F Sydj'!D20<5,'Tabel 4 Sydj'!D20<0.5),"-",IFERROR('Tabel 4 Sydj'!D20/'Tabel 4F Sydj'!D20*100,"-")) -> - | E20: =IF(OR('Tabel 4F Sydj'!E20<5,'Tabel 4 Sydj'!E20<0.5),"-",IFERROR('Tabel 4 Sydj'!E20/'Tabel 4F Sydj'!E20*100,"-")) -> - | F20: =IF(OR('Tabel 4F Sydj'!F20<5,'Tabel 4 Sydj'!F20<0.5),"-",IFERROR('Tabel 4 Sydj'!F20/'Tabel 4F Sydj'!F20*100,"-")) -> - | G20: =IF(OR('Tabel 4F Sydj'!G20<5,'Tabel 4 Sydj'!G20<0.5),"-",IFERROR('Tabel 4 Sydj'!G20/'Tabel 4F Sydj'!G20*100,"-")) -> - | I20: =IF(OR('Tabel 4F Sydj'!I20<5,'Tabel 4 Sydj'!I20<0.5),"-",IFERROR('Tabel 4 Sydj'!I20/'Tabel 4F Sydj'!I20*100,"-")) -> -
A21: Levn.m.kand. | C21: =IF(OR('Tabel 4F Sydj'!C21<5,'Tabel 4 Sydj'!C21<0.5),"-",IFERROR('Tabel 4 Sydj'!C21/'Tabel 4F Sydj'!C21*100,"-")) -> - | D21: =IF(OR('Tabel 4F Sydj'!D21<5,'Tabel 4 Sydj'!D21<0.5),"-",IFERROR('Tabel 4 Sydj'!D21/'Tabel 4F Sydj'!D21*100,"-")) -> - | E21: =IF(OR('Tabel 4F Sydj'!E21<5,'Tabel 4 Sydj'!E21<0.5),"-",IFERROR('Tabel 4 Sydj'!E21/'Tabel 4F Sydj'!E21*100,"-")) -> - | F21: =IF(OR('Tabel 4F Sydj'!F21<5,'Tabel 4 Sydj'!F21<0.5),"-",IFERROR('Tabel 4 Sydj'!F21/'Tabel 4F Sydj'!F21*100,"-")) -> - | G21: =IF(OR('Tabel 4F Sydj'!G21<5,'Tabel 4 Sydj'!G21<0.5),"-",IFERROR('Tabel 4 Sydj'!G21/'Tabel 4F Sydj'!G21*100,"-")) -> - | I21: =IF(OR('Tabel 4F Sydj'!I21<5,'Tabel 4 Sydj'!I21<0.5),"-",IFERROR('Tabel 4 Sydj'!I21/'Tabel 4F Sydj'!I21*100,"-")) -> -
A22: Dyrlæge | C22: =IF(OR('Tabel 4F Sydj'!C22<5,'Tabel 4 Sydj'!C22<0.5),"-",IFERROR('Tabel 4 Sydj'!C22/'Tabel 4F Sydj'!C22*100,"-")) -> - | D22: =IF(OR('Tabel 4F Sydj'!D22<5,'Tabel 4 Sydj'!D22<0.5),"-",IFERROR('Tabel 4 Sydj'!D22/'Tabel 4F Sydj'!D22*100,"-")) -> 0.9523809524 | E22: =IF(OR('Tabel 4F Sydj'!E22<5,'Tabel 4 Sydj'!E22<0.5),"-",IFERROR('Tabel 4 Sydj'!E22/'Tabel 4F Sydj'!E22*100,"-")) -> - | F22: =IF(OR('Tabel 4F Sydj'!F22<5,'Tabel 4 Sydj'!F22<0.5),"-",IFERROR('Tabel 4 Sydj'!F22/'Tabel 4F Sydj'!F22*100,"-")) -> - | G22: =IF(OR('Tabel 4F Sydj'!G22<5,'Tabel 4 Sydj'!G22<0.5),"-",IFERROR('Tabel 4 Sydj'!G22/'Tabel 4F Sydj'!G22*100,"-")) -> 9.090909091 | I22: =IF(OR('Tabel 4F Sydj'!I22<5,'Tabel 4 Sydj'!I22<0.5),"-",IFERROR('Tabel 4 Sydj'!I22/'Tabel 4F Sydj'!I22*100,"-")) -> 1.013513514
A23: Farmaceut | C23: =IF(OR('Tabel 4F Sydj'!C23<5,'Tabel 4 Sydj'!C23<0.5),"-",IFERROR('Tabel 4 Sydj'!C23/'Tabel 4F Sydj'!C23*100,"-")) -> 4.444444444 | D23: =IF(OR('Tabel 4F Sydj'!D23<5,'Tabel 4 Sydj'!D23<0.5),"-",IFERROR('Tabel 4 Sydj'!D23/'Tabel 4F Sydj'!D23*100,"-")) -> 3.225806452 | E23: =IF(OR('Tabel 4F Sydj'!E23<5,'Tabel 4 Sydj'!E23<0.5),"-",IFERROR('Tabel 4 Sydj'!E23/'Tabel 4F Sydj'!E23*100,"-")) -> - | F23: =IF(OR('Tabel 4F Sydj'!F23<5,'Tabel 4 Sydj'!F23<0.5),"-",IFERROR('Tabel 4 Sydj'!F23/'Tabel 4F Sydj'!F23*100,"-")) -> - | G23: =IF(OR('Tabel 4F Sydj'!G23<5,'Tabel 4 Sydj'!G23<0.5),"-",IFERROR('Tabel 4 Sydj'!G23/'Tabel 4F Sydj'!G23*100,"-")) -> - | I23: =IF(OR('Tabel 4F Sydj'!I23<5,'Tabel 4 Sydj'!I23<0.5),"-",IFERROR('Tabel 4 Sydj'!I23/'Tabel 4F Sydj'!I23*100,"-")) -> 1.93236715
A24: Læge | C24: =IF(OR('Tabel 4F Sydj'!C24<5,'Tabel 4 Sydj'!C24<0.5),"-",IFERROR('Tabel 4 Sydj'!C24/'Tabel 4F Sydj'!C24*100,"-")) -> 0.641025641 | D24: =IF(OR('Tabel 4F Sydj'!D24<5,'Tabel 4 Sydj'!D24<0.5),"-",IFERROR('Tabel 4 Sydj'!D24/'Tabel 4F Sydj'!D24*100,"-")) -> 0.5649717514 | E24: =IF(OR('Tabel 4F Sydj'!E24<5,'Tabel 4 Sydj'!E24<0.5),"-",IFERROR('Tabel 4 Sydj'!E24/'Tabel 4F Sydj'!E24*100,"-")) -> - | F24: =IF(OR('Tabel 4F Sydj'!F24<5,'Tabel 4 Sydj'!F24<0.5),"-",IFERROR('Tabel 4 Sydj'!F24/'Tabel 4F Sydj'!F24*100,"-")) -> - | G24: =IF(OR('Tabel 4F Sydj'!G24<5,'Tabel 4 Sydj'!G24<0.5),"-",IFERROR('Tabel 4 Sydj'!G24/'Tabel 4F Sydj'!G24*100,"-")) -> - | I24: =IF(OR('Tabel 4F Sydj'!I24<5,'Tabel 4 Sydj'!I24<0.5),"-",IFERROR('Tabel 4 Sydj'!I24/'Tabel 4F Sydj'!I24*100,"-")) -> 0.3496503497
A25: Tandlæge | C25: =IF(OR('Tabel 4F Sydj'!C25<5,'Tabel 4 Sydj'!C25<0.5),"-",IFERROR('Tabel 4 Sydj'!C25/'Tabel 4F Sydj'!C25*100,"-")) -> - | D25: =IF(OR('Tabel 4F Sydj'!D25<5,'Tabel 4 Sydj'!D25<0.5),"-",IFERROR('Tabel 4 Sydj'!D25/'Tabel 4F Sydj'!D25*100,"-")) -> - | E25: =IF(OR('Tabel 4F Sydj'!E25<5,'Tabel 4 Sydj'!E25<0.5),"-",IFERROR('Tabel 4 Sydj'!E25/'Tabel 4F Sydj'!E25*100,"-")) -> - | F25: =IF(OR('Tabel 4F Sydj'!F25<5,'Tabel 4 Sydj'!F25<0.5),"-",IFERROR('Tabel 4 Sydj'!F25/'Tabel 4F Sydj'!F25*100,"-")) -> 5.882352941 | G25: =IF(OR('Tabel 4F Sydj'!G25<5,'Tabel 4 Sydj'!G25<0.5),"-",IFERROR('Tabel 4 Sydj'!G25/'Tabel 4F Sydj'!G25*100,"-")) -> - | I25: =IF(OR('Tabel 4F Sydj'!I25<5,'Tabel 4 Sydj'!I25<0.5),"-",IFERROR('Tabel 4 Sydj'!I25/'Tabel 4F Sydj'!I25*100,"-")) -> 1.075268817
A26: Arkitekt | C26: =IF(OR('Tabel 4F Sydj'!C26<5,'Tabel 4 Sydj'!C26<0.5),"-",IFERROR('Tabel 4 Sydj'!C26/'Tabel 4F Sydj'!C26*100,"-")) -> - | D26: =IF(OR('Tabel 4F Sydj'!D26<5,'Tabel 4 Sydj'!D26<0.5),"-",IFERROR('Tabel 4 Sydj'!D26/'Tabel 4F Sydj'!D26*100,"-")) -> 5.084745763 | E26: =IF(OR('Tabel 4F Sydj'!E26<5,'Tabel 4 Sydj'!E26<0.5),"-",IFERROR('Tabel 4 Sydj'!E26/'Tabel 4F Sydj'!E26*100,"-")) -> - | F26: =IF(OR('Tabel 4F Sydj'!F26<5,'Tabel 4 Sydj'!F26<0.5),"-",IFERROR('Tabel 4 Sydj'!F26/'Tabel 4F Sydj'!F26*100,"-")) -> - | G26: =IF(OR('Tabel 4F Sydj'!G26<5,'Tabel 4 Sydj'!G26<0.5),"-",IFERROR('Tabel 4 Sydj'!G26/'Tabel 4F Sydj'!G26*100,"-")) -> 3.225806452 | I26: =IF(OR('Tabel 4F Sydj'!I26<5,'Tabel 4 Sydj'!I26<0.5),"-",IFERROR('Tabel 4 Sydj'!I26/'Tabel 4F Sydj'!I26*100,"-")) -> 1.851851852
A27: Landinspek. | C27: =IF(OR('Tabel 4F Sydj'!C27<5,'Tabel 4 Sydj'!C27<0.5),"-",IFERROR('Tabel 4 Sydj'!C27/'Tabel 4F Sydj'!C27*100,"-")) -> - | D27: =IF(OR('Tabel 4F Sydj'!D27<5,'Tabel 4 Sydj'!D27<0.5),"-",IFERROR('Tabel 4 Sydj'!D27/'Tabel 4F Sydj'!D27*100,"-")) -> - | E27: =IF(OR('Tabel 4F Sydj'!E27<5,'Tabel 4 Sydj'!E27<0.5),"-",IFERROR('Tabel 4 Sydj'!E27/'Tabel 4F Sydj'!E27*100,"-")) -> - | F27: =IF(OR('Tabel 4F Sydj'!F27<5,'Tabel 4 Sydj'!F27<0.5),"-",IFERROR('Tabel 4 Sydj'!F27/'Tabel 4F Sydj'!F27*100,"-")) -> - | G27: =IF(OR('Tabel 4F Sydj'!G27<5,'Tabel 4 Sydj'!G27<0.5),"-",IFERROR('Tabel 4 Sydj'!G27/'Tabel 4F Sydj'!G27*100,"-")) -> - | I27: =IF(OR('Tabel 4F Sydj'!I27<5,'Tabel 4 Sydj'!I27<0.5),"-",IFERROR('Tabel 4 Sydj'!I27/'Tabel 4F Sydj'!I27*100,"-")) -> -
A28: Bibliotekar | C28: =IF(OR('Tabel 4F Sydj'!C28<5,'Tabel 4 Sydj'!C28<0.5),"-",IFERROR('Tabel 4 Sydj'!C28/'Tabel 4F Sydj'!C28*100,"-")) -> - | D28: =IF(OR('Tabel 4F Sydj'!D28<5,'Tabel 4 Sydj'!D28<0.5),"-",IFERROR('Tabel 4 Sydj'!D28/'Tabel 4F Sydj'!D28*100,"-")) -> 2.564102564 | E28: =IF(OR('Tabel 4F Sydj'!E28<5,'Tabel 4 Sydj'!E28<0.5),"-",IFERROR('Tabel 4 Sydj'!E28/'Tabel 4F Sydj'!E28*100,"-")) -> - | F28: =IF(OR('Tabel 4F Sydj'!F28<5,'Tabel 4 Sydj'!F28<0.5),"-",IFERROR('Tabel 4 Sydj'!F28/'Tabel 4F Sydj'!F28*100,"-")) -> - | G28: =IF(OR('Tabel 4F Sydj'!G28<5,'Tabel 4 Sydj'!G28<0.5),"-",IFERROR('Tabel 4 Sydj'!G28/'Tabel 4F Sydj'!G28*100,"-")) -> 2.222222222 | I28: =IF(OR('Tabel 4F Sydj'!I28<5,'Tabel 4 Sydj'!I28<0.5),"-",IFERROR('Tabel 4 Sydj'!I28/'Tabel 4F Sydj'!I28*100,"-")) -> 0.8298755187
A29: Musikudd. | C29: =IF(OR('Tabel 4F Sydj'!C29<5,'Tabel 4 Sydj'!C29<0.5),"-",IFERROR('Tabel 4 Sydj'!C29/'Tabel 4F Sydj'!C29*100,"-")) -> - | D29: =IF(OR('Tabel 4F Sydj'!D29<5,'Tabel 4 Sydj'!D29<0.5),"-",IFERROR('Tabel 4 Sydj'!D29/'Tabel 4F Sydj'!D29*100,"-")) -> 7.142857143 | E29: =IF(OR('Tabel 4F Sydj'!E29<5,'Tabel 4 Sydj'!E29<0.5),"-",IFERROR('Tabel 4 Sydj'!E29/'Tabel 4F Sydj'!E29*100,"-")) -> - | F29: =IF(OR('Tabel 4F Sydj'!F29<5,'Tabel 4 Sydj'!F29<0.5),"-",IFERROR('Tabel 4 Sydj'!F29/'Tabel 4F Sydj'!F29*100,"-")) -> - | G29: =IF(OR('Tabel 4F Sydj'!G29<5,'Tabel 4 Sydj'!G29<0.5),"-",IFERROR('Tabel 4 Sydj'!G29/'Tabel 4F Sydj'!G29*100,"-")) -> - | I29: =IF(OR('Tabel 4F Sydj'!I29<5,'Tabel 4 Sydj'!I29<0.5),"-",IFERROR('Tabel 4 Sydj'!I29/'Tabel 4F Sydj'!I29*100,"-")) -> 1
A30: Teolog | C30: =IF(OR('Tabel 4F Sydj'!C30<5,'Tabel 4 Sydj'!C30<0.5),"-",IFERROR('Tabel 4 Sydj'!C30/'Tabel 4F Sydj'!C30*100,"-")) -> - | D30: =IF(OR('Tabel 4F Sydj'!D30<5,'Tabel 4 Sydj'!D30<0.5),"-",IFERROR('Tabel 4 Sydj'!D30/'Tabel 4F Sydj'!D30*100,"-")) -> - | E30: =IF(OR('Tabel 4F Sydj'!E30<5,'Tabel 4 Sydj'!E30<0.5),"-",IFERROR('Tabel 4 Sydj'!E30/'Tabel 4F Sydj'!E30*100,"-")) -> 1.724137931 | F30: =IF(OR('Tabel 4F Sydj'!F30<5,'Tabel 4 Sydj'!F30<0.5),"-",IFERROR('Tabel 4 Sydj'!F30/'Tabel 4F Sydj'!F30*100,"-")) -> - | G30: =IF(OR('Tabel 4F Sydj'!G30<5,'Tabel 4 Sydj'!G30<0.5),"-",IFERROR('Tabel 4 Sydj'!G30/'Tabel 4F Sydj'!G30*100,"-")) -> 2.857142857 | I30: =IF(OR('Tabel 4F Sydj'!I30<5,'Tabel 4 Sydj'!I30<0.5),"-",IFERROR('Tabel 4 Sydj'!I30/'Tabel 4F Sydj'!I30*100,"-")) -> 1.025641026
A31: Psykolog | C31: =IF(OR('Tabel 4F Sydj'!C31<5,'Tabel 4 Sydj'!C31<0.5),"-",IFERROR('Tabel 4 Sydj'!C31/'Tabel 4F Sydj'!C31*100,"-")) -> 1.5625 | D31: =IF(OR('Tabel 4F Sydj'!D31<5,'Tabel 4 Sydj'!D31<0.5),"-",IFERROR('Tabel 4 Sydj'!D31/'Tabel 4F Sydj'!D31*100,"-")) -> 2.654867257 | E31: =IF(OR('Tabel 4F Sydj'!E31<5,'Tabel 4 Sydj'!E31<0.5),"-",IFERROR('Tabel 4 Sydj'!E31/'Tabel 4F Sydj'!E31*100,"-")) -> 2.586206897 | F31: =IF(OR('Tabel 4F Sydj'!F31<5,'Tabel 4 Sydj'!F31<0.5),"-",IFERROR('Tabel 4 Sydj'!F31/'Tabel 4F Sydj'!F31*100,"-")) -> - | G31: =IF(OR('Tabel 4F Sydj'!G31<5,'Tabel 4 Sydj'!G31<0.5),"-",IFERROR('Tabel 4 Sydj'!G31/'Tabel 4F Sydj'!G31*100,"-")) -> - | I31: =IF(OR('Tabel 4F Sydj'!I31<5,'Tabel 4 Sydj'!I31<0.5),"-",IFERROR('Tabel 4 Sydj'!I31/'Tabel 4F Sydj'!I31*100,"-")) -> 2.016129032
A32: Jurist | C32: =IF(OR('Tabel 4F Sydj'!C32<5,'Tabel 4 Sydj'!C32<0.5),"-",IFERROR('Tabel 4 Sydj'!C32/'Tabel 4F Sydj'!C32*100,"-")) -> - | D32: =IF(OR('Tabel 4F Sydj'!D32<5,'Tabel 4 Sydj'!D32<0.5),"-",IFERROR('Tabel 4 Sydj'!D32/'Tabel 4F Sydj'!D32*100,"-")) -> 0.6734006734 | E32: =IF(OR('Tabel 4F Sydj'!E32<5,'Tabel 4 Sydj'!E32<0.5),"-",IFERROR('Tabel 4 Sydj'!E32/'Tabel 4F Sydj'!E32*100,"-")) -> 2.222222222 | F32: =IF(OR('Tabel 4F Sydj'!F32<5,'Tabel 4 Sydj'!F32<0.5),"-",IFERROR('Tabel 4 Sydj'!F32/'Tabel 4F Sydj'!F32*100,"-")) -> - | G32: =IF(OR('Tabel 4F Sydj'!G32<5,'Tabel 4 Sydj'!G32<0.5),"-",IFERROR('Tabel 4 Sydj'!G32/'Tabel 4F Sydj'!G32*100,"-")) -> 2.43902439 | I32: =IF(OR('Tabel 4F Sydj'!I32<5,'Tabel 4 Sydj'!I32<0.5),"-",IFERROR('Tabel 4 Sydj'!I32/'Tabel 4F Sydj'!I32*100,"-")) -> 0.9888751545
A33: Økonom | C33: =IF(OR('Tabel 4F Sydj'!C33<5,'Tabel 4 Sydj'!C33<0.5),"-",IFERROR('Tabel 4 Sydj'!C33/'Tabel 4F Sydj'!C33*100,"-")) -> 2.040816327 | D33: =IF(OR('Tabel 4F Sydj'!D33<5,'Tabel 4 Sydj'!D33<0.5),"-",IFERROR('Tabel 4 Sydj'!D33/'Tabel 4F Sydj'!D33*100,"-")) -> - | E33: =IF(OR('Tabel 4F Sydj'!E33<5,'Tabel 4 Sydj'!E33<0.5),"-",IFERROR('Tabel 4 Sydj'!E33/'Tabel 4F Sydj'!E33*100,"-")) -> - | F33: =IF(OR('Tabel 4F Sydj'!F33<5,'Tabel 4 Sydj'!F33<0.5),"-",IFERROR('Tabel 4 Sydj'!F33/'Tabel 4F Sydj'!F33*100,"-")) -> 1.030927835 | G33: =IF(OR('Tabel 4F Sydj'!G33<5,'Tabel 4 Sydj'!G33<0.5),"-",IFERROR('Tabel 4 Sydj'!G33/'Tabel 4F Sydj'!G33*100,"-")) -> 5.405405405 | I33: =IF(OR('Tabel 4F Sydj'!I33<5,'Tabel 4 Sydj'!I33<0.5),"-",IFERROR('Tabel 4 Sydj'!I33/'Tabel 4F Sydj'!I33*100,"-")) -> 0.9638554217
A34: Samf. Adm. | C34: =IF(OR('Tabel 4F Sydj'!C34<5,'Tabel 4 Sydj'!C34<0.5),"-",IFERROR('Tabel 4 Sydj'!C34/'Tabel 4F Sydj'!C34*100,"-")) -> 10.56910569 | D34: =IF(OR('Tabel 4F Sydj'!D34<5,'Tabel 4 Sydj'!D34<0.5),"-",IFERROR('Tabel 4 Sydj'!D34/'Tabel 4F Sydj'!D34*100,"-")) -> 2.916666667 | E34: =IF(OR('Tabel 4F Sydj'!E34<5,'Tabel 4 Sydj'!E34<0.5),"-",IFERROR('Tabel 4 Sydj'!E34/'Tabel 4F Sydj'!E34*100,"-")) -> 2.958579882 | F34: =IF(OR('Tabel 4F Sydj'!F34<5,'Tabel 4 Sydj'!F34<0.5),"-",IFERROR('Tabel 4 Sydj'!F34/'Tabel 4F Sydj'!F34*100,"-")) -> 1.408450704 | G34: =IF(OR('Tabel 4F Sydj'!G34<5,'Tabel 4 Sydj'!G34<0.5),"-",IFERROR('Tabel 4 Sydj'!G34/'Tabel 4F Sydj'!G34*100,"-")) -> 5 | I34: =IF(OR('Tabel 4F Sydj'!I34<5,'Tabel 4 Sydj'!I34<0.5),"-",IFERROR('Tabel 4 Sydj'!I34/'Tabel 4F Sydj'!I34*100,"-")) -> 3.51758794
A35: Cand. Merc. | C35: =IF(OR('Tabel 4F Sydj'!C35<5,'Tabel 4 Sydj'!C35<0.5),"-",IFERROR('Tabel 4 Sydj'!C35/'Tabel 4F Sydj'!C35*100,"-")) -> 3.636363636 | D35: =IF(OR('Tabel 4F Sydj'!D35<5,'Tabel 4 Sydj'!D35<0.5),"-",IFERROR('Tabel 4 Sydj'!D35/'Tabel 4F Sydj'!D35*100,"-")) -> 1.724137931 | E35: =IF(OR('Tabel 4F Sydj'!E35<5,'Tabel 4 Sydj'!E35<0.5),"-",IFERROR('Tabel 4 Sydj'!E35/'Tabel 4F Sydj'!E35*100,"-")) -> 0.9523809524 | F35: =IF(OR('Tabel 4F Sydj'!F35<5,'Tabel 4 Sydj'!F35<0.5),"-",IFERROR('Tabel 4 Sydj'!F35/'Tabel 4F Sydj'!F35*100,"-")) -> 2.364066194 | G35: =IF(OR('Tabel 4F Sydj'!G35<5,'Tabel 4 Sydj'!G35<0.5),"-",IFERROR('Tabel 4 Sydj'!G35/'Tabel 4F Sydj'!G35*100,"-")) -> 3.174603175 | I35: =IF(OR('Tabel 4F Sydj'!I35<5,'Tabel 4 Sydj'!I35<0.5),"-",IFERROR('Tabel 4 Sydj'!I35/'Tabel 4F Sydj'!I35*100,"-")) -> 1.983252534
A36: HA | C36: =IF(OR('Tabel 4F Sydj'!C36<5,'Tabel 4 Sydj'!C36<0.5),"-",IFERROR('Tabel 4 Sydj'!C36/'Tabel 4F Sydj'!C36*100,"-")) -> 8.333333333 | D36: =IF(OR('Tabel 4F Sydj'!D36<5,'Tabel 4 Sydj'!D36<0.5),"-",IFERROR('Tabel 4 Sydj'!D36/'Tabel 4F Sydj'!D36*100,"-")) -> 2.469135802 | E36: =IF(OR('Tabel 4F Sydj'!E36<5,'Tabel 4 Sydj'!E36<0.5),"-",IFERROR('Tabel 4 Sydj'!E36/'Tabel 4F Sydj'!E36*100,"-")) -> 2.702702703 | F36: =IF(OR('Tabel 4F Sydj'!F36<5,'Tabel 4 Sydj'!F36<0.5),"-",IFERROR('Tabel 4 Sydj'!F36/'Tabel 4F Sydj'!F36*100,"-")) -> 2.508960573 | G36: =IF(OR('Tabel 4F Sydj'!G36<5,'Tabel 4 Sydj'!G36<0.5),"-",IFERROR('Tabel 4 Sydj'!G36/'Tabel 4F Sydj'!G36*100,"-")) -> 1.333333333 | I36: =IF(OR('Tabel 4F Sydj'!I36<5,'Tabel 4 Sydj'!I36<0.5),"-",IFERROR('Tabel 4 Sydj'!I36/'Tabel 4F Sydj'!I36*100,"-")) -> 3.074433657
A37: HD | C37: =IF(OR('Tabel 4F Sydj'!C37<5,'Tabel 4 Sydj'!C37<0.5),"-",IFERROR('Tabel 4 Sydj'!C37/'Tabel 4F Sydj'!C37*100,"-")) -> 7.142857143 | D37: =IF(OR('Tabel 4F Sydj'!D37<5,'Tabel 4 Sydj'!D37<0.5),"-",IFERROR('Tabel 4 Sydj'!D37/'Tabel 4F Sydj'!D37*100,"-")) -> 5.813953488 | E37: =IF(OR('Tabel 4F Sydj'!E37<5,'Tabel 4 Sydj'!E37<0.5),"-",IFERROR('Tabel 4 Sydj'!E37/'Tabel 4F Sydj'!E37*100,"-")) -> - | F37: =IF(OR('Tabel 4F Sydj'!F37<5,'Tabel 4 Sydj'!F37<0.5),"-",IFERROR('Tabel 4 Sydj'!F37/'Tabel 4F Sydj'!F37*100,"-")) -> 2.645502646 | G37: =IF(OR('Tabel 4F Sydj'!G37<5,'Tabel 4 Sydj'!G37<0.5),"-",IFERROR('Tabel 4 Sydj'!G37/'Tabel 4F Sydj'!G37*100,"-")) -> 1.234567901 | I37: =IF(OR('Tabel 4F Sydj'!I37<5,'Tabel 4 Sydj'!I37<0.5),"-",IFERROR('Tabel 4 Sydj'!I37/'Tabel 4F Sydj'!I37*100,"-")) -> 2.771855011
A38: Komm. og Sprog | C38: =IF(OR('Tabel 4F Sydj'!C38<5,'Tabel 4 Sydj'!C38<0.5),"-",IFERROR('Tabel 4 Sydj'!C38/'Tabel 4F Sydj'!C38*100,"-")) -> 12.19512195 | D38: =IF(OR('Tabel 4F Sydj'!D38<5,'Tabel 4 Sydj'!D38<0.5),"-",IFERROR('Tabel 4 Sydj'!D38/'Tabel 4F Sydj'!D38*100,"-")) -> 4.411764706 | E38: =IF(OR('Tabel 4F Sydj'!E38<5,'Tabel 4 Sydj'!E38<0.5),"-",IFERROR('Tabel 4 Sydj'!E38/'Tabel 4F Sydj'!E38*100,"-")) -> 3.149606299 | F38: =IF(OR('Tabel 4F Sydj'!F38<5,'Tabel 4 Sydj'!F38<0.5),"-",IFERROR('Tabel 4 Sydj'!F38/'Tabel 4F Sydj'!F38*100,"-")) -> 2.877697842 | G38: =IF(OR('Tabel 4F Sydj'!G38<5,'Tabel 4 Sydj'!G38<0.5),"-",IFERROR('Tabel 4 Sydj'!G38/'Tabel 4F Sydj'!G38*100,"-")) -> 3.947368421 | I38: =IF(OR('Tabel 4F Sydj'!I38<5,'Tabel 4 Sydj'!I38<0.5),"-",IFERROR('Tabel 4 Sydj'!I38/'Tabel 4F Sydj'!I38*100,"-")) -> 4.21286031
A39: Bygningskonst. | C39: =IF(OR('Tabel 4F Sydj'!C39<5,'Tabel 4 Sydj'!C39<0.5),"-",IFERROR('Tabel 4 Sydj'!C39/'Tabel 4F Sydj'!C39*100,"-")) -> 4.901960784 | D39: =IF(OR('Tabel 4F Sydj'!D39<5,'Tabel 4 Sydj'!D39<0.5),"-",IFERROR('Tabel 4 Sydj'!D39/'Tabel 4F Sydj'!D39*100,"-")) -> 0.2976190476 | E39: =IF(OR('Tabel 4F Sydj'!E39<5,'Tabel 4 Sydj'!E39<0.5),"-",IFERROR('Tabel 4 Sydj'!E39/'Tabel 4F Sydj'!E39*100,"-")) -> 0.4608294931 | F39: =IF(OR('Tabel 4F Sydj'!F39<5,'Tabel 4 Sydj'!F39<0.5),"-",IFERROR('Tabel 4 Sydj'!F39/'Tabel 4F Sydj'!F39*100,"-")) -> - | G39: =IF(OR('Tabel 4F Sydj'!G39<5,'Tabel 4 Sydj'!G39<0.5),"-",IFERROR('Tabel 4 Sydj'!G39/'Tabel 4F Sydj'!G39*100,"-")) -> 5.263157895 | I39: =IF(OR('Tabel 4F Sydj'!I39<5,'Tabel 4 Sydj'!I39<0.5),"-",IFERROR('Tabel 4 Sydj'!I39/'Tabel 4F Sydj'!I39*100,"-")) -> 1.120797011
A40: Cand. IT. | C40: =IF(OR('Tabel 4F Sydj'!C40<5,'Tabel 4 Sydj'!C40<0.5),"-",IFERROR('Tabel 4 Sydj'!C40/'Tabel 4F Sydj'!C40*100,"-")) -> 13.88888889 | D40: =IF(OR('Tabel 4F Sydj'!D40<5,'Tabel 4 Sydj'!D40<0.5),"-",IFERROR('Tabel 4 Sydj'!D40/'Tabel 4F Sydj'!D40*100,"-")) -> 2.479338843 | E40: =IF(OR('Tabel 4F Sydj'!E40<5,'Tabel 4 Sydj'!E40<0.5),"-",IFERROR('Tabel 4 Sydj'!E40/'Tabel 4F Sydj'!E40*100,"-")) -> 5 | F40: =IF(OR('Tabel 4F Sydj'!F40<5,'Tabel 4 Sydj'!F40<0.5),"-",IFERROR('Tabel 4 Sydj'!F40/'Tabel 4F Sydj'!F40*100,"-")) -> - | G40: =IF(OR('Tabel 4F Sydj'!G40<5,'Tabel 4 Sydj'!G40<0.5),"-",IFERROR('Tabel 4 Sydj'!G40/'Tabel 4F Sydj'!G40*100,"-")) -> - | I40: =IF(OR('Tabel 4F Sydj'!I40<5,'Tabel 4 Sydj'!I40<0.5),"-",IFERROR('Tabel 4 Sydj'!I40/'Tabel 4F Sydj'!I40*100,"-")) -> 6.130268199
A41: Bac. Samf. | C41: =IF(OR('Tabel 4F Sydj'!C41<5,'Tabel 4 Sydj'!C41<0.5),"-",IFERROR('Tabel 4 Sydj'!C41/'Tabel 4F Sydj'!C41*100,"-")) -> 11.76470588 | D41: =IF(OR('Tabel 4F Sydj'!D41<5,'Tabel 4 Sydj'!D41<0.5),"-",IFERROR('Tabel 4 Sydj'!D41/'Tabel 4F Sydj'!D41*100,"-")) -> 4.347826087 | E41: =IF(OR('Tabel 4F Sydj'!E41<5,'Tabel 4 Sydj'!E41<0.5),"-",IFERROR('Tabel 4 Sydj'!E41/'Tabel 4F Sydj'!E41*100,"-")) -> 4.545454545 | F41: =IF(OR('Tabel 4F Sydj'!F41<5,'Tabel 4 Sydj'!F41<0.5),"-",IFERROR('Tabel 4 Sydj'!F41/'Tabel 4F Sydj'!F41*100,"-")) -> 6.25 | G41: =IF(OR('Tabel 4F Sydj'!G41<5,'Tabel 4 Sydj'!G41<0.5),"-",IFERROR('Tabel 4 Sydj'!G41/'Tabel 4F Sydj'!G41*100,"-")) -> - | I41: =IF(OR('Tabel 4F Sydj'!I41<5,'Tabel 4 Sydj'!I41<0.5),"-",IFERROR('Tabel 4 Sydj'!I41/'Tabel 4F Sydj'!I41*100,"-")) -> 6.097560976
A42: Bac. Hum. | C42: =IF(OR('Tabel 4F Sydj'!C42<5,'Tabel 4 Sydj'!C42<0.5),"-",IFERROR('Tabel 4 Sydj'!C42/'Tabel 4F Sydj'!C42*100,"-")) -> 11.94029851 | D42: =IF(OR('Tabel 4F Sydj'!D42<5,'Tabel 4 Sydj'!D42<0.5),"-",IFERROR('Tabel 4 Sydj'!D42/'Tabel 4F Sydj'!D42*100,"-")) -> 10.20408163 | E42: =IF(OR('Tabel 4F Sydj'!E42<5,'Tabel 4 Sydj'!E42<0.5),"-",IFERROR('Tabel 4 Sydj'!E42/'Tabel 4F Sydj'!E42*100,"-")) -> 4.651162791 | F42: =IF(OR('Tabel 4F Sydj'!F42<5,'Tabel 4 Sydj'!F42<0.5),"-",IFERROR('Tabel 4 Sydj'!F42/'Tabel 4F Sydj'!F42*100,"-")) -> - | G42: =IF(OR('Tabel 4F Sydj'!G42<5,'Tabel 4 Sydj'!G42<0.5),"-",IFERROR('Tabel 4 Sydj'!G42/'Tabel 4F Sydj'!G42*100,"-")) -> - | I42: =IF(OR('Tabel 4F Sydj'!I42<5,'Tabel 4 Sydj'!I42<0.5),"-",IFERROR('Tabel 4 Sydj'!I42/'Tabel 4F Sydj'!I42*100,"-")) -> 7.772020725
A43: Bac. Nat. | C43: =IF(OR('Tabel 4F Sydj'!C43<5,'Tabel 4 Sydj'!C43<0.5),"-",IFERROR('Tabel 4 Sydj'!C43/'Tabel 4F Sydj'!C43*100,"-")) -> 16.49484536 | D43: =IF(OR('Tabel 4F Sydj'!D43<5,'Tabel 4 Sydj'!D43<0.5),"-",IFERROR('Tabel 4 Sydj'!D43/'Tabel 4F Sydj'!D43*100,"-")) -> 3.191489362 | E43: =IF(OR('Tabel 4F Sydj'!E43<5,'Tabel 4 Sydj'!E43<0.5),"-",IFERROR('Tabel 4 Sydj'!E43/'Tabel 4F Sydj'!E43*100,"-")) -> 8.771929825 | F43: =IF(OR('Tabel 4F Sydj'!F43<5,'Tabel 4 Sydj'!F43<0.5),"-",IFERROR('Tabel 4 Sydj'!F43/'Tabel 4F Sydj'!F43*100,"-")) -> - | G43: =IF(OR('Tabel 4F Sydj'!G43<5,'Tabel 4 Sydj'!G43<0.5),"-",IFERROR('Tabel 4 Sydj'!G43/'Tabel 4F Sydj'!G43*100,"-")) -> - | I43: =IF(OR('Tabel 4F Sydj'!I43<5,'Tabel 4 Sydj'!I43<0.5),"-",IFERROR('Tabel 4 Sydj'!I43/'Tabel 4F Sydj'!I43*100,"-")) -> 9.124087591
A44: Andre | C44: =IF(OR('Tabel 4F Sydj'!C44<5,'Tabel 4 Sydj'!C44<0.5),"-",IFERROR('Tabel 4 Sydj'!C44/'Tabel 4F Sydj'!C44*100,"-")) -> 3.684210526 | D44: =IF(OR('Tabel 4F Sydj'!D44<5,'Tabel 4 Sydj'!D44<0.5),"-",IFERROR('Tabel 4 Sydj'!D44/'Tabel 4F Sydj'!D44*100,"-")) -> 3.036053131 | E44: =IF(OR('Tabel 4F Sydj'!E44<5,'Tabel 4 Sydj'!E44<0.5),"-",IFERROR('Tabel 4 Sydj'!E44/'Tabel 4F Sydj'!E44*100,"-")) -> 2.290076336 | F44: =IF(OR('Tabel 4F Sydj'!F44<5,'Tabel 4 Sydj'!F44<0.5),"-",IFERROR('Tabel 4 Sydj'!F44/'Tabel 4F Sydj'!F44*100,"-")) -> 2.352941176 | G44: =IF(OR('Tabel 4F Sydj'!G44<5,'Tabel 4 Sydj'!G44<0.5),"-",IFERROR('Tabel 4 Sydj'!G44/'Tabel 4F Sydj'!G44*100,"-")) -> 5.263157895 | I44: =IF(OR('Tabel 4F Sydj'!I44<5,'Tabel 4 Sydj'!I44<0.5),"-",IFERROR('Tabel 4 Sydj'!I44/'Tabel 4F Sydj'!I44*100,"-")) -> 3.00400534
A46: Total | C46: =IF(OR('Tabel 4F Sydj'!C46<5,'Tabel 4 Sydj'!C46<0.5),"-",IFERROR('Tabel 4 Sydj'!C46/'Tabel 4F Sydj'!C46*100,"-")) -> 6.438848921 | D46: =IF(OR('Tabel 4F Sydj'!D46<5,'Tabel 4 Sydj'!D46<0.5),"-",IFERROR('Tabel 4 Sydj'!D46/'Tabel 4F Sydj'!D46*100,"-")) -> 2.701968771 | E46: =IF(OR('Tabel 4F Sydj'!E46<5,'Tabel 4 Sydj'!E46<0.5),"-",IFERROR('Tabel 4 Sydj'!E46/'Tabel 4F Sydj'!E46*100,"-")) -> 1.454064772 | F46: =IF(OR('Tabel 4F Sydj'!F46<5,'Tabel 4 Sydj'!F46<0.5),"-",IFERROR('Tabel 4 Sydj'!F46/'Tabel 4F Sydj'!F46*100,"-")) -> 1.570489408 | G46: =IF(OR('Tabel 4F Sydj'!G46<5,'Tabel 4 Sydj'!G46<0.5),"-",IFERROR('Tabel 4 Sydj'!G46/'Tabel 4F Sydj'!G46*100,"-")) -> 3.187660668 | I46: =IF(OR('Tabel 4F Sydj'!I46<5,'Tabel 4 Sydj'!I46<0.5),"-",IFERROR('Tabel 4 Sydj'!I46/'Tabel 4F Sydj'!I46*100,"-")) -> 2.599712084
A48: Ingeniører i alt | C48: =IF(OR('Tabel 4F Sydj'!C48<5,'Tabel 4 Sydj'!C48<0.5),"-",IFERROR('Tabel 4 Sydj'!C48/'Tabel 4F Sydj'!C48*100,"-")) -> 5.317324185 | D48: =IF(OR('Tabel 4F Sydj'!D48<5,'Tabel 4 Sydj'!D48<0.5),"-",IFERROR('Tabel 4 Sydj'!D48/'Tabel 4F Sydj'!D48*100,"-")) -> 1.250868659 | E48: =IF(OR('Tabel 4F Sydj'!E48<5,'Tabel 4 Sydj'!E48<0.5),"-",IFERROR('Tabel 4 Sydj'!E48/'Tabel 4F Sydj'!E48*100,"-")) -> 0.6832298137 | F48: =IF(OR('Tabel 4F Sydj'!F48<5,'Tabel 4 Sydj'!F48<0.5),"-",IFERROR('Tabel 4 Sydj'!F48/'Tabel 4F Sydj'!F48*100,"-")) -> 1.125795399 | G48: =IF(OR('Tabel 4F Sydj'!G48<5,'Tabel 4 Sydj'!G48<0.5),"-",IFERROR('Tabel 4 Sydj'!G48/'Tabel 4F Sydj'!G48*100,"-")) -> 2.886002886 | I48: =IF(OR('Tabel 4F Sydj'!I48<5,'Tabel 4 Sydj'!I48<0.5),"-",IFERROR('Tabel 4 Sydj'!I48/'Tabel 4F Sydj'!I48*100,"-")) -> 1.617462312
A49: Magistre i alt | C49: =IF(OR('Tabel 4F Sydj'!C49<5,'Tabel 4 Sydj'!C49<0.5),"-",IFERROR('Tabel 4 Sydj'!C49/'Tabel 4F Sydj'!C49*100,"-")) -> 14.46153846 | D49: =IF(OR('Tabel 4F Sydj'!D49<5,'Tabel 4 Sydj'!D49<0.5),"-",IFERROR('Tabel 4 Sydj'!D49/'Tabel 4F Sydj'!D49*100,"-")) -> 6.310254163 | E49: =IF(OR('Tabel 4F Sydj'!E49<5,'Tabel 4 Sydj'!E49<0.5),"-",IFERROR('Tabel 4 Sydj'!E49/'Tabel 4F Sydj'!E49*100,"-")) -> 2.076124567 | F49: =IF(OR('Tabel 4F Sydj'!F49<5,'Tabel 4 Sydj'!F49<0.5),"-",IFERROR('Tabel 4 Sydj'!F49/'Tabel 4F Sydj'!F49*100,"-")) -> 2.803738318 | G49: =IF(OR('Tabel 4F Sydj'!G49<5,'Tabel 4 Sydj'!G49<0.5),"-",IFERROR('Tabel 4 Sydj'!G49/'Tabel 4F Sydj'!G49*100,"-")) -> 2.919708029 | I49: =IF(OR('Tabel 4F Sydj'!I49<5,'Tabel 4 Sydj'!I49<0.5),"-",IFERROR('Tabel 4 Sydj'!I49/'Tabel 4F Sydj'!I49*100,"-")) -> 4.718792867
A50: DJØF'ere i alt | C50: =IF(OR('Tabel 4F Sydj'!C50<5,'Tabel 4 Sydj'!C50<0.5),"-",IFERROR('Tabel 4 Sydj'!C50/'Tabel 4F Sydj'!C50*100,"-")) -> 4.747774481 | D50: =IF(OR('Tabel 4F Sydj'!D50<5,'Tabel 4 Sydj'!D50<0.5),"-",IFERROR('Tabel 4 Sydj'!D50/'Tabel 4F Sydj'!D50*100,"-")) -> 1.770833333 | E50: =IF(OR('Tabel 4F Sydj'!E50<5,'Tabel 4 Sydj'!E50<0.5),"-",IFERROR('Tabel 4 Sydj'!E50/'Tabel 4F Sydj'!E50*100,"-")) -> 1.773323053 | F50: =IF(OR('Tabel 4F Sydj'!F50<5,'Tabel 4 Sydj'!F50<0.5),"-",IFERROR('Tabel 4 Sydj'!F50/'Tabel 4F Sydj'!F50*100,"-")) -> 1.813471503 | G50: =IF(OR('Tabel 4F Sydj'!G50<5,'Tabel 4 Sydj'!G50<0.5),"-",IFERROR('Tabel 4 Sydj'!G50/'Tabel 4F Sydj'!G50*100,"-")) -> 3.125 | I50: =IF(OR('Tabel 4F Sydj'!I50<5,'Tabel 4 Sydj'!I50<0.5),"-",IFERROR('Tabel 4 Sydj'!I50/'Tabel 4F Sydj'!I50*100,"-")) -> 2.224316682
A57: Haderslev
C59: Under 30 år | D59: 30 - 39 år | E59: 40 - 49 år | F59: 50 - 59 år | G59: Over 60 år | I59: I alt
A61: Civ. ing. | C61: =IF(OR('Tabel 4F Sydj'!C61<5,'Tabel 4 Sydj'!C61<0.5),"-",IFERROR('Tabel 4 Sydj'!C61/'Tabel 4F Sydj'!C61*100,"-")) -> 37.5 | D61: =IF(OR('Tabel 4F Sydj'!D61<5,'Tabel 4 Sydj'!D61<0.5),"-",IFERROR('Tabel 4 Sydj'!D61/'Tabel 4F Sydj'!D61*100,"-")) -> - | E61: =IF(OR('Tabel 4F Sydj'!E61<5,'Tabel 4 Sydj'!E61<0.5),"-",IFERROR('Tabel 4 Sydj'!E61/'Tabel 4F Sydj'!E61*100,"-")) -> - | F61: =IF(OR('Tabel 4F Sydj'!F61<5,'Tabel 4 Sydj'!F61<0.5),"-",IFERROR('Tabel 4 Sydj'!F61/'Tabel 4F Sydj'!F61*100,"-")) -> - | G61: =IF(OR('Tabel 4F Sydj'!G61<5,'Tabel 4 Sydj'!G61<0.5),"-",IFERROR('Tabel 4 Sydj'!G61/'Tabel 4F Sydj'!G61*100,"-")) -> - | I61: =IF(OR('Tabel 4F Sydj'!I61<5,'Tabel 4 Sydj'!I61<0.5),"-",IFERROR('Tabel 4 Sydj'!I61/'Tabel 4F Sydj'!I61*100,"-")) -> 5.555555556
A62: Diplom ing. | C62: =IF(OR('Tabel 4F Sydj'!C62<5,'Tabel 4 Sydj'!C62<0.5),"-",IFERROR('Tabel 4 Sydj'!C62/'Tabel 4F Sydj'!C62*100,"-")) -> - | D62: =IF(OR('Tabel 4F Sydj'!D62<5,'Tabel 4 Sydj'!D62<0.5),"-",IFERROR('Tabel 4 Sydj'!D62/'Tabel 4F Sydj'!D62*100,"-")) -> 7.692307692 | E62: =IF(OR('Tabel 4F Sydj'!E62<5,'Tabel 4 Sydj'!E62<0.5),"-",IFERROR('Tabel 4 Sydj'!E62/'Tabel 4F Sydj'!E62*100,"-")) -> - | F62: =IF(OR('Tabel 4F Sydj'!F62<5,'Tabel 4 Sydj'!F62<0.5),"-",IFERROR('Tabel 4 Sydj'!F62/'Tabel 4F Sydj'!F62*100,"-")) -> 1.492537313 | G62: =IF(OR('Tabel 4F Sydj'!G62<5,'Tabel 4 Sydj'!G62<0.5),"-",IFERROR('Tabel 4 Sydj'!G62/'Tabel 4F Sydj'!G62*100,"-")) -> 3.225806452 | I62: =IF(OR('Tabel 4F Sydj'!I62<5,'Tabel 4 Sydj'!I62<0.5),"-",IFERROR('Tabel 4 Sydj'!I62/'Tabel 4F Sydj'!I62*100,"-")) -> 2.339181287
A63: Cand. Scient. Tek | C63: =IF(OR('Tabel 4F Sydj'!C63<5,'Tabel 4 Sydj'!C63<0.5),"-",IFERROR('Tabel 4 Sydj'!C63/'Tabel 4F Sydj'!C63*100,"-")) -> - | D63: =IF(OR('Tabel 4F Sydj'!D63<5,'Tabel 4 Sydj'!D63<0.5),"-",IFERROR('Tabel 4 Sydj'!D63/'Tabel 4F Sydj'!D63*100,"-")) -> 16.66666667 | E63: =IF(OR('Tabel 4F Sydj'!E63<5,'Tabel 4 Sydj'!E63<0.5),"-",IFERROR('Tabel 4 Sydj'!E63/'Tabel 4F Sydj'!E63*100,"-")) -> - | F63: =IF(OR('Tabel 4F Sydj'!F63<5,'Tabel 4 Sydj'!F63<0.5),"-",IFERROR('Tabel 4 Sydj'!F63/'Tabel 4F Sydj'!F63*100,"-")) -> - | G63: =IF(OR('Tabel 4F Sydj'!G63<5,'Tabel 4 Sydj'!G63<0.5),"-",IFERROR('Tabel 4 Sydj'!G63/'Tabel 4F Sydj'!G63*100,"-")) -> - | I63: =IF(OR('Tabel 4F Sydj'!I63<5,'Tabel 4 Sydj'!I63<0.5),"-",IFERROR('Tabel 4 Sydj'!I63/'Tabel 4F Sydj'!I63*100,"-")) -> 8.108108108
A64: MA. Hum. | C64: =IF(OR('Tabel 4F Sydj'!C64<5,'Tabel 4 Sydj'!C64<0.5),"-",IFERROR('Tabel 4 Sydj'!C64/'Tabel 4F Sydj'!C64*100,"-")) -> 18.18181818 | D64: =IF(OR('Tabel 4F Sydj'!D64<5,'Tabel 4 Sydj'!D64<0.5),"-",IFERROR('Tabel 4 Sydj'!D64/'Tabel 4F Sydj'!D64*100,"-")) -> 2.040816327 | E64: =IF(OR('Tabel 4F Sydj'!E64<5,'Tabel 4 Sydj'!E64<0.5),"-",IFERROR('Tabel 4 Sydj'!E64/'Tabel 4F Sydj'!E64*100,"-")) -> 6 | F64: =IF(OR('Tabel 4F Sydj'!F64<5,'Tabel 4 Sydj'!F64<0.5),"-",IFERROR('Tabel 4 Sydj'!F64/'Tabel 4F Sydj'!F64*100,"-")) -> 2.127659574 | G64: =IF(OR('Tabel 4F Sydj'!G64<5,'Tabel 4 Sydj'!G64<0.5),"-",IFERROR('Tabel 4 Sydj'!G64/'Tabel 4F Sydj'!G64*100,"-")) -> - | I64: =IF(OR('Tabel 4F Sydj'!I64<5,'Tabel 4 Sydj'!I64<0.5),"-",IFERROR('Tabel 4 Sydj'!I64/'Tabel 4F Sydj'!I64*100,"-")) -> 4.069767442
A65: MA. Nat. | C65: =IF(OR('Tabel 4F Sydj'!C65<5,'Tabel 4 Sydj'!C65<0.5),"-",IFERROR('Tabel 4 Sydj'!C65/'Tabel 4F Sydj'!C65*100,"-")) -> - | D65: =IF(OR('Tabel 4F Sydj'!D65<5,'Tabel 4 Sydj'!D65<0.5),"-",IFERROR('Tabel 4 Sydj'!D65/'Tabel 4F Sydj'!D65*100,"-")) -> 9.090909091 | E65: =IF(OR('Tabel 4F Sydj'!E65<5,'Tabel 4 Sydj'!E65<0.5),"-",IFERROR('Tabel 4 Sydj'!E65/'Tabel 4F Sydj'!E65*100,"-")) -> - | F65: =IF(OR('Tabel 4F Sydj'!F65<5,'Tabel 4 Sydj'!F65<0.5),"-",IFERROR('Tabel 4 Sydj'!F65/'Tabel 4F Sydj'!F65*100,"-")) -> - | G65: =IF(OR('Tabel 4F Sydj'!G65<5,'Tabel 4 Sydj'!G65<0.5),"-",IFERROR('Tabel 4 Sydj'!G65/'Tabel 4F Sydj'!G65*100,"-")) -> - | I65: =IF(OR('Tabel 4F Sydj'!I65<5,'Tabel 4 Sydj'!I65<0.5),"-",IFERROR('Tabel 4 Sydj'!I65/'Tabel 4F Sydj'!I65*100,"-")) -> 2.222222222
A66: MA. Ph.d. | C66: =IF(OR('Tabel 4F Sydj'!C66<5,'Tabel 4 Sydj'!C66<0.5),"-",IFERROR('Tabel 4 Sydj'!C66/'Tabel 4F Sydj'!C66*100,"-")) -> - | D66: =IF(OR('Tabel 4F Sydj'!D66<5,'Tabel 4 Sydj'!D66<0.5),"-",IFERROR('Tabel 4 Sydj'!D66/'Tabel 4F Sydj'!D66*100,"-")) -> - | E66: =IF(OR('Tabel 4F Sydj'!E66<5,'Tabel 4 Sydj'!E66<0.5),"-",IFERROR('Tabel 4 Sydj'!E66/'Tabel 4F Sydj'!E66*100,"-")) -> - | F66: =IF(OR('Tabel 4F Sydj'!F66<5,'Tabel 4 Sydj'!F66<0.5),"-",IFERROR('Tabel 4 Sydj'!F66/'Tabel 4F Sydj'!F66*100,"-")) -> - | G66: =IF(OR('Tabel 4F Sydj'!G66<5,'Tabel 4 Sydj'!G66<0.5),"-",IFERROR('Tabel 4 Sydj'!G66/'Tabel 4F Sydj'!G66*100,"-")) -> - | I66: =IF(OR('Tabel 4F Sydj'!I66<5,'Tabel 4 Sydj'!I66<0.5),"-",IFERROR('Tabel 4 Sydj'!I66/'Tabel 4F Sydj'!I66*100,"-")) -> -
A67: MA. Samf. | C67: =IF(OR('Tabel 4F Sydj'!C67<5,'Tabel 4 Sydj'!C67<0.5),"-",IFERROR('Tabel 4 Sydj'!C67/'Tabel 4F Sydj'!C67*100,"-")) -> - | D67: =IF(OR('Tabel 4F Sydj'!D67<5,'Tabel 4 Sydj'!D67<0.5),"-",IFERROR('Tabel 4 Sydj'!D67/'Tabel 4F Sydj'!D67*100,"-")) -> - | E67: =IF(OR('Tabel 4F Sydj'!E67<5,'Tabel 4 Sydj'!E67<0.5),"-",IFERROR('Tabel 4 Sydj'!E67/'Tabel 4F Sydj'!E67*100,"-")) -> - | F67: =IF(OR('Tabel 4F Sydj'!F67<5,'Tabel 4 Sydj'!F67<0.5),"-",IFERROR('Tabel 4 Sydj'!F67/'Tabel 4F Sydj'!F67*100,"-")) -> - | G67: =IF(OR('Tabel 4F Sydj'!G67<5,'Tabel 4 Sydj'!G67<0.5),"-",IFERROR('Tabel 4 Sydj'!G67/'Tabel 4F Sydj'!G67*100,"-")) -> - | I67: =IF(OR('Tabel 4F Sydj'!I67<5,'Tabel 4 Sydj'!I67<0.5),"-",IFERROR('Tabel 4 Sydj'!I67/'Tabel 4F Sydj'!I67*100,"-")) -> 12.5
A68: Øvrige Mag. | C68: =IF(OR('Tabel 4F Sydj'!C68<5,'Tabel 4 Sydj'!C68<0.5),"-",IFERROR('Tabel 4 Sydj'!C68/'Tabel 4F Sydj'!C68*100,"-")) -> - | D68: =IF(OR('Tabel 4F Sydj'!D68<5,'Tabel 4 Sydj'!D68<0.5),"-",IFERROR('Tabel 4 Sydj'!D68/'Tabel 4F Sydj'!D68*100,"-")) -> - | E68: =IF(OR('Tabel 4F Sydj'!E68<5,'Tabel 4 Sydj'!E68<0.5),"-",IFERROR('Tabel 4 Sydj'!E68/'Tabel 4F Sydj'!E68*100,"-")) -> - | F68: =IF(OR('Tabel 4F Sydj'!F68<5,'Tabel 4 Sydj'!F68<0.5),"-",IFERROR('Tabel 4 Sydj'!F68/'Tabel 4F Sydj'!F68*100,"-")) -> - | G68: =IF(OR('Tabel 4F Sydj'!G68<5,'Tabel 4 Sydj'!G68<0.5),"-",IFERROR('Tabel 4 Sydj'!G68/'Tabel 4F Sydj'!G68*100,"-")) -> - | I68: =IF(OR('Tabel 4F Sydj'!I68<5,'Tabel 4 Sydj'!I68<0.5),"-",IFERROR('Tabel 4 Sydj'!I68/'Tabel 4F Sydj'!I68*100,"-")) -> -
A69: Agronom | C69: =IF(OR('Tabel 4F Sydj'!C69<5,'Tabel 4 Sydj'!C69<0.5),"-",IFERROR('Tabel 4 Sydj'!C69/'Tabel 4F Sydj'!C69*100,"-")) -> - | D69: =IF(OR('Tabel 4F Sydj'!D69<5,'Tabel 4 Sydj'!D69<0.5),"-",IFERROR('Tabel 4 Sydj'!D69/'Tabel 4F Sydj'!D69*100,"-")) -> - | E69: =IF(OR('Tabel 4F Sydj'!E69<5,'Tabel 4 Sydj'!E69<0.5),"-",IFERROR('Tabel 4 Sydj'!E69/'Tabel 4F Sydj'!E69*100,"-")) -> - | F69: =IF(OR('Tabel 4F Sydj'!F69<5,'Tabel 4 Sydj'!F69<0.5),"-",IFERROR('Tabel 4 Sydj'!F69/'Tabel 4F Sydj'!F69*100,"-")) -> - | G69: =IF(OR('Tabel 4F Sydj'!G69<5,'Tabel 4 Sydj'!G69<0.5),"-",IFERROR('Tabel 4 Sydj'!G69/'Tabel 4F Sydj'!G69*100,"-")) -> - | I69: =IF(OR('Tabel 4F Sydj'!I69<5,'Tabel 4 Sydj'!I69<0.5),"-",IFERROR('Tabel 4 Sydj'!I69/'Tabel 4F Sydj'!I69*100,"-")) -> -
A70: Landsk. Arkt. | C70: =IF(OR('Tabel 4F Sydj'!C70<5,'Tabel 4 Sydj'!C70<0.5),"-",IFERROR('Tabel 4 Sydj'!C70/'Tabel 4F Sydj'!C70*100,"-")) -> - | D70: =IF(OR('Tabel 4F Sydj'!D70<5,'Tabel 4 Sydj'!D70<0.5),"-",IFERROR('Tabel 4 Sydj'!D70/'Tabel 4F Sydj'!D70*100,"-")) -> - | E70: =IF(OR('Tabel 4F Sydj'!E70<5,'Tabel 4 Sydj'!E70<0.5),"-",IFERROR('Tabel 4 Sydj'!E70/'Tabel 4F Sydj'!E70*100,"-")) -> - | F70: =IF(OR('Tabel 4F Sydj'!F70<5,'Tabel 4 Sydj'!F70<0.5),"-",IFERROR('Tabel 4 Sydj'!F70/'Tabel 4F Sydj'!F70*100,"-")) -> - | G70: =IF(OR('Tabel 4F Sydj'!G70<5,'Tabel 4 Sydj'!G70<0.5),"-",IFERROR('Tabel 4 Sydj'!G70/'Tabel 4F Sydj'!G70*100,"-")) -> - | I70: =IF(OR('Tabel 4F Sydj'!I70<5,'Tabel 4 Sydj'!I70<0.5),"-",IFERROR('Tabel 4 Sydj'!I70/'Tabel 4F Sydj'!I70*100,"-")) -> -
A71: Hortonom | C71: =IF(OR('Tabel 4F Sydj'!C71<5,'Tabel 4 Sydj'!C71<0.5),"-",IFERROR('Tabel 4 Sydj'!C71/'Tabel 4F Sydj'!C71*100,"-")) -> - | D71: =IF(OR('Tabel 4F Sydj'!D71<5,'Tabel 4 Sydj'!D71<0.5),"-",IFERROR('Tabel 4 Sydj'!D71/'Tabel 4F Sydj'!D71*100,"-")) -> - | E71: =IF(OR('Tabel 4F Sydj'!E71<5,'Tabel 4 Sydj'!E71<0.5),"-",IFERROR('Tabel 4 Sydj'!E71/'Tabel 4F Sydj'!E71*100,"-")) -> - | F71: =IF(OR('Tabel 4F Sydj'!F71<5,'Tabel 4 Sydj'!F71<0.5),"-",IFERROR('Tabel 4 Sydj'!F71/'Tabel 4F Sydj'!F71*100,"-")) -> - | G71: =IF(OR('Tabel 4F Sydj'!G71<5,'Tabel 4 Sydj'!G71<0.5),"-",IFERROR('Tabel 4 Sydj'!G71/'Tabel 4F Sydj'!G71*100,"-")) -> - | I71: =IF(OR('Tabel 4F Sydj'!I71<5,'Tabel 4 Sydj'!I71<0.5),"-",IFERROR('Tabel 4 Sydj'!I71/'Tabel 4F Sydj'!I71*100,"-")) -> -
A72: Forstkand. | C72: =IF(OR('Tabel 4F Sydj'!C72<5,'Tabel 4 Sydj'!C72<0.5),"-",IFERROR('Tabel 4 Sydj'!C72/'Tabel 4F Sydj'!C72*100,"-")) -> - | D72: =IF(OR('Tabel 4F Sydj'!D72<5,'Tabel 4 Sydj'!D72<0.5),"-",IFERROR('Tabel 4 Sydj'!D72/'Tabel 4F Sydj'!D72*100,"-")) -> - | E72: =IF(OR('Tabel 4F Sydj'!E72<5,'Tabel 4 Sydj'!E72<0.5),"-",IFERROR('Tabel 4 Sydj'!E72/'Tabel 4F Sydj'!E72*100,"-")) -> - | F72: =IF(OR('Tabel 4F Sydj'!F72<5,'Tabel 4 Sydj'!F72<0.5),"-",IFERROR('Tabel 4 Sydj'!F72/'Tabel 4F Sydj'!F72*100,"-")) -> - | G72: =IF(OR('Tabel 4F Sydj'!G72<5,'Tabel 4 Sydj'!G72<0.5),"-",IFERROR('Tabel 4 Sydj'!G72/'Tabel 4F Sydj'!G72*100,"-")) -> - | I72: =IF(OR('Tabel 4F Sydj'!I72<5,'Tabel 4 Sydj'!I72<0.5),"-",IFERROR('Tabel 4 Sydj'!I72/'Tabel 4F Sydj'!I72*100,"-")) -> -
A73: Jordbrugsakad. | C73: =IF(OR('Tabel 4F Sydj'!C73<5,'Tabel 4 Sydj'!C73<0.5),"-",IFERROR('Tabel 4 Sydj'!C73/'Tabel 4F Sydj'!C73*100,"-")) -> - | D73: =IF(OR('Tabel 4F Sydj'!D73<5,'Tabel 4 Sydj'!D73<0.5),"-",IFERROR('Tabel 4 Sydj'!D73/'Tabel 4F Sydj'!D73*100,"-")) -> - | E73: =IF(OR('Tabel 4F Sydj'!E73<5,'Tabel 4 Sydj'!E73<0.5),"-",IFERROR('Tabel 4 Sydj'!E73/'Tabel 4F Sydj'!E73*100,"-")) -> - | F73: =IF(OR('Tabel 4F Sydj'!F73<5,'Tabel 4 Sydj'!F73<0.5),"-",IFERROR('Tabel 4 Sydj'!F73/'Tabel 4F Sydj'!F73*100,"-")) -> - | G73: =IF(OR('Tabel 4F Sydj'!G73<5,'Tabel 4 Sydj'!G73<0.5),"-",IFERROR('Tabel 4 Sydj'!G73/'Tabel 4F Sydj'!G73*100,"-")) -> - | I73: =IF(OR('Tabel 4F Sydj'!I73<5,'Tabel 4 Sydj'!I73<0.5),"-",IFERROR('Tabel 4 Sydj'!I73/'Tabel 4F Sydj'!I73*100,"-")) -> -
A74: Mejeriing. | C74: =IF(OR('Tabel 4F Sydj'!C74<5,'Tabel 4 Sydj'!C74<0.5),"-",IFERROR('Tabel 4 Sydj'!C74/'Tabel 4F Sydj'!C74*100,"-")) -> - | D74: =IF(OR('Tabel 4F Sydj'!D74<5,'Tabel 4 Sydj'!D74<0.5),"-",IFERROR('Tabel 4 Sydj'!D74/'Tabel 4F Sydj'!D74*100,"-")) -> - | E74: =IF(OR('Tabel 4F Sydj'!E74<5,'Tabel 4 Sydj'!E74<0.5),"-",IFERROR('Tabel 4 Sydj'!E74/'Tabel 4F Sydj'!E74*100,"-")) -> - | F74: =IF(OR('Tabel 4F Sydj'!F74<5,'Tabel 4 Sydj'!F74<0.5),"-",IFERROR('Tabel 4 Sydj'!F74/'Tabel 4F Sydj'!F74*100,"-")) -> - | G74: =IF(OR('Tabel 4F Sydj'!G74<5,'Tabel 4 Sydj'!G74<0.5),"-",IFERROR('Tabel 4 Sydj'!G74/'Tabel 4F Sydj'!G74*100,"-")) -> - | I74: =IF(OR('Tabel 4F Sydj'!I74<5,'Tabel 4 Sydj'!I74<0.5),"-",IFERROR('Tabel 4 Sydj'!I74/'Tabel 4F Sydj'!I74*100,"-")) -> -
A75: Levn.m.kand. | C75: =IF(OR('Tabel 4F Sydj'!C75<5,'Tabel 4 Sydj'!C75<0.5),"-",IFERROR('Tabel 4 Sydj'!C75/'Tabel 4F Sydj'!C75*100,"-")) -> - | D75: =IF(OR('Tabel 4F Sydj'!D75<5,'Tabel 4 Sydj'!D75<0.5),"-",IFERROR('Tabel 4 Sydj'!D75/'Tabel 4F Sydj'!D75*100,"-")) -> - | E75: =IF(OR('Tabel 4F Sydj'!E75<5,'Tabel 4 Sydj'!E75<0.5),"-",IFERROR('Tabel 4 Sydj'!E75/'Tabel 4F Sydj'!E75*100,"-")) -> - | F75: =IF(OR('Tabel 4F Sydj'!F75<5,'Tabel 4 Sydj'!F75<0.5),"-",IFERROR('Tabel 4 Sydj'!F75/'Tabel 4F Sydj'!F75*100,"-")) -> - | G75: =IF(OR('Tabel 4F Sydj'!G75<5,'Tabel 4 Sydj'!G75<0.5),"-",IFERROR('Tabel 4 Sydj'!G75/'Tabel 4F Sydj'!G75*100,"-")) -> - | I75: =IF(OR('Tabel 4F Sydj'!I75<5,'Tabel 4 Sydj'!I75<0.5),"-",IFERROR('Tabel 4 Sydj'!I75/'Tabel 4F Sydj'!I75*100,"-")) -> -
A76: Dyrlæge | C76: =IF(OR('Tabel 4F Sydj'!C76<5,'Tabel 4 Sydj'!C76<0.5),"-",IFERROR('Tabel 4 Sydj'!C76/'Tabel 4F Sydj'!C76*100,"-")) -> - | D76: =IF(OR('Tabel 4F Sydj'!D76<5,'Tabel 4 Sydj'!D76<0.5),"-",IFERROR('Tabel 4 Sydj'!D76/'Tabel 4F Sydj'!D76*100,"-")) -> - | E76: =IF(OR('Tabel 4F Sydj'!E76<5,'Tabel 4 Sydj'!E76<0.5),"-",IFERROR('Tabel 4 Sydj'!E76/'Tabel 4F Sydj'!E76*100,"-")) -> - | F76: =IF(OR('Tabel 4F Sydj'!F76<5,'Tabel 4 Sydj'!F76<0.5),"-",IFERROR('Tabel 4 Sydj'!F76/'Tabel 4F Sydj'!F76*100,"-")) -> - | G76: =IF(OR('Tabel 4F Sydj'!G76<5,'Tabel 4 Sydj'!G76<0.5),"-",IFERROR('Tabel 4 Sydj'!G76/'Tabel 4F Sydj'!G76*100,"-")) -> - | I76: =IF(OR('Tabel 4F Sydj'!I76<5,'Tabel 4 Sydj'!I76<0.5),"-",IFERROR('Tabel 4 Sydj'!I76/'Tabel 4F Sydj'!I76*100,"-")) -> -
A77: Farmaceut | C77: =IF(OR('Tabel 4F Sydj'!C77<5,'Tabel 4 Sydj'!C77<0.5),"-",IFERROR('Tabel 4 Sydj'!C77/'Tabel 4F Sydj'!C77*100,"-")) -> - | D77: =IF(OR('Tabel 4F Sydj'!D77<5,'Tabel 4 Sydj'!D77<0.5),"-",IFERROR('Tabel 4 Sydj'!D77/'Tabel 4F Sydj'!D77*100,"-")) -> - | E77: =IF(OR('Tabel 4F Sydj'!E77<5,'Tabel 4 Sydj'!E77<0.5),"-",IFERROR('Tabel 4 Sydj'!E77/'Tabel 4F Sydj'!E77*100,"-")) -> - | F77: =IF(OR('Tabel 4F Sydj'!F77<5,'Tabel 4 Sydj'!F77<0.5),"-",IFERROR('Tabel 4 Sydj'!F77/'Tabel 4F Sydj'!F77*100,"-")) -> - | G77: =IF(OR('Tabel 4F Sydj'!G77<5,'Tabel 4 Sydj'!G77<0.5),"-",IFERROR('Tabel 4 Sydj'!G77/'Tabel 4F Sydj'!G77*100,"-")) -> - | I77: =IF(OR('Tabel 4F Sydj'!I77<5,'Tabel 4 Sydj'!I77<0.5),"-",IFERROR('Tabel 4 Sydj'!I77/'Tabel 4F Sydj'!I77*100,"-")) -> 6.25
A78: Læge | C78: =IF(OR('Tabel 4F Sydj'!C78<5,'Tabel 4 Sydj'!C78<0.5),"-",IFERROR('Tabel 4 Sydj'!C78/'Tabel 4F Sydj'!C78*100,"-")) -> - | D78: =IF(OR('Tabel 4F Sydj'!D78<5,'Tabel 4 Sydj'!D78<0.5),"-",IFERROR('Tabel 4 Sydj'!D78/'Tabel 4F Sydj'!D78*100,"-")) -> - | E78: =IF(OR('Tabel 4F Sydj'!E78<5,'Tabel 4 Sydj'!E78<0.5),"-",IFERROR('Tabel 4 Sydj'!E78/'Tabel 4F Sydj'!E78*100,"-")) -> - | F78: =IF(OR('Tabel 4F Sydj'!F78<5,'Tabel 4 Sydj'!F78<0.5),"-",IFERROR('Tabel 4 Sydj'!F78/'Tabel 4F Sydj'!F78*100,"-")) -> - | G78: =IF(OR('Tabel 4F Sydj'!G78<5,'Tabel 4 Sydj'!G78<0.5),"-",IFERROR('Tabel 4 Sydj'!G78/'Tabel 4F Sydj'!G78*100,"-")) -> - | I78: =IF(OR('Tabel 4F Sydj'!I78<5,'Tabel 4 Sydj'!I78<0.5),"-",IFERROR('Tabel 4 Sydj'!I78/'Tabel 4F Sydj'!I78*100,"-")) -> -
A79: Tandlæge | C79: =IF(OR('Tabel 4F Sydj'!C79<5,'Tabel 4 Sydj'!C79<0.5),"-",IFERROR('Tabel 4 Sydj'!C79/'Tabel 4F Sydj'!C79*100,"-")) -> - | D79: =IF(OR('Tabel 4F Sydj'!D79<5,'Tabel 4 Sydj'!D79<0.5),"-",IFERROR('Tabel 4 Sydj'!D79/'Tabel 4F Sydj'!D79*100,"-")) -> - | E79: =IF(OR('Tabel 4F Sydj'!E79<5,'Tabel 4 Sydj'!E79<0.5),"-",IFERROR('Tabel 4 Sydj'!E79/'Tabel 4F Sydj'!E79*100,"-")) -> - | F79: =IF(OR('Tabel 4F Sydj'!F79<5,'Tabel 4 Sydj'!F79<0.5),"-",IFERROR('Tabel 4 Sydj'!F79/'Tabel 4F Sydj'!F79*100,"-")) -> - | G79: =IF(OR('Tabel 4F Sydj'!G79<5,'Tabel 4 Sydj'!G79<0.5),"-",IFERROR('Tabel 4 Sydj'!G79/'Tabel 4F Sydj'!G79*100,"-")) -> - | I79: =IF(OR('Tabel 4F Sydj'!I79<5,'Tabel 4 Sydj'!I79<0.5),"-",IFERROR('Tabel 4 Sydj'!I79/'Tabel 4F Sydj'!I79*100,"-")) -> -
A80: Arkitekt | C80: =IF(OR('Tabel 4F Sydj'!C80<5,'Tabel 4 Sydj'!C80<0.5),"-",IFERROR('Tabel 4 Sydj'!C80/'Tabel 4F Sydj'!C80*100,"-")) -> - | D80: =IF(OR('Tabel 4F Sydj'!D80<5,'Tabel 4 Sydj'!D80<0.5),"-",IFERROR('Tabel 4 Sydj'!D80/'Tabel 4F Sydj'!D80*100,"-")) -> - | E80: =IF(OR('Tabel 4F Sydj'!E80<5,'Tabel 4 Sydj'!E80<0.5),"-",IFERROR('Tabel 4 Sydj'!E80/'Tabel 4F Sydj'!E80*100,"-")) -> - | F80: =IF(OR('Tabel 4F Sydj'!F80<5,'Tabel 4 Sydj'!F80<0.5),"-",IFERROR('Tabel 4 Sydj'!F80/'Tabel 4F Sydj'!F80*100,"-")) -> - | G80: =IF(OR('Tabel 4F Sydj'!G80<5,'Tabel 4 Sydj'!G80<0.5),"-",IFERROR('Tabel 4 Sydj'!G80/'Tabel 4F Sydj'!G80*100,"-")) -> 12.5 | I80: =IF(OR('Tabel 4F Sydj'!I80<5,'Tabel 4 Sydj'!I80<0.5),"-",IFERROR('Tabel 4 Sydj'!I80/'Tabel 4F Sydj'!I80*100,"-")) -> 11.76470588
A81: Landinspek. | C81: =IF(OR('Tabel 4F Sydj'!C81<5,'Tabel 4 Sydj'!C81<0.5),"-",IFERROR('Tabel 4 Sydj'!C81/'Tabel 4F Sydj'!C81*100,"-")) -> - | D81: =IF(OR('Tabel 4F Sydj'!D81<5,'Tabel 4 Sydj'!D81<0.5),"-",IFERROR('Tabel 4 Sydj'!D81/'Tabel 4F Sydj'!D81*100,"-")) -> - | E81: =IF(OR('Tabel 4F Sydj'!E81<5,'Tabel 4 Sydj'!E81<0.5),"-",IFERROR('Tabel 4 Sydj'!E81/'Tabel 4F Sydj'!E81*100,"-")) -> - | F81: =IF(OR('Tabel 4F Sydj'!F81<5,'Tabel 4 Sydj'!F81<0.5),"-",IFERROR('Tabel 4 Sydj'!F81/'Tabel 4F Sydj'!F81*100,"-")) -> - | G81: =IF(OR('Tabel 4F Sydj'!G81<5,'Tabel 4 Sydj'!G81<0.5),"-",IFERROR('Tabel 4 Sydj'!G81/'Tabel 4F Sydj'!G81*100,"-")) -> - | I81: =IF(OR('Tabel 4F Sydj'!I81<5,'Tabel 4 Sydj'!I81<0.5),"-",IFERROR('Tabel 4 Sydj'!I81/'Tabel 4F Sydj'!I81*100,"-")) -> -
A82: Bibliotekar | C82: =IF(OR('Tabel 4F Sydj'!C82<5,'Tabel 4 Sydj'!C82<0.5),"-",IFERROR('Tabel 4 Sydj'!C82/'Tabel 4F Sydj'!C82*100,"-")) -> - | D82: =IF(OR('Tabel 4F Sydj'!D82<5,'Tabel 4 Sydj'!D82<0.5),"-",IFERROR('Tabel 4 Sydj'!D82/'Tabel 4F Sydj'!D82*100,"-")) -> - | E82: =IF(OR('Tabel 4F Sydj'!E82<5,'Tabel 4 Sydj'!E82<0.5),"-",IFERROR('Tabel 4 Sydj'!E82/'Tabel 4F Sydj'!E82*100,"-")) -> - | F82: =IF(OR('Tabel 4F Sydj'!F82<5,'Tabel 4 Sydj'!F82<0.5),"-",IFERROR('Tabel 4 Sydj'!F82/'Tabel 4F Sydj'!F82*100,"-")) -> - | G82: =IF(OR('Tabel 4F Sydj'!G82<5,'Tabel 4 Sydj'!G82<0.5),"-",IFERROR('Tabel 4 Sydj'!G82/'Tabel 4F Sydj'!G82*100,"-")) -> - | I82: =IF(OR('Tabel 4F Sydj'!I82<5,'Tabel 4 Sydj'!I82<0.5),"-",IFERROR('Tabel 4 Sydj'!I82/'Tabel 4F Sydj'!I82*100,"-")) -> -
A83: Musikudd. | C83: =IF(OR('Tabel 4F Sydj'!C83<5,'Tabel 4 Sydj'!C83<0.5),"-",IFERROR('Tabel 4 Sydj'!C83/'Tabel 4F Sydj'!C83*100,"-")) -> - | D83: =IF(OR('Tabel 4F Sydj'!D83<5,'Tabel 4 Sydj'!D83<0.5),"-",IFERROR('Tabel 4 Sydj'!D83/'Tabel 4F Sydj'!D83*100,"-")) -> - | E83: =IF(OR('Tabel 4F Sydj'!E83<5,'Tabel 4 Sydj'!E83<0.5),"-",IFERROR('Tabel 4 Sydj'!E83/'Tabel 4F Sydj'!E83*100,"-")) -> - | F83: =IF(OR('Tabel 4F Sydj'!F83<5,'Tabel 4 Sydj'!F83<0.5),"-",IFERROR('Tabel 4 Sydj'!F83/'Tabel 4F Sydj'!F83*100,"-")) -> - | G83: =IF(OR('Tabel 4F Sydj'!G83<5,'Tabel 4 Sydj'!G83<0.5),"-",IFERROR('Tabel 4 Sydj'!G83/'Tabel 4F Sydj'!G83*100,"-")) -> - | I83: =IF(OR('Tabel 4F Sydj'!I83<5,'Tabel 4 Sydj'!I83<0.5),"-",IFERROR('Tabel 4 Sydj'!I83/'Tabel 4F Sydj'!I83*100,"-")) -> -
A84: Teolog | C84: =IF(OR('Tabel 4F Sydj'!C84<5,'Tabel 4 Sydj'!C84<0.5),"-",IFERROR('Tabel 4 Sydj'!C84/'Tabel 4F Sydj'!C84*100,"-")) -> - | D84: =IF(OR('Tabel 4F Sydj'!D84<5,'Tabel 4 Sydj'!D84<0.5),"-",IFERROR('Tabel 4 Sydj'!D84/'Tabel 4F Sydj'!D84*100,"-")) -> - | E84: =IF(OR('Tabel 4F Sydj'!E84<5,'Tabel 4 Sydj'!E84<0.5),"-",IFERROR('Tabel 4 Sydj'!E84/'Tabel 4F Sydj'!E84*100,"-")) -> - | F84: =IF(OR('Tabel 4F Sydj'!F84<5,'Tabel 4 Sydj'!F84<0.5),"-",IFERROR('Tabel 4 Sydj'!F84/'Tabel 4F Sydj'!F84*100,"-")) -> - | G84: =IF(OR('Tabel 4F Sydj'!G84<5,'Tabel 4 Sydj'!G84<0.5),"-",IFERROR('Tabel 4 Sydj'!G84/'Tabel 4F Sydj'!G84*100,"-")) -> - | I84: =IF(OR('Tabel 4F Sydj'!I84<5,'Tabel 4 Sydj'!I84<0.5),"-",IFERROR('Tabel 4 Sydj'!I84/'Tabel 4F Sydj'!I84*100,"-")) -> -
A85: Psykolog | C85: =IF(OR('Tabel 4F Sydj'!C85<5,'Tabel 4 Sydj'!C85<0.5),"-",IFERROR('Tabel 4 Sydj'!C85/'Tabel 4F Sydj'!C85*100,"-")) -> - | D85: =IF(OR('Tabel 4F Sydj'!D85<5,'Tabel 4 Sydj'!D85<0.5),"-",IFERROR('Tabel 4 Sydj'!D85/'Tabel 4F Sydj'!D85*100,"-")) -> - | E85: =IF(OR('Tabel 4F Sydj'!E85<5,'Tabel 4 Sydj'!E85<0.5),"-",IFERROR('Tabel 4 Sydj'!E85/'Tabel 4F Sydj'!E85*100,"-")) -> - | F85: =IF(OR('Tabel 4F Sydj'!F85<5,'Tabel 4 Sydj'!F85<0.5),"-",IFERROR('Tabel 4 Sydj'!F85/'Tabel 4F Sydj'!F85*100,"-")) -> - | G85: =IF(OR('Tabel 4F Sydj'!G85<5,'Tabel 4 Sydj'!G85<0.5),"-",IFERROR('Tabel 4 Sydj'!G85/'Tabel 4F Sydj'!G85*100,"-")) -> - | I85: =IF(OR('Tabel 4F Sydj'!I85<5,'Tabel 4 Sydj'!I85<0.5),"-",IFERROR('Tabel 4 Sydj'!I85/'Tabel 4F Sydj'!I85*100,"-")) -> -
A86: Jurist | C86: =IF(OR('Tabel 4F Sydj'!C86<5,'Tabel 4 Sydj'!C86<0.5),"-",IFERROR('Tabel 4 Sydj'!C86/'Tabel 4F Sydj'!C86*100,"-")) -> - | D86: =IF(OR('Tabel 4F Sydj'!D86<5,'Tabel 4 Sydj'!D86<0.5),"-",IFERROR('Tabel 4 Sydj'!D86/'Tabel 4F Sydj'!D86*100,"-")) -> - | E86: =IF(OR('Tabel 4F Sydj'!E86<5,'Tabel 4 Sydj'!E86<0.5),"-",IFERROR('Tabel 4 Sydj'!E86/'Tabel 4F Sydj'!E86*100,"-")) -> - | F86: =IF(OR('Tabel 4F Sydj'!F86<5,'Tabel 4 Sydj'!F86<0.5),"-",IFERROR('Tabel 4 Sydj'!F86/'Tabel 4F Sydj'!F86*100,"-")) -> - | G86: =IF(OR('Tabel 4F Sydj'!G86<5,'Tabel 4 Sydj'!G86<0.5),"-",IFERROR('Tabel 4 Sydj'!G86/'Tabel 4F Sydj'!G86*100,"-")) -> - | I86: =IF(OR('Tabel 4F Sydj'!I86<5,'Tabel 4 Sydj'!I86<0.5),"-",IFERROR('Tabel 4 Sydj'!I86/'Tabel 4F Sydj'!I86*100,"-")) -> -
A87: Økonom | C87: =IF(OR('Tabel 4F Sydj'!C87<5,'Tabel 4 Sydj'!C87<0.5),"-",IFERROR('Tabel 4 Sydj'!C87/'Tabel 4F Sydj'!C87*100,"-")) -> - | D87: =IF(OR('Tabel 4F Sydj'!D87<5,'Tabel 4 Sydj'!D87<0.5),"-",IFERROR('Tabel 4 Sydj'!D87/'Tabel 4F Sydj'!D87*100,"-")) -> - | E87: =IF(OR('Tabel 4F Sydj'!E87<5,'Tabel 4 Sydj'!E87<0.5),"-",IFERROR('Tabel 4 Sydj'!E87/'Tabel 4F Sydj'!E87*100,"-")) -> - | F87: =IF(OR('Tabel 4F Sydj'!F87<5,'Tabel 4 Sydj'!F87<0.5),"-",IFERROR('Tabel 4 Sydj'!F87/'Tabel 4F Sydj'!F87*100,"-")) -> - | G87: =IF(OR('Tabel 4F Sydj'!G87<5,'Tabel 4 Sydj'!G87<0.5),"-",IFERROR('Tabel 4 Sydj'!G87/'Tabel 4F Sydj'!G87*100,"-")) -> 40 | I87: =IF(OR('Tabel 4F Sydj'!I87<5,'Tabel 4 Sydj'!I87<0.5),"-",IFERROR('Tabel 4 Sydj'!I87/'Tabel 4F Sydj'!I87*100,"-")) -> 9.523809524
A88: Samf. Adm. | C88: =IF(OR('Tabel 4F Sydj'!C88<5,'Tabel 4 Sydj'!C88<0.5),"-",IFERROR('Tabel 4 Sydj'!C88/'Tabel 4F Sydj'!C88*100,"-")) -> 10 | D88: =IF(OR('Tabel 4F Sydj'!D88<5,'Tabel 4 Sydj'!D88<0.5),"-",IFERROR('Tabel 4 Sydj'!D88/'Tabel 4F Sydj'!D88*100,"-")) -> - | E88: =IF(OR('Tabel 4F Sydj'!E88<5,'Tabel 4 Sydj'!E88<0.5),"-",IFERROR('Tabel 4 Sydj'!E88/'Tabel 4F Sydj'!E88*100,"-")) -> 14.28571429 | F88: =IF(OR('Tabel 4F Sydj'!F88<5,'Tabel 4 Sydj'!F88<0.5),"-",IFERROR('Tabel 4 Sydj'!F88/'Tabel 4F Sydj'!F88*100,"-")) -> - | G88: =IF(OR('Tabel 4F Sydj'!G88<5,'Tabel 4 Sydj'!G88<0.5),"-",IFERROR('Tabel 4 Sydj'!G88/'Tabel 4F Sydj'!G88*100,"-")) -> - | I88: =IF(OR('Tabel 4F Sydj'!I88<5,'Tabel 4 Sydj'!I88<0.5),"-",IFERROR('Tabel 4 Sydj'!I88/'Tabel 4F Sydj'!I88*100,"-")) -> 4.081632653
A89: Cand. Merc. | C89: =IF(OR('Tabel 4F Sydj'!C89<5,'Tabel 4 Sydj'!C89<0.5),"-",IFERROR('Tabel 4 Sydj'!C89/'Tabel 4F Sydj'!C89*100,"-")) -> 5 | D89: =IF(OR('Tabel 4F Sydj'!D89<5,'Tabel 4 Sydj'!D89<0.5),"-",IFERROR('Tabel 4 Sydj'!D89/'Tabel 4F Sydj'!D89*100,"-")) -> 4.545454545 | E89: =IF(OR('Tabel 4F Sydj'!E89<5,'Tabel 4 Sydj'!E89<0.5),"-",IFERROR('Tabel 4 Sydj'!E89/'Tabel 4F Sydj'!E89*100,"-")) -> - | F89: =IF(OR('Tabel 4F Sydj'!F89<5,'Tabel 4 Sydj'!F89<0.5),"-",IFERROR('Tabel 4 Sydj'!F89/'Tabel 4F Sydj'!F89*100,"-")) -> 4 | G89: =IF(OR('Tabel 4F Sydj'!G89<5,'Tabel 4 Sydj'!G89<0.5),"-",IFERROR('Tabel 4 Sydj'!G89/'Tabel 4F Sydj'!G89*100,"-")) -> - | I89: =IF(OR('Tabel 4F Sydj'!I89<5,'Tabel 4 Sydj'!I89<0.5),"-",IFERROR('Tabel 4 Sydj'!I89/'Tabel 4F Sydj'!I89*100,"-")) -> 3.47826087
A90: HA | C90: =IF(OR('Tabel 4F Sydj'!C90<5,'Tabel 4 Sydj'!C90<0.5),"-",IFERROR('Tabel 4 Sydj'!C90/'Tabel 4F Sydj'!C90*100,"-")) -> - | D90: =IF(OR('Tabel 4F Sydj'!D90<5,'Tabel 4 Sydj'!D90<0.5),"-",IFERROR('Tabel 4 Sydj'!D90/'Tabel 4F Sydj'!D90*100,"-")) -> - | E90: =IF(OR('Tabel 4F Sydj'!E90<5,'Tabel 4 Sydj'!E90<0.5),"-",IFERROR('Tabel 4 Sydj'!E90/'Tabel 4F Sydj'!E90*100,"-")) -> - | F90: =IF(OR('Tabel 4F Sydj'!F90<5,'Tabel 4 Sydj'!F90<0.5),"-",IFERROR('Tabel 4 Sydj'!F90/'Tabel 4F Sydj'!F90*100,"-")) -> - | G90: =IF(OR('Tabel 4F Sydj'!G90<5,'Tabel 4 Sydj'!G90<0.5),"-",IFERROR('Tabel 4 Sydj'!G90/'Tabel 4F Sydj'!G90*100,"-")) -> - | I90: =IF(OR('Tabel 4F Sydj'!I90<5,'Tabel 4 Sydj'!I90<0.5),"-",IFERROR('Tabel 4 Sydj'!I90/'Tabel 4F Sydj'!I90*100,"-")) -> -
A91: HD | C91: =IF(OR('Tabel 4F Sydj'!C91<5,'Tabel 4 Sydj'!C91<0.5),"-",IFERROR('Tabel 4 Sydj'!C91/'Tabel 4F Sydj'!C91*100,"-")) -> - | D91: =IF(OR('Tabel 4F Sydj'!D91<5,'Tabel 4 Sydj'!D91<0.5),"-",IFERROR('Tabel 4 Sydj'!D91/'Tabel 4F Sydj'!D91*100,"-")) -> - | E91: =IF(OR('Tabel 4F Sydj'!E91<5,'Tabel 4 Sydj'!E91<0.5),"-",IFERROR('Tabel 4 Sydj'!E91/'Tabel 4F Sydj'!E91*100,"-")) -> - | F91: =IF(OR('Tabel 4F Sydj'!F91<5,'Tabel 4 Sydj'!F91<0.5),"-",IFERROR('Tabel 4 Sydj'!F91/'Tabel 4F Sydj'!F91*100,"-")) -> - | G91: =IF(OR('Tabel 4F Sydj'!G91<5,'Tabel 4 Sydj'!G91<0.5),"-",IFERROR('Tabel 4 Sydj'!G91/'Tabel 4F Sydj'!G91*100,"-")) -> - | I91: =IF(OR('Tabel 4F Sydj'!I91<5,'Tabel 4 Sydj'!I91<0.5),"-",IFERROR('Tabel 4 Sydj'!I91/'Tabel 4F Sydj'!I91*100,"-")) -> -
A92: Komm. og Sprog | C92: =IF(OR('Tabel 4F Sydj'!C92<5,'Tabel 4 Sydj'!C92<0.5),"-",IFERROR('Tabel 4 Sydj'!C92/'Tabel 4F Sydj'!C92*100,"-")) -> - | D92: =IF(OR('Tabel 4F Sydj'!D92<5,'Tabel 4 Sydj'!D92<0.5),"-",IFERROR('Tabel 4 Sydj'!D92/'Tabel 4F Sydj'!D92*100,"-")) -> 16.66666667 | E92: =IF(OR('Tabel 4F Sydj'!E92<5,'Tabel 4 Sydj'!E92<0.5),"-",IFERROR('Tabel 4 Sydj'!E92/'Tabel 4F Sydj'!E92*100,"-")) -> 16.66666667 | F92: =IF(OR('Tabel 4F Sydj'!F92<5,'Tabel 4 Sydj'!F92<0.5),"-",IFERROR('Tabel 4 Sydj'!F92/'Tabel 4F Sydj'!F92*100,"-")) -> 11.11111111 | G92: =IF(OR('Tabel 4F Sydj'!G92<5,'Tabel 4 Sydj'!G92<0.5),"-",IFERROR('Tabel 4 Sydj'!G92/'Tabel 4F Sydj'!G92*100,"-")) -> - | I92: =IF(OR('Tabel 4F Sydj'!I92<5,'Tabel 4 Sydj'!I92<0.5),"-",IFERROR('Tabel 4 Sydj'!I92/'Tabel 4F Sydj'!I92*100,"-")) -> 22.22222222
A93: Bygningskonst. | C93: =IF(OR('Tabel 4F Sydj'!C93<5,'Tabel 4 Sydj'!C93<0.5),"-",IFERROR('Tabel 4 Sydj'!C93/'Tabel 4F Sydj'!C93*100,"-")) -> 10 | D93: =IF(OR('Tabel 4F Sydj'!D93<5,'Tabel 4 Sydj'!D93<0.5),"-",IFERROR('Tabel 4 Sydj'!D93/'Tabel 4F Sydj'!D93*100,"-")) -> - | E93: =IF(OR('Tabel 4F Sydj'!E93<5,'Tabel 4 Sydj'!E93<0.5),"-",IFERROR('Tabel 4 Sydj'!E93/'Tabel 4F Sydj'!E93*100,"-")) -> - | F93: =IF(OR('Tabel 4F Sydj'!F93<5,'Tabel 4 Sydj'!F93<0.5),"-",IFERROR('Tabel 4 Sydj'!F93/'Tabel 4F Sydj'!F93*100,"-")) -> - | G93: =IF(OR('Tabel 4F Sydj'!G93<5,'Tabel 4 Sydj'!G93<0.5),"-",IFERROR('Tabel 4 Sydj'!G93/'Tabel 4F Sydj'!G93*100,"-")) -> - | I93: =IF(OR('Tabel 4F Sydj'!I93<5,'Tabel 4 Sydj'!I93<0.5),"-",IFERROR('Tabel 4 Sydj'!I93/'Tabel 4F Sydj'!I93*100,"-")) -> 1.886792453
A94: Cand. IT. | C94: =IF(OR('Tabel 4F Sydj'!C94<5,'Tabel 4 Sydj'!C94<0.5),"-",IFERROR('Tabel 4 Sydj'!C94/'Tabel 4F Sydj'!C94*100,"-")) -> - | D94: =IF(OR('Tabel 4F Sydj'!D94<5,'Tabel 4 Sydj'!D94<0.5),"-",IFERROR('Tabel 4 Sydj'!D94/'Tabel 4F Sydj'!D94*100,"-")) -> - | E94: =IF(OR('Tabel 4F Sydj'!E94<5,'Tabel 4 Sydj'!E94<0.5),"-",IFERROR('Tabel 4 Sydj'!E94/'Tabel 4F Sydj'!E94*100,"-")) -> - | F94: =IF(OR('Tabel 4F Sydj'!F94<5,'Tabel 4 Sydj'!F94<0.5),"-",IFERROR('Tabel 4 Sydj'!F94/'Tabel 4F Sydj'!F94*100,"-")) -> - | G94: =IF(OR('Tabel 4F Sydj'!G94<5,'Tabel 4 Sydj'!G94<0.5),"-",IFERROR('Tabel 4 Sydj'!G94/'Tabel 4F Sydj'!G94*100,"-")) -> - | I94: =IF(OR('Tabel 4F Sydj'!I94<5,'Tabel 4 Sydj'!I94<0.5),"-",IFERROR('Tabel 4 Sydj'!I94/'Tabel 4F Sydj'!I94*100,"-")) -> 14.28571429
A95: Bac. Samf. | C95: =IF(OR('Tabel 4F Sydj'!C95<5,'Tabel 4 Sydj'!C95<0.5),"-",IFERROR('Tabel 4 Sydj'!C95/'Tabel 4F Sydj'!C95*100,"-")) -> - | D95: =IF(OR('Tabel 4F Sydj'!D95<5,'Tabel 4 Sydj'!D95<0.5),"-",IFERROR('Tabel 4 Sydj'!D95/'Tabel 4F Sydj'!D95*100,"-")) -> - | E95: =IF(OR('Tabel 4F Sydj'!E95<5,'Tabel 4 Sydj'!E95<0.5),"-",IFERROR('Tabel 4 Sydj'!E95/'Tabel 4F Sydj'!E95*100,"-")) -> - | F95: =IF(OR('Tabel 4F Sydj'!F95<5,'Tabel 4 Sydj'!F95<0.5),"-",IFERROR('Tabel 4 Sydj'!F95/'Tabel 4F Sydj'!F95*100,"-")) -> - | G95: =IF(OR('Tabel 4F Sydj'!G95<5,'Tabel 4 Sydj'!G95<0.5),"-",IFERROR('Tabel 4 Sydj'!G95/'Tabel 4F Sydj'!G95*100,"-")) -> - | I95: =IF(OR('Tabel 4F Sydj'!I95<5,'Tabel 4 Sydj'!I95<0.5),"-",IFERROR('Tabel 4 Sydj'!I95/'Tabel 4F Sydj'!I95*100,"-")) -> -
A96: Bac. Hum. | C96: =IF(OR('Tabel 4F Sydj'!C96<5,'Tabel 4 Sydj'!C96<0.5),"-",IFERROR('Tabel 4 Sydj'!C96/'Tabel 4F Sydj'!C96*100,"-")) -> 40 | D96: =IF(OR('Tabel 4F Sydj'!D96<5,'Tabel 4 Sydj'!D96<0.5),"-",IFERROR('Tabel 4 Sydj'!D96/'Tabel 4F Sydj'!D96*100,"-")) -> - | E96: =IF(OR('Tabel 4F Sydj'!E96<5,'Tabel 4 Sydj'!E96<0.5),"-",IFERROR('Tabel 4 Sydj'!E96/'Tabel 4F Sydj'!E96*100,"-")) -> - | F96: =IF(OR('Tabel 4F Sydj'!F96<5,'Tabel 4 Sydj'!F96<0.5),"-",IFERROR('Tabel 4 Sydj'!F96/'Tabel 4F Sydj'!F96*100,"-")) -> - | G96: =IF(OR('Tabel 4F Sydj'!G96<5,'Tabel 4 Sydj'!G96<0.5),"-",IFERROR('Tabel 4 Sydj'!G96/'Tabel 4F Sydj'!G96*100,"-")) -> - | I96: =IF(OR('Tabel 4F Sydj'!I96<5,'Tabel 4 Sydj'!I96<0.5),"-",IFERROR('Tabel 4 Sydj'!I96/'Tabel 4F Sydj'!I96*100,"-")) -> 15.38461538
A97: Bac. Nat. | C97: =IF(OR('Tabel 4F Sydj'!C97<5,'Tabel 4 Sydj'!C97<0.5),"-",IFERROR('Tabel 4 Sydj'!C97/'Tabel 4F Sydj'!C97*100,"-")) -> - | D97: =IF(OR('Tabel 4F Sydj'!D97<5,'Tabel 4 Sydj'!D97<0.5),"-",IFERROR('Tabel 4 Sydj'!D97/'Tabel 4F Sydj'!D97*100,"-")) -> - | E97: =IF(OR('Tabel 4F Sydj'!E97<5,'Tabel 4 Sydj'!E97<0.5),"-",IFERROR('Tabel 4 Sydj'!E97/'Tabel 4F Sydj'!E97*100,"-")) -> - | F97: =IF(OR('Tabel 4F Sydj'!F97<5,'Tabel 4 Sydj'!F97<0.5),"-",IFERROR('Tabel 4 Sydj'!F97/'Tabel 4F Sydj'!F97*100,"-")) -> - | G97: =IF(OR('Tabel 4F Sydj'!G97<5,'Tabel 4 Sydj'!G97<0.5),"-",IFERROR('Tabel 4 Sydj'!G97/'Tabel 4F Sydj'!G97*100,"-")) -> - | I97: =IF(OR('Tabel 4F Sydj'!I97<5,'Tabel 4 Sydj'!I97<0.5),"-",IFERROR('Tabel 4 Sydj'!I97/'Tabel 4F Sydj'!I97*100,"-")) -> -
A98: Andre | C98: =IF(OR('Tabel 4F Sydj'!C98<5,'Tabel 4 Sydj'!C98<0.5),"-",IFERROR('Tabel 4 Sydj'!C98/'Tabel 4F Sydj'!C98*100,"-")) -> 7.692307692 | D98: =IF(OR('Tabel 4F Sydj'!D98<5,'Tabel 4 Sydj'!D98<0.5),"-",IFERROR('Tabel 4 Sydj'!D98/'Tabel 4F Sydj'!D98*100,"-")) -> - | E98: =IF(OR('Tabel 4F Sydj'!E98<5,'Tabel 4 Sydj'!E98<0.5),"-",IFERROR('Tabel 4 Sydj'!E98/'Tabel 4F Sydj'!E98*100,"-")) -> - | F98: =IF(OR('Tabel 4F Sydj'!F98<5,'Tabel 4 Sydj'!F98<0.5),"-",IFERROR('Tabel 4 Sydj'!F98/'Tabel 4F Sydj'!F98*100,"-")) -> - | G98: =IF(OR('Tabel 4F Sydj'!G98<5,'Tabel 4 Sydj'!G98<0.5),"-",IFERROR('Tabel 4 Sydj'!G98/'Tabel 4F Sydj'!G98*100,"-")) -> - | I98: =IF(OR('Tabel 4F Sydj'!I98<5,'Tabel 4 Sydj'!I98<0.5),"-",IFERROR('Tabel 4 Sydj'!I98/'Tabel 4F Sydj'!I98*100,"-")) -> 1.369863014
A100: Total | C100: =IF(OR('Tabel 4F Sydj'!C100<5,'Tabel 4 Sydj'!C100<0.5),"-",IFERROR('Tabel 4 Sydj'!C100/'Tabel 4F Sydj'!C100*100,"-")) -> 11.76470588 | D100: =IF(OR('Tabel 4F Sydj'!D100<5,'Tabel 4 Sydj'!D100<0.5),"-",IFERROR('Tabel 4 Sydj'!D100/'Tabel 4F Sydj'!D100*100,"-")) -> 3.618421053 | E100: =IF(OR('Tabel 4F Sydj'!E100<5,'Tabel 4 Sydj'!E100<0.5),"-",IFERROR('Tabel 4 Sydj'!E100/'Tabel 4F Sydj'!E100*100,"-")) -> 1.798561151 | F100: =IF(OR('Tabel 4F Sydj'!F100<5,'Tabel 4 Sydj'!F100<0.5),"-",IFERROR('Tabel 4 Sydj'!F100/'Tabel 4F Sydj'!F100*100,"-")) -> 1.506024096 | G100: =IF(OR('Tabel 4F Sydj'!G100<5,'Tabel 4 Sydj'!G100<0.5),"-",IFERROR('Tabel 4 Sydj'!G100/'Tabel 4F Sydj'!G100*100,"-")) -> 3.2 | I100: =IF(OR('Tabel 4F Sydj'!I100<5,'Tabel 4 Sydj'!I100<0.5),"-",IFERROR('Tabel 4 Sydj'!I100/'Tabel 4F Sydj'!I100*100,"-")) -> 3.489361702
A102: Ingeniører i alt | C102: =IF(OR('Tabel 4F Sydj'!C102<5,'Tabel 4 Sydj'!C102<0.5),"-",IFERROR('Tabel 4 Sydj'!C102/'Tabel 4F Sydj'!C102*100,"-")) -> 21.42857143 | D102: =IF(OR('Tabel 4F Sydj'!D102<5,'Tabel 4 Sydj'!D102<0.5),"-",IFERROR('Tabel 4 Sydj'!D102/'Tabel 4F Sydj'!D102*100,"-")) -> 4.761904762 | E102: =IF(OR('Tabel 4F Sydj'!E102<5,'Tabel 4 Sydj'!E102<0.5),"-",IFERROR('Tabel 4 Sydj'!E102/'Tabel 4F Sydj'!E102*100,"-")) -> - | F102: =IF(OR('Tabel 4F Sydj'!F102<5,'Tabel 4 Sydj'!F102<0.5),"-",IFERROR('Tabel 4 Sydj'!F102/'Tabel 4F Sydj'!F102*100,"-")) -> 1.282051282 | G102: =IF(OR('Tabel 4F Sydj'!G102<5,'Tabel 4 Sydj'!G102<0.5),"-",IFERROR('Tabel 4 Sydj'!G102/'Tabel 4F Sydj'!G102*100,"-")) -> 2.857142857 | I102: =IF(OR('Tabel 4F Sydj'!I102<5,'Tabel 4 Sydj'!I102<0.5),"-",IFERROR('Tabel 4 Sydj'!I102/'Tabel 4F Sydj'!I102*100,"-")) -> 3.111111111
A103: Magistre i alt | C103: =IF(OR('Tabel 4F Sydj'!C103<5,'Tabel 4 Sydj'!C103<0.5),"-",IFERROR('Tabel 4 Sydj'!C103/'Tabel 4F Sydj'!C103*100,"-")) -> 11.76470588 | D103: =IF(OR('Tabel 4F Sydj'!D103<5,'Tabel 4 Sydj'!D103<0.5),"-",IFERROR('Tabel 4 Sydj'!D103/'Tabel 4F Sydj'!D103*100,"-")) -> 3.076923077 | E103: =IF(OR('Tabel 4F Sydj'!E103<5,'Tabel 4 Sydj'!E103<0.5),"-",IFERROR('Tabel 4 Sydj'!E103/'Tabel 4F Sydj'!E103*100,"-")) -> 4.285714286 | F103: =IF(OR('Tabel 4F Sydj'!F103<5,'Tabel 4 Sydj'!F103<0.5),"-",IFERROR('Tabel 4 Sydj'!F103/'Tabel 4F Sydj'!F103*100,"-")) -> 2.857142857 | G103: =IF(OR('Tabel 4F Sydj'!G103<5,'Tabel 4 Sydj'!G103<0.5),"-",IFERROR('Tabel 4 Sydj'!G103/'Tabel 4F Sydj'!G103*100,"-")) -> - | I103: =IF(OR('Tabel 4F Sydj'!I103<5,'Tabel 4 Sydj'!I103<0.5),"-",IFERROR('Tabel 4 Sydj'!I103/'Tabel 4F Sydj'!I103*100,"-")) -> 3.703703704
A104: DJØF'ere i alt | C104: =IF(OR('Tabel 4F Sydj'!C104<5,'Tabel 4 Sydj'!C104<0.5),"-",IFERROR('Tabel 4 Sydj'!C104/'Tabel 4F Sydj'!C104*100,"-")) -> 5.555555556 | D104: =IF(OR('Tabel 4F Sydj'!D104<5,'Tabel 4 Sydj'!D104<0.5),"-",IFERROR('Tabel 4 Sydj'!D104/'Tabel 4F Sydj'!D104*100,"-")) -> 2.325581395 | E104: =IF(OR('Tabel 4F Sydj'!E104<5,'Tabel 4 Sydj'!E104<0.5),"-",IFERROR('Tabel 4 Sydj'!E104/'Tabel 4F Sydj'!E104*100,"-")) -> 2.083333333 | F104: =IF(OR('Tabel 4F Sydj'!F104<5,'Tabel 4 Sydj'!F104<0.5),"-",IFERROR('Tabel 4 Sydj'!F104/'Tabel 4F Sydj'!F104*100,"-")) -> 1.492537313 | G104: =IF(OR('Tabel 4F Sydj'!G104<5,'Tabel 4 Sydj'!G104<0.5),"-",IFERROR('Tabel 4 Sydj'!G104/'Tabel 4F Sydj'!G104*100,"-")) -> 10.52631579 | I104: =IF(OR('Tabel 4F Sydj'!I104<5,'Tabel 4 Sydj'!I104<0.5),"-",IFERROR('Tabel 4 Sydj'!I104/'Tabel 4F Sydj'!I104*100,"-")) -> 3.125
A111: Billund
C113: Under 30 år | D113: 30 - 39 år | E113: 40 - 49 år | F113: 50 - 59 år | G113: Over 60 år | I113: I alt
A115: Civ. ing. | C115: =IF(OR('Tabel 4F Sydj'!C115<5,'Tabel 4 Sydj'!C115<0.5),"-",IFERROR('Tabel 4 Sydj'!C115/'Tabel 4F Sydj'!C115*100,"-")) -> - | D115: =IF(OR('Tabel 4F Sydj'!D115<5,'Tabel 4 Sydj'!D115<0.5),"-",IFERROR('Tabel 4 Sydj'!D115/'Tabel 4F Sydj'!D115*100,"-")) -> 4.347826087 | E115: =IF(OR('Tabel 4F Sydj'!E115<5,'Tabel 4 Sydj'!E115<0.5),"-",IFERROR('Tabel 4 Sydj'!E115/'Tabel 4F Sydj'!E115*100,"-")) -> - | F115: =IF(OR('Tabel 4F Sydj'!F115<5,'Tabel 4 Sydj'!F115<0.5),"-",IFERROR('Tabel 4 Sydj'!F115/'Tabel 4F Sydj'!F115*100,"-")) -> - | G115: =IF(OR('Tabel 4F Sydj'!G115<5,'Tabel 4 Sydj'!G115<0.5),"-",IFERROR('Tabel 4 Sydj'!G115/'Tabel 4F Sydj'!G115*100,"-")) -> - | I115: =IF(OR('Tabel 4F Sydj'!I115<5,'Tabel 4 Sydj'!I115<0.5),"-",IFERROR('Tabel 4 Sydj'!I115/'Tabel 4F Sydj'!I115*100,"-")) -> 2.173913043
A116: Diplom ing. | C116: =IF(OR('Tabel 4F Sydj'!C116<5,'Tabel 4 Sydj'!C116<0.5),"-",IFERROR('Tabel 4 Sydj'!C116/'Tabel 4F Sydj'!C116*100,"-")) -> - | D116: =IF(OR('Tabel 4F Sydj'!D116<5,'Tabel 4 Sydj'!D116<0.5),"-",IFERROR('Tabel 4 Sydj'!D116/'Tabel 4F Sydj'!D116*100,"-")) -> - | E116: =IF(OR('Tabel 4F Sydj'!E116<5,'Tabel 4 Sydj'!E116<0.5),"-",IFERROR('Tabel 4 Sydj'!E116/'Tabel 4F Sydj'!E116*100,"-")) -> - | F116: =IF(OR('Tabel 4F Sydj'!F116<5,'Tabel 4 Sydj'!F116<0.5),"-",IFERROR('Tabel 4 Sydj'!F116/'Tabel 4F Sydj'!F116*100,"-")) -> - | G116: =IF(OR('Tabel 4F Sydj'!G116<5,'Tabel 4 Sydj'!G116<0.5),"-",IFERROR('Tabel 4 Sydj'!G116/'Tabel 4F Sydj'!G116*100,"-")) -> - | I116: =IF(OR('Tabel 4F Sydj'!I116<5,'Tabel 4 Sydj'!I116<0.5),"-",IFERROR('Tabel 4 Sydj'!I116/'Tabel 4F Sydj'!I116*100,"-")) -> -
A117: Cand. Scient. Tek | C117: =IF(OR('Tabel 4F Sydj'!C117<5,'Tabel 4 Sydj'!C117<0.5),"-",IFERROR('Tabel 4 Sydj'!C117/'Tabel 4F Sydj'!C117*100,"-")) -> - | D117: =IF(OR('Tabel 4F Sydj'!D117<5,'Tabel 4 Sydj'!D117<0.5),"-",IFERROR('Tabel 4 Sydj'!D117/'Tabel 4F Sydj'!D117*100,"-")) -> - | E117: =IF(OR('Tabel 4F Sydj'!E117<5,'Tabel 4 Sydj'!E117<0.5),"-",IFERROR('Tabel 4 Sydj'!E117/'Tabel 4F Sydj'!E117*100,"-")) -> - | F117: =IF(OR('Tabel 4F Sydj'!F117<5,'Tabel 4 Sydj'!F117<0.5),"-",IFERROR('Tabel 4 Sydj'!F117/'Tabel 4F Sydj'!F117*100,"-")) -> - | G117: =IF(OR('Tabel 4F Sydj'!G117<5,'Tabel 4 Sydj'!G117<0.5),"-",IFERROR('Tabel 4 Sydj'!G117/'Tabel 4F Sydj'!G117*100,"-")) -> - | I117: =IF(OR('Tabel 4F Sydj'!I117<5,'Tabel 4 Sydj'!I117<0.5),"-",IFERROR('Tabel 4 Sydj'!I117/'Tabel 4F Sydj'!I117*100,"-")) -> 4.347826087
A118: MA. Hum. | C118: =IF(OR('Tabel 4F Sydj'!C118<5,'Tabel 4 Sydj'!C118<0.5),"-",IFERROR('Tabel 4 Sydj'!C118/'Tabel 4F Sydj'!C118*100,"-")) -> - | D118: =IF(OR('Tabel 4F Sydj'!D118<5,'Tabel 4 Sydj'!D118<0.5),"-",IFERROR('Tabel 4 Sydj'!D118/'Tabel 4F Sydj'!D118*100,"-")) -> 15 | E118: =IF(OR('Tabel 4F Sydj'!E118<5,'Tabel 4 Sydj'!E118<0.5),"-",IFERROR('Tabel 4 Sydj'!E118/'Tabel 4F Sydj'!E118*100,"-")) -> - | F118: =IF(OR('Tabel 4F Sydj'!F118<5,'Tabel 4 Sydj'!F118<0.5),"-",IFERROR('Tabel 4 Sydj'!F118/'Tabel 4F Sydj'!F118*100,"-")) -> 22.22222222 | G118: =IF(OR('Tabel 4F Sydj'!G118<5,'Tabel 4 Sydj'!G118<0.5),"-",IFERROR('Tabel 4 Sydj'!G118/'Tabel 4F Sydj'!G118*100,"-")) -> - | I118: =IF(OR('Tabel 4F Sydj'!I118<5,'Tabel 4 Sydj'!I118<0.5),"-",IFERROR('Tabel 4 Sydj'!I118/'Tabel 4F Sydj'!I118*100,"-")) -> 11.76470588
A119: MA. Nat. | C119: =IF(OR('Tabel 4F Sydj'!C119<5,'Tabel 4 Sydj'!C119<0.5),"-",IFERROR('Tabel 4 Sydj'!C119/'Tabel 4F Sydj'!C119*100,"-")) -> - | D119: =IF(OR('Tabel 4F Sydj'!D119<5,'Tabel 4 Sydj'!D119<0.5),"-",IFERROR('Tabel 4 Sydj'!D119/'Tabel 4F Sydj'!D119*100,"-")) -> - | E119: =IF(OR('Tabel 4F Sydj'!E119<5,'Tabel 4 Sydj'!E119<0.5),"-",IFERROR('Tabel 4 Sydj'!E119/'Tabel 4F Sydj'!E119*100,"-")) -> - | F119: =IF(OR('Tabel 4F Sydj'!F119<5,'Tabel 4 Sydj'!F119<0.5),"-",IFERROR('Tabel 4 Sydj'!F119/'Tabel 4F Sydj'!F119*100,"-")) -> 14.28571429 | G119: =IF(OR('Tabel 4F Sydj'!G119<5,'Tabel 4 Sydj'!G119<0.5),"-",IFERROR('Tabel 4 Sydj'!G119/'Tabel 4F Sydj'!G119*100,"-")) -> - | I119: =IF(OR('Tabel 4F Sydj'!I119<5,'Tabel 4 Sydj'!I119<0.5),"-",IFERROR('Tabel 4 Sydj'!I119/'Tabel 4F Sydj'!I119*100,"-")) -> 5.263157895
A120: MA. Ph.d. | C120: =IF(OR('Tabel 4F Sydj'!C120<5,'Tabel 4 Sydj'!C120<0.5),"-",IFERROR('Tabel 4 Sydj'!C120/'Tabel 4F Sydj'!C120*100,"-")) -> - | D120: =IF(OR('Tabel 4F Sydj'!D120<5,'Tabel 4 Sydj'!D120<0.5),"-",IFERROR('Tabel 4 Sydj'!D120/'Tabel 4F Sydj'!D120*100,"-")) -> - | E120: =IF(OR('Tabel 4F Sydj'!E120<5,'Tabel 4 Sydj'!E120<0.5),"-",IFERROR('Tabel 4 Sydj'!E120/'Tabel 4F Sydj'!E120*100,"-")) -> - | F120: =IF(OR('Tabel 4F Sydj'!F120<5,'Tabel 4 Sydj'!F120<0.5),"-",IFERROR('Tabel 4 Sydj'!F120/'Tabel 4F Sydj'!F120*100,"-")) -> - | G120: =IF(OR('Tabel 4F Sydj'!G120<5,'Tabel 4 Sydj'!G120<0.5),"-",IFERROR('Tabel 4 Sydj'!G120/'Tabel 4F Sydj'!G120*100,"-")) -> - | I120: =IF(OR('Tabel 4F Sydj'!I120<5,'Tabel 4 Sydj'!I120<0.5),"-",IFERROR('Tabel 4 Sydj'!I120/'Tabel 4F Sydj'!I120*100,"-")) -> -
A121: MA. Samf. | C121: =IF(OR('Tabel 4F Sydj'!C121<5,'Tabel 4 Sydj'!C121<0.5),"-",IFERROR('Tabel 4 Sydj'!C121/'Tabel 4F Sydj'!C121*100,"-")) -> - | D121: =IF(OR('Tabel 4F Sydj'!D121<5,'Tabel 4 Sydj'!D121<0.5),"-",IFERROR('Tabel 4 Sydj'!D121/'Tabel 4F Sydj'!D121*100,"-")) -> - | E121: =IF(OR('Tabel 4F Sydj'!E121<5,'Tabel 4 Sydj'!E121<0.5),"-",IFERROR('Tabel 4 Sydj'!E121/'Tabel 4F Sydj'!E121*100,"-")) -> - | F121: =IF(OR('Tabel 4F Sydj'!F121<5,'Tabel 4 Sydj'!F121<0.5),"-",IFERROR('Tabel 4 Sydj'!F121/'Tabel 4F Sydj'!F121*100,"-")) -> - | G121: =IF(OR('Tabel 4F Sydj'!G121<5,'Tabel 4 Sydj'!G121<0.5),"-",IFERROR('Tabel 4 Sydj'!G121/'Tabel 4F Sydj'!G121*100,"-")) -> - | I121: =IF(OR('Tabel 4F Sydj'!I121<5,'Tabel 4 Sydj'!I121<0.5),"-",IFERROR('Tabel 4 Sydj'!I121/'Tabel 4F Sydj'!I121*100,"-")) -> -
A122: Øvrige Mag. | C122: =IF(OR('Tabel 4F Sydj'!C122<5,'Tabel 4 Sydj'!C122<0.5),"-",IFERROR('Tabel 4 Sydj'!C122/'Tabel 4F Sydj'!C122*100,"-")) -> - | D122: =IF(OR('Tabel 4F Sydj'!D122<5,'Tabel 4 Sydj'!D122<0.5),"-",IFERROR('Tabel 4 Sydj'!D122/'Tabel 4F Sydj'!D122*100,"-")) -> - | E122: =IF(OR('Tabel 4F Sydj'!E122<5,'Tabel 4 Sydj'!E122<0.5),"-",IFERROR('Tabel 4 Sydj'!E122/'Tabel 4F Sydj'!E122*100,"-")) -> - | F122: =IF(OR('Tabel 4F Sydj'!F122<5,'Tabel 4 Sydj'!F122<0.5),"-",IFERROR('Tabel 4 Sydj'!F122/'Tabel 4F Sydj'!F122*100,"-")) -> - | G122: =IF(OR('Tabel 4F Sydj'!G122<5,'Tabel 4 Sydj'!G122<0.5),"-",IFERROR('Tabel 4 Sydj'!G122/'Tabel 4F Sydj'!G122*100,"-")) -> - | I122: =IF(OR('Tabel 4F Sydj'!I122<5,'Tabel 4 Sydj'!I122<0.5),"-",IFERROR('Tabel 4 Sydj'!I122/'Tabel 4F Sydj'!I122*100,"-")) -> -
A123: Agronom | C123: =IF(OR('Tabel 4F Sydj'!C123<5,'Tabel 4 Sydj'!C123<0.5),"-",IFERROR('Tabel 4 Sydj'!C123/'Tabel 4F Sydj'!C123*100,"-")) -> - | D123: =IF(OR('Tabel 4F Sydj'!D123<5,'Tabel 4 Sydj'!D123<0.5),"-",IFERROR('Tabel 4 Sydj'!D123/'Tabel 4F Sydj'!D123*100,"-")) -> - | E123: =IF(OR('Tabel 4F Sydj'!E123<5,'Tabel 4 Sydj'!E123<0.5),"-",IFERROR('Tabel 4 Sydj'!E123/'Tabel 4F Sydj'!E123*100,"-")) -> - | F123: =IF(OR('Tabel 4F Sydj'!F123<5,'Tabel 4 Sydj'!F123<0.5),"-",IFERROR('Tabel 4 Sydj'!F123/'Tabel 4F Sydj'!F123*100,"-")) -> - | G123: =IF(OR('Tabel 4F Sydj'!G123<5,'Tabel 4 Sydj'!G123<0.5),"-",IFERROR('Tabel 4 Sydj'!G123/'Tabel 4F Sydj'!G123*100,"-")) -> - | I123: =IF(OR('Tabel 4F Sydj'!I123<5,'Tabel 4 Sydj'!I123<0.5),"-",IFERROR('Tabel 4 Sydj'!I123/'Tabel 4F Sydj'!I123*100,"-")) -> -
A124: Landsk. Arkt. | C124: =IF(OR('Tabel 4F Sydj'!C124<5,'Tabel 4 Sydj'!C124<0.5),"-",IFERROR('Tabel 4 Sydj'!C124/'Tabel 4F Sydj'!C124*100,"-")) -> - | D124: =IF(OR('Tabel 4F Sydj'!D124<5,'Tabel 4 Sydj'!D124<0.5),"-",IFERROR('Tabel 4 Sydj'!D124/'Tabel 4F Sydj'!D124*100,"-")) -> - | E124: =IF(OR('Tabel 4F Sydj'!E124<5,'Tabel 4 Sydj'!E124<0.5),"-",IFERROR('Tabel 4 Sydj'!E124/'Tabel 4F Sydj'!E124*100,"-")) -> - | F124: =IF(OR('Tabel 4F Sydj'!F124<5,'Tabel 4 Sydj'!F124<0.5),"-",IFERROR('Tabel 4 Sydj'!F124/'Tabel 4F Sydj'!F124*100,"-")) -> - | G124: =IF(OR('Tabel 4F Sydj'!G124<5,'Tabel 4 Sydj'!G124<0.5),"-",IFERROR('Tabel 4 Sydj'!G124/'Tabel 4F Sydj'!G124*100,"-")) -> - | I124: =IF(OR('Tabel 4F Sydj'!I124<5,'Tabel 4 Sydj'!I124<0.5),"-",IFERROR('Tabel 4 Sydj'!I124/'Tabel 4F Sydj'!I124*100,"-")) -> -
A125: Hortonom | C125: =IF(OR('Tabel 4F Sydj'!C125<5,'Tabel 4 Sydj'!C125<0.5),"-",IFERROR('Tabel 4 Sydj'!C125/'Tabel 4F Sydj'!C125*100,"-")) -> - | D125: =IF(OR('Tabel 4F Sydj'!D125<5,'Tabel 4 Sydj'!D125<0.5),"-",IFERROR('Tabel 4 Sydj'!D125/'Tabel 4F Sydj'!D125*100,"-")) -> - | E125: =IF(OR('Tabel 4F Sydj'!E125<5,'Tabel 4 Sydj'!E125<0.5),"-",IFERROR('Tabel 4 Sydj'!E125/'Tabel 4F Sydj'!E125*100,"-")) -> - | F125: =IF(OR('Tabel 4F Sydj'!F125<5,'Tabel 4 Sydj'!F125<0.5),"-",IFERROR('Tabel 4 Sydj'!F125/'Tabel 4F Sydj'!F125*100,"-")) -> - | G125: =IF(OR('Tabel 4F Sydj'!G125<5,'Tabel 4 Sydj'!G125<0.5),"-",IFERROR('Tabel 4 Sydj'!G125/'Tabel 4F Sydj'!G125*100,"-")) -> - | I125: =IF(OR('Tabel 4F Sydj'!I125<5,'Tabel 4 Sydj'!I125<0.5),"-",IFERROR('Tabel 4 Sydj'!I125/'Tabel 4F Sydj'!I125*100,"-")) -> -
